Workbook

Sheet Portada
A21: =+"Anexo A Datos " &Fecha!A1&" (Pliego Tarifario " & Fecha!T4&")" -> Anexo A Datos EDECHI (Pliego Tarifario Jul-Dic/2023)
J58: .

Sheet Fecha
A1: EDECHI | B1: 11 | H1: 12 | N1: 13 | T1: 14
A2: Períodos | B2: Fechas | H2: Fechas | N2: Fechas | T2: Fechas
A3: Mes Inicial | B3: 2022-01-01 | H3: 2022-07-01 | N3: 2023-01-01 | T3: 2023-07-01
A4: período p | B4: Ene-Jun/2022 | H4: Jul-Dic/2022 | N4: Ene-Jun/2023 | T4: Jul-Dic/2023
B5: Ene-Mar/2022 | H5: Jul-Sep/2022 | N5: Ene-Mar/2023 | T5: Jul-Sep/2023
A6: período p-1 | B6: Jul-Sep/2021 | H6: Ene-Mar/2022 | N6: Jul-Sep/2022 | T6: Ene-Mar/2023
B7: Jul-Dic/2021 | H7: Ene-Jun/2022 | N7: Jul-Dic/2022 | T7: Ene-Jun/2023
A8: período p-2 | B8: Ene-Jun/2021 | H8: Jul-Dic/2021 | N8: Ene-Jun/2022 | T8: Jul-Dic/2022
A9: período p-3 | B9: Jul-Dic/2020 | H9: Ene-Jun/2021 | N9: Jul-Dic/2021 | T9: Ene-Jun/2022
B10: 2020-07-01 | H10: 2021-01-01 | N10: 2021-07-01 | T10: 2022-01-01
B11: 2021-06-01 | H11: 2021-12-01 | N11: 2022-06-01 | T11: 2022-12-01
B12: jul/20-jun/21 | H12: ene/21-dic/21 | N12: jul/21-jun/22 | T12: ene/22-dic/22

Sheet Compras (p)
A1: COSTOS DE COMPRA DE ENERGÍA
A2: EDECHI
A4: Datos | B4: 2023-07-01 | C4: 2023-08-01 | D4: 2023-09-01 | E4: 2023-10-01 | F4: 2023-11-01 | G4: 2023-12-01
A5: Energía Facturada | B5: =+B7*(1-B6) -> 74303.52793 | C5: =+C7*(1-C6) -> 76677.73413 | D5: =+D7*(1-D6) -> 74441.06349 | E5: 75380.36626 | F5: 72272.05166 | G5: 76669.95618
A6: Pérdidas | B6: 0.12 | C6: 0.12 | D6: 0.12 | E6: 0.12 | F6: 0.12 | G6: 0.12
A7: Energía Requerida Puesta en Red | B7: =+'GEN-522 Gen'!B8 * (1 + 2%) -> 84435.8272 | C7: =+'GEN-522 Gen'!C8 * (1 + 2%) -> 87133.78878 | D7: =+'GEN-522 Gen'!D8 * (1 + 2%) -> 84592.1176 | E7: =+'GEN-522 Gen'!E8 * (1 + 2%) -> 85659.50711 | F7: =+'GEN-522 Gen'!F8 * (1 + 2%) -> 82127.33144 | G7: =+'GEN-522 Gen'!G8 * (1 + 2%) -> 87124.9502
A8: Generación Propia | B8: =+'GEN-502 Gen_P'!B9+'GEN-502 Gen_FP'!B9 -> 0 | C8: =+'GEN-502 Gen_P'!C9+'GEN-502 Gen_FP'!C9 -> 0 | D8: =+'GEN-502 Gen_P'!D9+'GEN-502 Gen_FP'!D9 -> 0 | E8: =+'GEN-502 Gen_P'!E9+'GEN-502 Gen_FP'!E9 -> 0 | F8: =+'GEN-502 Gen_P'!F9+'GEN-502 Gen_FP'!F9 -> 0 | G8: =+'GEN-502 Gen_P'!G9+'GEN-502 Gen_FP'!G9 -> 0
A9: Compras a Nivel de Distribución
A10: Compra de Energía GC | B10: =+('Ventas (p)'!B51+'Ventas (p)'!B99)/1000 -> 9992.3945 | C10: =+('Ventas (p)'!C51+'Ventas (p)'!C99)/1000 -> 9992.3945 | D10: =+('Ventas (p)'!D51+'Ventas (p)'!D99)/1000 -> 9992.3945 | E10: =+('Ventas (p)'!E51+'Ventas (p)'!E99)/1000 -> 9992.3945 | F10: =+('Ventas (p)'!F51+'Ventas (p)'!F99)/1000 -> 9992.3945 | G10: =+('Ventas (p)'!G51+'Ventas (p)'!G99)/1000 -> 9992.3945
A11: Energía del Mercado Mayorista | B11: =+B7-B8-B9 -> 84435.8272 | C11: =+C7-C8-C9 -> 87133.78878 | D11: 84592.1176 | E11: 85659.50711 | F11: 82127.33144 | G11: 87124.9502
A12: DMG de acuerdo al INFORME INDICATIVO DE DEMANDA 2023-2043, GOP‐2‐1‐2023
A14: Pérdidas de Transmisión | B14: 2023-07-01 | C14: 2023-08-01 | D14: 2023-09-01 | E14: 2023-10-01 | F14: 2023-11-01 | G14: 2023-12-01
A15: Energía Pérdidas de Transmisión (MWh) | B15: 95 | C15: 95 | D15: 95 | E15: 95 | F15: 95 | G15: 95
A16: Precio Medio de las Pérdidas (US$/MWh) | B16: 84 | C16: 84 | D16: 84 | E16: 84 | F16: 84 | G16: 84
A17: Costo de las Pérdidas de Transmisión (B/.) | B17: =+B15*B16 -> 7980 | C17: =+C15*C16 -> 7980 | D17: 7980 | E17: 7980 | F17: 7980 | G17: 7980
A20: Precio del Combustible | B20: 2023-07-01 | C20: 2023-08-01 | D20: 2023-09-01 | E20: 2023-10-01 | F20: 2023-11-01 | G20: 2023-12-01
A21: GNL ($/MMBTU) | B21: 2.75 | C21: =+B21 -> 2.75 | D21: =+C21 -> 2.75 | E21: 2.75 | F21: 2.75 | G21: 2.75
A22: Diesel (US$/bl) | B22: 120 | C22: 120 | D22: 120 | E22: 120 | F22: 120 | G22: 120
A23: Bunker C (US$/bl) | B23: 80 | C23: 80 | D23: 80 | E23: 80 | F23: 80 | G23: 80
A27: Ajuste Potencia G.C. | B27: 2023-07-01 | C27: 2023-08-01 | D27: 2023-09-01 | E27: 2023-10-01 | F27: 2023-11-01 | G27: 2023-12-01
A28: Factor de Ajuste | B28: =+(1+B29)*(1+B30) -> 1.10399295 | C28: =+(1+C29)*(1+C30) -> 1.104951 | D28: 1.104951 | E28: 1.104951 | F28: 1.104951 | G28: 1.104951
A29: Reserva para Confiabilidad de Largo Plazo | B29: 0.0645 | C29: 0.0645 | D29: 0.0645 | E29: 0.0645 | F29: 0.0645 | G29: 0.0645
A30: Pérdidas Típicas en Punta | B30: 0.0371 | C30: 0.038 | D30: 0.038 | E30: 0.038 | F30: 0.038 | G30: 0.038

Sheet GEN-502 Pot
A1: INFORMACION PARA ACTUALIZAR: CARGO POR GENERACION
A2: =+'Compras (p)'!A2 -> EDECHI
A3: Porción de Potencia Contratada Mensual para atender Clientes Regulados (MW)
B4: POTENCIA CONTRATADA
A5: Detalle | B5: 2023-07-01 | C5: 2023-08-01 | D5: 2023-09-01 | E5: 2023-10-01 | F5: 2023-11-01 | G5: 2023-12-01 | H5: Promedio
A6: Demanda Máxima Mensual | B6: 151.68 | C6: 157.84 | D6: 158.27 | E6: 162.6 | F6: 156.25 | G6: 170.85 | H6: =+IF(SUM(B6:G6)>0,AVERAGE(B6:G6),0) -> 159.5816667
A7: Demanda Máxima de Generación (DMG) | B7: 173.12 | C7: 173.12 | D7: 173.12 | E7: 173.12 | F7: 173.12 | G7: 173.12 | H7: 173.12
A8: TOTAL | B8: =+B9+B15 -> 184.52647 | C8: 180.00327 | D8: 180.49647 | E8: 180.81647 | F8: 177.95647 | G8: 186.90647 | H8: 181.78427
A9: Generación Propia
B12: 0 | C12: 0 | D12: 0 | E12: 0 | F12: 0 | G12: 0
B13: 0 | C13: 0 | D13: 0 | E13: 0 | F13: 0 | G13: 0
A15: Sub-Total Mercado Mayorista | B15: =+SUM(B16:B24) -> 184.52647 | C15: 180.00327 | D15: 180.49647 | E15: 180.81647 | F15: 177.95647 | G15: 186.90647 | H15: =+IF(SUM(B15:G15)>0,AVERAGE(B15:G15),0) -> 181.78427
A16: Reserva de largo Plazo | B16: =+IF(B6-B24-B9<0,0,B6-B24-B9) -> 0 | C16: =+IF(C6-C24-C9<0,0,C6-C24-C9) -> 0 | D16: 0 | E16: 0 | F16: 0 | G16: 0 | H16: 0
A17: Compensacion de Potencia | H17: 0
A24: Sub-Total Contratos | B24: =+SUMIFS(B25:B92,'GEN-502 Pre_Pot'!$H$25:$H$92,">"&0) -> 184.52647 | C24: =+SUMIFS(C25:C92,'GEN-502 Pre_Pot'!$H$25:$H$92,">"&0) -> 180.00327 | D24: =+SUMIFS(D25:D92,'GEN-502 Pre_Pot'!$H$25:$H$92,">"&0) -> 180.49647 | E24: =+SUMIFS(E25:E92,'GEN-502 Pre_Pot'!$H$25:$H$92,">"&0) -> 180.81647 | F24: =+SUMIFS(F25:F92,'GEN-502 Pre_Pot'!$H$25:$H$92,">"&0) -> 177.95647 | G24: =+SUMIFS(G25:G92,'GEN-502 Pre_Pot'!$H$25:$H$92,">"&0) -> 186.90647 | H24: =+SUMIFS(H25:H92,'GEN-502 Pre_Pot'!$H$25:$H$92,">"&0) -> 194.3676033
A25: Empresa Nacional de Energía No. 36-11 (Cesión) | B25: 0.666 | C25: 0.666 | D25: 0.666 | E25: 0.666 | F25: 0.666 | G25: 0.666 | H25: =+IF(SUM(B25:G25)>0,AVERAGE(B25:G25),0) -> 0.666
A26: Enel Fortuna No. 37-11 | B26: 1.96603 | C26: 1.96603 | D26: 1.96603 | E26: 1.96603 | F26: 1.96603 | G26: 1.96603 | H26: 1.96603
A27: Electrogeneradora del Istmo No. 38-11 | B27: 0.08325 | C27: 0.08325 | D27: 0.08325 | E27: 0.08325 | F27: 0.08325 | G27: 0.08325 | H27: 0.08325
A28: ESEPSA No. 39-11 | B28: 0.36497 | C28: 0.36497 | D28: 0.36497 | E28: 0.36497 | F28: 0.36497 | G28: 0.36497 | H28: 0.36497
A29: Pedregalito No. 40-11 | B29: 0.26227 | C29: 0.26227 | D29: 0.26227 | E29: 0.26227 | F29: 0.26227 | G29: 0.26227 | H29: 0.26227
A30: Río Chico No. 41-11 | B30: 0.16084 | C30: 0.16084 | D30: 0.16084 | E30: 0.16084 | F30: 0.16084 | G30: 0.16084 | H30: 0.16084
A31: Alto Valle No. 42-11 | B31: 0.15305 | C31: 0.15305 | D31: 0.15305 | E31: 0.15305 | F31: 0.15305 | G31: 0.15305 | H31: 0.15305
A32: Hidroecológica del Teribe No. 43-11 | B32: 0.666 | C32: 0.666 | D32: 0.666 | E32: 0.666 | F32: 0.666 | G32: 0.666 | H32: 0.666
A33: Desarrollos Hidroeléctricos Corp. No. 44-11 | B33: 0.12674 | C33: 0.12674 | D33: 0.12674 | E33: 0.12674 | F33: 0.12674 | G33: 0.12674 | H33: 0.12674
A34: Las Perlas Norte No. 45-11 | B34: 0.79254 | C34: 0.79254 | D34: 0.79254 | E34: 0.79254 | F34: 0.79254 | G34: 0.79254 | H34: 0.79254
A35: Hidroeléctrica San Lorenzo No. 46-11 | B35: 0.08878 | C35: 0.08878 | D35: 0.08878 | E35: 0.08878 | F35: 0.08878 | G35: 0.08878 | H35: 0.08878
A36: Caldera Energy Corp. No. 47-11 | B36: 0.1998 | C36: 0.1998 | D36: 0.1998 | E36: 0.1998 | F36: 0.1998 | G36: 0.1998 | H36: 0.1998
A37: Unión Eólica de Panamá (PE Nuevo Chagres) No. 19-12' | B37: 1.7647 | C37: 1.5637 | D37: 0.0017 | E37: 0.0016 | F37: 0.0017 | G37: 0.0018 | H37: =+IF(SUM(B37:G37)>0,AVERAGE(B37:G37),0) -> 0.5558666667
A38: Unión Eólica de Panamá (PE Rosa de los Vientos) No. 20-12' | B38: 0.0017 | C38: 0.0018 | D38: 0.0017 | E38: 0.0016 | F38: 0.0017 | G38: 0.0018 | H38: 0.001716666667
A39: Unión Eólica de Panamá (PE Portobelo Ballestillas) No. 21-12' | B39: 0.0017 | C39: 0.0018 | D39: 0.0017 | E39: 0.0016 | F39: 0.0017 | G39: 0.0018 | H39: 0.001716666667
A40: Unión Eólica de Panamá (PE Marañon) No. 22-12' | B40: 0.0017 | C40: 0.0018 | D40: 0.0017 | E40: 0.0016 | F40: 0.0017 | G40: 0.0018 | H40: 0.001716666667
A41: AES No. 122-12 | B41: 24.5 | C41: 24.5 | D41: 24.5 | E41: 24.5 | F41: 24.5 | G41: 24.5 | H41: 24.5
A42: HIDRO PIEDRA No. 123-12 | B42: 0.125 | C42: 0.125 | D42: 0.125 | E42: 0.125 | F42: 0.125 | G42: 0.125 | H42: =+IF(SUM(B42:G42)>0,AVERAGE(B42:G42),0) -> 0.125
A43: Corp. Energ. Del Istmo No. 124-12 | B43: 0.6167 | C43: 0.6167 | D43: 0.6167 | E43: 0.6167 | F43: 0.6167 | G43: 0.6167 | H43: 0.6167
A44: Saltos del Francolí No. 126-12 | B44: 0.0645 | C44: 0.0645 | D44: 0.0645 | E44: 0.0645 | F44: 0.0645 | G44: 0.0645 | H44: 0.0645
A45: PASO ANCHO No. 88-11 | B45: 1.48 | C45: 1.44 | D45: 1.44 | E45: 1.36 | F45: 1.4 | G45: 1.44 | H45: 1.426666667
A46: Hidroecológica del Teribe No. 89-11 | B46: 1.75 | C46: 1.8 | D46: 1.8 | E46: 1.75 | F46: 1.8 | G46: 1.8 | H46: 1.783333333
A47: ISTMUS HYDRO POWER CORP. No.10-13 | B47: 0.7558 | C47: 0.7578 | D47: 0.7883 | E47: 0.721 | F47: 0.6874 | G47: 0.6845 | H47: 0.7324666667
A48: CALDERA ENERGY CORP. No.11-13 | B48: 0.855 | C48: 1.6 | D48: 1.9 | E48: 2.6 | F48: 1.615 | G48: 0.475 | H48: 1.5075
A49: ELECTROGENERADORA DEL ISTMO, S.A. No.12-13 | B49: 0.285 | C49: 0.5 | D49: 0.75 | E49: 0.9 | F49: 0.6175 | G49: 0.2375 | H49: 0.5483333333
A50: FOUNTAIN INTERTRADE CORP. No.13-13 | B50: 3.5955 | C50: 4.2197 | D50: 6.114 | E50: 8.2765 | F50: 5.2713 | G50: 2.9481 | H50: 5.07085
A51: HIDROIBERICA, S.A. No.14-13 | B51: 0.0779 | C51: 0.132 | D51: 0.16 | E51: 0.202 | F51: 0.1767 | G51: 0.1634 | H51: 0.152
A52: NAVITAS INTERNACIONAL, S.A. No.15-13 | B52: 0.7588 | C52: 0.846 | D52: 1.0298 | E52: 1.0587 | F52: 0.877 | G52: 0.6489 | H52: 0.8698666667
A53: HIDROECOLÓGICA DEL TERIBE, S.A. No.16-13 | B53: 0 | C53: 0 | D53: 0.2 | E53: 1 | F53: 0.38 | G53: 0.38 | H53: 0.3266666667
A54: HIDRONORTH CORP. No.17-13 | B54: 0.0912 | C54: 0.112 | D54: 0.136 | E54: 0.136 | F54: 0.1273 | G54: 0.095 | H54: 0.11625
A55: EMPRESA NACIONAL DE ENERGÍA, S.A. No.33-13 | B55: 0.3648 | C55: 0.654 | D55: 0.654 | E55: 0.4906 | F55: 0.6213 | G55: 0.4123 | H55: 0.5328333333
A56: FUERZA ELÉCTRICA DEL ISTMO, S.A. No.34-13 | B56: 0.1425 | C56: 0.15 | D56: 0.15 | E56: 0.1126 | F56: 0.1425 | G56: 0.1425 | H56: 0.1400166667
A57: CAFÉ DE ELETA, S.A. No.35-13 | B57: 0.04371 | C57: 0.049 | D57: 0.04728 | E57: 0.04847 | F57: 0.06951 | G57: 0.05179 | H57: 0.05162666667
A58: ENERGÍA Y SERVICIOS DE PANAMÁ, S.A. No.36-13 | B58: 2.11616 | C58: 2.66847 | D58: 2.74856 | E58: 2.44658 | F58: 3.07031 | G58: 1.89609 | H58: 2.491028333
A59: GENERADORA PEDREGALITO, S.A. No.37-13 | B59: 0.87913 | C59: 1.1854 | D59: 1.1856 | E59: 1.4055 | F59: 1.37009 | G59: 0.64334 | H59: 1.11151
A60: GENERADORA RIO CHICO, S.A. No.38-13 | B60: 0.54207 | C60: 0.73057 | D60: 0.73036 | E60: 0.86558 | F60: 0.84404 | G60: 0.39705 | H60: 0.684945
A61: GENERADORA ALTO VALLE, S.A. No.39-13 | B61: 0.77441 | C61: 1.0677 | D61: 1.07206 | E61: 1.14692 | F61: 0.98438 | G61: 0.49692 | H61: 0.9237316667
A62: HYDRO CAISÁN, S.A. No.40-13 | B62: 1.92448 | C62: 3.49907 | D62: 4.21238 | E62: 1.78691 | F62: 3.72804 | G62: 1.02961 | H62: 2.696748333
A63: SIGSA, S.A. No. 137-12 | B63: 8.3 | C63: 8.3 | D63: 8.3 | E63: 8.3 | F63: 8.3 | G63: 8.3 | H63: 8.3
A64: PARQUE EÓLICO TOABRÉ, S.A. No 09-14 | B64: 3.96 | C64: 4 | D64: 3.99 | E64: 4.08 | F64: 5.94 | G64: 10.34 | H64: 5.385
A65: NAURA ENERGY CORP. No 10-14 | B65: 0.1936 | C65: 0.2 | D65: 0.1974 | E65: 0.3648 | F65: 0.3608 | G65: 1.0076 | H65: 0.3873666667
A66: Panama Solar2 No. 10-15 | B66: 0.31 | C66: 0.64 | D66: 0.65 | E66: 0.65 | F66: 0.36 | G66: 0.44 | H66: 0.5083333333
A67: Solpac Investment No. 11-15 | B67: 0.05 | C67: 0.11 | D67: 0.11 | E67: 0.11 | F67: 0.06 | G67: 0.07 | H67: 0.085
A68: GAS NATURAL ATLÁNTICO No. 17-15 | B68: 28 | C68: 28 | D68: 28 | E68: 28 | F68: 28 | G68: 28 | H68: =+IF(SUM(B68:G68)>0,AVERAGE(B68:G68),0) -> 28
A69: MARTANO INC No. 19-15 | B69: 28 | C69: 28 | D69: 28 | E69: 28 | F69: 28 | G69: 28 | H69: 28
A70: ENEL FORTUNA, S.A. No. 36-21 | B70: 9.93462 | C70: 10.92896 | H70: =+IF(SUM(B70:G70)>0,AVERAGE(B70:G70),0) -> 10.43179
A71: HIDRO BOQUERÓN, S.A. No. 40-21 | B71: 0.04918466667 | C71: 0.04520552381 | H71: 0.04719509524
A72: AUTORIDAD DEL CANAL DE PANAMÁ No. 57-21 | B72: 0.9926 | C72: 0.8653 | D72: 0 | E72: 0 | F72: 0.1025 | H72: 0.39208
A73: GENERADORA DEL ATLÁNTICO, S.A. No. 59-21 | B73: 16.8 | C73: 20.4 | D73: 2.431 | E73: 2.0485 | F73: 1 | H73: 8.5359
A74: GENERADORA DEL ATLÁNTICO, S.A. No. 60-21 | B74: 2.1 | C74: 2.55 | H74: 2.325
A75: PANAM GENERATING LTD No. 61-21 | B75: 19.1744 | C75: 23.2832 | D75: 3.52 | E75: 2.72 | F75: 1.6 | H75: 10.05952
A76: TROPITÉRMICA, S.A. No. 63-21 | B76: 0.133 | C76: 0.1615 | D76: 0.209 | E76: 0.1615 | F76: 0.0475 | H76: 0.1425
A77: EMPRESA NACIONAL DE ENERGÍA, S.A. No. 23-23 | B77: 0.4114 | C77: 0 | D77: 0.2873 | E77: 0.7128 | F77: 0.1104 | G77: 0 | H77: 0.25365
A78: FOUNTAIN HYDRO POWER CORP No. 24-23 | B78: 4.8008 | C78: 0 | D78: 0 | E78: 0 | F78: 0 | G78: 0 | H78: 0.8001333333
A79: GENERADORA DEL ISTMO, S.A. No. 25-23 | B79: 2.04 | H79: 2.04
A80: HIDRO BOQUERÓN, S.A. No. 26-23 | B80: 0.24854 | C80: 0.126 | D80: 0.4488 | E80: 0.51696 | F80: 0.28496 | G80: 0 | H80: 0.2708766667
A81: HIDROIBÉRICA No. 27-23 | B81: 0.13127 | C81: 0.09427 | D81: 0.10015 | E81: 0.07717 | F81: 0.08357 | G81: 0.09971 | H81: 0.09769
A82: IDEAL PANAMÁ, S.A. No. 29-23 | B82: 3.4 | C82: 0 | D82: 0 | E82: 0 | F82: 0 | G82: 0 | H82: 0.5666666667
A83: SOLAR BOQUERÓN, S.A. No. 33-23 | B83: 0.08262 | C83: 0.0504 | D83: 0.04284 | E83: 0.04248 | F83: 0.04208 | G83: 0.04389 | H83: 0.05071833333
A84: AUTORIDAD DEL CANAL DE PANAMÁ No. 34-23 | B84: 9.0111 | C84: 6.2874 | D84: 8 | E84: 8.5 | F84: 8.1515 | G84: 9.5 | H84: 8.241666667
A85: CELSIA CENTROAMÉRICA, S.A. No. 35-23 | B85: 27.0291 | C85: 18.0194 | D85: 20.5936 | E85: 21.8807 | F85: 21.8807 | G85: 24.4549 | H85: 22.30973333
A86: GENERADORA DEL ATLÁNTICO, S.A. No. 36-23 | B86: 0 | C86: 0 | D86: 16 | E86: 17 | F86: 15.3 | G86: 19 | H86: 11.21666667
A87: GENERADORA DEL ATLÁNTICO, S.A. No. 37-23 | D87: 3.2 | E87: 3.4 | F87: 3.4 | G87: 4.75 | H87: 3.6875
A88: PEDREGAL POWER, S. DE R.L. No. 38-23 | B88: 4.6998 | C88: 7 | D88: 5.1664 | E88: 2.0893 | F88: 6.1778 | G88: 2.9051 | H88: 4.673066667
A89: PANAM GENERATING LTD No. 39-23 | D89: 11.04 | E89: 11.73 | F89: 9.01 | G89: 13.11 | H89: 11.2225
A90: PANAM GENERATING LTD No. 40-23 | D90: 8 | E90: 8.5 | F90: 8.5 | G90: 9.5 | H90: 8.625
A91: SPARKLE POWER, S.A. No. 41-23 | B91: 9.45 | C91: 6.3 | D91: 7.2 | E91: 7.65 | F91: 7.65 | G91: 8.55 | H91: 7.8
A92: TROPITÉRMICA, S.A. No. 42-23 | B92: 0 | C92: 0.14 | D92: 0 | E92: 0 | F92: 0 | G92: 0 | H92: 0.02333333333

Sheet GEN-502 Pre_Pot
A1: INFORMACION PARA ACTUALIZAR: CARGO POR GENERACION
A2: =+'Compras (p)'!A2 -> EDECHI
A3: Precio Mensual de la Potencia Contratada (B/./KW/Mes)
B4: PRECIO ESTIMADO DE POTENCIA
A5: Detalle | B5: 2023-07-01 | C5: 2023-08-01 | D5: 2023-09-01 | E5: 2023-10-01 | F5: 2023-11-01 | G5: 2023-12-01 | H5: Promedio
A8: TOTAL | B8: =+IF('GEN-502 Pot'!B8=0,0,'GEN-502 Cos_Pot'!B8/'GEN-502 Pot'!B8/1000) -> 16.57914634 | C8: =+IF('GEN-502 Pot'!C8=0,0,'GEN-502 Cos_Pot'!C8/'GEN-502 Pot'!C8/1000) -> 16.85229194 | D8: =+IF('GEN-502 Pot'!D8=0,0,'GEN-502 Cos_Pot'!D8/'GEN-502 Pot'!D8/1000) -> 17.39872418 | E8: =+IF('GEN-502 Pot'!E8=0,0,'GEN-502 Cos_Pot'!E8/'GEN-502 Pot'!E8/1000) -> 17.368135 | F8: =+IF('GEN-502 Pot'!F8=0,0,'GEN-502 Cos_Pot'!F8/'GEN-502 Pot'!F8/1000) -> 17.55517398 | G8: =+IF('GEN-502 Pot'!G8=0,0,'GEN-502 Cos_Pot'!G8/'GEN-502 Pot'!G8/1000) -> 17.09901267 | H8: =+IF('GEN-502 Pot'!H8>0,'GEN-502 Cos_Pot'!H8/'GEN-502 Pot'!H8,0)/1000/6 -> 17.13898298
A9: Generación Propia | B9: 16.49785719 | C9: 16.76896012 | D9: 17.31562006 | E9: 17.28517795 | F9: 17.4708837 | G9: 17.01875862 | H9: =+IF('GEN-502 Pot'!H9>0,'GEN-502 Cos_Pot'!H9/'GEN-502 Pot'!H9,0)/1000/6 -> 0
A10: 0 | H10: =+IF('GEN-502 Pot'!H10>0,'GEN-502 Cos_Pot'!H10/'GEN-502 Pot'!H10,0)/1000/6 -> 0
A11: 0 | H11: =+IF('GEN-502 Pot'!H11>0,'GEN-502 Cos_Pot'!H11/'GEN-502 Pot'!H11,0)/1000/6 -> 0
A12: 0 | H12: =+IF('GEN-502 Pot'!H12>0,'GEN-502 Cos_Pot'!H12/'GEN-502 Pot'!H12,0)/1000/6 -> 0
A13: 0 | H13: =+IF('GEN-502 Pot'!H13>0,'GEN-502 Cos_Pot'!H13/'GEN-502 Pot'!H13,0)/1000/6 -> 0
A14: 0 | H14: =+IF('GEN-502 Pot'!H14>0,'GEN-502 Cos_Pot'!H14/'GEN-502 Pot'!H14,0)/1000/6 -> 0
A15: Sub-Total Mercado Mayorista | B15: =+IF('GEN-502 Pot'!B15=0,0,'GEN-502 Cos_Pot'!B15/'GEN-502 Pot'!B15/1000) -> 16.57914634 | C15: =+IF('GEN-502 Pot'!C15=0,0,'GEN-502 Cos_Pot'!C15/'GEN-502 Pot'!C15/1000) -> 16.85229194 | D15: =+IF('GEN-502 Pot'!D15=0,0,'GEN-502 Cos_Pot'!D15/'GEN-502 Pot'!D15/1000) -> 17.39872418 | E15: =+IF('GEN-502 Pot'!E15=0,0,'GEN-502 Cos_Pot'!E15/'GEN-502 Pot'!E15/1000) -> 17.368135 | F15: =+IF('GEN-502 Pot'!F15=0,0,'GEN-502 Cos_Pot'!F15/'GEN-502 Pot'!F15/1000) -> 17.55517398 | G15: =+IF('GEN-502 Pot'!G15=0,0,'GEN-502 Cos_Pot'!G15/'GEN-502 Pot'!G15/1000) -> 17.09901267 | H15: =+IF('GEN-502 Pot'!H15>0,'GEN-502 Cos_Pot'!H15/'GEN-502 Pot'!H15,0)/1000/6 -> 17.13898298
A16: Reserva de largo Plazo | B16: 8.96 | C16: 8.96 | D16: 8.96 | E16: 8.96 | F16: 8.96 | G16: 8.96 | H16: =+IF('GEN-502 Pot'!H16>0,'GEN-502 Cos_Pot'!H16/'GEN-502 Pot'!H16,0)/1000/6 -> 0
A17: Compensacion de Potencia | H17: =+IF('GEN-502 Pot'!H17>0,'GEN-502 Cos_Pot'!H17/'GEN-502 Pot'!H17,0)/1000/6 -> 0
H18: =+IF('GEN-502 Pot'!H18>0,'GEN-502 Cos_Pot'!H18/'GEN-502 Pot'!H18,0)/1000/6 -> 0
H19: =+IF('GEN-502 Pot'!H19>0,'GEN-502 Cos_Pot'!H19/'GEN-502 Pot'!H19,0)/1000/6 -> 0
H20: =+IF('GEN-502 Pot'!H20>0,'GEN-502 Cos_Pot'!H20/'GEN-502 Pot'!H20,0)/1000/6 -> 0
H21: =+IF('GEN-502 Pot'!H21>0,'GEN-502 Cos_Pot'!H21/'GEN-502 Pot'!H21,0)/1000/6 -> 0
H22: =+IF('GEN-502 Pot'!H22>0,'GEN-502 Cos_Pot'!H22/'GEN-502 Pot'!H22,0)/1000/6 -> 0
H23: =+IF('GEN-502 Pot'!H23>0,'GEN-502 Cos_Pot'!H23/'GEN-502 Pot'!H23,0)/1000/6 -> 0
A24: Sub-Total Contratos | B24: =+IF('GEN-502 Pot'!B24=0,0,'GEN-502 Cos_Pot'!B24/'GEN-502 Pot'!B24/1000) -> 16.49785719 | C24: =+IF('GEN-502 Pot'!C24=0,0,'GEN-502 Cos_Pot'!C24/'GEN-502 Pot'!C24/1000) -> 16.76896012 | D24: =+IF('GEN-502 Pot'!D24=0,0,'GEN-502 Cos_Pot'!D24/'GEN-502 Pot'!D24/1000) -> 17.31562006 | E24: =+IF('GEN-502 Pot'!E24=0,0,'GEN-502 Cos_Pot'!E24/'GEN-502 Pot'!E24/1000) -> 17.28517795 | F24: =+IF('GEN-502 Pot'!F24=0,0,'GEN-502 Cos_Pot'!F24/'GEN-502 Pot'!F24/1000) -> 17.4708837 | G24: =+IF('GEN-502 Pot'!G24=0,0,'GEN-502 Cos_Pot'!G24/'GEN-502 Pot'!G24/1000) -> 17.01875862 | H24: =+IF('GEN-502 Pot'!H24>0,'GEN-502 Cos_Pot'!H24/'GEN-502 Pot'!H24,0)/1000/6 -> 15.9522341
A25: Empresa Nacional de Energía No. 36-11 (Cesión) | B25: 10.25 | C25: 10.25 | D25: 10.25 | E25: 10.25 | F25: 10.25 | G25: 10.25 | H25: =+IF('GEN-502 Pot'!H25>0,'GEN-502 Cos_Pot'!H25/'GEN-502 Pot'!H25,0)/1000/6 -> 10.25
A26: Enel Fortuna No. 37-11 | B26: 6.75 | C26: 6.75 | D26: 6.75 | E26: 6.75 | F26: 6.75 | G26: 6.75 | H26: =+IF('GEN-502 Pot'!H26>0,'GEN-502 Cos_Pot'!H26/'GEN-502 Pot'!H26,0)/1000/6 -> 6.75
A27: Electrogeneradora del Istmo No. 38-11 | B27: 25 | C27: 25 | D27: 25 | E27: 25 | F27: 25 | G27: 25 | H27: =+IF('GEN-502 Pot'!H27>0,'GEN-502 Cos_Pot'!H27/'GEN-502 Pot'!H27,0)/1000/6 -> 25
A28: ESEPSA No. 39-11 | B28: 11.5 | C28: 11.5 | D28: 11.5 | E28: 11.5 | F28: 11.5 | G28: 11.5 | H28: =+IF('GEN-502 Pot'!H28>0,'GEN-502 Cos_Pot'!H28/'GEN-502 Pot'!H28,0)/1000/6 -> 11.5
A29: Pedregalito No. 40-11 | B29: 30 | C29: 30 | D29: 30 | E29: 30 | F29: 30 | G29: 30 | H29: =+IF('GEN-502 Pot'!H29>0,'GEN-502 Cos_Pot'!H29/'GEN-502 Pot'!H29,0)/1000/6 -> 30
A30: Río Chico No. 41-11 | B30: 30 | C30: 30 | D30: 30 | E30: 30 | F30: 30 | G30: 30 | H30: =+IF('GEN-502 Pot'!H30>0,'GEN-502 Cos_Pot'!H30/'GEN-502 Pot'!H30,0)/1000/6 -> 30
A31: Alto Valle No. 42-11 | B31: 30 | C31: 30 | D31: 30 | E31: 30 | F31: 30 | G31: 30 | H31: =+IF('GEN-502 Pot'!H31>0,'GEN-502 Cos_Pot'!H31/'GEN-502 Pot'!H31,0)/1000/6 -> 30
A32: Hidroecológica del Teribe No. 43-11 | B32: 8.5 | C32: 8.5 | D32: 8.5 | E32: 8.5 | F32: 8.5 | G32: 8.5 | H32: =+IF('GEN-502 Pot'!H32>0,'GEN-502 Cos_Pot'!H32/'GEN-502 Pot'!H32,0)/1000/6 -> 8.5
A33: Desarrollos Hidroeléctricos Corp. No. 44-11 | B33: 10.35 | C33: 10.35 | D33: 10.35 | E33: 10.35 | F33: 10.35 | G33: 10.35 | H33: =+IF('GEN-502 Pot'!H33>0,'GEN-502 Cos_Pot'!H33/'GEN-502 Pot'!H33,0)/1000/6 -> 10.35
A34: Las Perlas Norte No. 45-11 | B34: 9 | C34: 9 | D34: 9 | E34: 9 | F34: 9 | G34: 9 | H34: =+IF('GEN-502 Pot'!H34>0,'GEN-502 Cos_Pot'!H34/'GEN-502 Pot'!H34,0)/1000/6 -> 9
A35: Hidroeléctrica San Lorenzo No. 46-11 | B35: 15 | C35: 15 | D35: 15 | E35: 15 | F35: 15 | G35: 15 | H35: =+IF('GEN-502 Pot'!H35>0,'GEN-502 Cos_Pot'!H35/'GEN-502 Pot'!H35,0)/1000/6 -> 15
A36: Caldera Energy Corp. No. 47-11 | B36: 25 | C36: 25 | D36: 25 | E36: 25 | F36: 25 | G36: 25 | H36: =+IF('GEN-502 Pot'!H36>0,'GEN-502 Cos_Pot'!H36/'GEN-502 Pot'!H36,0)/1000/6 -> 25
A37: Unión Eólica de Panamá (PE Nuevo Chagres) No. 19-12' | H37: =+IF('GEN-502 Pot'!H37>0,'GEN-502 Cos_Pot'!H37/'GEN-502 Pot'!H37,0)/1000/6 -> 0
A38: Unión Eólica de Panamá (PE Rosa de los Vientos) No. 20-12' | H38: =+IF('GEN-502 Pot'!H38>0,'GEN-502 Cos_Pot'!H38/'GEN-502 Pot'!H38,0)/1000/6 -> 0
A39: Unión Eólica de Panamá (PE Portobelo Ballestillas) No. 21-12' | H39: =+IF('GEN-502 Pot'!H39>0,'GEN-502 Cos_Pot'!H39/'GEN-502 Pot'!H39,0)/1000/6 -> 0
A40: Unión Eólica de Panamá (PE Marañon) No. 22-12' | H40: =+IF('GEN-502 Pot'!H40>0,'GEN-502 Cos_Pot'!H40/'GEN-502 Pot'!H40,0)/1000/6 -> 0
A41: AES No. 122-12 | B41: 10 | C41: 10 | D41: 10 | E41: 10 | F41: 10 | G41: 10 | H41: =+IF('GEN-502 Pot'!H41>0,'GEN-502 Cos_Pot'!H41/'GEN-502 Pot'!H41,0)/1000/6 -> 10
A42: HIDRO PIEDRA No. 123-12 | B42: 9.56 | C42: 9.56 | D42: 9.56 | E42: 9.56 | F42: 9.56 | G42: 9.56 | H42: =+IF('GEN-502 Pot'!H42>0,'GEN-502 Cos_Pot'!H42/'GEN-502 Pot'!H42,0)/1000/6 -> 9.56
A43: Corp. Energ. Del Istmo No. 124-12 | B43: 8.9 | C43: 8.9 | D43: 8.9 | E43: 8.9 | F43: 8.9 | G43: 8.9 | H43: =+IF('GEN-502 Pot'!H43>0,'GEN-502 Cos_Pot'!H43/'GEN-502 Pot'!H43,0)/1000/6 -> 8.9
A44: Saltos del Francolí No. 126-12 | B44: 13.53 | C44: 13.53 | D44: 13.53 | E44: 13.53 | F44: 13.53 | G44: 13.53 | H44: =+IF('GEN-502 Pot'!H44>0,'GEN-502 Cos_Pot'!H44/'GEN-502 Pot'!H44,0)/1000/6 -> 13.53
A45: PASO ANCHO No. 88-11 | H45: =+IF('GEN-502 Pot'!H45>0,'GEN-502 Cos_Pot'!H45/'GEN-502 Pot'!H45,0)/1000/6 -> 0
A46: Hidroecológica del Teribe No. 89-11 | H46: =+IF('GEN-502 Pot'!H46>0,'GEN-502 Cos_Pot'!H46/'GEN-502 Pot'!H46,0)/1000/6 -> 0
A47: ISTMUS HYDRO POWER CORP. No.10-13 | H47: =+IF('GEN-502 Pot'!H47>0,'GEN-502 Cos_Pot'!H47/'GEN-502 Pot'!H47,0)/1000/6 -> 0
A48: CALDERA ENERGY CORP. No.11-13 | H48: =+IF('GEN-502 Pot'!H48>0,'GEN-502 Cos_Pot'!H48/'GEN-502 Pot'!H48,0)/1000/6 -> 0
A49: ELECTROGENERADORA DEL ISTMO, S.A. No.12-13 | H49: =+IF('GEN-502 Pot'!H49>0,'GEN-502 Cos_Pot'!H49/'GEN-502 Pot'!H49,0)/1000/6 -> 0
A50: FOUNTAIN INTERTRADE CORP. No.13-13 | H50: =+IF('GEN-502 Pot'!H50>0,'GEN-502 Cos_Pot'!H50/'GEN-502 Pot'!H50,0)/1000/6 -> 0
A51: HIDROIBERICA, S.A. No.14-13 | H51: =+IF('GEN-502 Pot'!H51>0,'GEN-502 Cos_Pot'!H51/'GEN-502 Pot'!H51,0)/1000/6 -> 0
A52: NAVITAS INTERNACIONAL, S.A. No.15-13 | H52: =+IF('GEN-502 Pot'!H52>0,'GEN-502 Cos_Pot'!H52/'GEN-502 Pot'!H52,0)/1000/6 -> 0
A53: HIDROECOLÓGICA DEL TERIBE, S.A. No.16-13 | H53: =+IF('GEN-502 Pot'!H53>0,'GEN-502 Cos_Pot'!H53/'GEN-502 Pot'!H53,0)/1000/6 -> 0
A54: HIDRONORTH CORP. No.17-13 | H54: =+IF('GEN-502 Pot'!H54>0,'GEN-502 Cos_Pot'!H54/'GEN-502 Pot'!H54,0)/1000/6 -> 0
A55: EMPRESA NACIONAL DE ENERGÍA, S.A. No.33-13 | H55: =+IF('GEN-502 Pot'!H55>0,'GEN-502 Cos_Pot'!H55/'GEN-502 Pot'!H55,0)/1000/6 -> 0
A56: FUERZA ELÉCTRICA DEL ISTMO, S.A. No.34-13 | H56: =+IF('GEN-502 Pot'!H56>0,'GEN-502 Cos_Pot'!H56/'GEN-502 Pot'!H56,0)/1000/6 -> 0
A57: CAFÉ DE ELETA, S.A. No.35-13 | H57: =+IF('GEN-502 Pot'!H57>0,'GEN-502 Cos_Pot'!H57/'GEN-502 Pot'!H57,0)/1000/6 -> 0
A58: ENERGÍA Y SERVICIOS DE PANAMÁ, S.A. No.36-13 | H58: =+IF('GEN-502 Pot'!H58>0,'GEN-502 Cos_Pot'!H58/'GEN-502 Pot'!H58,0)/1000/6 -> 0
A59: GENERADORA PEDREGALITO, S.A. No.37-13 | H59: =+IF('GEN-502 Pot'!H59>0,'GEN-502 Cos_Pot'!H59/'GEN-502 Pot'!H59,0)/1000/6 -> 0
A60: GENERADORA RIO CHICO, S.A. No.38-13 | H60: =+IF('GEN-502 Pot'!H60>0,'GEN-502 Cos_Pot'!H60/'GEN-502 Pot'!H60,0)/1000/6 -> 0
A61: GENERADORA ALTO VALLE, S.A. No.39-13 | H61: =+IF('GEN-502 Pot'!H61>0,'GEN-502 Cos_Pot'!H61/'GEN-502 Pot'!H61,0)/1000/6 -> 0
A62: HYDRO CAISÁN, S.A. No.40-13 | H62: =+IF('GEN-502 Pot'!H62>0,'GEN-502 Cos_Pot'!H62/'GEN-502 Pot'!H62,0)/1000/6 -> 0
A63: SIGSA, S.A. No. 137-12 | B63: 23.75 | C63: 23.75 | D63: 23.75 | E63: 23.75 | F63: 23.75 | G63: 23.75 | H63: =+IF('GEN-502 Pot'!H63>0,'GEN-502 Cos_Pot'!H63/'GEN-502 Pot'!H63,0)/1000/6 -> 23.75
A64: PARQUE EÓLICO TOABRÉ, S.A. No 09-14 | H64: =+IF('GEN-502 Pot'!H64>0,'GEN-502 Cos_Pot'!H64/'GEN-502 Pot'!H64,0)/1000/6 -> 0
A65: NAURA ENERGY CORP. No 10-14 | H65: =+IF('GEN-502 Pot'!H65>0,'GEN-502 Cos_Pot'!H65/'GEN-502 Pot'!H65,0)/1000/6 -> 0
A66: Panama Solar2 No. 10-15 | H66: =+IF('GEN-502 Pot'!H66>0,'GEN-502 Cos_Pot'!H66/'GEN-502 Pot'!H66,0)/1000/6 -> 0
A67: Solpac Investment No. 11-15 | H67: =+IF('GEN-502 Pot'!H67>0,'GEN-502 Cos_Pot'!H67/'GEN-502 Pot'!H67,0)/1000/6 -> 0
A68: GAS NATURAL ATLÁNTICO No. 17-15 | B68: 38.83 | C68: 38.83 | D68: 38.83 | E68: 38.83 | F68: 38.83 | G68: 38.83 | H68: =+IF('GEN-502 Pot'!H68>0,'GEN-502 Cos_Pot'!H68/'GEN-502 Pot'!H68,0)/1000/6 -> 38.83
A69: MARTANO INC No. 19-15 | B69: 32.09 | C69: 32.09 | D69: 32.09 | E69: 32.09 | F69: 32.09 | G69: 32.09 | H69: =+IF('GEN-502 Pot'!H69>0,'GEN-502 Cos_Pot'!H69/'GEN-502 Pot'!H69,0)/1000/6 -> 32.09
A70: ENEL FORTUNA, S.A. No. 36-21 | H70: =+IF('GEN-502 Pot'!H70>0,'GEN-502 Cos_Pot'!H70/'GEN-502 Pot'!H70,0)/1000/6 -> 0
A71: HIDRO BOQUERÓN, S.A. No. 40-21 | H71: =+IF('GEN-502 Pot'!H71>0,'GEN-502 Cos_Pot'!H71/'GEN-502 Pot'!H71,0)/1000/6 -> 0
A72: AUTORIDAD DEL CANAL DE PANAMÁ No. 57-21 | B72: 6.409 | C72: 6.409 | D72: 6.409 | E72: 6.409 | F72: 6.409 | H72: =+IF('GEN-502 Pot'!H72>0,'GEN-502 Cos_Pot'!H72/'GEN-502 Pot'!H72,0)/1000/6 -> 5.340833333
A73: GENERADORA DEL ATLÁNTICO, S.A. No. 59-21 | B73: 4.75 | C73: 4.75 | D73: 4.75 | E73: 4.75 | F73: 4.75 | H73: =+IF('GEN-502 Pot'!H73>0,'GEN-502 Cos_Pot'!H73/'GEN-502 Pot'!H73,0)/1000/6 -> 3.958333333
A74: GENERADORA DEL ATLÁNTICO, S.A. No. 60-21 | B74: 6.25 | C74: 6.25 | H74: =+IF('GEN-502 Pot'!H74>0,'GEN-502 Cos_Pot'!H74/'GEN-502 Pot'!H74,0)/1000/6 -> 2.083333333
A75: PANAM GENERATING LTD No. 61-21 | B75: 6.392 | C75: 6.392 | D75: 6.272 | E75: 6.272 | F75: 6.272 | H75: =+IF('GEN-502 Pot'!H75>0,'GEN-502 Cos_Pot'!H75/'GEN-502 Pot'!H75,0)/1000/6 -> 5.311079442
A76: TROPITÉRMICA, S.A. No. 63-21 | B76: 5.25 | C76: 5.25 | D76: 4.55 | E76: 4.55 | F76: 4.55 | H76: =+IF('GEN-502 Pot'!H76>0,'GEN-502 Cos_Pot'!H76/'GEN-502 Pot'!H76,0)/1000/6 -> 4.032777778
A77: EMPRESA NACIONAL DE ENERGÍA, S.A. No. 23-23 | H77: =+IF('GEN-502 Pot'!H77>0,'GEN-502 Cos_Pot'!H77/'GEN-502 Pot'!H77,0)/1000/6 -> 0
A78: FOUNTAIN HYDRO POWER CORP No. 24-23 | H78: =+IF('GEN-502 Pot'!H78>0,'GEN-502 Cos_Pot'!H78/'GEN-502 Pot'!H78,0)/1000/6 -> 0
A79: GENERADORA DEL ISTMO, S.A. No. 25-23 | H79: =+IF('GEN-502 Pot'!H79>0,'GEN-502 Cos_Pot'!H79/'GEN-502 Pot'!H79,0)/1000/6 -> 0
A80: HIDRO BOQUERÓN, S.A. No. 26-23 | H80: =+IF('GEN-502 Pot'!H80>0,'GEN-502 Cos_Pot'!H80/'GEN-502 Pot'!H80,0)/1000/6 -> 0
A81: HIDROIBÉRICA No. 27-23 | H81: =+IF('GEN-502 Pot'!H81>0,'GEN-502 Cos_Pot'!H81/'GEN-502 Pot'!H81,0)/1000/6 -> 0
A82: IDEAL PANAMÁ, S.A. No. 29-23 | H82: =+IF('GEN-502 Pot'!H82>0,'GEN-502 Cos_Pot'!H82/'GEN-502 Pot'!H82,0)/1000/6 -> 0
A83: SOLAR BOQUERÓN, S.A. No. 33-23 | H83: =+IF('GEN-502 Pot'!H83>0,'GEN-502 Cos_Pot'!H83/'GEN-502 Pot'!H83,0)/1000/6 -> 0
A84: AUTORIDAD DEL CANAL DE PANAMÁ No. 34-23 | B84: 7.5 | C84: 7.5 | D84: 7.5 | E84: 7.5 | F84: 7.5 | G84: 7.5 | H84: =+IF('GEN-502 Pot'!H84>0,'GEN-502 Cos_Pot'!H84/'GEN-502 Pot'!H84,0)/1000/6 -> 7.5
A85: CELSIA CENTROAMÉRICA, S.A. No. 35-23 | B85: 5.97 | C85: 5.97 | D85: 5.97 | E85: 5.97 | F85: 5.97 | G85: 5.97 | H85: =+IF('GEN-502 Pot'!H85>0,'GEN-502 Cos_Pot'!H85/'GEN-502 Pot'!H85,0)/1000/6 -> 5.97
A86: GENERADORA DEL ATLÁNTICO, S.A. No. 36-23 | B86: 0 | C86: 0 | D86: 8.25 | E86: 8.25 | F86: 8.25 | G86: 8.25 | H86: =+IF('GEN-502 Pot'!H86>0,'GEN-502 Cos_Pot'!H86/'GEN-502 Pot'!H86,0)/1000/6 -> 8.25
A87: GENERADORA DEL ATLÁNTICO, S.A. No. 37-23 | D87: 7.99 | E87: 7.99 | F87: 7.99 | G87: 7.99 | H87: =+IF('GEN-502 Pot'!H87>0,'GEN-502 Cos_Pot'!H87/'GEN-502 Pot'!H87,0)/1000/6 -> 5.326666667
A88: PEDREGAL POWER, S. DE R.L. No. 38-23 | B88: 8.785 | C88: 8.785 | D88: 8.785 | E88: 8.785 | F88: 8.785 | G88: 8.785 | H88: =+IF('GEN-502 Pot'!H88>0,'GEN-502 Cos_Pot'!H88/'GEN-502 Pot'!H88,0)/1000/6 -> 8.785
A89: PANAM GENERATING LTD No. 39-23 | D89: 8.75 | E89: 8.75 | F89: 8.75 | G89: 8.75 | H89: =+IF('GEN-502 Pot'!H89>0,'GEN-502 Cos_Pot'!H89/'GEN-502 Pot'!H89,0)/1000/6 -> 5.833333333
A90: PANAM GENERATING LTD No. 40-23 | D90: 8.65 | E90: 8.65 | F90: 8.65 | G90: 8.65 | H90: =+IF('GEN-502 Pot'!H90>0,'GEN-502 Cos_Pot'!H90/'GEN-502 Pot'!H90,0)/1000/6 -> 5.766666667
A91: SPARKLE POWER, S.A. No. 41-23 | B91: 5.5 | C91: 5.5 | D91: 5.5 | E91: 5.5 | F91: 5.5 | G91: 5.5 | H91: =+IF('GEN-502 Pot'!H91>0,'GEN-502 Cos_Pot'!H91/'GEN-502 Pot'!H91,0)/1000/6 -> 5.5
A92: TROPITÉRMICA, S.A. No. 42-23 | H92: =+IF('GEN-502 Pot'!H92>0,'GEN-502 Cos_Pot'!H92/'GEN-502 Pot'!H92,0)/1000/6 -> 0

Sheet GEN-502 Cos_Pot
A1: INFORMACION PARA ACTUALIZAR: CARGO POR GENERACION
A2: =+'Compras (p)'!A2 -> EDECHI
A3: Estimación de Facturación Mensual de Potencia para suministrar Clientes Regulados (B/.)
B4: ESTIMACION DEL COSTO DE POTENCIA
A5: Detalle | B5: 2023-07-01 | C5: 2023-08-01 | D5: 2023-09-01 | E5: 2023-10-01 | F5: 2023-11-01 | G5: 2023-12-01 | H5: Total
A8: TOTAL COSTO DE POTENCIA | B8: =+B9+B15 -> 3059291.35 | C8: 3033467.657 | D8: 3140408.298 | E8: 3140444.861 | F8: 3124056.791 | G8: 3195916.098 | H8: =+SUM(B8:G8) -> 18693585.05
A9: Generación Propia | B9: 0 | C9: 0 | D9: 0 | E9: 0 | F9: 0 | G9: 0 | H9: 0
A10: 0 | B10: 0 | C10: 0 | D10: 0 | E10: 0 | F10: 0 | G10: 0 | H10: 0
A11: 0 | B11: 0 | C11: 0 | D11: 0 | E11: 0 | F11: 0 | G11: 0 | H11: 0
A12: 0 | B12: 0 | C12: 0 | D12: 0 | E12: 0 | F12: 0 | G12: 0 | H12: 0
A13: 0 | H13: 0
A14: 0 | H14: 0
A15: Sub-Total Mercado Mayorista | B15: =+SUM(B16:B24) -> 3059291.35 | C15: 3033467.657 | D15: 3140408.298 | E15: 3140444.861 | F15: 3124056.791 | G15: 3195916.098 | H15: 18693585.05
A16: Reserva de largo Plazo | B16: =+'GEN-502 Pot'!B16*'GEN-502 Pre_Pot'!B16 -> 0 | C16: =+'GEN-502 Pot'!C16*'GEN-502 Pre_Pot'!C16 -> 0 | D16: =+'GEN-502 Pot'!D16*'GEN-502 Pre_Pot'!D16 -> 0 | E16: =+'GEN-502 Pot'!E16*'GEN-502 Pre_Pot'!E16 -> 0 | F16: =+'GEN-502 Pot'!F16*'GEN-502 Pre_Pot'!F16 -> 0 | G16: =+'GEN-502 Pot'!G16*'GEN-502 Pre_Pot'!G16 -> 0 | H16: 0
A17: Compensacion de Potencia | H17: 0
A18: Seguimiento de la Demanda | B18: 15000 | C18: 15000 | D18: 15000 | E18: 15000 | F18: 15000 | G18: 15000 | H18: 90000
H19: 0
H20: 0
H21: 0
H22: 0
H23: 0
A24: Sub-Total Contratos | B24: =+SUM(B25:B141) -> 3044291.35 | C24: 3018467.657 | D24: 3125408.298 | E24: 3125444.861 | F24: 3109056.791 | G24: 3180916.098 | H24: 18603585.05
A25: =+'GEN-502 Pot'!A25 -> Empresa Nacional de Energía No. 36-11 (Cesión) | B25: =+'GEN-502 Pot'!B25*'GEN-502 Pre_Pot'!B25*1000 -> 6826.5 | C25: =+'GEN-502 Pot'!C25*'GEN-502 Pre_Pot'!C25*1000 -> 6826.5 | D25: =+'GEN-502 Pot'!D25*'GEN-502 Pre_Pot'!D25*1000 -> 6826.5 | E25: =+'GEN-502 Pot'!E25*'GEN-502 Pre_Pot'!E25*1000 -> 6826.5 | F25: =+'GEN-502 Pot'!F25*'GEN-502 Pre_Pot'!F25*1000 -> 6826.5 | G25: =+'GEN-502 Pot'!G25*'GEN-502 Pre_Pot'!G25*1000 -> 6826.5 | H25: =+SUM(B25:G25) -> 40959
A26: =+'GEN-502 Pot'!A26 -> Enel Fortuna No. 37-11 | B26: =+'GEN-502 Pot'!B26*'GEN-502 Pre_Pot'!B26*1000 -> 13270.7025 | C26: =+'GEN-502 Pot'!C26*'GEN-502 Pre_Pot'!C26*1000 -> 13270.7025 | D26: =+'GEN-502 Pot'!D26*'GEN-502 Pre_Pot'!D26*1000 -> 13270.7025 | E26: =+'GEN-502 Pot'!E26*'GEN-502 Pre_Pot'!E26*1000 -> 13270.7025 | F26: =+'GEN-502 Pot'!F26*'GEN-502 Pre_Pot'!F26*1000 -> 13270.7025 | G26: =+'GEN-502 Pot'!G26*'GEN-502 Pre_Pot'!G26*1000 -> 13270.7025 | H26: 79624.215
A27: =+'GEN-502 Pot'!A27 -> Electrogeneradora del Istmo No. 38-11 | B27: =+'GEN-502 Pot'!B27*'GEN-502 Pre_Pot'!B27*1000 -> 2081.25 | C27: =+'GEN-502 Pot'!C27*'GEN-502 Pre_Pot'!C27*1000 -> 2081.25 | D27: =+'GEN-502 Pot'!D27*'GEN-502 Pre_Pot'!D27*1000 -> 2081.25 | E27: =+'GEN-502 Pot'!E27*'GEN-502 Pre_Pot'!E27*1000 -> 2081.25 | F27: =+'GEN-502 Pot'!F27*'GEN-502 Pre_Pot'!F27*1000 -> 2081.25 | G27: =+'GEN-502 Pot'!G27*'GEN-502 Pre_Pot'!G27*1000 -> 2081.25 | H27: 12487.5
A28: =+'GEN-502 Pot'!A28 -> ESEPSA No. 39-11 | B28: =+'GEN-502 Pot'!B28*'GEN-502 Pre_Pot'!B28*1000 -> 4197.155 | C28: =+'GEN-502 Pot'!C28*'GEN-502 Pre_Pot'!C28*1000 -> 4197.155 | D28: =+'GEN-502 Pot'!D28*'GEN-502 Pre_Pot'!D28*1000 -> 4197.155 | E28: =+'GEN-502 Pot'!E28*'GEN-502 Pre_Pot'!E28*1000 -> 4197.155 | F28: =+'GEN-502 Pot'!F28*'GEN-502 Pre_Pot'!F28*1000 -> 4197.155 | G28: =+'GEN-502 Pot'!G28*'GEN-502 Pre_Pot'!G28*1000 -> 4197.155 | H28: 25182.93
A29: =+'GEN-502 Pot'!A29 -> Pedregalito No. 40-11 | B29: =+'GEN-502 Pot'!B29*'GEN-502 Pre_Pot'!B29*1000 -> 7868.1 | C29: =+'GEN-502 Pot'!C29*'GEN-502 Pre_Pot'!C29*1000 -> 7868.1 | D29: =+'GEN-502 Pot'!D29*'GEN-502 Pre_Pot'!D29*1000 -> 7868.1 | E29: =+'GEN-502 Pot'!E29*'GEN-502 Pre_Pot'!E29*1000 -> 7868.1 | F29: =+'GEN-502 Pot'!F29*'GEN-502 Pre_Pot'!F29*1000 -> 7868.1 | G29: =+'GEN-502 Pot'!G29*'GEN-502 Pre_Pot'!G29*1000 -> 7868.1 | H29: 47208.6
A30: =+'GEN-502 Pot'!A30 -> Río Chico No. 41-11 | B30: =+'GEN-502 Pot'!B30*'GEN-502 Pre_Pot'!B30*1000 -> 4825.2 | C30: =+'GEN-502 Pot'!C30*'GEN-502 Pre_Pot'!C30*1000 -> 4825.2 | D30: =+'GEN-502 Pot'!D30*'GEN-502 Pre_Pot'!D30*1000 -> 4825.2 | E30: =+'GEN-502 Pot'!E30*'GEN-502 Pre_Pot'!E30*1000 -> 4825.2 | F30: =+'GEN-502 Pot'!F30*'GEN-502 Pre_Pot'!F30*1000 -> 4825.2 | G30: =+'GEN-502 Pot'!G30*'GEN-502 Pre_Pot'!G30*1000 -> 4825.2 | H30: 28951.2
A31: =+'GEN-502 Pot'!A31 -> Alto Valle No. 42-11 | B31: =+'GEN-502 Pot'!B31*'GEN-502 Pre_Pot'!B31*1000 -> 4591.5 | C31: =+'GEN-502 Pot'!C31*'GEN-502 Pre_Pot'!C31*1000 -> 4591.5 | D31: =+'GEN-502 Pot'!D31*'GEN-502 Pre_Pot'!D31*1000 -> 4591.5 | E31: =+'GEN-502 Pot'!E31*'GEN-502 Pre_Pot'!E31*1000 -> 4591.5 | F31: =+'GEN-502 Pot'!F31*'GEN-502 Pre_Pot'!F31*1000 -> 4591.5 | G31: =+'GEN-502 Pot'!G31*'GEN-502 Pre_Pot'!G31*1000 -> 4591.5 | H31: 27549
A32: =+'GEN-502 Pot'!A32 -> Hidroecológica del Teribe No. 43-11 | B32: =+'GEN-502 Pot'!B32*'GEN-502 Pre_Pot'!B32*1000 -> 5661 | C32: =+'GEN-502 Pot'!C32*'GEN-502 Pre_Pot'!C32*1000 -> 5661 | D32: =+'GEN-502 Pot'!D32*'GEN-502 Pre_Pot'!D32*1000 -> 5661 | E32: =+'GEN-502 Pot'!E32*'GEN-502 Pre_Pot'!E32*1000 -> 5661 | F32: =+'GEN-502 Pot'!F32*'GEN-502 Pre_Pot'!F32*1000 -> 5661 | G32: =+'GEN-502 Pot'!G32*'GEN-502 Pre_Pot'!G32*1000 -> 5661 | H32: 33966
A33: =+'GEN-502 Pot'!A33 -> Desarrollos Hidroeléctricos Corp. No. 44-11 | B33: =+'GEN-502 Pot'!B33*'GEN-502 Pre_Pot'!B33*1000 -> 1311.759 | C33: =+'GEN-502 Pot'!C33*'GEN-502 Pre_Pot'!C33*1000 -> 1311.759 | D33: =+'GEN-502 Pot'!D33*'GEN-502 Pre_Pot'!D33*1000 -> 1311.759 | E33: =+'GEN-502 Pot'!E33*'GEN-502 Pre_Pot'!E33*1000 -> 1311.759 | F33: =+'GEN-502 Pot'!F33*'GEN-502 Pre_Pot'!F33*1000 -> 1311.759 | G33: =+'GEN-502 Pot'!G33*'GEN-502 Pre_Pot'!G33*1000 -> 1311.759 | H33: 7870.554
A34: =+'GEN-502 Pot'!A34 -> Las Perlas Norte No. 45-11 | B34: =+'GEN-502 Pot'!B34*'GEN-502 Pre_Pot'!B34*1000 -> 7132.86 | C34: =+'GEN-502 Pot'!C34*'GEN-502 Pre_Pot'!C34*1000 -> 7132.86 | D34: =+'GEN-502 Pot'!D34*'GEN-502 Pre_Pot'!D34*1000 -> 7132.86 | E34: =+'GEN-502 Pot'!E34*'GEN-502 Pre_Pot'!E34*1000 -> 7132.86 | F34: =+'GEN-502 Pot'!F34*'GEN-502 Pre_Pot'!F34*1000 -> 7132.86 | G34: =+'GEN-502 Pot'!G34*'GEN-502 Pre_Pot'!G34*1000 -> 7132.86 | H34: 42797.16
A35: =+'GEN-502 Pot'!A35 -> Hidroeléctrica San Lorenzo No. 46-11 | B35: =+'GEN-502 Pot'!B35*'GEN-502 Pre_Pot'!B35*1000 -> 1331.7 | C35: =+'GEN-502 Pot'!C35*'GEN-502 Pre_Pot'!C35*1000 -> 1331.7 | D35: =+'GEN-502 Pot'!D35*'GEN-502 Pre_Pot'!D35*1000 -> 1331.7 | E35: =+'GEN-502 Pot'!E35*'GEN-502 Pre_Pot'!E35*1000 -> 1331.7 | F35: =+'GEN-502 Pot'!F35*'GEN-502 Pre_Pot'!F35*1000 -> 1331.7 | G35: =+'GEN-502 Pot'!G35*'GEN-502 Pre_Pot'!G35*1000 -> 1331.7 | H35: 7990.2
A36: =+'GEN-502 Pot'!A36 -> Caldera Energy Corp. No. 47-11 | B36: =+'GEN-502 Pot'!B36*'GEN-502 Pre_Pot'!B36*1000 -> 4995 | C36: =+'GEN-502 Pot'!C36*'GEN-502 Pre_Pot'!C36*1000 -> 4995 | D36: =+'GEN-502 Pot'!D36*'GEN-502 Pre_Pot'!D36*1000 -> 4995 | E36: =+'GEN-502 Pot'!E36*'GEN-502 Pre_Pot'!E36*1000 -> 4995 | F36: =+'GEN-502 Pot'!F36*'GEN-502 Pre_Pot'!F36*1000 -> 4995 | G36: =+'GEN-502 Pot'!G36*'GEN-502 Pre_Pot'!G36*1000 -> 4995 | H36: 29970
A37: =+'GEN-502 Pot'!A37 -> Unión Eólica de Panamá (PE Nuevo Chagres) No. 19-12' | H37: =+SUM(B37:G37) -> 0
A38: =+'GEN-502 Pot'!A38 -> Unión Eólica de Panamá (PE Rosa de los Vientos) No. 20-12' | H38: 0
A39: =+'GEN-502 Pot'!A39 -> Unión Eólica de Panamá (PE Portobelo Ballestillas) No. 21-12' | H39: 0
A40: =+'GEN-502 Pot'!A40 -> Unión Eólica de Panamá (PE Marañon) No. 22-12' | H40: 0
A41: =+'GEN-502 Pot'!A41 -> AES No. 122-12 | B41: =+'GEN-502 Pot'!B41*'GEN-502 Pre_Pot'!B41*1000 -> 245000 | C41: =+'GEN-502 Pot'!C41*'GEN-502 Pre_Pot'!C41*1000 -> 245000 | D41: =+'GEN-502 Pot'!D41*'GEN-502 Pre_Pot'!D41*1000 -> 245000 | E41: =+'GEN-502 Pot'!E41*'GEN-502 Pre_Pot'!E41*1000 -> 245000 | F41: =+'GEN-502 Pot'!F41*'GEN-502 Pre_Pot'!F41*1000 -> 245000 | G41: =+'GEN-502 Pot'!G41*'GEN-502 Pre_Pot'!G41*1000 -> 245000 | H41: =+SUM(B41:G41) -> 1470000
A42: =+'GEN-502 Pot'!A42 -> HIDRO PIEDRA No. 123-12 | B42: =+'GEN-502 Pot'!B42*'GEN-502 Pre_Pot'!B42*1000 -> 1195 | C42: =+'GEN-502 Pot'!C42*'GEN-502 Pre_Pot'!C42*1000 -> 1195 | D42: =+'GEN-502 Pot'!D42*'GEN-502 Pre_Pot'!D42*1000 -> 1195 | E42: =+'GEN-502 Pot'!E42*'GEN-502 Pre_Pot'!E42*1000 -> 1195 | F42: =+'GEN-502 Pot'!F42*'GEN-502 Pre_Pot'!F42*1000 -> 1195 | G42: =+'GEN-502 Pot'!G42*'GEN-502 Pre_Pot'!G42*1000 -> 1195 | H42: 7170
A43: =+'GEN-502 Pot'!A43 -> Corp. Energ. Del Istmo No. 124-12 | B43: =+'GEN-502 Pot'!B43*'GEN-502 Pre_Pot'!B43*1000 -> 5488.63 | C43: =+'GEN-502 Pot'!C43*'GEN-502 Pre_Pot'!C43*1000 -> 5488.63 | D43: =+'GEN-502 Pot'!D43*'GEN-502 Pre_Pot'!D43*1000 -> 5488.63 | E43: =+'GEN-502 Pot'!E43*'GEN-502 Pre_Pot'!E43*1000 -> 5488.63 | F43: =+'GEN-502 Pot'!F43*'GEN-502 Pre_Pot'!F43*1000 -> 5488.63 | G43: =+'GEN-502 Pot'!G43*'GEN-502 Pre_Pot'!G43*1000 -> 5488.63 | H43: 32931.78
A44: =+'GEN-502 Pot'!A44 -> Saltos del Francolí No. 126-12 | B44: =+'GEN-502 Pot'!B44*'GEN-502 Pre_Pot'!B44*1000 -> 872.685 | C44: =+'GEN-502 Pot'!C44*'GEN-502 Pre_Pot'!C44*1000 -> 872.685 | D44: =+'GEN-502 Pot'!D44*'GEN-502 Pre_Pot'!D44*1000 -> 872.685 | E44: =+'GEN-502 Pot'!E44*'GEN-502 Pre_Pot'!E44*1000 -> 872.685 | F44: =+'GEN-502 Pot'!F44*'GEN-502 Pre_Pot'!F44*1000 -> 872.685 | G44: =+'GEN-502 Pot'!G44*'GEN-502 Pre_Pot'!G44*1000 -> 872.685 | H44: 5236.11
A45: =+'GEN-502 Pot'!A45 -> PASO ANCHO No. 88-11 | H45: 0
A46: =+'GEN-502 Pot'!A46 -> Hidroecológica del Teribe No. 89-11 | H46: 0
A47: =+'GEN-502 Pot'!A47 -> ISTMUS HYDRO POWER CORP. No.10-13 | H47: 0
A48: =+'GEN-502 Pot'!A48 -> CALDERA ENERGY CORP. No.11-13 | H48: 0
A49: =+'GEN-502 Pot'!A49 -> ELECTROGENERADORA DEL ISTMO, S.A. No.12-13 | H49: 0
A50: =+'GEN-502 Pot'!A50 -> FOUNTAIN INTERTRADE CORP. No.13-13 | H50: 0
A51: =+'GEN-502 Pot'!A51 -> HIDROIBERICA, S.A. No.14-13 | H51: 0
A52: =+'GEN-502 Pot'!A52 -> NAVITAS INTERNACIONAL, S.A. No.15-13 | H52: 0
A53: =+'GEN-502 Pot'!A53 -> HIDROECOLÓGICA DEL TERIBE, S.A. No.16-13 | H53: 0
A54: =+'GEN-502 Pot'!A54 -> HIDRONORTH CORP. No.17-13 | H54: 0
A55: =+'GEN-502 Pot'!A55 -> EMPRESA NACIONAL DE ENERGÍA, S.A. No.33-13 | H55: 0
A56: =+'GEN-502 Pot'!A56 -> FUERZA ELÉCTRICA DEL ISTMO, S.A. No.34-13 | H56: 0
A57: =+'GEN-502 Pot'!A57 -> CAFÉ DE ELETA, S.A. No.35-13 | H57: 0
A58: =+'GEN-502 Pot'!A58 -> ENERGÍA Y SERVICIOS DE PANAMÁ, S.A. No.36-13 | H58: 0
A59: =+'GEN-502 Pot'!A59 -> GENERADORA PEDREGALITO, S.A. No.37-13 | H59: 0
A60: =+'GEN-502 Pot'!A60 -> GENERADORA RIO CHICO, S.A. No.38-13 | H60: 0
A61: =+'GEN-502 Pot'!A61 -> GENERADORA ALTO VALLE, S.A. No.39-13 | H61: 0
A62: =+'GEN-502 Pot'!A62 -> HYDRO CAISÁN, S.A. No.40-13 | H62: 0
A63: =+'GEN-502 Pot'!A63 -> SIGSA, S.A. No. 137-12 | B63: =+'GEN-502 Pot'!B63*'GEN-502 Pre_Pot'!B63*1000 -> 197125 | C63: =+'GEN-502 Pot'!C63*'GEN-502 Pre_Pot'!C63*1000 -> 197125 | D63: =+'GEN-502 Pot'!D63*'GEN-502 Pre_Pot'!D63*1000 -> 197125 | E63: =+'GEN-502 Pot'!E63*'GEN-502 Pre_Pot'!E63*1000 -> 197125 | F63: =+'GEN-502 Pot'!F63*'GEN-502 Pre_Pot'!F63*1000 -> 197125 | G63: =+'GEN-502 Pot'!G63*'GEN-502 Pre_Pot'!G63*1000 -> 197125 | H63: 1182750
A64: =+'GEN-502 Pot'!A64 -> PARQUE EÓLICO TOABRÉ, S.A. No 09-14 | H64: =+SUM(B64:G64) -> 0
A65: =+'GEN-502 Pot'!A65 -> NAURA ENERGY CORP. No 10-14 | H65: 0
A66: =+'GEN-502 Pot'!A66 -> Panama Solar2 No. 10-15 | H66: 0
A67: =+'GEN-502 Pot'!A67 -> Solpac Investment No. 11-15 | H67: 0
A68: =+'GEN-502 Pot'!A68 -> GAS NATURAL ATLÁNTICO No. 17-15 | B68: =+'GEN-502 Pot'!B68*'GEN-502 Pre_Pot'!B68*1000 -> 1087240 | C68: =+'GEN-502 Pot'!C68*'GEN-502 Pre_Pot'!C68*1000 -> 1087240 | D68: =+'GEN-502 Pot'!D68*'GEN-502 Pre_Pot'!D68*1000 -> 1087240 | E68: =+'GEN-502 Pot'!E68*'GEN-502 Pre_Pot'!E68*1000 -> 1087240 | F68: =+'GEN-502 Pot'!F68*'GEN-502 Pre_Pot'!F68*1000 -> 1087240 | G68: =+'GEN-502 Pot'!G68*'GEN-502 Pre_Pot'!G68*1000 -> 1087240 | H68: 6523440
A69: =+'GEN-502 Pot'!A69 -> MARTANO INC No. 19-15 | B69: =+'GEN-502 Pot'!B69*'GEN-502 Pre_Pot'!B69*1000 -> 898520 | C69: =+'GEN-502 Pot'!C69*'GEN-502 Pre_Pot'!C69*1000 -> 898520 | D69: =+'GEN-502 Pot'!D69*'GEN-502 Pre_Pot'!D69*1000 -> 898520 | E69: =+'GEN-502 Pot'!E69*'GEN-502 Pre_Pot'!E69*1000 -> 898520 | F69: =+'GEN-502 Pot'!F69*'GEN-502 Pre_Pot'!F69*1000 -> 898520 | G69: =+'GEN-502 Pot'!G69*'GEN-502 Pre_Pot'!G69*1000 -> 898520 | H69: 5391120
A70: =+'GEN-502 Pot'!A70 -> ENEL FORTUNA, S.A. No. 36-21 | H70: =+SUM(B70:G70) -> 0
A71: =+'GEN-502 Pot'!A71 -> HIDRO BOQUERÓN, S.A. No. 40-21 | H71: 0
A72: =+'GEN-502 Pot'!A72 -> AUTORIDAD DEL CANAL DE PANAMÁ No. 57-21 | B72: =+'GEN-502 Pot'!B72*'GEN-502 Pre_Pot'!B72*1000 -> 6361.5734 | C72: =+'GEN-502 Pot'!C72*'GEN-502 Pre_Pot'!C72*1000 -> 5545.7077 | D72: =+'GEN-502 Pot'!D72*'GEN-502 Pre_Pot'!D72*1000 -> 0 | E72: =+'GEN-502 Pot'!E72*'GEN-502 Pre_Pot'!E72*1000 -> 0 | F72: =+'GEN-502 Pot'!F72*'GEN-502 Pre_Pot'!F72*1000 -> 656.9225 | H72: 12564.2036
A73: =+'GEN-502 Pot'!A73 -> GENERADORA DEL ATLÁNTICO, S.A. No. 59-21 | B73: =+'GEN-502 Pot'!B73*'GEN-502 Pre_Pot'!B73*1000 -> 79800 | C73: =+'GEN-502 Pot'!C73*'GEN-502 Pre_Pot'!C73*1000 -> 96900 | D73: =+'GEN-502 Pot'!D73*'GEN-502 Pre_Pot'!D73*1000 -> 11547.25 | E73: =+'GEN-502 Pot'!E73*'GEN-502 Pre_Pot'!E73*1000 -> 9730.375 | F73: =+'GEN-502 Pot'!F73*'GEN-502 Pre_Pot'!F73*1000 -> 4750 | H73: 202727.625
A74: =+'GEN-502 Pot'!A74 -> GENERADORA DEL ATLÁNTICO, S.A. No. 60-21 | B74: =+'GEN-502 Pot'!B74*'GEN-502 Pre_Pot'!B74*1000 -> 13125 | C74: =+'GEN-502 Pot'!C74*'GEN-502 Pre_Pot'!C74*1000 -> 15937.5 | H74: 29062.5
A75: =+'GEN-502 Pot'!A75 -> PANAM GENERATING LTD No. 61-21 | B75: =+'GEN-502 Pot'!B75*'GEN-502 Pre_Pot'!B75*1000 -> 122562.7648 | C75: =+'GEN-502 Pot'!C75*'GEN-502 Pre_Pot'!C75*1000 -> 148826.2144 | D75: =+'GEN-502 Pot'!D75*'GEN-502 Pre_Pot'!D75*1000 -> 22077.44 | E75: =+'GEN-502 Pot'!E75*'GEN-502 Pre_Pot'!E75*1000 -> 17059.84 | F75: =+'GEN-502 Pot'!F75*'GEN-502 Pre_Pot'!F75*1000 -> 10035.2 | H75: 320561.4592
A76: =+'GEN-502 Pot'!A76 -> TROPITÉRMICA, S.A. No. 63-21 | B76: =+'GEN-502 Pot'!B76*'GEN-502 Pre_Pot'!B76*1000 -> 698.25 | C76: =+'GEN-502 Pot'!C76*'GEN-502 Pre_Pot'!C76*1000 -> 847.875 | D76: =+'GEN-502 Pot'!D76*'GEN-502 Pre_Pot'!D76*1000 -> 950.95 | E76: =+'GEN-502 Pot'!E76*'GEN-502 Pre_Pot'!E76*1000 -> 734.825 | F76: =+'GEN-502 Pot'!F76*'GEN-502 Pre_Pot'!F76*1000 -> 216.125 | H76: 3448.025
A77: =+'GEN-502 Pot'!A77 -> EMPRESA NACIONAL DE ENERGÍA, S.A. No. 23-23 | H77: 0
A78: =+'GEN-502 Pot'!A78 -> FOUNTAIN HYDRO POWER CORP No. 24-23 | H78: 0
A79: =+'GEN-502 Pot'!A79 -> GENERADORA DEL ISTMO, S.A. No. 25-23 | H79: 0
A80: =+'GEN-502 Pot'!A80 -> HIDRO BOQUERÓN, S.A. No. 26-23 | H80: 0
A81: =+'GEN-502 Pot'!A81 -> HIDROIBÉRICA No. 27-23 | H81: 0
A82: =+'GEN-502 Pot'!A82 -> IDEAL PANAMÁ, S.A. No. 29-23 | H82: 0
A83: =+'GEN-502 Pot'!A83 -> SOLAR BOQUERÓN, S.A. No. 33-23 | H83: 0
A84: =+'GEN-502 Pot'!A84 -> AUTORIDAD DEL CANAL DE PANAMÁ No. 34-23 | B84: =+'GEN-502 Pot'!B84*'GEN-502 Pre_Pot'!B84*1000 -> 67583.25 | C84: =+'GEN-502 Pot'!C84*'GEN-502 Pre_Pot'!C84*1000 -> 47155.5 | D84: =+'GEN-502 Pot'!D84*'GEN-502 Pre_Pot'!D84*1000 -> 60000 | E84: =+'GEN-502 Pot'!E84*'GEN-502 Pre_Pot'!E84*1000 -> 63750 | F84: =+'GEN-502 Pot'!F84*'GEN-502 Pre_Pot'!F84*1000 -> 61136.25 | G84: =+'GEN-502 Pot'!G84*'GEN-502 Pre_Pot'!G84*1000 -> 71250 | H84: =+SUM(B84:G84) -> 370875
A85: =+'GEN-502 Pot'!A85 -> CELSIA CENTROAMÉRICA, S.A. No. 35-23 | B85: =+'GEN-502 Pot'!B85*'GEN-502 Pre_Pot'!B85*1000 -> 161363.727 | C85: =+'GEN-502 Pot'!C85*'GEN-502 Pre_Pot'!C85*1000 -> 107575.818 | D85: =+'GEN-502 Pot'!D85*'GEN-502 Pre_Pot'!D85*1000 -> 122943.792 | E85: =+'GEN-502 Pot'!E85*'GEN-502 Pre_Pot'!E85*1000 -> 130627.779 | F85: =+'GEN-502 Pot'!F85*'GEN-502 Pre_Pot'!F85*1000 -> 130627.779 | G85: =+'GEN-502 Pot'!G85*'GEN-502 Pre_Pot'!G85*1000 -> 145995.753 | H85: 799134.648
A86: =+'GEN-502 Pot'!A86 -> GENERADORA DEL ATLÁNTICO, S.A. No. 36-23 | B86: =+'GEN-502 Pot'!B86*'GEN-502 Pre_Pot'!B86*1000 -> 0 | C86: =+'GEN-502 Pot'!C86*'GEN-502 Pre_Pot'!C86*1000 -> 0 | D86: =+'GEN-502 Pot'!D86*'GEN-502 Pre_Pot'!D86*1000 -> 132000 | E86: =+'GEN-502 Pot'!E86*'GEN-502 Pre_Pot'!E86*1000 -> 140250 | F86: =+'GEN-502 Pot'!F86*'GEN-502 Pre_Pot'!F86*1000 -> 126225 | G86: =+'GEN-502 Pot'!G86*'GEN-502 Pre_Pot'!G86*1000 -> 156750 | H86: 555225
A87: =+'GEN-502 Pot'!A87 -> GENERADORA DEL ATLÁNTICO, S.A. No. 37-23 | D87: =+'GEN-502 Pot'!D87*'GEN-502 Pre_Pot'!D87*1000 -> 25568 | E87: =+'GEN-502 Pot'!E87*'GEN-502 Pre_Pot'!E87*1000 -> 27166 | F87: =+'GEN-502 Pot'!F87*'GEN-502 Pre_Pot'!F87*1000 -> 27166 | G87: =+'GEN-502 Pot'!G87*'GEN-502 Pre_Pot'!G87*1000 -> 37952.5 | H87: 117852.5
A88: =+'GEN-502 Pot'!A88 -> PEDREGAL POWER, S. DE R.L. No. 38-23 | B88: =+'GEN-502 Pot'!B88*'GEN-502 Pre_Pot'!B88*1000 -> 41287.743 | C88: =+'GEN-502 Pot'!C88*'GEN-502 Pre_Pot'!C88*1000 -> 61495 | D88: =+'GEN-502 Pot'!D88*'GEN-502 Pre_Pot'!D88*1000 -> 45386.824 | E88: =+'GEN-502 Pot'!E88*'GEN-502 Pre_Pot'!E88*1000 -> 18354.5005 | F88: =+'GEN-502 Pot'!F88*'GEN-502 Pre_Pot'!F88*1000 -> 54271.973 | G88: =+'GEN-502 Pot'!G88*'GEN-502 Pre_Pot'!G88*1000 -> 25521.3035 | H88: 246317.344
A89: =+'GEN-502 Pot'!A89 -> PANAM GENERATING LTD No. 39-23 | D89: =+'GEN-502 Pot'!D89*'GEN-502 Pre_Pot'!D89*1000 -> 96600 | E89: =+'GEN-502 Pot'!E89*'GEN-502 Pre_Pot'!E89*1000 -> 102637.5 | F89: =+'GEN-502 Pot'!F89*'GEN-502 Pre_Pot'!F89*1000 -> 78837.5 | G89: =+'GEN-502 Pot'!G89*'GEN-502 Pre_Pot'!G89*1000 -> 114712.5 | H89: 392787.5
A90: =+'GEN-502 Pot'!A90 -> PANAM GENERATING LTD No. 40-23 | D90: =+'GEN-502 Pot'!D90*'GEN-502 Pre_Pot'!D90*1000 -> 69200 | E90: =+'GEN-502 Pot'!E90*'GEN-502 Pre_Pot'!E90*1000 -> 73525 | F90: =+'GEN-502 Pot'!F90*'GEN-502 Pre_Pot'!F90*1000 -> 73525 | G90: =+'GEN-502 Pot'!G90*'GEN-502 Pre_Pot'!G90*1000 -> 82175 | H90: 298425
A91: =+'GEN-502 Pot'!A91 -> SPARKLE POWER, S.A. No. 41-23 | B91: =+'GEN-502 Pot'!B91*'GEN-502 Pre_Pot'!B91*1000 -> 51975 | C91: =+'GEN-502 Pot'!C91*'GEN-502 Pre_Pot'!C91*1000 -> 34650 | D91: =+'GEN-502 Pot'!D91*'GEN-502 Pre_Pot'!D91*1000 -> 39600 | E91: =+'GEN-502 Pot'!E91*'GEN-502 Pre_Pot'!E91*1000 -> 42075 | F91: =+'GEN-502 Pot'!F91*'GEN-502 Pre_Pot'!F91*1000 -> 42075 | G91: =+'GEN-502 Pot'!G91*'GEN-502 Pre_Pot'!G91*1000 -> 47025 | H91: 257400
A92: =+'GEN-502 Pot'!A92 -> TROPITÉRMICA, S.A. No. 42-23 | H92: 0

Sheet GEN-502 Gen
A1: INFORMACION PARA ACTUALIZAR: CARGO POR GENERACION
A2: =+'Compras (p)'!A2 -> EDECHI
A3: Compra Mensual de Energía para atender Clientes Regulados (MWh)
B4: COMPRA DE ENERGIA
A5: Detalle | B5: 2023-07-01 | C5: 2023-08-01 | D5: 2023-09-01 | E5: 2023-10-01 | F5: 2023-11-01 | G5: 2023-12-01 | H5: Total
A7: Generación en Punta
A8: Total Compra de Energía en Horas de Punta | B8: =+B9+B15 -> 84435.8272 | C8: 87133.78878 | D8: 84592.1176 | E8: 85659.50711 | F8: 82127.33144 | G8: 87124.9502 | H8: =+SUM(B8:G8) -> 511073.5223
A9: Generación Propia | H9: 0
H10: 0
H11: 0
H12: 0
H13: 0
H14: 0
A15: Sub-Total Mercado Mayorista | B15: =+SUM(B16:B24) -> 84435.8272 | C15: 87133.78878 | D15: 84592.1176 | E15: 85659.50711 | F15: 82127.33144 | G15: 87124.9502 | H15: 511073.5223
A16: Mercado Ocasional | B16: =+'GEN-502 Gen_P'!B16+'GEN-502 Gen_FP'!B16 -> 7012.940436 | C16: =+'GEN-502 Gen_P'!C16+'GEN-502 Gen_FP'!C16 -> 13083.37412 | D16: =+'GEN-502 Gen_P'!D16+'GEN-502 Gen_FP'!D16 -> 17576.13702 | E16: =+'GEN-502 Gen_P'!E16+'GEN-502 Gen_FP'!E16 -> 18530.38697 | F16: =+'GEN-502 Gen_P'!F16+'GEN-502 Gen_FP'!F16 -> 16178.47956 | G16: =+'GEN-502 Gen_P'!G16+'GEN-502 Gen_FP'!G16 -> 25899.53062 | H16: 98280.84873
A17: =+'GEN-502 Gen_P'!A17 -> 0 | B17: =+'GEN-502 Gen_P'!B17+'GEN-502 Gen_FP'!B17 -> 0 | C17: =+'GEN-502 Gen_P'!C17+'GEN-502 Gen_FP'!C17 -> 0 | D17: =+'GEN-502 Gen_P'!D17+'GEN-502 Gen_FP'!D17 -> 0 | E17: =+'GEN-502 Gen_P'!E17+'GEN-502 Gen_FP'!E17 -> 0 | F17: =+'GEN-502 Gen_P'!F17+'GEN-502 Gen_FP'!F17 -> 0 | G17: =+'GEN-502 Gen_P'!G17+'GEN-502 Gen_FP'!G17 -> 0 | H17: 0
H18: 0
H19: 0
H20: 0
H21: 0
H22: 0
H23: 0
A24: Sub-Total Contratros | B24: =+SUM(B25:B141) -> 77422.88676 | C24: 74050.41466 | D24: 67015.98059 | E24: 67129.12013 | F24: 65948.85188 | G24: 61225.41958 | H24: 412792.6736
A25: =+'GEN-502 Pot'!A25 -> Empresa Nacional de Energía No. 36-11 (Cesión) | B25: =+'GEN-502 Gen_P'!B25+'GEN-502 Gen_FP'!B25 -> 394.6556615 | C25: =+'GEN-502 Gen_P'!C25+'GEN-502 Gen_FP'!C25 -> 391.3717023 | D25: =+'GEN-502 Gen_P'!D25+'GEN-502 Gen_FP'!D25 -> 378.923194 | E25: =+'GEN-502 Gen_P'!E25+'GEN-502 Gen_FP'!E25 -> 373.486514 | F25: =+'GEN-502 Gen_P'!F25+'GEN-502 Gen_FP'!F25 -> 372.6383777 | G25: =+'GEN-502 Gen_P'!G25+'GEN-502 Gen_FP'!G25 -> 361.5325919 | H25: =+SUM(B25:G25) -> 2272.608041
A26: =+'GEN-502 Pot'!A26 -> Enel Fortuna No. 37-11 | B26: =+'GEN-502 Gen_P'!B26+'GEN-502 Gen_FP'!B26 -> 1165.022328 | C26: =+'GEN-502 Gen_P'!C26+'GEN-502 Gen_FP'!C26 -> 1155.32809 | D26: =+'GEN-502 Gen_P'!D26+'GEN-502 Gen_FP'!D26 -> 1118.580131 | E26: =+'GEN-502 Gen_P'!E26+'GEN-502 Gen_FP'!E26 -> 1102.531068 | F26: =+'GEN-502 Gen_P'!F26+'GEN-502 Gen_FP'!F26 -> 1100.027372 | G26: =+'GEN-502 Gen_P'!G26+'GEN-502 Gen_FP'!G26 -> 1067.243125 | H26: 6708.732114
A27: =+'GEN-502 Pot'!A27 -> Electrogeneradora del Istmo No. 38-11 | B27: =+'GEN-502 Gen_P'!B27+'GEN-502 Gen_FP'!B27 -> 49.33195769 | C27: =+'GEN-502 Gen_P'!C27+'GEN-502 Gen_FP'!C27 -> 48.92146279 | D27: =+'GEN-502 Gen_P'!D27+'GEN-502 Gen_FP'!D27 -> 47.36539925 | E27: =+'GEN-502 Gen_P'!E27+'GEN-502 Gen_FP'!E27 -> 46.68581425 | F27: =+'GEN-502 Gen_P'!F27+'GEN-502 Gen_FP'!F27 -> 46.57979721 | G27: =+'GEN-502 Gen_P'!G27+'GEN-502 Gen_FP'!G27 -> 45.19157398 | H27: 284.0760052
A28: =+'GEN-502 Pot'!A28 -> ESEPSA No. 39-11 | B28: =+'GEN-502 Gen_P'!B28+'GEN-502 Gen_FP'!B28 -> 216.2724877 | C28: =+'GEN-502 Gen_P'!C28+'GEN-502 Gen_FP'!C28 -> 214.4728682 | D28: =+'GEN-502 Gen_P'!D28+'GEN-502 Gen_FP'!D28 -> 207.6510482 | E28: =+'GEN-502 Gen_P'!E28+'GEN-502 Gen_FP'!E28 -> 204.6717313 | F28: =+'GEN-502 Gen_P'!F28+'GEN-502 Gen_FP'!F28 -> 204.20695 | G28: =+'GEN-502 Gen_P'!G28+'GEN-502 Gen_FP'!G28 -> 198.120946 | H28: 1245.396031
A29: =+'GEN-502 Pot'!A29 -> Pedregalito No. 40-11 | B29: =+'GEN-502 Gen_P'!B29+'GEN-502 Gen_FP'!B29 -> 155.4149255 | C29: =+'GEN-502 Gen_P'!C29+'GEN-502 Gen_FP'!C29 -> 154.1217063 | D29: =+'GEN-502 Gen_P'!D29+'GEN-502 Gen_FP'!D29 -> 149.2194986 | E29: =+'GEN-502 Gen_P'!E29+'GEN-502 Gen_FP'!E29 -> 147.0785406 | F29: =+'GEN-502 Gen_P'!F29+'GEN-502 Gen_FP'!F29 -> 146.7445455 | G29: =+'GEN-502 Gen_P'!G29+'GEN-502 Gen_FP'!G29 -> 142.3711004 | H29: 894.9503169
A30: =+'GEN-502 Pot'!A30 -> Río Chico No. 41-11 | B30: =+'GEN-502 Gen_P'!B30+'GEN-502 Gen_FP'!B30 -> 95.30993484 | C30: =+'GEN-502 Gen_P'!C30+'GEN-502 Gen_FP'!C30 -> 94.51685376 | D30: =+'GEN-502 Gen_P'!D30+'GEN-502 Gen_FP'!D30 -> 91.51052031 | E30: =+'GEN-502 Gen_P'!E30+'GEN-502 Gen_FP'!E30 -> 90.19755393 | F30: =+'GEN-502 Gen_P'!F30+'GEN-502 Gen_FP'!F30 -> 89.99272773 | G30: =+'GEN-502 Gen_P'!G30+'GEN-502 Gen_FP'!G30 -> 87.31066378 | H30: 548.8382543
A31: =+'GEN-502 Pot'!A31 -> Alto Valle No. 42-11 | B31: =+'GEN-502 Gen_P'!B31+'GEN-502 Gen_FP'!B31 -> 90.69376727 | C31: =+'GEN-502 Gen_P'!C31+'GEN-502 Gen_FP'!C31 -> 89.93909766 | D31: =+'GEN-502 Gen_P'!D31+'GEN-502 Gen_FP'!D31 -> 87.07837064 | E31: =+'GEN-502 Gen_P'!E31+'GEN-502 Gen_FP'!E31 -> 85.82899545 | F31: =+'GEN-502 Gen_P'!F31+'GEN-502 Gen_FP'!F31 -> 85.63408965 | G31: =+'GEN-502 Gen_P'!G31+'GEN-502 Gen_FP'!G31 -> 83.0819267 | H31: 522.2562474
A32: =+'GEN-502 Pot'!A32 -> Hidroecológica del Teribe No. 43-11 | B32: =+'GEN-502 Gen_P'!B32+'GEN-502 Gen_FP'!B32 -> 394.6556615 | C32: =+'GEN-502 Gen_P'!C32+'GEN-502 Gen_FP'!C32 -> 391.3717023 | D32: =+'GEN-502 Gen_P'!D32+'GEN-502 Gen_FP'!D32 -> 378.923194 | E32: =+'GEN-502 Gen_P'!E32+'GEN-502 Gen_FP'!E32 -> 373.486514 | F32: =+'GEN-502 Gen_P'!F32+'GEN-502 Gen_FP'!F32 -> 372.6383777 | G32: =+'GEN-502 Gen_P'!G32+'GEN-502 Gen_FP'!G32 -> 361.5325919 | H32: 2272.608041
A33: =+'GEN-502 Pot'!A33 -> Desarrollos Hidroeléctricos Corp. No. 44-11 | B33: =+'GEN-502 Gen_P'!B33+'GEN-502 Gen_FP'!B33 -> 75.10309091 | C33: =+'GEN-502 Gen_P'!C33+'GEN-502 Gen_FP'!C33 -> 74.47815248 | D33: =+'GEN-502 Gen_P'!D33+'GEN-502 Gen_FP'!D33 -> 72.10919762 | E33: =+'GEN-502 Gen_P'!E33+'GEN-502 Gen_FP'!E33 -> 71.07459578 | F33: =+'GEN-502 Gen_P'!F33+'GEN-502 Gen_FP'!F33 -> 70.91319518 | G33: =+'GEN-502 Gen_P'!G33+'GEN-502 Gen_FP'!G33 -> 68.7997608 | H33: 432.4779928
A34: =+'GEN-502 Pot'!A34 -> Las Perlas Norte No. 45-11 | B34: =+'GEN-502 Gen_P'!B34+'GEN-502 Gen_FP'!B34 -> 469.6402372 | C34: =+'GEN-502 Gen_P'!C34+'GEN-502 Gen_FP'!C34 -> 465.7323258 | D34: =+'GEN-502 Gen_P'!D34+'GEN-502 Gen_FP'!D34 -> 450.9186009 | E34: =+'GEN-502 Gen_P'!E34+'GEN-502 Gen_FP'!E34 -> 444.4489517 | F34: =+'GEN-502 Gen_P'!F34+'GEN-502 Gen_FP'!F34 -> 443.4396694 | G34: =+'GEN-502 Gen_P'!G34+'GEN-502 Gen_FP'!G34 -> 430.2237843 | H34: 2704.403569
A35: =+'GEN-502 Pot'!A35 -> Hidroeléctrica San Lorenzo No. 46-11 | B35: =+'GEN-502 Gen_P'!B35+'GEN-502 Gen_FP'!B35 -> 52.60890335 | C35: =+'GEN-502 Gen_P'!C35+'GEN-502 Gen_FP'!C35 -> 52.17114074 | D35: =+'GEN-502 Gen_P'!D35+'GEN-502 Gen_FP'!D35 -> 50.51171346 | E35: =+'GEN-502 Gen_P'!E35+'GEN-502 Gen_FP'!E35 -> 49.78698606 | F35: =+'GEN-502 Gen_P'!F35+'GEN-502 Gen_FP'!F35 -> 49.67392668 | G35: =+'GEN-502 Gen_P'!G35+'GEN-502 Gen_FP'!G35 -> 48.19348875 | H35: 302.946159
A36: =+'GEN-502 Pot'!A36 -> Caldera Energy Corp. No. 47-11 | B36: =+'GEN-502 Gen_P'!B36+'GEN-502 Gen_FP'!B36 -> 118.3966985 | C36: =+'GEN-502 Gen_P'!C36+'GEN-502 Gen_FP'!C36 -> 117.4115107 | D36: =+'GEN-502 Gen_P'!D36+'GEN-502 Gen_FP'!D36 -> 113.6769582 | E36: =+'GEN-502 Gen_P'!E36+'GEN-502 Gen_FP'!E36 -> 112.0459542 | F36: =+'GEN-502 Gen_P'!F36+'GEN-502 Gen_FP'!F36 -> 111.7915133 | G36: =+'GEN-502 Gen_P'!G36+'GEN-502 Gen_FP'!G36 -> 108.4597776 | H36: 681.7824124
A37: =+'GEN-502 Pot'!A37 -> Unión Eólica de Panamá (PE Nuevo Chagres) No. 19-12' | B37: =+'GEN-502 Gen_P'!B37+'GEN-502 Gen_FP'!B37 -> 1045.718988 | C37: =+'GEN-502 Gen_P'!C37+'GEN-502 Gen_FP'!C37 -> 918.9007972 | D37: =+'GEN-502 Gen_P'!D37+'GEN-502 Gen_FP'!D37 -> 0.9672213662 | E37: =+'GEN-502 Gen_P'!E37+'GEN-502 Gen_FP'!E37 -> 0.8972648986 | F37: =+'GEN-502 Gen_P'!F37+'GEN-502 Gen_FP'!F37 -> 0.9511790421 | G37: =+'GEN-502 Gen_P'!G37+'GEN-502 Gen_FP'!G37 -> 0.9771151131 | H37: =+SUM(B37:G37) -> 1968.412565
A38: =+'GEN-502 Pot'!A38 -> Unión Eólica de Panamá (PE Rosa de los Vientos) No. 20-12' | B38: =+'GEN-502 Gen_P'!B38+'GEN-502 Gen_FP'!B38 -> 1.007379316 | C38: =+'GEN-502 Gen_P'!C38+'GEN-502 Gen_FP'!C38 -> 1.057761358 | D38: =+'GEN-502 Gen_P'!D38+'GEN-502 Gen_FP'!D38 -> 0.9672213662 | E38: =+'GEN-502 Gen_P'!E38+'GEN-502 Gen_FP'!E38 -> 0.8972648986 | F38: =+'GEN-502 Gen_P'!F38+'GEN-502 Gen_FP'!F38 -> 0.9511790421 | G38: =+'GEN-502 Gen_P'!G38+'GEN-502 Gen_FP'!G38 -> 0.9771151131 | H38: 5.857921094
A39: =+'GEN-502 Pot'!A39 -> Unión Eólica de Panamá (PE Portobelo Ballestillas) No. 21-12' | B39: =+'GEN-502 Gen_P'!B39+'GEN-502 Gen_FP'!B39 -> 1.007379316 | C39: =+'GEN-502 Gen_P'!C39+'GEN-502 Gen_FP'!C39 -> 1.057761358 | D39: =+'GEN-502 Gen_P'!D39+'GEN-502 Gen_FP'!D39 -> 0.9672213662 | E39: =+'GEN-502 Gen_P'!E39+'GEN-502 Gen_FP'!E39 -> 0.8972648986 | F39: =+'GEN-502 Gen_P'!F39+'GEN-502 Gen_FP'!F39 -> 0.9511790421 | G39: =+'GEN-502 Gen_P'!G39+'GEN-502 Gen_FP'!G39 -> 0.9771151131 | H39: 5.857921094
A40: =+'GEN-502 Pot'!A40 -> Unión Eólica de Panamá (PE Marañon) No. 22-12' | B40: =+'GEN-502 Gen_P'!B40+'GEN-502 Gen_FP'!B40 -> 1.007379316 | C40: =+'GEN-502 Gen_P'!C40+'GEN-502 Gen_FP'!C40 -> 1.057761358 | D40: =+'GEN-502 Gen_P'!D40+'GEN-502 Gen_FP'!D40 -> 0.9672213662 | E40: =+'GEN-502 Gen_P'!E40+'GEN-502 Gen_FP'!E40 -> 0.8972648986 | F40: =+'GEN-502 Gen_P'!F40+'GEN-502 Gen_FP'!F40 -> 0.9511790421 | G40: =+'GEN-502 Gen_P'!G40+'GEN-502 Gen_FP'!G40 -> 0.9771151131 | H40: 5.857921094
A41: =+'GEN-502 Pot'!A41 -> AES No. 122-12 | B41: =+'GEN-502 Gen_P'!B41+'GEN-502 Gen_FP'!B41 -> 14518.11368 | C41: =+'GEN-502 Gen_P'!C41+'GEN-502 Gen_FP'!C41 -> 14397.30737 | D41: =+'GEN-502 Gen_P'!D41+'GEN-502 Gen_FP'!D41 -> 13939.36675 | E41: =+'GEN-502 Gen_P'!E41+'GEN-502 Gen_FP'!E41 -> 13739.36876 | F41: =+'GEN-502 Gen_P'!F41+'GEN-502 Gen_FP'!F41 -> 13708.16855 | G41: =+'GEN-502 Gen_P'!G41+'GEN-502 Gen_FP'!G41 -> 13299.62237 | H41: =+SUM(B41:G41) -> 83601.94747
A42: =+'GEN-502 Pot'!A42 -> HIDRO PIEDRA No. 123-12 | B42: =+'GEN-502 Gen_P'!B42+'GEN-502 Gen_FP'!B42 -> 74.07200855 | C42: =+'GEN-502 Gen_P'!C42+'GEN-502 Gen_FP'!C42 -> 73.45564984 | D42: =+'GEN-502 Gen_P'!D42+'GEN-502 Gen_FP'!D42 -> 71.1192181 | E42: =+'GEN-502 Gen_P'!E42+'GEN-502 Gen_FP'!E42 -> 70.0988202 | F42: =+'GEN-502 Gen_P'!F42+'GEN-502 Gen_FP'!F42 -> 69.93963545 | G42: =+'GEN-502 Gen_P'!G42+'GEN-502 Gen_FP'!G42 -> 67.85521619 | H42: 426.5405483
A43: =+'GEN-502 Pot'!A43 -> Corp. Energ. Del Istmo No. 124-12 | B43: =+'GEN-502 Gen_P'!B43+'GEN-502 Gen_FP'!B43 -> 365.4416614 | C43: =+'GEN-502 Gen_P'!C43+'GEN-502 Gen_FP'!C43 -> 362.400794 | D43: =+'GEN-502 Gen_P'!D43+'GEN-502 Gen_FP'!D43 -> 350.8737744 | E43: =+'GEN-502 Gen_P'!E43+'GEN-502 Gen_FP'!E43 -> 345.8395393 | F43: =+'GEN-502 Gen_P'!F43+'GEN-502 Gen_FP'!F43 -> 345.0541855 | G43: =+'GEN-502 Gen_P'!G43+'GEN-502 Gen_FP'!G43 -> 334.7704946 | H43: 2104.380449
A44: =+'GEN-502 Pot'!A44 -> Saltos del Francolí No. 126-12 | B44: =+'GEN-502 Gen_P'!B44+'GEN-502 Gen_FP'!B44 -> 38.22115641 | C44: =+'GEN-502 Gen_P'!C44+'GEN-502 Gen_FP'!C44 -> 37.90311532 | D44: =+'GEN-502 Gen_P'!D44+'GEN-502 Gen_FP'!D44 -> 36.69751654 | E44: =+'GEN-502 Gen_P'!E44+'GEN-502 Gen_FP'!E44 -> 36.17099122 | F44: =+'GEN-502 Gen_P'!F44+'GEN-502 Gen_FP'!F44 -> 36.08885189 | G44: =+'GEN-502 Gen_P'!G44+'GEN-502 Gen_FP'!G44 -> 35.01329155 | H44: 220.0949229
A45: =+'GEN-502 Pot'!A45 -> PASO ANCHO No. 88-11 | B45: =+'GEN-502 Gen_P'!B45+'GEN-502 Gen_FP'!B45 -> 877.0125812 | C45: =+'GEN-502 Gen_P'!C45+'GEN-502 Gen_FP'!C45 -> 846.2090861 | D45: =+'GEN-502 Gen_P'!D45+'GEN-502 Gen_FP'!D45 -> 819.2933925 | E45: =+'GEN-502 Gen_P'!E45+'GEN-502 Gen_FP'!E45 -> 762.6751638 | F45: =+'GEN-502 Gen_P'!F45+'GEN-502 Gen_FP'!F45 -> 783.323917 | G45: =+'GEN-502 Gen_P'!G45+'GEN-502 Gen_FP'!G45 -> 781.6920905 | H45: 4870.206231
A46: =+'GEN-502 Pot'!A46 -> Hidroecológica del Teribe No. 89-11 | B46: =+'GEN-502 Gen_P'!B46+'GEN-502 Gen_FP'!B46 -> 1037.00812 | C46: =+'GEN-502 Gen_P'!C46+'GEN-502 Gen_FP'!C46 -> 1057.761358 | D46: =+'GEN-502 Gen_P'!D46+'GEN-502 Gen_FP'!D46 -> 1024.116741 | E46: =+'GEN-502 Gen_P'!E46+'GEN-502 Gen_FP'!E46 -> 981.3834828 | F46: =+'GEN-502 Gen_P'!F46+'GEN-502 Gen_FP'!F46 -> 1007.13075 | G46: =+'GEN-502 Gen_P'!G46+'GEN-502 Gen_FP'!G46 -> 977.1151131 | H46: 6084.515564
A47: =+'GEN-502 Pot'!A47 -> ISTMUS HYDRO POWER CORP. No.10-13 | B47: =+'GEN-502 Gen_P'!B47+'GEN-502 Gen_FP'!B47 -> 447.8689925 | C47: =+'GEN-502 Gen_P'!C47+'GEN-502 Gen_FP'!C47 -> 445.3175316 | D47: =+'GEN-502 Gen_P'!D47+'GEN-502 Gen_FP'!D47 -> 448.506237 | E47: =+'GEN-502 Gen_P'!E47+'GEN-502 Gen_FP'!E47 -> 404.3299949 | F47: =+'GEN-502 Gen_P'!F47+'GEN-502 Gen_FP'!F47 -> 384.6120433 | G47: =+'GEN-502 Gen_P'!G47+'GEN-502 Gen_FP'!G47 -> 371.5751639 | H47: 2502.209963
A48: =+'GEN-502 Pot'!A48 -> CALDERA ENERGY CORP. No.11-13 | B48: =+'GEN-502 Gen_P'!B48+'GEN-502 Gen_FP'!B48 -> 506.6525385 | C48: =+'GEN-502 Gen_P'!C48+'GEN-502 Gen_FP'!C48 -> 940.2323179 | D48: =+'GEN-502 Gen_P'!D48+'GEN-502 Gen_FP'!D48 -> 1081.012115 | E48: =+'GEN-502 Gen_P'!E48+'GEN-502 Gen_FP'!E48 -> 1458.05546 | F48: =+'GEN-502 Gen_P'!F48+'GEN-502 Gen_FP'!F48 -> 903.62009 | G48: =+'GEN-502 Gen_P'!G48+'GEN-502 Gen_FP'!G48 -> 257.8498215 | H48: 5147.422343
A49: =+'GEN-502 Pot'!A49 -> ELECTROGENERADORA DEL ISTMO, S.A. No.12-13 | B49: =+'GEN-502 Gen_P'!B49+'GEN-502 Gen_FP'!B49 -> 168.8841795 | C49: =+'GEN-502 Gen_P'!C49+'GEN-502 Gen_FP'!C49 -> 293.8225993 | D49: =+'GEN-502 Gen_P'!D49+'GEN-502 Gen_FP'!D49 -> 426.7153086 | E49: =+'GEN-502 Gen_P'!E49+'GEN-502 Gen_FP'!E49 -> 504.7115054 | F49: =+'GEN-502 Gen_P'!F49+'GEN-502 Gen_FP'!F49 -> 345.5017991 | G49: =+'GEN-502 Gen_P'!G49+'GEN-502 Gen_FP'!G49 -> 128.9249108 | H49: 1868.560303
A50: =+'GEN-502 Pot'!A50 -> FOUNTAIN INTERTRADE CORP. No.13-13 | B50: =+'GEN-502 Gen_P'!B50+'GEN-502 Gen_FP'!B50 -> 2130.607254 | C50: =+'GEN-502 Gen_P'!C50+'GEN-502 Gen_FP'!C50 -> 2479.686445 | D50: =+'GEN-502 Gen_P'!D50+'GEN-502 Gen_FP'!D50 -> 3478.583196 | E50: =+'GEN-502 Gen_P'!E50+'GEN-502 Gen_FP'!E50 -> 4641.383083 | F50: =+'GEN-502 Gen_P'!F50+'GEN-502 Gen_FP'!F50 -> 2949.382403 | G50: =+'GEN-502 Gen_P'!G50+'GEN-502 Gen_FP'!G50 -> 1600.351703 | H50: 17279.99408
A51: =+'GEN-502 Pot'!A51 -> HIDROIBERICA, S.A. No.14-13 | B51: =+'GEN-502 Gen_P'!B51+'GEN-502 Gen_FP'!B51 -> 46.16167573 | C51: =+'GEN-502 Gen_P'!C51+'GEN-502 Gen_FP'!C51 -> 77.56916623 | D51: =+'GEN-502 Gen_P'!D51+'GEN-502 Gen_FP'!D51 -> 91.03259917 | E51: =+'GEN-502 Gen_P'!E51+'GEN-502 Gen_FP'!E51 -> 113.2796934 | F51: =+'GEN-502 Gen_P'!F51+'GEN-502 Gen_FP'!F51 -> 98.86666867 | G51: =+'GEN-502 Gen_P'!G51+'GEN-502 Gen_FP'!G51 -> 88.7003386 | H51: 515.6101418
A52: =+'GEN-502 Pot'!A52 -> NAVITAS INTERNACIONAL, S.A. No.15-13 | B52: =+'GEN-502 Gen_P'!B52+'GEN-502 Gen_FP'!B52 -> 449.6467207 | C52: =+'GEN-502 Gen_P'!C52+'GEN-502 Gen_FP'!C52 -> 497.1478381 | D52: =+'GEN-502 Gen_P'!D52+'GEN-502 Gen_FP'!D52 -> 585.9085664 | E52: =+'GEN-502 Gen_P'!E52+'GEN-502 Gen_FP'!E52 -> 593.7089676 | F52: =+'GEN-502 Gen_P'!F52+'GEN-502 Gen_FP'!F52 -> 490.6964823 | G52: =+'GEN-502 Gen_P'!G52+'GEN-502 Gen_FP'!G52 -> 352.2499983 | H52: 2969.358573
A53: =+'GEN-502 Pot'!A53 -> HIDROECOLÓGICA DEL TERIBE, S.A. No.16-13 | B53: =+'GEN-502 Gen_P'!B53+'GEN-502 Gen_FP'!B53 -> 0 | C53: =+'GEN-502 Gen_P'!C53+'GEN-502 Gen_FP'!C53 -> 0 | D53: =+'GEN-502 Gen_P'!D53+'GEN-502 Gen_FP'!D53 -> 113.790749 | E53: =+'GEN-502 Gen_P'!E53+'GEN-502 Gen_FP'!E53 -> 560.7905616 | F53: =+'GEN-502 Gen_P'!F53+'GEN-502 Gen_FP'!F53 -> 212.6164918 | G53: =+'GEN-502 Gen_P'!G53+'GEN-502 Gen_FP'!G53 -> 206.2798572 | H53: 1093.47766
A54: =+'GEN-502 Pot'!A54 -> HIDRONORTH CORP. No.17-13 | B54: =+'GEN-502 Gen_P'!B54+'GEN-502 Gen_FP'!B54 -> 54.04293744 | C54: =+'GEN-502 Gen_P'!C54+'GEN-502 Gen_FP'!C54 -> 65.81626225 | D54: =+'GEN-502 Gen_P'!D54+'GEN-502 Gen_FP'!D54 -> 77.37770929 | E54: =+'GEN-502 Gen_P'!E54+'GEN-502 Gen_FP'!E54 -> 76.26751638 | F54: =+'GEN-502 Gen_P'!F54+'GEN-502 Gen_FP'!F54 -> 71.22652474 | G54: =+'GEN-502 Gen_P'!G54+'GEN-502 Gen_FP'!G54 -> 51.5699643 | H54: 396.3009144
A55: =+'GEN-502 Pot'!A55 -> EMPRESA NACIONAL DE ENERGÍA, S.A. No.33-13 | B55: =+'GEN-502 Gen_P'!B55+'GEN-502 Gen_FP'!B55 -> 216.1717497 | C55: =+'GEN-502 Gen_P'!C55+'GEN-502 Gen_FP'!C55 -> 384.3199599 | D55: =+'GEN-502 Gen_P'!D55+'GEN-502 Gen_FP'!D55 -> 372.0957491 | E55: =+'GEN-502 Gen_P'!E55+'GEN-502 Gen_FP'!E55 -> 275.1238495 | F55: =+'GEN-502 Gen_P'!F55+'GEN-502 Gen_FP'!F55 -> 347.627964 | G55: =+'GEN-502 Gen_P'!G55+'GEN-502 Gen_FP'!G55 -> 223.8136451 | H55: 1819.152917
A56: =+'GEN-502 Pot'!A56 -> FUERZA ELÉCTRICA DEL ISTMO, S.A. No.34-13 | B56: =+'GEN-502 Gen_P'!B56+'GEN-502 Gen_FP'!B56 -> 84.44208974 | C56: =+'GEN-502 Gen_P'!C56+'GEN-502 Gen_FP'!C56 -> 88.1467798 | D56: =+'GEN-502 Gen_P'!D56+'GEN-502 Gen_FP'!D56 -> 85.34306172 | E56: =+'GEN-502 Gen_P'!E56+'GEN-502 Gen_FP'!E56 -> 63.14501724 | F56: =+'GEN-502 Gen_P'!F56+'GEN-502 Gen_FP'!F56 -> 79.73118441 | G56: =+'GEN-502 Gen_P'!G56+'GEN-502 Gen_FP'!G56 -> 77.35494646 | H56: 478.1630794
A57: =+'GEN-502 Pot'!A57 -> CAFÉ DE ELETA, S.A. No.35-13 | B57: =+'GEN-502 Gen_P'!B57+'GEN-502 Gen_FP'!B57 -> 25.90149995 | C57: =+'GEN-502 Gen_P'!C57+'GEN-502 Gen_FP'!C57 -> 28.79461474 | D57: =+'GEN-502 Gen_P'!D57+'GEN-502 Gen_FP'!D57 -> 26.90013305 | E57: =+'GEN-502 Gen_P'!E57+'GEN-502 Gen_FP'!E57 -> 27.18151852 | F57: =+'GEN-502 Gen_P'!F57+'GEN-502 Gen_FP'!F57 -> 38.89203248 | G57: =+'GEN-502 Gen_P'!G57+'GEN-502 Gen_FP'!G57 -> 28.11377317 | H57: 175.7835719
A58: =+'GEN-502 Pot'!A58 -> ENERGÍA Y SERVICIOS DE PANAMÁ, S.A. No.36-13 | B58: =+'GEN-502 Gen_P'!B58+'GEN-502 Gen_FP'!B58 -> 1253.985773 | C58: =+'GEN-502 Gen_P'!C58+'GEN-502 Gen_FP'!C58 -> 1568.113583 | D58: =+'GEN-502 Gen_P'!D58+'GEN-502 Gen_FP'!D58 -> 1563.803505 | E58: =+'GEN-502 Gen_P'!E58+'GEN-502 Gen_FP'!E58 -> 1372.018972 | F58: =+'GEN-502 Gen_P'!F58+'GEN-502 Gen_FP'!F58 -> 1717.890897 | G58: =+'GEN-502 Gen_P'!G58+'GEN-502 Gen_FP'!G58 -> 1029.276775 | H58: 8505.089505
A59: =+'GEN-502 Pot'!A59 -> GENERADORA PEDREGALITO, S.A. No.37-13 | B59: =+'GEN-502 Gen_P'!B59+'GEN-502 Gen_FP'!B59 -> 520.951399 | C59: =+'GEN-502 Gen_P'!C59+'GEN-502 Gen_FP'!C59 -> 696.5946185 | D59: =+'GEN-502 Gen_P'!D59+'GEN-502 Gen_FP'!D59 -> 674.5515598 | E59: =+'GEN-502 Gen_P'!E59+'GEN-502 Gen_FP'!E59 -> 788.1911343 | F59: =+'GEN-502 Gen_P'!F59+'GEN-502 Gen_FP'!F59 -> 766.5887611 | G59: =+'GEN-502 Gen_P'!G59+'GEN-502 Gen_FP'!G59 -> 349.2317983 | H59: 3796.109271
A60: =+'GEN-502 Pot'!A60 -> GENERADORA RIO CHICO, S.A. No.38-13 | B60: =+'GEN-502 Gen_P'!B60+'GEN-502 Gen_FP'!B60 -> 321.2177094 | C60: =+'GEN-502 Gen_P'!C60+'GEN-502 Gen_FP'!C60 -> 429.3159528 | D60: =+'GEN-502 Gen_P'!D60+'GEN-502 Gen_FP'!D60 -> 415.5410571 | E60: =+'GEN-502 Gen_P'!E60+'GEN-502 Gen_FP'!E60 -> 485.4090943 | F60: =+'GEN-502 Gen_P'!F60+'GEN-502 Gen_FP'!F60 -> 472.2547992 | G60: =+'GEN-502 Gen_P'!G60+'GEN-502 Gen_FP'!G60 -> 215.5353087 | H60: 2339.273922
A61: =+'GEN-502 Pot'!A61 -> GENERADORA ALTO VALLE, S.A. No.39-13 | B61: =+'GEN-502 Gen_P'!B61+'GEN-502 Gen_FP'!B61 -> 458.8968331 | C61: =+'GEN-502 Gen_P'!C61+'GEN-502 Gen_FP'!C61 -> 627.4287786 | D61: =+'GEN-502 Gen_P'!D61+'GEN-502 Gen_FP'!D61 -> 609.9525517 | E61: =+'GEN-502 Gen_P'!E61+'GEN-502 Gen_FP'!E61 -> 643.1819109 | F61: =+'GEN-502 Gen_P'!F61+'GEN-502 Gen_FP'!F61 -> 550.7774268 | G61: =+'GEN-502 Gen_P'!G61+'GEN-502 Gen_FP'!G61 -> 269.7489122 | H61: 3159.986413
A62: =+'GEN-502 Pot'!A62 -> HYDRO CAISÁN, S.A. No.40-13 | B62: =+'GEN-502 Gen_P'!B62+'GEN-502 Gen_FP'!B62 -> 1140.400792 | C62: =+'GEN-502 Gen_P'!C62+'GEN-502 Gen_FP'!C62 -> 2056.211685 | D62: =+'GEN-502 Gen_P'!D62+'GEN-502 Gen_FP'!D62 -> 2396.649376 | E62: =+'GEN-502 Gen_P'!E62+'GEN-502 Gen_FP'!E62 -> 1002.082262 | F62: =+'GEN-502 Gen_P'!F62+'GEN-502 Gen_FP'!F62 -> 2085.902068 | G62: =+'GEN-502 Gen_P'!G62+'GEN-502 Gen_FP'!G62 -> 558.9152731 | H62: 9240.161457
A63: =+'GEN-502 Pot'!A63 -> SIGSA, S.A. No. 137-12 | B63: =+'GEN-502 Gen_P'!B63+'GEN-502 Gen_FP'!B63 -> 0 | C63: =+'GEN-502 Gen_P'!C63+'GEN-502 Gen_FP'!C63 -> 0 | D63: =+'GEN-502 Gen_P'!D63+'GEN-502 Gen_FP'!D63 -> 0 | E63: =+'GEN-502 Gen_P'!E63+'GEN-502 Gen_FP'!E63 -> 0 | F63: =+'GEN-502 Gen_P'!F63+'GEN-502 Gen_FP'!F63 -> 0 | G63: =+'GEN-502 Gen_P'!G63+'GEN-502 Gen_FP'!G63 -> 0 | H63: 0
A64: =+'GEN-502 Pot'!A64 -> PARQUE EÓLICO TOABRÉ, S.A. No 09-14 | B64: =+'GEN-502 Gen_P'!B64+'GEN-502 Gen_FP'!B64 -> 2346.601231 | C64: =+'GEN-502 Gen_P'!C64+'GEN-502 Gen_FP'!C64 -> 2350.580795 | D64: =+'GEN-502 Gen_P'!D64+'GEN-502 Gen_FP'!D64 -> 2270.125442 | E64: =+'GEN-502 Gen_P'!E64+'GEN-502 Gen_FP'!E64 -> 2288.025491 | F64: =+'GEN-502 Gen_P'!F64+'GEN-502 Gen_FP'!F64 -> 3323.531477 | G64: =+'GEN-502 Gen_P'!G64+'GEN-502 Gen_FP'!G64 -> 5612.983483 | H64: =+SUM(B64:G64) -> 18191.84792
A65: =+'GEN-502 Pot'!A65 -> NAURA ENERGY CORP. No 10-14 | B65: =+'GEN-502 Gen_P'!B65+'GEN-502 Gen_FP'!B65 -> 114.7227268 | C65: =+'GEN-502 Gen_P'!C65+'GEN-502 Gen_FP'!C65 -> 117.5290397 | D65: =+'GEN-502 Gen_P'!D65+'GEN-502 Gen_FP'!D65 -> 112.3114692 | E65: =+'GEN-502 Gen_P'!E65+'GEN-502 Gen_FP'!E65 -> 204.5763969 | F65: =+'GEN-502 Gen_P'!F65+'GEN-502 Gen_FP'!F65 -> 201.8737638 | G65: =+'GEN-502 Gen_P'!G65+'GEN-502 Gen_FP'!G65 -> 546.9673267 | H65: 1297.980723
A66: =+'GEN-502 Pot'!A66 -> Panama Solar2 No. 10-15 | B66: =+'GEN-502 Gen_P'!B66+'GEN-502 Gen_FP'!B66 -> 183.6985812 | C66: =+'GEN-502 Gen_P'!C66+'GEN-502 Gen_FP'!C66 -> 376.0929272 | D66: =+'GEN-502 Gen_P'!D66+'GEN-502 Gen_FP'!D66 -> 369.8199341 | E66: =+'GEN-502 Gen_P'!E66+'GEN-502 Gen_FP'!E66 -> 364.513865 | F66: =+'GEN-502 Gen_P'!F66+'GEN-502 Gen_FP'!F66 -> 201.4261501 | G66: =+'GEN-502 Gen_P'!G66+'GEN-502 Gen_FP'!G66 -> 238.850361 | H66: 1734.401819
A67: =+'GEN-502 Pot'!A67 -> Solpac Investment No. 11-15 | B67: =+'GEN-502 Gen_P'!B67+'GEN-502 Gen_FP'!B67 -> 29.62880342 | C67: =+'GEN-502 Gen_P'!C67+'GEN-502 Gen_FP'!C67 -> 64.64097186 | D67: =+'GEN-502 Gen_P'!D67+'GEN-502 Gen_FP'!D67 -> 62.58491193 | E67: =+'GEN-502 Gen_P'!E67+'GEN-502 Gen_FP'!E67 -> 61.68696178 | F67: =+'GEN-502 Gen_P'!F67+'GEN-502 Gen_FP'!F67 -> 33.57102502 | G67: =+'GEN-502 Gen_P'!G67+'GEN-502 Gen_FP'!G67 -> 37.99892107 | H67: 290.1115951
A68: =+'GEN-502 Pot'!A68 -> GAS NATURAL ATLÁNTICO No. 17-15 | B68: =+'GEN-502 Gen_P'!B68+'GEN-502 Gen_FP'!B68 -> 16592.12991 | C68: =+'GEN-502 Gen_P'!C68+'GEN-502 Gen_FP'!C68 -> 16454.06556 | D68: =+'GEN-502 Gen_P'!D68+'GEN-502 Gen_FP'!D68 -> 15930.70485 | E68: =+'GEN-502 Gen_P'!E68+'GEN-502 Gen_FP'!E68 -> 15702.13573 | F68: =+'GEN-502 Gen_P'!F68+'GEN-502 Gen_FP'!F68 -> 15666.47834 | G68: =+'GEN-502 Gen_P'!G68+'GEN-502 Gen_FP'!G68 -> 15199.56843 | H68: 95545.08283
A69: =+'GEN-502 Pot'!A69 -> MARTANO INC No. 19-15 | B69: =+'GEN-502 Gen_P'!B69+'GEN-502 Gen_FP'!B69 -> 16592.12991 | C69: =+'GEN-502 Gen_P'!C69+'GEN-502 Gen_FP'!C69 -> 16454.06556 | D69: =+'GEN-502 Gen_P'!D69+'GEN-502 Gen_FP'!D69 -> 15930.70485 | E69: =+'GEN-502 Gen_P'!E69+'GEN-502 Gen_FP'!E69 -> 15702.13573 | F69: =+'GEN-502 Gen_P'!F69+'GEN-502 Gen_FP'!F69 -> 15666.47834 | G69: =+'GEN-502 Gen_P'!G69+'GEN-502 Gen_FP'!G69 -> 15199.56843 | H69: 95545.08283
A70: =+'GEN-502 Pot'!A70 -> ENEL FORTUNA, S.A. No. 36-21 | B70: =+'GEN-502 Gen_P'!B70+'GEN-502 Gen_FP'!B70 -> 5887.01806 | C70: =+'GEN-502 Gen_P'!C70+'GEN-502 Gen_FP'!C70 -> 6422.350871 | D70: =+'GEN-502 Gen_P'!D70+'GEN-502 Gen_FP'!D70 -> 0 | E70: =+'GEN-502 Gen_P'!E70+'GEN-502 Gen_FP'!E70 -> 0 | F70: =+'GEN-502 Gen_P'!F70+'GEN-502 Gen_FP'!F70 -> 0 | G70: =+'GEN-502 Gen_P'!G70+'GEN-502 Gen_FP'!G70 -> 0 | H70: =+SUM(B70:G70) -> 12309.36893
A71: =+'GEN-502 Pot'!A71 -> HIDRO BOQUERÓN, S.A. No. 40-21 | B71: =+'GEN-502 Gen_P'!B71+'GEN-502 Gen_FP'!B71 -> 29.1456564 | C71: =+'GEN-502 Gen_P'!C71+'GEN-502 Gen_FP'!C71 -> 26.56480902 | D71: =+'GEN-502 Gen_P'!D71+'GEN-502 Gen_FP'!D71 -> 0 | E71: =+'GEN-502 Gen_P'!E71+'GEN-502 Gen_FP'!E71 -> 0 | F71: =+'GEN-502 Gen_P'!F71+'GEN-502 Gen_FP'!F71 -> 0 | G71: =+'GEN-502 Gen_P'!G71+'GEN-502 Gen_FP'!G71 -> 0 | H71: 55.71046542
A72: =+'GEN-502 Pot'!A72 -> AUTORIDAD DEL CANAL DE PANAMÁ No. 57-21 | B72: =+'GEN-502 Gen_P'!B72+'GEN-502 Gen_FP'!B72 -> 0 | C72: =+'GEN-502 Gen_P'!C72+'GEN-502 Gen_FP'!C72 -> 0 | D72: =+'GEN-502 Gen_P'!D72+'GEN-502 Gen_FP'!D72 -> 0 | E72: =+'GEN-502 Gen_P'!E72+'GEN-502 Gen_FP'!E72 -> 0 | F72: =+'GEN-502 Gen_P'!F72+'GEN-502 Gen_FP'!F72 -> 0 | G72: =+'GEN-502 Gen_P'!G72+'GEN-502 Gen_FP'!G72 -> 0 | H72: 0
A73: =+'GEN-502 Pot'!A73 -> GENERADORA DEL ATLÁNTICO, S.A. No. 59-21 | B73: =+'GEN-502 Gen_P'!B73+'GEN-502 Gen_FP'!B73 -> 0 | C73: =+'GEN-502 Gen_P'!C73+'GEN-502 Gen_FP'!C73 -> 0 | D73: =+'GEN-502 Gen_P'!D73+'GEN-502 Gen_FP'!D73 -> 0 | E73: =+'GEN-502 Gen_P'!E73+'GEN-502 Gen_FP'!E73 -> 0 | F73: =+'GEN-502 Gen_P'!F73+'GEN-502 Gen_FP'!F73 -> 0 | G73: =+'GEN-502 Gen_P'!G73+'GEN-502 Gen_FP'!G73 -> 0 | H73: 0
A74: =+'GEN-502 Pot'!A74 -> GENERADORA DEL ATLÁNTICO, S.A. No. 60-21 | B74: =+'GEN-502 Gen_P'!B74+'GEN-502 Gen_FP'!B74 -> 0 | C74: =+'GEN-502 Gen_P'!C74+'GEN-502 Gen_FP'!C74 -> 0 | D74: =+'GEN-502 Gen_P'!D74+'GEN-502 Gen_FP'!D74 -> 0 | E74: =+'GEN-502 Gen_P'!E74+'GEN-502 Gen_FP'!E74 -> 0 | F74: =+'GEN-502 Gen_P'!F74+'GEN-502 Gen_FP'!F74 -> 0 | G74: =+'GEN-502 Gen_P'!G74+'GEN-502 Gen_FP'!G74 -> 0 | H74: 0
A75: =+'GEN-502 Pot'!A75 -> PANAM GENERATING LTD No. 61-21 | B75: =+'GEN-502 Gen_P'!B75+'GEN-502 Gen_FP'!B75 -> 0 | C75: =+'GEN-502 Gen_P'!C75+'GEN-502 Gen_FP'!C75 -> 0 | D75: =+'GEN-502 Gen_P'!D75+'GEN-502 Gen_FP'!D75 -> 0 | E75: =+'GEN-502 Gen_P'!E75+'GEN-502 Gen_FP'!E75 -> 0 | F75: =+'GEN-502 Gen_P'!F75+'GEN-502 Gen_FP'!F75 -> 0 | G75: =+'GEN-502 Gen_P'!G75+'GEN-502 Gen_FP'!G75 -> 0 | H75: 0
A76: =+'GEN-502 Pot'!A76 -> TROPITÉRMICA, S.A. No. 63-21 | B76: =+'GEN-502 Gen_P'!B76+'GEN-502 Gen_FP'!B76 -> 0 | C76: =+'GEN-502 Gen_P'!C76+'GEN-502 Gen_FP'!C76 -> 0 | D76: =+'GEN-502 Gen_P'!D76+'GEN-502 Gen_FP'!D76 -> 0 | E76: =+'GEN-502 Gen_P'!E76+'GEN-502 Gen_FP'!E76 -> 0 | F76: =+'GEN-502 Gen_P'!F76+'GEN-502 Gen_FP'!F76 -> 0 | G76: =+'GEN-502 Gen_P'!G76+'GEN-502 Gen_FP'!G76 -> 0 | H76: 0
A77: =+'GEN-502 Pot'!A77 -> EMPRESA NACIONAL DE ENERGÍA, S.A. No. 23-23 | B77: =+'GEN-502 Gen_P'!B77+'GEN-502 Gen_FP'!B77 -> 243.7857945 | C77: =+'GEN-502 Gen_P'!C77+'GEN-502 Gen_FP'!C77 -> 0 | D77: =+'GEN-502 Gen_P'!D77+'GEN-502 Gen_FP'!D77 -> 163.4604109 | E77: =+'GEN-502 Gen_P'!E77+'GEN-502 Gen_FP'!E77 -> 399.7315123 | F77: =+'GEN-502 Gen_P'!F77+'GEN-502 Gen_FP'!F77 -> 61.77068603 | G77: =+'GEN-502 Gen_P'!G77+'GEN-502 Gen_FP'!G77 -> 0 | H77: 868.7484038
A78: =+'GEN-502 Pot'!A78 -> FOUNTAIN HYDRO POWER CORP No. 24-23 | B78: =+'GEN-502 Gen_P'!B78+'GEN-502 Gen_FP'!B78 -> 2844.839189 | C78: =+'GEN-502 Gen_P'!C78+'GEN-502 Gen_FP'!C78 -> 0 | D78: =+'GEN-502 Gen_P'!D78+'GEN-502 Gen_FP'!D78 -> 0 | E78: =+'GEN-502 Gen_P'!E78+'GEN-502 Gen_FP'!E78 -> 0 | F78: =+'GEN-502 Gen_P'!F78+'GEN-502 Gen_FP'!F78 -> 0 | G78: =+'GEN-502 Gen_P'!G78+'GEN-502 Gen_FP'!G78 -> 0 | H78: 2844.839189
A79: =+'GEN-502 Pot'!A79 -> GENERADORA DEL ISTMO, S.A. No. 25-23 | B79: =+'GEN-502 Gen_P'!B79+'GEN-502 Gen_FP'!B79 -> 1208.855179 | C79: =+'GEN-502 Gen_P'!C79+'GEN-502 Gen_FP'!C79 -> 0 | D79: =+'GEN-502 Gen_P'!D79+'GEN-502 Gen_FP'!D79 -> 0 | E79: =+'GEN-502 Gen_P'!E79+'GEN-502 Gen_FP'!E79 -> 0 | F79: =+'GEN-502 Gen_P'!F79+'GEN-502 Gen_FP'!F79 -> 0 | G79: =+'GEN-502 Gen_P'!G79+'GEN-502 Gen_FP'!G79 -> 0 | H79: 1208.855179
A80: =+'GEN-502 Pot'!A80 -> HIDRO BOQUERÓN, S.A. No. 26-23 | B80: =+'GEN-502 Gen_P'!B80+'GEN-502 Gen_FP'!B80 -> 147.278856 | C80: =+'GEN-502 Gen_P'!C80+'GEN-502 Gen_FP'!C80 -> 74.04329504 | D80: =+'GEN-502 Gen_P'!D80+'GEN-502 Gen_FP'!D80 -> 255.3464407 | E80: =+'GEN-502 Gen_P'!E80+'GEN-502 Gen_FP'!E80 -> 289.9062887 | F80: =+'GEN-502 Gen_P'!F80+'GEN-502 Gen_FP'!F80 -> 159.4399881 | G80: =+'GEN-502 Gen_P'!G80+'GEN-502 Gen_FP'!G80 -> 0 | H80: 926.0148686
A81: =+'GEN-502 Pot'!A81 -> HIDROIBÉRICA No. 27-23 | B81: =+'GEN-502 Gen_P'!B81+'GEN-502 Gen_FP'!B81 -> 77.7874605 | C81: =+'GEN-502 Gen_P'!C81+'GEN-502 Gen_FP'!C81 -> 55.39731288 | D81: =+'GEN-502 Gen_P'!D81+'GEN-502 Gen_FP'!D81 -> 56.98071754 | E81: =+'GEN-502 Gen_P'!E81+'GEN-502 Gen_FP'!E81 -> 43.27620764 | F81: =+'GEN-502 Gen_P'!F81+'GEN-502 Gen_FP'!F81 -> 46.75884268 | G81: =+'GEN-502 Gen_P'!G81+'GEN-502 Gen_FP'!G81 -> 54.12674885 | H81: 334.3272901
A82: =+'GEN-502 Pot'!A82 -> IDEAL PANAMÁ, S.A. No. 29-23 | B82: =+'GEN-502 Gen_P'!B82+'GEN-502 Gen_FP'!B82 -> 2014.758632 | C82: =+'GEN-502 Gen_P'!C82+'GEN-502 Gen_FP'!C82 -> 0 | D82: =+'GEN-502 Gen_P'!D82+'GEN-502 Gen_FP'!D82 -> 0 | E82: =+'GEN-502 Gen_P'!E82+'GEN-502 Gen_FP'!E82 -> 0 | F82: =+'GEN-502 Gen_P'!F82+'GEN-502 Gen_FP'!F82 -> 0 | G82: =+'GEN-502 Gen_P'!G82+'GEN-502 Gen_FP'!G82 -> 0 | H82: 2014.758632
A83: =+'GEN-502 Pot'!A83 -> SOLAR BOQUERÓN, S.A. No. 33-23 | B83: =+'GEN-502 Gen_P'!B83+'GEN-502 Gen_FP'!B83 -> 48.95863477 | C83: =+'GEN-502 Gen_P'!C83+'GEN-502 Gen_FP'!C83 -> 29.61731801 | D83: =+'GEN-502 Gen_P'!D83+'GEN-502 Gen_FP'!D83 -> 24.37397843 | E83: =+'GEN-502 Gen_P'!E83+'GEN-502 Gen_FP'!E83 -> 23.82238306 | F83: =+'GEN-502 Gen_P'!F83+'GEN-502 Gen_FP'!F83 -> 23.54447888 | G83: =+'GEN-502 Gen_P'!G83+'GEN-502 Gen_FP'!G83 -> 23.82532351 | H83: 174.1421167
A84: =+'GEN-502 Pot'!A84 -> AUTORIDAD DEL CANAL DE PANAMÁ No. 34-23 | B84: =+'GEN-502 Gen_P'!B84+'GEN-502 Gen_FP'!B84 -> 0 | C84: =+'GEN-502 Gen_P'!C84+'GEN-502 Gen_FP'!C84 -> 0 | D84: =+'GEN-502 Gen_P'!D84+'GEN-502 Gen_FP'!D84 -> 0 | E84: =+'GEN-502 Gen_P'!E84+'GEN-502 Gen_FP'!E84 -> 0 | F84: =+'GEN-502 Gen_P'!F84+'GEN-502 Gen_FP'!F84 -> 0 | G84: =+'GEN-502 Gen_P'!G84+'GEN-502 Gen_FP'!G84 -> 0 | H84: =+SUM(B84:G84) -> 0
A85: =+'GEN-502 Pot'!A85 -> CELSIA CENTROAMÉRICA, S.A. No. 35-23 | B85: =+'GEN-502 Gen_P'!B85+'GEN-502 Gen_FP'!B85 -> 0 | C85: =+'GEN-502 Gen_P'!C85+'GEN-502 Gen_FP'!C85 -> 0 | D85: =+'GEN-502 Gen_P'!D85+'GEN-502 Gen_FP'!D85 -> 0 | E85: =+'GEN-502 Gen_P'!E85+'GEN-502 Gen_FP'!E85 -> 0 | F85: =+'GEN-502 Gen_P'!F85+'GEN-502 Gen_FP'!F85 -> 0 | G85: =+'GEN-502 Gen_P'!G85+'GEN-502 Gen_FP'!G85 -> 0 | H85: 0
A86: =+'GEN-502 Pot'!A86 -> GENERADORA DEL ATLÁNTICO, S.A. No. 36-23 | B86: =+'GEN-502 Gen_P'!B86+'GEN-502 Gen_FP'!B86 -> 0 | C86: =+'GEN-502 Gen_P'!C86+'GEN-502 Gen_FP'!C86 -> 0 | D86: =+'GEN-502 Gen_P'!D86+'GEN-502 Gen_FP'!D86 -> 0 | E86: =+'GEN-502 Gen_P'!E86+'GEN-502 Gen_FP'!E86 -> 0 | F86: =+'GEN-502 Gen_P'!F86+'GEN-502 Gen_FP'!F86 -> 0 | G86: =+'GEN-502 Gen_P'!G86+'GEN-502 Gen_FP'!G86 -> 0 | H86: 0
A87: =+'GEN-502 Pot'!A87 -> GENERADORA DEL ATLÁNTICO, S.A. No. 37-23 | B87: =+'GEN-502 Gen_P'!B87+'GEN-502 Gen_FP'!B87 -> 0 | C87: =+'GEN-502 Gen_P'!C87+'GEN-502 Gen_FP'!C87 -> 0 | D87: =+'GEN-502 Gen_P'!D87+'GEN-502 Gen_FP'!D87 -> 0 | E87: =+'GEN-502 Gen_P'!E87+'GEN-502 Gen_FP'!E87 -> 0 | F87: =+'GEN-502 Gen_P'!F87+'GEN-502 Gen_FP'!F87 -> 0 | G87: =+'GEN-502 Gen_P'!G87+'GEN-502 Gen_FP'!G87 -> 0 | H87: 0
A88: =+'GEN-502 Pot'!A88 -> PEDREGAL POWER, S. DE R.L. No. 38-23 | B88: =+'GEN-502 Gen_P'!B88+'GEN-502 Gen_FP'!B88 -> 0 | C88: =+'GEN-502 Gen_P'!C88+'GEN-502 Gen_FP'!C88 -> 0 | D88: =+'GEN-502 Gen_P'!D88+'GEN-502 Gen_FP'!D88 -> 0 | E88: =+'GEN-502 Gen_P'!E88+'GEN-502 Gen_FP'!E88 -> 0 | F88: =+'GEN-502 Gen_P'!F88+'GEN-502 Gen_FP'!F88 -> 0 | G88: =+'GEN-502 Gen_P'!G88+'GEN-502 Gen_FP'!G88 -> 0 | H88: 0
A89: =+'GEN-502 Pot'!A89 -> PANAM GENERATING LTD No. 39-23 | B89: =+'GEN-502 Gen_P'!B89+'GEN-502 Gen_FP'!B89 -> 0 | C89: =+'GEN-502 Gen_P'!C89+'GEN-502 Gen_FP'!C89 -> 0 | D89: =+'GEN-502 Gen_P'!D89+'GEN-502 Gen_FP'!D89 -> 0 | E89: =+'GEN-502 Gen_P'!E89+'GEN-502 Gen_FP'!E89 -> 0 | F89: =+'GEN-502 Gen_P'!F89+'GEN-502 Gen_FP'!F89 -> 0 | G89: =+'GEN-502 Gen_P'!G89+'GEN-502 Gen_FP'!G89 -> 0 | H89: 0
A90: =+'GEN-502 Pot'!A90 -> PANAM GENERATING LTD No. 40-23 | B90: =+'GEN-502 Gen_P'!B90+'GEN-502 Gen_FP'!B90 -> 0 | C90: =+'GEN-502 Gen_P'!C90+'GEN-502 Gen_FP'!C90 -> 0 | D90: =+'GEN-502 Gen_P'!D90+'GEN-502 Gen_FP'!D90 -> 0 | E90: =+'GEN-502 Gen_P'!E90+'GEN-502 Gen_FP'!E90 -> 0 | F90: =+'GEN-502 Gen_P'!F90+'GEN-502 Gen_FP'!F90 -> 0 | G90: =+'GEN-502 Gen_P'!G90+'GEN-502 Gen_FP'!G90 -> 0 | H90: 0
A91: =+'GEN-502 Pot'!A91 -> SPARKLE POWER, S.A. No. 41-23 | B91: =+'GEN-502 Gen_P'!B91+'GEN-502 Gen_FP'!B91 -> 0 | C91: =+'GEN-502 Gen_P'!C91+'GEN-502 Gen_FP'!C91 -> 0 | D91: =+'GEN-502 Gen_P'!D91+'GEN-502 Gen_FP'!D91 -> 0 | E91: =+'GEN-502 Gen_P'!E91+'GEN-502 Gen_FP'!E91 -> 0 | F91: =+'GEN-502 Gen_P'!F91+'GEN-502 Gen_FP'!F91 -> 0 | G91: =+'GEN-502 Gen_P'!G91+'GEN-502 Gen_FP'!G91 -> 0 | H91: 0
A92: =+'GEN-502 Pot'!A92 -> TROPITÉRMICA, S.A. No. 42-23 | B92: =+'GEN-502 Gen_P'!B92+'GEN-502 Gen_FP'!B92 -> 0 | C92: =+'GEN-502 Gen_P'!C92+'GEN-502 Gen_FP'!C92 -> 0 | D92: =+'GEN-502 Gen_P'!D92+'GEN-502 Gen_FP'!D92 -> 0 | E92: =+'GEN-502 Gen_P'!E92+'GEN-502 Gen_FP'!E92 -> 0 | F92: =+'GEN-502 Gen_P'!F92+'GEN-502 Gen_FP'!F92 -> 0 | G92: =+'GEN-502 Gen_P'!G92+'GEN-502 Gen_FP'!G92 -> 0 | H92: 0

Sheet GEN-502 Pre_Gen
A1: INFORMACION PARA ACTUALIZAR: CARGO POR GENERACION
A2: =+'Compras (p)'!A2 -> EDECHI
A3: Precio Mensual de la Energía (B/./MWh)
B4: PRECIO ENERGIA
A5: Detalle | B5: 2023-07-01 | C5: 2023-08-01 | D5: 2023-09-01 | E5: 2023-10-01 | F5: 2023-11-01 | G5: 2023-12-01 | H5: Promedio
A8: TOTAL | B8: =+'GEN-502 Cos_Gen'!B8/'GEN-502 Gen'!B8 -> 68.44702358 | C8: =+'GEN-502 Cos_Gen'!C8/'GEN-502 Gen'!C8 -> 70.56169207 | D8: =+'GEN-502 Cos_Gen'!D8/'GEN-502 Gen'!D8 -> 74.4148484 | E8: =+'GEN-502 Cos_Gen'!E8/'GEN-502 Gen'!E8 -> 75.26016632 | F8: =+'GEN-502 Cos_Gen'!F8/'GEN-502 Gen'!F8 -> 73.92624115 | G8: =+'GEN-502 Cos_Gen'!G8/'GEN-502 Gen'!G8 -> 74.27663728 | H8: =+IF('GEN-502 Gen'!H8>0,'GEN-502 Cos_Gen'!H8/'GEN-502 Gen'!H8,0) -> 72.81155958
A9: Generación Propia | H9: =+IF('GEN-502 Gen'!H9>0,'GEN-502 Cos_Gen'!H9/'GEN-502 Gen'!H9,0) -> 0
H10: =+IF('GEN-502 Gen'!H10>0,'GEN-502 Cos_Gen'!H10/'GEN-502 Gen'!H10,0) -> 0
H11: =+IF('GEN-502 Gen'!H11>0,'GEN-502 Cos_Gen'!H11/'GEN-502 Gen'!H11,0) -> 0
H12: =+IF('GEN-502 Gen'!H12>0,'GEN-502 Cos_Gen'!H12/'GEN-502 Gen'!H12,0) -> 0
H13: =+IF('GEN-502 Gen'!H13>0,'GEN-502 Cos_Gen'!H13/'GEN-502 Gen'!H13,0) -> 0
H14: =+IF('GEN-502 Gen'!H14>0,'GEN-502 Cos_Gen'!H14/'GEN-502 Gen'!H14,0) -> 0
A15: Sub-Total Mercado Mayorista | B15: =+'GEN-502 Cos_Gen'!B15/'GEN-502 Gen'!B15 -> 68.44702358 | C15: =+'GEN-502 Cos_Gen'!C15/'GEN-502 Gen'!C15 -> 70.56169207 | D15: =+'GEN-502 Cos_Gen'!D15/'GEN-502 Gen'!D15 -> 74.4148484 | E15: =+'GEN-502 Cos_Gen'!E15/'GEN-502 Gen'!E15 -> 75.26016632 | F15: =+'GEN-502 Cos_Gen'!F15/'GEN-502 Gen'!F15 -> 73.92624115 | G15: =+'GEN-502 Cos_Gen'!G15/'GEN-502 Gen'!G15 -> 74.27663728 | H15: =+IF('GEN-502 Gen'!H15>0,'GEN-502 Cos_Gen'!H15/'GEN-502 Gen'!H15,0) -> 72.81155958
A16: Mercado Ocasional | B16: =+'GEN-502 Cos_Gen'!B16/'GEN-502 Gen'!B16 -> 100 | C16: =+'GEN-502 Cos_Gen'!C16/'GEN-502 Gen'!C16 -> 100 | D16: =+'GEN-502 Cos_Gen'!D16/'GEN-502 Gen'!D16 -> 100 | E16: =+'GEN-502 Cos_Gen'!E16/'GEN-502 Gen'!E16 -> 100 | F16: =+'GEN-502 Cos_Gen'!F16/'GEN-502 Gen'!F16 -> 100 | G16: =+'GEN-502 Cos_Gen'!G16/'GEN-502 Gen'!G16 -> 100 | H16: =+IF('GEN-502 Gen'!H16>0,'GEN-502 Cos_Gen'!H16/'GEN-502 Gen'!H16,0) -> 100
H17: =+IF('GEN-502 Gen'!H17>0,'GEN-502 Cos_Gen'!H17/'GEN-502 Gen'!H17,0) -> 0
H18: =+IF('GEN-502 Gen'!H18>0,'GEN-502 Cos_Gen'!H18/'GEN-502 Gen'!H18,0) -> 0
H19: =+IF('GEN-502 Gen'!H19>0,'GEN-502 Cos_Gen'!H19/'GEN-502 Gen'!H19,0) -> 0
H20: =+IF('GEN-502 Gen'!H20>0,'GEN-502 Cos_Gen'!H20/'GEN-502 Gen'!H20,0) -> 0
H21: =+IF('GEN-502 Gen'!H21>0,'GEN-502 Cos_Gen'!H21/'GEN-502 Gen'!H21,0) -> 0
H22: =+IF('GEN-502 Gen'!H22>0,'GEN-502 Cos_Gen'!H22/'GEN-502 Gen'!H22,0) -> 0
H23: =+IF('GEN-502 Gen'!H23>0,'GEN-502 Cos_Gen'!H23/'GEN-502 Gen'!H23,0) -> 0
A24: Sub-Total Contratos | B24: =+'GEN-502 Cos_Gen'!B24/'GEN-502 Gen'!B24 -> 63.93903957 | C24: =+'GEN-502 Cos_Gen'!C24/'GEN-502 Gen'!C24 -> 63.63540557 | D24: =+'GEN-502 Cos_Gen'!D24/'GEN-502 Gen'!D24 -> 65.79854351 | E24: =+'GEN-502 Cos_Gen'!E24/'GEN-502 Gen'!E24 -> 66.52802919 | F24: =+'GEN-502 Cos_Gen'!F24/'GEN-502 Gen'!F24 -> 65.59287749 | G24: =+'GEN-502 Cos_Gen'!G24/'GEN-502 Gen'!G24 -> 61.30873902 | H24: =+IF('GEN-502 Gen'!H24>0,'GEN-502 Cos_Gen'!H24/'GEN-502 Gen'!H24,0) -> 64.48157902
A25: =+'GEN-502 Pot'!A25 -> Empresa Nacional de Energía No. 36-11 (Cesión) | B25: =+IFERROR('GEN-502 Cos_Gen'!B25/'GEN-502 Gen'!B25,0) -> 79.7 | C25: =+IFERROR('GEN-502 Cos_Gen'!C25/'GEN-502 Gen'!C25,0) -> 79.7 | D25: =+IFERROR('GEN-502 Cos_Gen'!D25/'GEN-502 Gen'!D25,0) -> 79.7 | E25: =+IFERROR('GEN-502 Cos_Gen'!E25/'GEN-502 Gen'!E25,0) -> 79.7 | F25: =+IFERROR('GEN-502 Cos_Gen'!F25/'GEN-502 Gen'!F25,0) -> 79.7 | G25: =+IFERROR('GEN-502 Cos_Gen'!G25/'GEN-502 Gen'!G25,0) -> 79.7 | H25: =+IF('GEN-502 Gen'!H25>0,'GEN-502 Cos_Gen'!H25/'GEN-502 Gen'!H25,0) -> 79.7
A26: =+'GEN-502 Pot'!A26 -> Enel Fortuna No. 37-11 | B26: =+IFERROR('GEN-502 Cos_Gen'!B26/'GEN-502 Gen'!B26,0) -> 95.8 | C26: =+IFERROR('GEN-502 Cos_Gen'!C26/'GEN-502 Gen'!C26,0) -> 95.8 | D26: =+IFERROR('GEN-502 Cos_Gen'!D26/'GEN-502 Gen'!D26,0) -> 95.8 | E26: =+IFERROR('GEN-502 Cos_Gen'!E26/'GEN-502 Gen'!E26,0) -> 95.8 | F26: =+IFERROR('GEN-502 Cos_Gen'!F26/'GEN-502 Gen'!F26,0) -> 95.8 | G26: =+IFERROR('GEN-502 Cos_Gen'!G26/'GEN-502 Gen'!G26,0) -> 95.8 | H26: =+IF('GEN-502 Gen'!H26>0,'GEN-502 Cos_Gen'!H26/'GEN-502 Gen'!H26,0) -> 95.8
A27: =+'GEN-502 Pot'!A27 -> Electrogeneradora del Istmo No. 38-11 | B27: =+IFERROR('GEN-502 Cos_Gen'!B27/'GEN-502 Gen'!B27,0) -> 63.3 | C27: =+IFERROR('GEN-502 Cos_Gen'!C27/'GEN-502 Gen'!C27,0) -> 63.3 | D27: =+IFERROR('GEN-502 Cos_Gen'!D27/'GEN-502 Gen'!D27,0) -> 63.3 | E27: =+IFERROR('GEN-502 Cos_Gen'!E27/'GEN-502 Gen'!E27,0) -> 63.3 | F27: =+IFERROR('GEN-502 Cos_Gen'!F27/'GEN-502 Gen'!F27,0) -> 63.3 | G27: =+IFERROR('GEN-502 Cos_Gen'!G27/'GEN-502 Gen'!G27,0) -> 63.3 | H27: =+IF('GEN-502 Gen'!H27>0,'GEN-502 Cos_Gen'!H27/'GEN-502 Gen'!H27,0) -> 63.3
A28: =+'GEN-502 Pot'!A28 -> ESEPSA No. 39-11 | B28: =+IFERROR('GEN-502 Cos_Gen'!B28/'GEN-502 Gen'!B28,0) -> 91 | C28: =+IFERROR('GEN-502 Cos_Gen'!C28/'GEN-502 Gen'!C28,0) -> 91 | D28: =+IFERROR('GEN-502 Cos_Gen'!D28/'GEN-502 Gen'!D28,0) -> 91 | E28: =+IFERROR('GEN-502 Cos_Gen'!E28/'GEN-502 Gen'!E28,0) -> 91 | F28: =+IFERROR('GEN-502 Cos_Gen'!F28/'GEN-502 Gen'!F28,0) -> 91 | G28: =+IFERROR('GEN-502 Cos_Gen'!G28/'GEN-502 Gen'!G28,0) -> 91 | H28: =+IF('GEN-502 Gen'!H28>0,'GEN-502 Cos_Gen'!H28/'GEN-502 Gen'!H28,0) -> 91
A29: =+'GEN-502 Pot'!A29 -> Pedregalito No. 40-11 | B29: =+IFERROR('GEN-502 Cos_Gen'!B29/'GEN-502 Gen'!B29,0) -> 54.2 | C29: =+IFERROR('GEN-502 Cos_Gen'!C29/'GEN-502 Gen'!C29,0) -> 54.2 | D29: =+IFERROR('GEN-502 Cos_Gen'!D29/'GEN-502 Gen'!D29,0) -> 54.2 | E29: =+IFERROR('GEN-502 Cos_Gen'!E29/'GEN-502 Gen'!E29,0) -> 54.2 | F29: =+IFERROR('GEN-502 Cos_Gen'!F29/'GEN-502 Gen'!F29,0) -> 54.2 | G29: =+IFERROR('GEN-502 Cos_Gen'!G29/'GEN-502 Gen'!G29,0) -> 54.2 | H29: =+IF('GEN-502 Gen'!H29>0,'GEN-502 Cos_Gen'!H29/'GEN-502 Gen'!H29,0) -> 54.2
A30: =+'GEN-502 Pot'!A30 -> Río Chico No. 41-11 | B30: =+IFERROR('GEN-502 Cos_Gen'!B30/'GEN-502 Gen'!B30,0) -> 54.2 | C30: =+IFERROR('GEN-502 Cos_Gen'!C30/'GEN-502 Gen'!C30,0) -> 54.2 | D30: =+IFERROR('GEN-502 Cos_Gen'!D30/'GEN-502 Gen'!D30,0) -> 54.2 | E30: =+IFERROR('GEN-502 Cos_Gen'!E30/'GEN-502 Gen'!E30,0) -> 54.2 | F30: =+IFERROR('GEN-502 Cos_Gen'!F30/'GEN-502 Gen'!F30,0) -> 54.2 | G30: =+IFERROR('GEN-502 Cos_Gen'!G30/'GEN-502 Gen'!G30,0) -> 54.2 | H30: =+IF('GEN-502 Gen'!H30>0,'GEN-502 Cos_Gen'!H30/'GEN-502 Gen'!H30,0) -> 54.2
A31: =+'GEN-502 Pot'!A31 -> Alto Valle No. 42-11 | B31: =+IFERROR('GEN-502 Cos_Gen'!B31/'GEN-502 Gen'!B31,0) -> 54.2 | C31: =+IFERROR('GEN-502 Cos_Gen'!C31/'GEN-502 Gen'!C31,0) -> 54.2 | D31: =+IFERROR('GEN-502 Cos_Gen'!D31/'GEN-502 Gen'!D31,0) -> 54.2 | E31: =+IFERROR('GEN-502 Cos_Gen'!E31/'GEN-502 Gen'!E31,0) -> 54.2 | F31: =+IFERROR('GEN-502 Cos_Gen'!F31/'GEN-502 Gen'!F31,0) -> 54.2 | G31: =+IFERROR('GEN-502 Cos_Gen'!G31/'GEN-502 Gen'!G31,0) -> 54.2 | H31: =+IF('GEN-502 Gen'!H31>0,'GEN-502 Cos_Gen'!H31/'GEN-502 Gen'!H31,0) -> 54.2
A32: =+'GEN-502 Pot'!A32 -> Hidroecológica del Teribe No. 43-11 | B32: =+IFERROR('GEN-502 Cos_Gen'!B32/'GEN-502 Gen'!B32,0) -> 102.1 | C32: =+IFERROR('GEN-502 Cos_Gen'!C32/'GEN-502 Gen'!C32,0) -> 102.1 | D32: =+IFERROR('GEN-502 Cos_Gen'!D32/'GEN-502 Gen'!D32,0) -> 102.1 | E32: =+IFERROR('GEN-502 Cos_Gen'!E32/'GEN-502 Gen'!E32,0) -> 102.1 | F32: =+IFERROR('GEN-502 Cos_Gen'!F32/'GEN-502 Gen'!F32,0) -> 102.1 | G32: =+IFERROR('GEN-502 Cos_Gen'!G32/'GEN-502 Gen'!G32,0) -> 102.1 | H32: =+IF('GEN-502 Gen'!H32>0,'GEN-502 Cos_Gen'!H32/'GEN-502 Gen'!H32,0) -> 102.1
A33: =+'GEN-502 Pot'!A33 -> Desarrollos Hidroeléctricos Corp. No. 44-11 | B33: =+IFERROR('GEN-502 Cos_Gen'!B33/'GEN-502 Gen'!B33,0) -> 96.5 | C33: =+IFERROR('GEN-502 Cos_Gen'!C33/'GEN-502 Gen'!C33,0) -> 96.5 | D33: =+IFERROR('GEN-502 Cos_Gen'!D33/'GEN-502 Gen'!D33,0) -> 96.5 | E33: =+IFERROR('GEN-502 Cos_Gen'!E33/'GEN-502 Gen'!E33,0) -> 96.5 | F33: =+IFERROR('GEN-502 Cos_Gen'!F33/'GEN-502 Gen'!F33,0) -> 96.5 | G33: =+IFERROR('GEN-502 Cos_Gen'!G33/'GEN-502 Gen'!G33,0) -> 96.5 | H33: =+IF('GEN-502 Gen'!H33>0,'GEN-502 Cos_Gen'!H33/'GEN-502 Gen'!H33,0) -> 96.5
A34: =+'GEN-502 Pot'!A34 -> Las Perlas Norte No. 45-11 | B34: =+IFERROR('GEN-502 Cos_Gen'!B34/'GEN-502 Gen'!B34,0) -> 100.8 | C34: =+IFERROR('GEN-502 Cos_Gen'!C34/'GEN-502 Gen'!C34,0) -> 100.8 | D34: =+IFERROR('GEN-502 Cos_Gen'!D34/'GEN-502 Gen'!D34,0) -> 100.8 | E34: =+IFERROR('GEN-502 Cos_Gen'!E34/'GEN-502 Gen'!E34,0) -> 100.8 | F34: =+IFERROR('GEN-502 Cos_Gen'!F34/'GEN-502 Gen'!F34,0) -> 100.8 | G34: =+IFERROR('GEN-502 Cos_Gen'!G34/'GEN-502 Gen'!G34,0) -> 100.8 | H34: =+IF('GEN-502 Gen'!H34>0,'GEN-502 Cos_Gen'!H34/'GEN-502 Gen'!H34,0) -> 100.8
A35: =+'GEN-502 Pot'!A35 -> Hidroeléctrica San Lorenzo No. 46-11 | B35: =+IFERROR('GEN-502 Cos_Gen'!B35/'GEN-502 Gen'!B35,0) -> 89.5 | C35: =+IFERROR('GEN-502 Cos_Gen'!C35/'GEN-502 Gen'!C35,0) -> 89.5 | D35: =+IFERROR('GEN-502 Cos_Gen'!D35/'GEN-502 Gen'!D35,0) -> 89.5 | E35: =+IFERROR('GEN-502 Cos_Gen'!E35/'GEN-502 Gen'!E35,0) -> 89.5 | F35: =+IFERROR('GEN-502 Cos_Gen'!F35/'GEN-502 Gen'!F35,0) -> 89.5 | G35: =+IFERROR('GEN-502 Cos_Gen'!G35/'GEN-502 Gen'!G35,0) -> 89.5 | H35: =+IF('GEN-502 Gen'!H35>0,'GEN-502 Cos_Gen'!H35/'GEN-502 Gen'!H35,0) -> 89.5
A36: =+'GEN-502 Pot'!A36 -> Caldera Energy Corp. No. 47-11 | B36: =+IFERROR('GEN-502 Cos_Gen'!B36/'GEN-502 Gen'!B36,0) -> 63.3 | C36: =+IFERROR('GEN-502 Cos_Gen'!C36/'GEN-502 Gen'!C36,0) -> 63.3 | D36: =+IFERROR('GEN-502 Cos_Gen'!D36/'GEN-502 Gen'!D36,0) -> 63.3 | E36: =+IFERROR('GEN-502 Cos_Gen'!E36/'GEN-502 Gen'!E36,0) -> 63.3 | F36: =+IFERROR('GEN-502 Cos_Gen'!F36/'GEN-502 Gen'!F36,0) -> 63.3 | G36: =+IFERROR('GEN-502 Cos_Gen'!G36/'GEN-502 Gen'!G36,0) -> 63.3 | H36: =+IF('GEN-502 Gen'!H36>0,'GEN-502 Cos_Gen'!H36/'GEN-502 Gen'!H36,0) -> 63.3
A37: =+'GEN-502 Pot'!A37 -> Unión Eólica de Panamá (PE Nuevo Chagres) No. 19-12' | B37: =+IFERROR('GEN-502 Cos_Gen'!B37/'GEN-502 Gen'!B37,0) -> 95 | C37: =+IFERROR('GEN-502 Cos_Gen'!C37/'GEN-502 Gen'!C37,0) -> 95 | D37: =+IFERROR('GEN-502 Cos_Gen'!D37/'GEN-502 Gen'!D37,0) -> 95 | E37: =+IFERROR('GEN-502 Cos_Gen'!E37/'GEN-502 Gen'!E37,0) -> 95 | F37: =+IFERROR('GEN-502 Cos_Gen'!F37/'GEN-502 Gen'!F37,0) -> 95 | G37: =+IFERROR('GEN-502 Cos_Gen'!G37/'GEN-502 Gen'!G37,0) -> 95 | H37: =+IF('GEN-502 Gen'!H37>0,'GEN-502 Cos_Gen'!H37/'GEN-502 Gen'!H37,0) -> 95
A38: =+'GEN-502 Pot'!A38 -> Unión Eólica de Panamá (PE Rosa de los Vientos) No. 20-12' | B38: =+IFERROR('GEN-502 Cos_Gen'!B38/'GEN-502 Gen'!B38,0) -> 98 | C38: =+IFERROR('GEN-502 Cos_Gen'!C38/'GEN-502 Gen'!C38,0) -> 98 | D38: =+IFERROR('GEN-502 Cos_Gen'!D38/'GEN-502 Gen'!D38,0) -> 98 | E38: =+IFERROR('GEN-502 Cos_Gen'!E38/'GEN-502 Gen'!E38,0) -> 98 | F38: =+IFERROR('GEN-502 Cos_Gen'!F38/'GEN-502 Gen'!F38,0) -> 98 | G38: =+IFERROR('GEN-502 Cos_Gen'!G38/'GEN-502 Gen'!G38,0) -> 98 | H38: =+IF('GEN-502 Gen'!H38>0,'GEN-502 Cos_Gen'!H38/'GEN-502 Gen'!H38,0) -> 98
A39: =+'GEN-502 Pot'!A39 -> Unión Eólica de Panamá (PE Portobelo Ballestillas) No. 21-12' | B39: =+IFERROR('GEN-502 Cos_Gen'!B39/'GEN-502 Gen'!B39,0) -> 108 | C39: =+IFERROR('GEN-502 Cos_Gen'!C39/'GEN-502 Gen'!C39,0) -> 108 | D39: =+IFERROR('GEN-502 Cos_Gen'!D39/'GEN-502 Gen'!D39,0) -> 108 | E39: =+IFERROR('GEN-502 Cos_Gen'!E39/'GEN-502 Gen'!E39,0) -> 108 | F39: =+IFERROR('GEN-502 Cos_Gen'!F39/'GEN-502 Gen'!F39,0) -> 108 | G39: =+IFERROR('GEN-502 Cos_Gen'!G39/'GEN-502 Gen'!G39,0) -> 108 | H39: =+IF('GEN-502 Gen'!H39>0,'GEN-502 Cos_Gen'!H39/'GEN-502 Gen'!H39,0) -> 108
A40: =+'GEN-502 Pot'!A40 -> Unión Eólica de Panamá (PE Marañon) No. 22-12' | B40: =+IFERROR('GEN-502 Cos_Gen'!B40/'GEN-502 Gen'!B40,0) -> 110 | C40: =+IFERROR('GEN-502 Cos_Gen'!C40/'GEN-502 Gen'!C40,0) -> 110 | D40: =+IFERROR('GEN-502 Cos_Gen'!D40/'GEN-502 Gen'!D40,0) -> 110 | E40: =+IFERROR('GEN-502 Cos_Gen'!E40/'GEN-502 Gen'!E40,0) -> 110 | F40: =+IFERROR('GEN-502 Cos_Gen'!F40/'GEN-502 Gen'!F40,0) -> 110 | G40: =+IFERROR('GEN-502 Cos_Gen'!G40/'GEN-502 Gen'!G40,0) -> 110 | H40: =+IF('GEN-502 Gen'!H40>0,'GEN-502 Cos_Gen'!H40/'GEN-502 Gen'!H40,0) -> 110
A41: =+'GEN-502 Pot'!A41 -> AES No. 122-12 | B41: =+IFERROR('GEN-502 Cos_Gen'!B41/'GEN-502 Gen'!B41,0) -> 88.7 | C41: =+IFERROR('GEN-502 Cos_Gen'!C41/'GEN-502 Gen'!C41,0) -> 88.7 | D41: =+IFERROR('GEN-502 Cos_Gen'!D41/'GEN-502 Gen'!D41,0) -> 88.7 | E41: =+IFERROR('GEN-502 Cos_Gen'!E41/'GEN-502 Gen'!E41,0) -> 88.7 | F41: =+IFERROR('GEN-502 Cos_Gen'!F41/'GEN-502 Gen'!F41,0) -> 88.7 | G41: =+IFERROR('GEN-502 Cos_Gen'!G41/'GEN-502 Gen'!G41,0) -> 88.7 | H41: =+IF('GEN-502 Gen'!H41>0,'GEN-502 Cos_Gen'!H41/'GEN-502 Gen'!H41,0) -> 88.7
A42: =+'GEN-502 Pot'!A42 -> HIDRO PIEDRA No. 123-12 | B42: =+IFERROR('GEN-502 Cos_Gen'!B42/'GEN-502 Gen'!B42,0) -> 100 | C42: =+IFERROR('GEN-502 Cos_Gen'!C42/'GEN-502 Gen'!C42,0) -> 100 | D42: =+IFERROR('GEN-502 Cos_Gen'!D42/'GEN-502 Gen'!D42,0) -> 100 | E42: =+IFERROR('GEN-502 Cos_Gen'!E42/'GEN-502 Gen'!E42,0) -> 100 | F42: =+IFERROR('GEN-502 Cos_Gen'!F42/'GEN-502 Gen'!F42,0) -> 100 | G42: =+IFERROR('GEN-502 Cos_Gen'!G42/'GEN-502 Gen'!G42,0) -> 100 | H42: =+IF('GEN-502 Gen'!H42>0,'GEN-502 Cos_Gen'!H42/'GEN-502 Gen'!H42,0) -> 100
A43: =+'GEN-502 Pot'!A43 -> Corp. Energ. Del Istmo No. 124-12 | B43: =+IFERROR('GEN-502 Cos_Gen'!B43/'GEN-502 Gen'!B43,0) -> 100 | C43: =+IFERROR('GEN-502 Cos_Gen'!C43/'GEN-502 Gen'!C43,0) -> 100 | D43: =+IFERROR('GEN-502 Cos_Gen'!D43/'GEN-502 Gen'!D43,0) -> 100 | E43: =+IFERROR('GEN-502 Cos_Gen'!E43/'GEN-502 Gen'!E43,0) -> 100 | F43: =+IFERROR('GEN-502 Cos_Gen'!F43/'GEN-502 Gen'!F43,0) -> 100 | G43: =+IFERROR('GEN-502 Cos_Gen'!G43/'GEN-502 Gen'!G43,0) -> 100 | H43: =+IF('GEN-502 Gen'!H43>0,'GEN-502 Cos_Gen'!H43/'GEN-502 Gen'!H43,0) -> 100
A44: =+'GEN-502 Pot'!A44 -> Saltos del Francolí No. 126-12 | B44: =+IFERROR('GEN-502 Cos_Gen'!B44/'GEN-502 Gen'!B44,0) -> 103.5 | C44: =+IFERROR('GEN-502 Cos_Gen'!C44/'GEN-502 Gen'!C44,0) -> 103.5 | D44: =+IFERROR('GEN-502 Cos_Gen'!D44/'GEN-502 Gen'!D44,0) -> 103.5 | E44: =+IFERROR('GEN-502 Cos_Gen'!E44/'GEN-502 Gen'!E44,0) -> 103.5 | F44: =+IFERROR('GEN-502 Cos_Gen'!F44/'GEN-502 Gen'!F44,0) -> 103.5 | G44: =+IFERROR('GEN-502 Cos_Gen'!G44/'GEN-502 Gen'!G44,0) -> 103.5 | H44: =+IF('GEN-502 Gen'!H44>0,'GEN-502 Cos_Gen'!H44/'GEN-502 Gen'!H44,0) -> 103.5
A45: =+'GEN-502 Pot'!A45 -> PASO ANCHO No. 88-11 | B45: =+IFERROR('GEN-502 Cos_Gen'!B45/'GEN-502 Gen'!B45,0) -> 99.9 | C45: =+IFERROR('GEN-502 Cos_Gen'!C45/'GEN-502 Gen'!C45,0) -> 99.9 | D45: =+IFERROR('GEN-502 Cos_Gen'!D45/'GEN-502 Gen'!D45,0) -> 99.9 | E45: =+IFERROR('GEN-502 Cos_Gen'!E45/'GEN-502 Gen'!E45,0) -> 99.9 | F45: =+IFERROR('GEN-502 Cos_Gen'!F45/'GEN-502 Gen'!F45,0) -> 99.9 | G45: =+IFERROR('GEN-502 Cos_Gen'!G45/'GEN-502 Gen'!G45,0) -> 99.9 | H45: =+IF('GEN-502 Gen'!H45>0,'GEN-502 Cos_Gen'!H45/'GEN-502 Gen'!H45,0) -> 99.9
A46: =+'GEN-502 Pot'!A46 -> Hidroecológica del Teribe No. 89-11 | B46: =+IFERROR('GEN-502 Cos_Gen'!B46/'GEN-502 Gen'!B46,0) -> 111 | C46: =+IFERROR('GEN-502 Cos_Gen'!C46/'GEN-502 Gen'!C46,0) -> 111 | D46: =+IFERROR('GEN-502 Cos_Gen'!D46/'GEN-502 Gen'!D46,0) -> 111 | E46: =+IFERROR('GEN-502 Cos_Gen'!E46/'GEN-502 Gen'!E46,0) -> 111 | F46: =+IFERROR('GEN-502 Cos_Gen'!F46/'GEN-502 Gen'!F46,0) -> 111 | G46: =+IFERROR('GEN-502 Cos_Gen'!G46/'GEN-502 Gen'!G46,0) -> 111 | H46: =+IF('GEN-502 Gen'!H46>0,'GEN-502 Cos_Gen'!H46/'GEN-502 Gen'!H46,0) -> 111
A47: =+'GEN-502 Pot'!A47 -> ISTMUS HYDRO POWER CORP. No.10-13 | B47: =+IFERROR('GEN-502 Cos_Gen'!B47/'GEN-502 Gen'!B47,0) -> 120 | C47: =+IFERROR('GEN-502 Cos_Gen'!C47/'GEN-502 Gen'!C47,0) -> 120 | D47: =+IFERROR('GEN-502 Cos_Gen'!D47/'GEN-502 Gen'!D47,0) -> 120 | E47: =+IFERROR('GEN-502 Cos_Gen'!E47/'GEN-502 Gen'!E47,0) -> 120 | F47: =+IFERROR('GEN-502 Cos_Gen'!F47/'GEN-502 Gen'!F47,0) -> 120 | G47: =+IFERROR('GEN-502 Cos_Gen'!G47/'GEN-502 Gen'!G47,0) -> 120 | H47: =+IF('GEN-502 Gen'!H47>0,'GEN-502 Cos_Gen'!H47/'GEN-502 Gen'!H47,0) -> 120
A48: =+'GEN-502 Pot'!A48 -> CALDERA ENERGY CORP. No.11-13 | B48: =+IFERROR('GEN-502 Cos_Gen'!B48/'GEN-502 Gen'!B48,0) -> 122.5 | C48: =+IFERROR('GEN-502 Cos_Gen'!C48/'GEN-502 Gen'!C48,0) -> 122.5 | D48: =+IFERROR('GEN-502 Cos_Gen'!D48/'GEN-502 Gen'!D48,0) -> 122.5 | E48: =+IFERROR('GEN-502 Cos_Gen'!E48/'GEN-502 Gen'!E48,0) -> 122.5 | F48: =+IFERROR('GEN-502 Cos_Gen'!F48/'GEN-502 Gen'!F48,0) -> 122.5 | G48: =+IFERROR('GEN-502 Cos_Gen'!G48/'GEN-502 Gen'!G48,0) -> 122.5 | H48: =+IF('GEN-502 Gen'!H48>0,'GEN-502 Cos_Gen'!H48/'GEN-502 Gen'!H48,0) -> 122.5
A49: =+'GEN-502 Pot'!A49 -> ELECTROGENERADORA DEL ISTMO, S.A. No.12-13 | B49: =+IFERROR('GEN-502 Cos_Gen'!B49/'GEN-502 Gen'!B49,0) -> 125 | C49: =+IFERROR('GEN-502 Cos_Gen'!C49/'GEN-502 Gen'!C49,0) -> 125 | D49: =+IFERROR('GEN-502 Cos_Gen'!D49/'GEN-502 Gen'!D49,0) -> 125 | E49: =+IFERROR('GEN-502 Cos_Gen'!E49/'GEN-502 Gen'!E49,0) -> 125 | F49: =+IFERROR('GEN-502 Cos_Gen'!F49/'GEN-502 Gen'!F49,0) -> 125 | G49: =+IFERROR('GEN-502 Cos_Gen'!G49/'GEN-502 Gen'!G49,0) -> 125 | H49: =+IF('GEN-502 Gen'!H49>0,'GEN-502 Cos_Gen'!H49/'GEN-502 Gen'!H49,0) -> 125
A50: =+'GEN-502 Pot'!A50 -> FOUNTAIN INTERTRADE CORP. No.13-13 | B50: =+IFERROR('GEN-502 Cos_Gen'!B50/'GEN-502 Gen'!B50,0) -> 132.3 | C50: =+IFERROR('GEN-502 Cos_Gen'!C50/'GEN-502 Gen'!C50,0) -> 132.3 | D50: =+IFERROR('GEN-502 Cos_Gen'!D50/'GEN-502 Gen'!D50,0) -> 132.3 | E50: =+IFERROR('GEN-502 Cos_Gen'!E50/'GEN-502 Gen'!E50,0) -> 132.3 | F50: =+IFERROR('GEN-502 Cos_Gen'!F50/'GEN-502 Gen'!F50,0) -> 132.3 | G50: =+IFERROR('GEN-502 Cos_Gen'!G50/'GEN-502 Gen'!G50,0) -> 132.3 | H50: =+IF('GEN-502 Gen'!H50>0,'GEN-502 Cos_Gen'!H50/'GEN-502 Gen'!H50,0) -> 132.3
A51: =+'GEN-502 Pot'!A51 -> HIDROIBERICA, S.A. No.14-13 | B51: =+IFERROR('GEN-502 Cos_Gen'!B51/'GEN-502 Gen'!B51,0) -> 90 | C51: =+IFERROR('GEN-502 Cos_Gen'!C51/'GEN-502 Gen'!C51,0) -> 90 | D51: =+IFERROR('GEN-502 Cos_Gen'!D51/'GEN-502 Gen'!D51,0) -> 90 | E51: =+IFERROR('GEN-502 Cos_Gen'!E51/'GEN-502 Gen'!E51,0) -> 90 | F51: =+IFERROR('GEN-502 Cos_Gen'!F51/'GEN-502 Gen'!F51,0) -> 90 | G51: =+IFERROR('GEN-502 Cos_Gen'!G51/'GEN-502 Gen'!G51,0) -> 90 | H51: =+IF('GEN-502 Gen'!H51>0,'GEN-502 Cos_Gen'!H51/'GEN-502 Gen'!H51,0) -> 90
A52: =+'GEN-502 Pot'!A52 -> NAVITAS INTERNACIONAL, S.A. No.15-13 | B52: =+IFERROR('GEN-502 Cos_Gen'!B52/'GEN-502 Gen'!B52,0) -> 85 | C52: =+IFERROR('GEN-502 Cos_Gen'!C52/'GEN-502 Gen'!C52,0) -> 85 | D52: =+IFERROR('GEN-502 Cos_Gen'!D52/'GEN-502 Gen'!D52,0) -> 85 | E52: =+IFERROR('GEN-502 Cos_Gen'!E52/'GEN-502 Gen'!E52,0) -> 85 | F52: =+IFERROR('GEN-502 Cos_Gen'!F52/'GEN-502 Gen'!F52,0) -> 85 | G52: =+IFERROR('GEN-502 Cos_Gen'!G52/'GEN-502 Gen'!G52,0) -> 85 | H52: =+IF('GEN-502 Gen'!H52>0,'GEN-502 Cos_Gen'!H52/'GEN-502 Gen'!H52,0) -> 85
A53: =+'GEN-502 Pot'!A53 -> HIDROECOLÓGICA DEL TERIBE, S.A. No.16-13 | B53: =+IFERROR('GEN-502 Cos_Gen'!B53/'GEN-502 Gen'!B53,0) -> 0 | C53: =+IFERROR('GEN-502 Cos_Gen'!C53/'GEN-502 Gen'!C53,0) -> 0 | D53: =+IFERROR('GEN-502 Cos_Gen'!D53/'GEN-502 Gen'!D53,0) -> 136 | E53: =+IFERROR('GEN-502 Cos_Gen'!E53/'GEN-502 Gen'!E53,0) -> 136 | F53: =+IFERROR('GEN-502 Cos_Gen'!F53/'GEN-502 Gen'!F53,0) -> 136 | G53: =+IFERROR('GEN-502 Cos_Gen'!G53/'GEN-502 Gen'!G53,0) -> 136 | H53: =+IF('GEN-502 Gen'!H53>0,'GEN-502 Cos_Gen'!H53/'GEN-502 Gen'!H53,0) -> 136
A54: =+'GEN-502 Pot'!A54 -> HIDRONORTH CORP. No.17-13 | B54: =+IFERROR('GEN-502 Cos_Gen'!B54/'GEN-502 Gen'!B54,0) -> 140 | C54: =+IFERROR('GEN-502 Cos_Gen'!C54/'GEN-502 Gen'!C54,0) -> 140 | D54: =+IFERROR('GEN-502 Cos_Gen'!D54/'GEN-502 Gen'!D54,0) -> 140 | E54: =+IFERROR('GEN-502 Cos_Gen'!E54/'GEN-502 Gen'!E54,0) -> 140 | F54: =+IFERROR('GEN-502 Cos_Gen'!F54/'GEN-502 Gen'!F54,0) -> 140 | G54: =+IFERROR('GEN-502 Cos_Gen'!G54/'GEN-502 Gen'!G54,0) -> 140 | H54: =+IF('GEN-502 Gen'!H54>0,'GEN-502 Cos_Gen'!H54/'GEN-502 Gen'!H54,0) -> 140
A55: =+'GEN-502 Pot'!A55 -> EMPRESA NACIONAL DE ENERGÍA, S.A. No.33-13 | B55: =+IFERROR('GEN-502 Cos_Gen'!B55/'GEN-502 Gen'!B55,0) -> 127.5 | C55: =+IFERROR('GEN-502 Cos_Gen'!C55/'GEN-502 Gen'!C55,0) -> 127.5 | D55: =+IFERROR('GEN-502 Cos_Gen'!D55/'GEN-502 Gen'!D55,0) -> 127.5 | E55: =+IFERROR('GEN-502 Cos_Gen'!E55/'GEN-502 Gen'!E55,0) -> 127.5 | F55: =+IFERROR('GEN-502 Cos_Gen'!F55/'GEN-502 Gen'!F55,0) -> 127.5 | G55: =+IFERROR('GEN-502 Cos_Gen'!G55/'GEN-502 Gen'!G55,0) -> 127.5 | H55: =+IF('GEN-502 Gen'!H55>0,'GEN-502 Cos_Gen'!H55/'GEN-502 Gen'!H55,0) -> 127.5
A56: =+'GEN-502 Pot'!A56 -> FUERZA ELÉCTRICA DEL ISTMO, S.A. No.34-13 | B56: =+IFERROR('GEN-502 Cos_Gen'!B56/'GEN-502 Gen'!B56,0) -> 127.6 | C56: =+IFERROR('GEN-502 Cos_Gen'!C56/'GEN-502 Gen'!C56,0) -> 127.6 | D56: =+IFERROR('GEN-502 Cos_Gen'!D56/'GEN-502 Gen'!D56,0) -> 127.6 | E56: =+IFERROR('GEN-502 Cos_Gen'!E56/'GEN-502 Gen'!E56,0) -> 127.6 | F56: =+IFERROR('GEN-502 Cos_Gen'!F56/'GEN-502 Gen'!F56,0) -> 127.6 | G56: =+IFERROR('GEN-502 Cos_Gen'!G56/'GEN-502 Gen'!G56,0) -> 127.6 | H56: =+IF('GEN-502 Gen'!H56>0,'GEN-502 Cos_Gen'!H56/'GEN-502 Gen'!H56,0) -> 127.6
A57: =+'GEN-502 Pot'!A57 -> CAFÉ DE ELETA, S.A. No.35-13 | B57: =+IFERROR('GEN-502 Cos_Gen'!B57/'GEN-502 Gen'!B57,0) -> 128 | C57: =+IFERROR('GEN-502 Cos_Gen'!C57/'GEN-502 Gen'!C57,0) -> 128 | D57: =+IFERROR('GEN-502 Cos_Gen'!D57/'GEN-502 Gen'!D57,0) -> 128 | E57: =+IFERROR('GEN-502 Cos_Gen'!E57/'GEN-502 Gen'!E57,0) -> 128 | F57: =+IFERROR('GEN-502 Cos_Gen'!F57/'GEN-502 Gen'!F57,0) -> 128 | G57: =+IFERROR('GEN-502 Cos_Gen'!G57/'GEN-502 Gen'!G57,0) -> 128 | H57: =+IF('GEN-502 Gen'!H57>0,'GEN-502 Cos_Gen'!H57/'GEN-502 Gen'!H57,0) -> 128
A58: =+'GEN-502 Pot'!A58 -> ENERGÍA Y SERVICIOS DE PANAMÁ, S.A. No.36-13 | B58: =+IFERROR('GEN-502 Cos_Gen'!B58/'GEN-502 Gen'!B58,0) -> 132.5 | C58: =+IFERROR('GEN-502 Cos_Gen'!C58/'GEN-502 Gen'!C58,0) -> 132.5 | D58: =+IFERROR('GEN-502 Cos_Gen'!D58/'GEN-502 Gen'!D58,0) -> 132.5 | E58: =+IFERROR('GEN-502 Cos_Gen'!E58/'GEN-502 Gen'!E58,0) -> 132.5 | F58: =+IFERROR('GEN-502 Cos_Gen'!F58/'GEN-502 Gen'!F58,0) -> 132.5 | G58: =+IFERROR('GEN-502 Cos_Gen'!G58/'GEN-502 Gen'!G58,0) -> 132.5 | H58: =+IF('GEN-502 Gen'!H58>0,'GEN-502 Cos_Gen'!H58/'GEN-502 Gen'!H58,0) -> 132.5
A59: =+'GEN-502 Pot'!A59 -> GENERADORA PEDREGALITO, S.A. No.37-13 | B59: =+IFERROR('GEN-502 Cos_Gen'!B59/'GEN-502 Gen'!B59,0) -> 132 | C59: =+IFERROR('GEN-502 Cos_Gen'!C59/'GEN-502 Gen'!C59,0) -> 132 | D59: =+IFERROR('GEN-502 Cos_Gen'!D59/'GEN-502 Gen'!D59,0) -> 132 | E59: =+IFERROR('GEN-502 Cos_Gen'!E59/'GEN-502 Gen'!E59,0) -> 132 | F59: =+IFERROR('GEN-502 Cos_Gen'!F59/'GEN-502 Gen'!F59,0) -> 132 | G59: =+IFERROR('GEN-502 Cos_Gen'!G59/'GEN-502 Gen'!G59,0) -> 132 | H59: =+IF('GEN-502 Gen'!H59>0,'GEN-502 Cos_Gen'!H59/'GEN-502 Gen'!H59,0) -> 132
A60: =+'GEN-502 Pot'!A60 -> GENERADORA RIO CHICO, S.A. No.38-13 | B60: =+IFERROR('GEN-502 Cos_Gen'!B60/'GEN-502 Gen'!B60,0) -> 132 | C60: =+IFERROR('GEN-502 Cos_Gen'!C60/'GEN-502 Gen'!C60,0) -> 132 | D60: =+IFERROR('GEN-502 Cos_Gen'!D60/'GEN-502 Gen'!D60,0) -> 132 | E60: =+IFERROR('GEN-502 Cos_Gen'!E60/'GEN-502 Gen'!E60,0) -> 132 | F60: =+IFERROR('GEN-502 Cos_Gen'!F60/'GEN-502 Gen'!F60,0) -> 132 | G60: =+IFERROR('GEN-502 Cos_Gen'!G60/'GEN-502 Gen'!G60,0) -> 132 | H60: =+IF('GEN-502 Gen'!H60>0,'GEN-502 Cos_Gen'!H60/'GEN-502 Gen'!H60,0) -> 132
A61: =+'GEN-502 Pot'!A61 -> GENERADORA ALTO VALLE, S.A. No.39-13 | B61: =+IFERROR('GEN-502 Cos_Gen'!B61/'GEN-502 Gen'!B61,0) -> 132.5 | C61: =+IFERROR('GEN-502 Cos_Gen'!C61/'GEN-502 Gen'!C61,0) -> 132.5 | D61: =+IFERROR('GEN-502 Cos_Gen'!D61/'GEN-502 Gen'!D61,0) -> 132.5 | E61: =+IFERROR('GEN-502 Cos_Gen'!E61/'GEN-502 Gen'!E61,0) -> 132.5 | F61: =+IFERROR('GEN-502 Cos_Gen'!F61/'GEN-502 Gen'!F61,0) -> 132.5 | G61: =+IFERROR('GEN-502 Cos_Gen'!G61/'GEN-502 Gen'!G61,0) -> 132.5 | H61: =+IF('GEN-502 Gen'!H61>0,'GEN-502 Cos_Gen'!H61/'GEN-502 Gen'!H61,0) -> 132.5
A62: =+'GEN-502 Pot'!A62 -> HYDRO CAISÁN, S.A. No.40-13 | B62: =+IFERROR('GEN-502 Cos_Gen'!B62/'GEN-502 Gen'!B62,0) -> 132.5 | C62: =+IFERROR('GEN-502 Cos_Gen'!C62/'GEN-502 Gen'!C62,0) -> 132.5 | D62: =+IFERROR('GEN-502 Cos_Gen'!D62/'GEN-502 Gen'!D62,0) -> 132.5 | E62: =+IFERROR('GEN-502 Cos_Gen'!E62/'GEN-502 Gen'!E62,0) -> 132.5 | F62: =+IFERROR('GEN-502 Cos_Gen'!F62/'GEN-502 Gen'!F62,0) -> 132.5 | G62: =+IFERROR('GEN-502 Cos_Gen'!G62/'GEN-502 Gen'!G62,0) -> 132.5 | H62: =+IF('GEN-502 Gen'!H62>0,'GEN-502 Cos_Gen'!H62/'GEN-502 Gen'!H62,0) -> 132.5
A63: =+'GEN-502 Pot'!A63 -> SIGSA, S.A. No. 137-12 | B63: =+IFERROR('GEN-502 Cos_Gen'!B63/'GEN-502 Gen'!B63,0) -> 0 | C63: =+IFERROR('GEN-502 Cos_Gen'!C63/'GEN-502 Gen'!C63,0) -> 0 | D63: =+IFERROR('GEN-502 Cos_Gen'!D63/'GEN-502 Gen'!D63,0) -> 0 | E63: =+IFERROR('GEN-502 Cos_Gen'!E63/'GEN-502 Gen'!E63,0) -> 0 | F63: =+IFERROR('GEN-502 Cos_Gen'!F63/'GEN-502 Gen'!F63,0) -> 0 | G63: =+IFERROR('GEN-502 Cos_Gen'!G63/'GEN-502 Gen'!G63,0) -> 0 | H63: =+IF('GEN-502 Gen'!H63>0,'GEN-502 Cos_Gen'!H63/'GEN-502 Gen'!H63,0) -> 0
A64: =+'GEN-502 Pot'!A64 -> PARQUE EÓLICO TOABRÉ, S.A. No 09-14 | B64: =+IFERROR('GEN-502 Cos_Gen'!B64/'GEN-502 Gen'!B64,0) -> 95 | C64: =+IFERROR('GEN-502 Cos_Gen'!C64/'GEN-502 Gen'!C64,0) -> 95 | D64: =+IFERROR('GEN-502 Cos_Gen'!D64/'GEN-502 Gen'!D64,0) -> 95 | E64: =+IFERROR('GEN-502 Cos_Gen'!E64/'GEN-502 Gen'!E64,0) -> 95 | F64: =+IFERROR('GEN-502 Cos_Gen'!F64/'GEN-502 Gen'!F64,0) -> 95 | G64: =+IFERROR('GEN-502 Cos_Gen'!G64/'GEN-502 Gen'!G64,0) -> 95 | H64: =+IF('GEN-502 Gen'!H64>0,'GEN-502 Cos_Gen'!H64/'GEN-502 Gen'!H64,0) -> 95
A65: =+'GEN-502 Pot'!A65 -> NAURA ENERGY CORP. No 10-14 | B65: =+IFERROR('GEN-502 Cos_Gen'!B65/'GEN-502 Gen'!B65,0) -> 97.5 | C65: =+IFERROR('GEN-502 Cos_Gen'!C65/'GEN-502 Gen'!C65,0) -> 97.5 | D65: =+IFERROR('GEN-502 Cos_Gen'!D65/'GEN-502 Gen'!D65,0) -> 97.5 | E65: =+IFERROR('GEN-502 Cos_Gen'!E65/'GEN-502 Gen'!E65,0) -> 97.5 | F65: =+IFERROR('GEN-502 Cos_Gen'!F65/'GEN-502 Gen'!F65,0) -> 97.5 | G65: =+IFERROR('GEN-502 Cos_Gen'!G65/'GEN-502 Gen'!G65,0) -> 97.5 | H65: =+IF('GEN-502 Gen'!H65>0,'GEN-502 Cos_Gen'!H65/'GEN-502 Gen'!H65,0) -> 97.5
A66: =+'GEN-502 Pot'!A66 -> Panama Solar2 No. 10-15 | B66: =+IFERROR('GEN-502 Cos_Gen'!B66/'GEN-502 Gen'!B66,0) -> 86 | C66: =+IFERROR('GEN-502 Cos_Gen'!C66/'GEN-502 Gen'!C66,0) -> 86 | D66: =+IFERROR('GEN-502 Cos_Gen'!D66/'GEN-502 Gen'!D66,0) -> 86 | E66: =+IFERROR('GEN-502 Cos_Gen'!E66/'GEN-502 Gen'!E66,0) -> 86 | F66: =+IFERROR('GEN-502 Cos_Gen'!F66/'GEN-502 Gen'!F66,0) -> 86 | G66: =+IFERROR('GEN-502 Cos_Gen'!G66/'GEN-502 Gen'!G66,0) -> 86 | H66: =+IF('GEN-502 Gen'!H66>0,'GEN-502 Cos_Gen'!H66/'GEN-502 Gen'!H66,0) -> 86
A67: =+'GEN-502 Pot'!A67 -> Solpac Investment No. 11-15 | B67: =+IFERROR('GEN-502 Cos_Gen'!B67/'GEN-502 Gen'!B67,0) -> 104.8 | C67: =+IFERROR('GEN-502 Cos_Gen'!C67/'GEN-502 Gen'!C67,0) -> 104.8 | D67: =+IFERROR('GEN-502 Cos_Gen'!D67/'GEN-502 Gen'!D67,0) -> 104.8 | E67: =+IFERROR('GEN-502 Cos_Gen'!E67/'GEN-502 Gen'!E67,0) -> 104.8 | F67: =+IFERROR('GEN-502 Cos_Gen'!F67/'GEN-502 Gen'!F67,0) -> 104.8 | G67: =+IFERROR('GEN-502 Cos_Gen'!G67/'GEN-502 Gen'!G67,0) -> 104.8 | H67: =+IF('GEN-502 Gen'!H67>0,'GEN-502 Cos_Gen'!H67/'GEN-502 Gen'!H67,0) -> 104.8
A68: =+'GEN-502 Pot'!A68 -> GAS NATURAL ATLÁNTICO No. 17-15 | B68: =+IFERROR('GEN-502 Cos_Gen'!B68/'GEN-502 Gen'!B68,0) -> 26.398 | C68: =+IFERROR('GEN-502 Cos_Gen'!C68/'GEN-502 Gen'!C68,0) -> 26.398 | D68: =+IFERROR('GEN-502 Cos_Gen'!D68/'GEN-502 Gen'!D68,0) -> 26.398 | E68: =+IFERROR('GEN-502 Cos_Gen'!E68/'GEN-502 Gen'!E68,0) -> 26.398 | F68: =+IFERROR('GEN-502 Cos_Gen'!F68/'GEN-502 Gen'!F68,0) -> 26.398 | G68: =+IFERROR('GEN-502 Cos_Gen'!G68/'GEN-502 Gen'!G68,0) -> 26.398 | H68: =+IF('GEN-502 Gen'!H68>0,'GEN-502 Cos_Gen'!H68/'GEN-502 Gen'!H68,0) -> 26.398
A69: =+'GEN-502 Pot'!A69 -> MARTANO INC No. 19-15 | B69: =+IFERROR('GEN-502 Cos_Gen'!B69/'GEN-502 Gen'!B69,0) -> 20.9 | C69: =+IFERROR('GEN-502 Cos_Gen'!C69/'GEN-502 Gen'!C69,0) -> 20.9 | D69: =+IFERROR('GEN-502 Cos_Gen'!D69/'GEN-502 Gen'!D69,0) -> 20.9 | E69: =+IFERROR('GEN-502 Cos_Gen'!E69/'GEN-502 Gen'!E69,0) -> 20.9 | F69: =+IFERROR('GEN-502 Cos_Gen'!F69/'GEN-502 Gen'!F69,0) -> 20.9 | G69: =+IFERROR('GEN-502 Cos_Gen'!G69/'GEN-502 Gen'!G69,0) -> 20.9 | H69: =+IF('GEN-502 Gen'!H69>0,'GEN-502 Cos_Gen'!H69/'GEN-502 Gen'!H69,0) -> 20.9
A70: =+'GEN-502 Pot'!A70 -> ENEL FORTUNA, S.A. No. 36-21 | B70: =+IFERROR('GEN-502 Cos_Gen'!B70/'GEN-502 Gen'!B70,0) -> 58.4 | C70: =+IFERROR('GEN-502 Cos_Gen'!C70/'GEN-502 Gen'!C70,0) -> 58.4 | D70: =+IFERROR('GEN-502 Cos_Gen'!D70/'GEN-502 Gen'!D70,0) -> 0 | E70: =+IFERROR('GEN-502 Cos_Gen'!E70/'GEN-502 Gen'!E70,0) -> 0 | F70: =+IFERROR('GEN-502 Cos_Gen'!F70/'GEN-502 Gen'!F70,0) -> 0 | G70: =+IFERROR('GEN-502 Cos_Gen'!G70/'GEN-502 Gen'!G70,0) -> 0 | H70: =+IF('GEN-502 Gen'!H70>0,'GEN-502 Cos_Gen'!H70/'GEN-502 Gen'!H70,0) -> 58.4
A71: =+'GEN-502 Pot'!A71 -> HIDRO BOQUERÓN, S.A. No. 40-21 | B71: =+IFERROR('GEN-502 Cos_Gen'!B71/'GEN-502 Gen'!B71,0) -> 69 | C71: =+IFERROR('GEN-502 Cos_Gen'!C71/'GEN-502 Gen'!C71,0) -> 69 | D71: =+IFERROR('GEN-502 Cos_Gen'!D71/'GEN-502 Gen'!D71,0) -> 0 | E71: =+IFERROR('GEN-502 Cos_Gen'!E71/'GEN-502 Gen'!E71,0) -> 0 | F71: =+IFERROR('GEN-502 Cos_Gen'!F71/'GEN-502 Gen'!F71,0) -> 0 | G71: =+IFERROR('GEN-502 Cos_Gen'!G71/'GEN-502 Gen'!G71,0) -> 0 | H71: =+IF('GEN-502 Gen'!H71>0,'GEN-502 Cos_Gen'!H71/'GEN-502 Gen'!H71,0) -> 69
A72: =+'GEN-502 Pot'!A72 -> AUTORIDAD DEL CANAL DE PANAMÁ No. 57-21 | B72: =+IFERROR('GEN-502 Cos_Gen'!B72/'GEN-502 Gen'!B72,0) -> 0 | C72: =+IFERROR('GEN-502 Cos_Gen'!C72/'GEN-502 Gen'!C72,0) -> 0 | D72: =+IFERROR('GEN-502 Cos_Gen'!D72/'GEN-502 Gen'!D72,0) -> 0 | E72: =+IFERROR('GEN-502 Cos_Gen'!E72/'GEN-502 Gen'!E72,0) -> 0 | F72: =+IFERROR('GEN-502 Cos_Gen'!F72/'GEN-502 Gen'!F72,0) -> 0 | G72: =+IFERROR('GEN-502 Cos_Gen'!G72/'GEN-502 Gen'!G72,0) -> 0 | H72: =+IF('GEN-502 Gen'!H72>0,'GEN-502 Cos_Gen'!H72/'GEN-502 Gen'!H72,0) -> 0
A73: =+'GEN-502 Pot'!A73 -> GENERADORA DEL ATLÁNTICO, S.A. No. 59-21 | B73: =+IFERROR('GEN-502 Cos_Gen'!B73/'GEN-502 Gen'!B73,0) -> 0 | C73: =+IFERROR('GEN-502 Cos_Gen'!C73/'GEN-502 Gen'!C73,0) -> 0 | D73: =+IFERROR('GEN-502 Cos_Gen'!D73/'GEN-502 Gen'!D73,0) -> 0 | E73: =+IFERROR('GEN-502 Cos_Gen'!E73/'GEN-502 Gen'!E73,0) -> 0 | F73: =+IFERROR('GEN-502 Cos_Gen'!F73/'GEN-502 Gen'!F73,0) -> 0 | G73: =+IFERROR('GEN-502 Cos_Gen'!G73/'GEN-502 Gen'!G73,0) -> 0 | H73: =+IF('GEN-502 Gen'!H73>0,'GEN-502 Cos_Gen'!H73/'GEN-502 Gen'!H73,0) -> 0
A74: =+'GEN-502 Pot'!A74 -> GENERADORA DEL ATLÁNTICO, S.A. No. 60-21 | B74: =+IFERROR('GEN-502 Cos_Gen'!B74/'GEN-502 Gen'!B74,0) -> 0 | C74: =+IFERROR('GEN-502 Cos_Gen'!C74/'GEN-502 Gen'!C74,0) -> 0 | D74: =+IFERROR('GEN-502 Cos_Gen'!D74/'GEN-502 Gen'!D74,0) -> 0 | E74: =+IFERROR('GEN-502 Cos_Gen'!E74/'GEN-502 Gen'!E74,0) -> 0 | F74: =+IFERROR('GEN-502 Cos_Gen'!F74/'GEN-502 Gen'!F74,0) -> 0 | G74: =+IFERROR('GEN-502 Cos_Gen'!G74/'GEN-502 Gen'!G74,0) -> 0 | H74: =+IF('GEN-502 Gen'!H74>0,'GEN-502 Cos_Gen'!H74/'GEN-502 Gen'!H74,0) -> 0
A75: =+'GEN-502 Pot'!A75 -> PANAM GENERATING LTD No. 61-21 | B75: =+IFERROR('GEN-502 Cos_Gen'!B75/'GEN-502 Gen'!B75,0) -> 0 | C75: =+IFERROR('GEN-502 Cos_Gen'!C75/'GEN-502 Gen'!C75,0) -> 0 | D75: =+IFERROR('GEN-502 Cos_Gen'!D75/'GEN-502 Gen'!D75,0) -> 0 | E75: =+IFERROR('GEN-502 Cos_Gen'!E75/'GEN-502 Gen'!E75,0) -> 0 | F75: =+IFERROR('GEN-502 Cos_Gen'!F75/'GEN-502 Gen'!F75,0) -> 0 | G75: =+IFERROR('GEN-502 Cos_Gen'!G75/'GEN-502 Gen'!G75,0) -> 0 | H75: =+IF('GEN-502 Gen'!H75>0,'GEN-502 Cos_Gen'!H75/'GEN-502 Gen'!H75,0) -> 0
A76: =+'GEN-502 Pot'!A76 -> TROPITÉRMICA, S.A. No. 63-21 | B76: =+IFERROR('GEN-502 Cos_Gen'!B76/'GEN-502 Gen'!B76,0) -> 0 | C76: =+IFERROR('GEN-502 Cos_Gen'!C76/'GEN-502 Gen'!C76,0) -> 0 | D76: =+IFERROR('GEN-502 Cos_Gen'!D76/'GEN-502 Gen'!D76,0) -> 0 | E76: =+IFERROR('GEN-502 Cos_Gen'!E76/'GEN-502 Gen'!E76,0) -> 0 | F76: =+IFERROR('GEN-502 Cos_Gen'!F76/'GEN-502 Gen'!F76,0) -> 0 | G76: =+IFERROR('GEN-502 Cos_Gen'!G76/'GEN-502 Gen'!G76,0) -> 0 | H76: =+IF('GEN-502 Gen'!H76>0,'GEN-502 Cos_Gen'!H76/'GEN-502 Gen'!H76,0) -> 0
A77: =+'GEN-502 Pot'!A77 -> EMPRESA NACIONAL DE ENERGÍA, S.A. No. 23-23 | B77: =+IFERROR('GEN-502 Cos_Gen'!B77/'GEN-502 Gen'!B77,0) -> 110.7 | C77: =+IFERROR('GEN-502 Cos_Gen'!C77/'GEN-502 Gen'!C77,0) -> 0 | D77: =+IFERROR('GEN-502 Cos_Gen'!D77/'GEN-502 Gen'!D77,0) -> 73.8 | E77: =+IFERROR('GEN-502 Cos_Gen'!E77/'GEN-502 Gen'!E77,0) -> 73.8 | F77: =+IFERROR('GEN-502 Cos_Gen'!F77/'GEN-502 Gen'!F77,0) -> 73.8 | G77: =+IFERROR('GEN-502 Cos_Gen'!G77/'GEN-502 Gen'!G77,0) -> 0 | H77: =+IF('GEN-502 Gen'!H77>0,'GEN-502 Cos_Gen'!H77/'GEN-502 Gen'!H77,0) -> 84.1547768
A78: =+'GEN-502 Pot'!A78 -> FOUNTAIN HYDRO POWER CORP No. 24-23 | B78: =+IFERROR('GEN-502 Cos_Gen'!B78/'GEN-502 Gen'!B78,0) -> 105 | C78: =+IFERROR('GEN-502 Cos_Gen'!C78/'GEN-502 Gen'!C78,0) -> 0 | D78: =+IFERROR('GEN-502 Cos_Gen'!D78/'GEN-502 Gen'!D78,0) -> 0 | E78: =+IFERROR('GEN-502 Cos_Gen'!E78/'GEN-502 Gen'!E78,0) -> 0 | F78: =+IFERROR('GEN-502 Cos_Gen'!F78/'GEN-502 Gen'!F78,0) -> 0 | G78: =+IFERROR('GEN-502 Cos_Gen'!G78/'GEN-502 Gen'!G78,0) -> 0 | H78: =+IF('GEN-502 Gen'!H78>0,'GEN-502 Cos_Gen'!H78/'GEN-502 Gen'!H78,0) -> 105
A79: =+'GEN-502 Pot'!A79 -> GENERADORA DEL ISTMO, S.A. No. 25-23 | B79: =+IFERROR('GEN-502 Cos_Gen'!B79/'GEN-502 Gen'!B79,0) -> 90.63 | C79: =+IFERROR('GEN-502 Cos_Gen'!C79/'GEN-502 Gen'!C79,0) -> 0 | D79: =+IFERROR('GEN-502 Cos_Gen'!D79/'GEN-502 Gen'!D79,0) -> 0 | E79: =+IFERROR('GEN-502 Cos_Gen'!E79/'GEN-502 Gen'!E79,0) -> 0 | F79: =+IFERROR('GEN-502 Cos_Gen'!F79/'GEN-502 Gen'!F79,0) -> 0 | G79: =+IFERROR('GEN-502 Cos_Gen'!G79/'GEN-502 Gen'!G79,0) -> 0 | H79: =+IF('GEN-502 Gen'!H79>0,'GEN-502 Cos_Gen'!H79/'GEN-502 Gen'!H79,0) -> 90.63
A80: =+'GEN-502 Pot'!A80 -> HIDRO BOQUERÓN, S.A. No. 26-23 | B80: =+IFERROR('GEN-502 Cos_Gen'!B80/'GEN-502 Gen'!B80,0) -> 74.5 | C80: =+IFERROR('GEN-502 Cos_Gen'!C80/'GEN-502 Gen'!C80,0) -> 74.5 | D80: =+IFERROR('GEN-502 Cos_Gen'!D80/'GEN-502 Gen'!D80,0) -> 74.5 | E80: =+IFERROR('GEN-502 Cos_Gen'!E80/'GEN-502 Gen'!E80,0) -> 74.5 | F80: =+IFERROR('GEN-502 Cos_Gen'!F80/'GEN-502 Gen'!F80,0) -> 74.5 | G80: =+IFERROR('GEN-502 Cos_Gen'!G80/'GEN-502 Gen'!G80,0) -> 0 | H80: =+IF('GEN-502 Gen'!H80>0,'GEN-502 Cos_Gen'!H80/'GEN-502 Gen'!H80,0) -> 74.5
A81: =+'GEN-502 Pot'!A81 -> HIDROIBÉRICA No. 27-23 | B81: =+IFERROR('GEN-502 Cos_Gen'!B81/'GEN-502 Gen'!B81,0) -> 80 | C81: =+IFERROR('GEN-502 Cos_Gen'!C81/'GEN-502 Gen'!C81,0) -> 80 | D81: =+IFERROR('GEN-502 Cos_Gen'!D81/'GEN-502 Gen'!D81,0) -> 80 | E81: =+IFERROR('GEN-502 Cos_Gen'!E81/'GEN-502 Gen'!E81,0) -> 80 | F81: =+IFERROR('GEN-502 Cos_Gen'!F81/'GEN-502 Gen'!F81,0) -> 80 | G81: =+IFERROR('GEN-502 Cos_Gen'!G81/'GEN-502 Gen'!G81,0) -> 80 | H81: =+IF('GEN-502 Gen'!H81>0,'GEN-502 Cos_Gen'!H81/'GEN-502 Gen'!H81,0) -> 80
A82: =+'GEN-502 Pot'!A82 -> IDEAL PANAMÁ, S.A. No. 29-23 | B82: =+IFERROR('GEN-502 Cos_Gen'!B82/'GEN-502 Gen'!B82,0) -> 90 | C82: =+IFERROR('GEN-502 Cos_Gen'!C82/'GEN-502 Gen'!C82,0) -> 0 | D82: =+IFERROR('GEN-502 Cos_Gen'!D82/'GEN-502 Gen'!D82,0) -> 0 | E82: =+IFERROR('GEN-502 Cos_Gen'!E82/'GEN-502 Gen'!E82,0) -> 0 | F82: =+IFERROR('GEN-502 Cos_Gen'!F82/'GEN-502 Gen'!F82,0) -> 0 | G82: =+IFERROR('GEN-502 Cos_Gen'!G82/'GEN-502 Gen'!G82,0) -> 0 | H82: =+IF('GEN-502 Gen'!H82>0,'GEN-502 Cos_Gen'!H82/'GEN-502 Gen'!H82,0) -> 90
A83: =+'GEN-502 Pot'!A83 -> SOLAR BOQUERÓN, S.A. No. 33-23 | B83: =+IFERROR('GEN-502 Cos_Gen'!B83/'GEN-502 Gen'!B83,0) -> 78.5 | C83: =+IFERROR('GEN-502 Cos_Gen'!C83/'GEN-502 Gen'!C83,0) -> 78.5 | D83: =+IFERROR('GEN-502 Cos_Gen'!D83/'GEN-502 Gen'!D83,0) -> 78.5 | E83: =+IFERROR('GEN-502 Cos_Gen'!E83/'GEN-502 Gen'!E83,0) -> 78.5 | F83: =+IFERROR('GEN-502 Cos_Gen'!F83/'GEN-502 Gen'!F83,0) -> 78.5 | G83: =+IFERROR('GEN-502 Cos_Gen'!G83/'GEN-502 Gen'!G83,0) -> 78.5 | H83: =+IF('GEN-502 Gen'!H83>0,'GEN-502 Cos_Gen'!H83/'GEN-502 Gen'!H83,0) -> 78.5
A84: =+'GEN-502 Pot'!A84 -> AUTORIDAD DEL CANAL DE PANAMÁ No. 34-23 | B84: =+IFERROR('GEN-502 Cos_Gen'!B84/'GEN-502 Gen'!B84,0) -> 0 | C84: =+IFERROR('GEN-502 Cos_Gen'!C84/'GEN-502 Gen'!C84,0) -> 0 | D84: =+IFERROR('GEN-502 Cos_Gen'!D84/'GEN-502 Gen'!D84,0) -> 0 | E84: =+IFERROR('GEN-502 Cos_Gen'!E84/'GEN-502 Gen'!E84,0) -> 0 | F84: =+IFERROR('GEN-502 Cos_Gen'!F84/'GEN-502 Gen'!F84,0) -> 0 | G84: =+IFERROR('GEN-502 Cos_Gen'!G84/'GEN-502 Gen'!G84,0) -> 0 | H84: =+IF('GEN-502 Gen'!H84>0,'GEN-502 Cos_Gen'!H84/'GEN-502 Gen'!H84,0) -> 0
A85: =+'GEN-502 Pot'!A85 -> CELSIA CENTROAMÉRICA, S.A. No. 35-23 | B85: =+IFERROR('GEN-502 Cos_Gen'!B85/'GEN-502 Gen'!B85,0) -> 0 | C85: =+IFERROR('GEN-502 Cos_Gen'!C85/'GEN-502 Gen'!C85,0) -> 0 | D85: =+IFERROR('GEN-502 Cos_Gen'!D85/'GEN-502 Gen'!D85,0) -> 0 | E85: =+IFERROR('GEN-502 Cos_Gen'!E85/'GEN-502 Gen'!E85,0) -> 0 | F85: =+IFERROR('GEN-502 Cos_Gen'!F85/'GEN-502 Gen'!F85,0) -> 0 | G85: =+IFERROR('GEN-502 Cos_Gen'!G85/'GEN-502 Gen'!G85,0) -> 0 | H85: =+IF('GEN-502 Gen'!H85>0,'GEN-502 Cos_Gen'!H85/'GEN-502 Gen'!H85,0) -> 0
A86: =+'GEN-502 Pot'!A86 -> GENERADORA DEL ATLÁNTICO, S.A. No. 36-23 | B86: =+IFERROR('GEN-502 Cos_Gen'!B86/'GEN-502 Gen'!B86,0) -> 0 | C86: =+IFERROR('GEN-502 Cos_Gen'!C86/'GEN-502 Gen'!C86,0) -> 0 | D86: =+IFERROR('GEN-502 Cos_Gen'!D86/'GEN-502 Gen'!D86,0) -> 0 | E86: =+IFERROR('GEN-502 Cos_Gen'!E86/'GEN-502 Gen'!E86,0) -> 0 | F86: =+IFERROR('GEN-502 Cos_Gen'!F86/'GEN-502 Gen'!F86,0) -> 0 | G86: =+IFERROR('GEN-502 Cos_Gen'!G86/'GEN-502 Gen'!G86,0) -> 0 | H86: =+IF('GEN-502 Gen'!H86>0,'GEN-502 Cos_Gen'!H86/'GEN-502 Gen'!H86,0) -> 0
A87: =+'GEN-502 Pot'!A87 -> GENERADORA DEL ATLÁNTICO, S.A. No. 37-23 | B87: =+IFERROR('GEN-502 Cos_Gen'!B87/'GEN-502 Gen'!B87,0) -> 0 | C87: =+IFERROR('GEN-502 Cos_Gen'!C87/'GEN-502 Gen'!C87,0) -> 0 | D87: =+IFERROR('GEN-502 Cos_Gen'!D87/'GEN-502 Gen'!D87,0) -> 0 | E87: =+IFERROR('GEN-502 Cos_Gen'!E87/'GEN-502 Gen'!E87,0) -> 0 | F87: =+IFERROR('GEN-502 Cos_Gen'!F87/'GEN-502 Gen'!F87,0) -> 0 | G87: =+IFERROR('GEN-502 Cos_Gen'!G87/'GEN-502 Gen'!G87,0) -> 0 | H87: =+IF('GEN-502 Gen'!H87>0,'GEN-502 Cos_Gen'!H87/'GEN-502 Gen'!H87,0) -> 0
A88: =+'GEN-502 Pot'!A88 -> PEDREGAL POWER, S. DE R.L. No. 38-23 | B88: =+IFERROR('GEN-502 Cos_Gen'!B88/'GEN-502 Gen'!B88,0) -> 0 | C88: =+IFERROR('GEN-502 Cos_Gen'!C88/'GEN-502 Gen'!C88,0) -> 0 | D88: =+IFERROR('GEN-502 Cos_Gen'!D88/'GEN-502 Gen'!D88,0) -> 0 | E88: =+IFERROR('GEN-502 Cos_Gen'!E88/'GEN-502 Gen'!E88,0) -> 0 | F88: =+IFERROR('GEN-502 Cos_Gen'!F88/'GEN-502 Gen'!F88,0) -> 0 | G88: =+IFERROR('GEN-502 Cos_Gen'!G88/'GEN-502 Gen'!G88,0) -> 0 | H88: =+IF('GEN-502 Gen'!H88>0,'GEN-502 Cos_Gen'!H88/'GEN-502 Gen'!H88,0) -> 0
A89: =+'GEN-502 Pot'!A89 -> PANAM GENERATING LTD No. 39-23 | B89: =+IFERROR('GEN-502 Cos_Gen'!B89/'GEN-502 Gen'!B89,0) -> 0 | C89: =+IFERROR('GEN-502 Cos_Gen'!C89/'GEN-502 Gen'!C89,0) -> 0 | D89: =+IFERROR('GEN-502 Cos_Gen'!D89/'GEN-502 Gen'!D89,0) -> 0 | E89: =+IFERROR('GEN-502 Cos_Gen'!E89/'GEN-502 Gen'!E89,0) -> 0 | F89: =+IFERROR('GEN-502 Cos_Gen'!F89/'GEN-502 Gen'!F89,0) -> 0 | G89: =+IFERROR('GEN-502 Cos_Gen'!G89/'GEN-502 Gen'!G89,0) -> 0 | H89: =+IF('GEN-502 Gen'!H89>0,'GEN-502 Cos_Gen'!H89/'GEN-502 Gen'!H89,0) -> 0
A90: =+'GEN-502 Pot'!A90 -> PANAM GENERATING LTD No. 40-23 | B90: =+IFERROR('GEN-502 Cos_Gen'!B90/'GEN-502 Gen'!B90,0) -> 0 | C90: =+IFERROR('GEN-502 Cos_Gen'!C90/'GEN-502 Gen'!C90,0) -> 0 | D90: =+IFERROR('GEN-502 Cos_Gen'!D90/'GEN-502 Gen'!D90,0) -> 0 | E90: =+IFERROR('GEN-502 Cos_Gen'!E90/'GEN-502 Gen'!E90,0) -> 0 | F90: =+IFERROR('GEN-502 Cos_Gen'!F90/'GEN-502 Gen'!F90,0) -> 0 | G90: =+IFERROR('GEN-502 Cos_Gen'!G90/'GEN-502 Gen'!G90,0) -> 0 | H90: =+IF('GEN-502 Gen'!H90>0,'GEN-502 Cos_Gen'!H90/'GEN-502 Gen'!H90,0) -> 0
A91: =+'GEN-502 Pot'!A91 -> SPARKLE POWER, S.A. No. 41-23 | B91: =+IFERROR('GEN-502 Cos_Gen'!B91/'GEN-502 Gen'!B91,0) -> 0 | C91: =+IFERROR('GEN-502 Cos_Gen'!C91/'GEN-502 Gen'!C91,0) -> 0 | D91: =+IFERROR('GEN-502 Cos_Gen'!D91/'GEN-502 Gen'!D91,0) -> 0 | E91: =+IFERROR('GEN-502 Cos_Gen'!E91/'GEN-502 Gen'!E91,0) -> 0 | F91: =+IFERROR('GEN-502 Cos_Gen'!F91/'GEN-502 Gen'!F91,0) -> 0 | G91: =+IFERROR('GEN-502 Cos_Gen'!G91/'GEN-502 Gen'!G91,0) -> 0 | H91: =+IF('GEN-502 Gen'!H91>0,'GEN-502 Cos_Gen'!H91/'GEN-502 Gen'!H91,0) -> 0
A92: =+'GEN-502 Pot'!A92 -> TROPITÉRMICA, S.A. No. 42-23 | B92: =+IFERROR('GEN-502 Cos_Gen'!B92/'GEN-502 Gen'!B92,0) -> 0 | C92: =+IFERROR('GEN-502 Cos_Gen'!C92/'GEN-502 Gen'!C92,0) -> 0 | D92: =+IFERROR('GEN-502 Cos_Gen'!D92/'GEN-502 Gen'!D92,0) -> 0 | E92: =+IFERROR('GEN-502 Cos_Gen'!E92/'GEN-502 Gen'!E92,0) -> 0 | F92: =+IFERROR('GEN-502 Cos_Gen'!F92/'GEN-502 Gen'!F92,0) -> 0 | G92: =+IFERROR('GEN-502 Cos_Gen'!G92/'GEN-502 Gen'!G92,0) -> 0 | H92: =+IF('GEN-502 Gen'!H92>0,'GEN-502 Cos_Gen'!H92/'GEN-502 Gen'!H92,0) -> 0

Sheet GEN-502 Cos_Gen
A1: INFORMACION PARA ACTUALIZAR: CARGO POR GENERACION
A2: =+'Compras (p)'!A2 -> EDECHI
A3: Compra Mensual de Energía para atender Clientes Regulados (B/.)
B4: COSTO DE ENERGIA
A5: Detalle | B5: 2023-07-01 | C5: 2023-08-01 | D5: 2023-09-01 | E5: 2023-10-01 | F5: 2023-11-01 | G5: 2023-12-01 | H5: Total
A7: Generación en Punta
A8: Total Compra de Energía en Horas de Punta | B8: =+B9+B15 -> 5779381.055 | C8: 6148307.573 | D8: 6294909.607 | E8: 6446748.752 | F8: 6071364.909 | G8: 6471348.324 | H8: =+SUM(B8:G8) -> 37212060.22
A9: Generación Propia | H9: 0
H10: 0
H11: 0
H12: 0
H13: 0
H14: 0
A15: Sub-Total Mercado Mayorista | B15: =+SUM(B16:B22,-B23,B24) -> 5779381.055 | C15: =+SUM(C16:C22,-C23,C24) -> 6148307.573 | D15: 6294909.607 | E15: 6446748.752 | F15: 6071364.909 | G15: 6471348.324 | H15: 37212060.22
A16: =+'GEN-502 Cos_Gen_P'!A16 -> Mercado Ocasional | B16: =+'GEN-502 Cos_Gen_P'!B16+'GEN-502 Cos_Gen_FP'!B16 -> 701294.0436 | C16: =+'GEN-502 Cos_Gen_P'!C16+'GEN-502 Cos_Gen_FP'!C16 -> 1308337.412 | D16: =+'GEN-502 Cos_Gen_P'!D16+'GEN-502 Cos_Gen_FP'!D16 -> 1757613.702 | E16: =+'GEN-502 Cos_Gen_P'!E16+'GEN-502 Cos_Gen_FP'!E16 -> 1853038.697 | F16: =+'GEN-502 Cos_Gen_P'!F16+'GEN-502 Cos_Gen_FP'!F16 -> 1617847.956 | G16: =+'GEN-502 Cos_Gen_P'!G16+'GEN-502 Cos_Gen_FP'!G16 -> 2589953.062 | H16: 9828084.873
A17: =+'GEN-502 Cos_Gen_P'!A17 -> Servicios Auxiliares de Corto Plazo | B17: =+'GEN-502 Cos_Gen_P'!B17+'GEN-502 Cos_Gen_FP'!B17 -> 57285.62333 | C17: =+'GEN-502 Cos_Gen_P'!C17+'GEN-502 Cos_Gen_FP'!C17 -> 57285.62333 | D17: =+'GEN-502 Cos_Gen_P'!D17+'GEN-502 Cos_Gen_FP'!D17 -> 57285.62333 | E17: =+'GEN-502 Cos_Gen_P'!E17+'GEN-502 Cos_Gen_FP'!E17 -> 57285.62333 | F17: =+'GEN-502 Cos_Gen_P'!F17+'GEN-502 Cos_Gen_FP'!F17 -> 57285.62333 | G17: =+'GEN-502 Cos_Gen_P'!G17+'GEN-502 Cos_Gen_FP'!G17 -> 57285.62333 | H17: 343713.74
A18: =+'GEN-502 Cos_Gen_P'!A18 -> Generación Obligada | B18: =+'GEN-502 Cos_Gen_P'!B18+'GEN-502 Cos_Gen_FP'!B18 -> 24396.04249 | C18: =+'GEN-502 Cos_Gen_P'!C18+'GEN-502 Cos_Gen_FP'!C18 -> 24396.04249 | D18: =+'GEN-502 Cos_Gen_P'!D18+'GEN-502 Cos_Gen_FP'!D18 -> 24396.04249 | E18: =+'GEN-502 Cos_Gen_P'!E18+'GEN-502 Cos_Gen_FP'!E18 -> 24396.04249 | F18: =+'GEN-502 Cos_Gen_P'!F18+'GEN-502 Cos_Gen_FP'!F18 -> 24396.04249 | G18: =+'GEN-502 Cos_Gen_P'!G18+'GEN-502 Cos_Gen_FP'!G18 -> 24396.04249 | H18: 146376.255
A19: =+'GEN-502 Cos_Gen_P'!A19 -> Costos relacionados con el Mercado Regional | B19: =+'GEN-502 Cos_Gen_P'!B19+'GEN-502 Cos_Gen_FP'!B19 -> 0 | C19: =+'GEN-502 Cos_Gen_P'!C19+'GEN-502 Cos_Gen_FP'!C19 -> 0 | D19: =+'GEN-502 Cos_Gen_P'!D19+'GEN-502 Cos_Gen_FP'!D19 -> 0 | E19: =+'GEN-502 Cos_Gen_P'!E19+'GEN-502 Cos_Gen_FP'!E19 -> 0 | F19: =+'GEN-502 Cos_Gen_P'!F19+'GEN-502 Cos_Gen_FP'!F19 -> 0 | G19: =+'GEN-502 Cos_Gen_P'!G19+'GEN-502 Cos_Gen_FP'!G19 -> 0 | H19: 0
A20: =+'GEN-502 Cos_Gen_P'!A20 -> Otros Ajustes | B20: =+'GEN-502 Cos_Gen_P'!B20+'GEN-502 Cos_Gen_FP'!B20 -> 48851.879 | C20: =+'GEN-502 Cos_Gen_P'!C20+'GEN-502 Cos_Gen_FP'!C20 -> 48851.879 | D20: =+'GEN-502 Cos_Gen_P'!D20+'GEN-502 Cos_Gen_FP'!D20 -> 48851.879 | E20: =+'GEN-502 Cos_Gen_P'!E20+'GEN-502 Cos_Gen_FP'!E20 -> 48851.879 | F20: =+'GEN-502 Cos_Gen_P'!F20+'GEN-502 Cos_Gen_FP'!F20 -> 48851.879 | G20: =+'GEN-502 Cos_Gen_P'!G20+'GEN-502 Cos_Gen_FP'!G20 -> 48851.879 | H20: 293111.274
A21: =+'GEN-502 Cos_Gen_P'!A21 -> Costos de Fianzas | B21: =+'GEN-502 Cos_Gen_P'!B21+'GEN-502 Cos_Gen_FP'!B21 -> 0 | C21: =+'GEN-502 Cos_Gen_P'!C21+'GEN-502 Cos_Gen_FP'!C21 -> 0 | D21: =+'GEN-502 Cos_Gen_P'!D21+'GEN-502 Cos_Gen_FP'!D21 -> 0 | E21: =+'GEN-502 Cos_Gen_P'!E21+'GEN-502 Cos_Gen_FP'!E21 -> 0 | F21: =+'GEN-502 Cos_Gen_P'!F21+'GEN-502 Cos_Gen_FP'!F21 -> 0 | G21: =+'GEN-502 Cos_Gen_P'!G21+'GEN-502 Cos_Gen_FP'!G21 -> 0 | H21: 0
A22: =+'GEN-502 Cos_Gen_P'!A22 -> Costos de Autoabastecimiento autorizados por ASEP | B22: =+'GEN-502 Cos_Gen_P'!B22+'GEN-502 Cos_Gen_FP'!B22 -> 0 | C22: =+'GEN-502 Cos_Gen_P'!C22+'GEN-502 Cos_Gen_FP'!C22 -> 0 | D22: =+'GEN-502 Cos_Gen_P'!D22+'GEN-502 Cos_Gen_FP'!D22 -> 0 | E22: =+'GEN-502 Cos_Gen_P'!E22+'GEN-502 Cos_Gen_FP'!E22 -> 0 | F22: =+'GEN-502 Cos_Gen_P'!F22+'GEN-502 Cos_Gen_FP'!F22 -> 0 | G22: =+'GEN-502 Cos_Gen_P'!G22+'GEN-502 Cos_Gen_FP'!G22 -> 0 | H22: 0
A23: =+'GEN-502 Cos_Gen_P'!A23 -> Menos - Transacciones Esporádicas (CUSPT) | B23: =+'GEN-502 Cos_Gen_P'!B23+'GEN-502 Cos_Gen_FP'!B23 -> 2791.55375 | C23: =+'GEN-502 Cos_Gen_P'!C23+'GEN-502 Cos_Gen_FP'!C23 -> 2791.55375 | D23: =+'GEN-502 Cos_Gen_P'!D23+'GEN-502 Cos_Gen_FP'!D23 -> 2791.55375 | E23: =+'GEN-502 Cos_Gen_P'!E23+'GEN-502 Cos_Gen_FP'!E23 -> 2791.55375 | F23: =+'GEN-502 Cos_Gen_P'!F23+'GEN-502 Cos_Gen_FP'!F23 -> 2791.55375 | G23: =+'GEN-502 Cos_Gen_P'!G23+'GEN-502 Cos_Gen_FP'!G23 -> 2791.55375 | H23: 16749.3225
A24: Sub-Total Contratros | B24: =+SUM(B25:B141) -> 4950345.02 | C24: 4712228.17 | D24: 4409553.915 | E24: 4465968.064 | F24: 4325774.962 | G24: 3753653.27 | H24: 26617523.4
A25: =+'GEN-502 Pot'!A25 -> Empresa Nacional de Energía No. 36-11 (Cesión) | B25: =+'GEN-502 Cos_Gen_P'!B25+'GEN-502 Cos_Gen_FP'!B25 -> 31454.05622 | C25: =+'GEN-502 Cos_Gen_P'!C25+'GEN-502 Cos_Gen_FP'!C25 -> 31192.32468 | D25: =+'GEN-502 Cos_Gen_P'!D25+'GEN-502 Cos_Gen_FP'!D25 -> 30200.17856 | E25: =+'GEN-502 Cos_Gen_P'!E25+'GEN-502 Cos_Gen_FP'!E25 -> 29766.87517 | F25: =+'GEN-502 Cos_Gen_P'!F25+'GEN-502 Cos_Gen_FP'!F25 -> 29699.2787 | G25: =+'GEN-502 Cos_Gen_P'!G25+'GEN-502 Cos_Gen_FP'!G25 -> 28814.14757 | H25: =+SUM(B25:G25) -> 181126.8609
A26: =+'GEN-502 Pot'!A26 -> Enel Fortuna No. 37-11 | B26: =+'GEN-502 Cos_Gen_P'!B26+'GEN-502 Cos_Gen_FP'!B26 -> 111609.139 | C26: =+'GEN-502 Cos_Gen_P'!C26+'GEN-502 Cos_Gen_FP'!C26 -> 110680.431 | D26: =+'GEN-502 Cos_Gen_P'!D26+'GEN-502 Cos_Gen_FP'!D26 -> 107159.9765 | E26: =+'GEN-502 Cos_Gen_P'!E26+'GEN-502 Cos_Gen_FP'!E26 -> 105622.4763 | F26: =+'GEN-502 Cos_Gen_P'!F26+'GEN-502 Cos_Gen_FP'!F26 -> 105382.6222 | G26: =+'GEN-502 Cos_Gen_P'!G26+'GEN-502 Cos_Gen_FP'!G26 -> 102241.8914 | H26: 642696.5365
A27: =+'GEN-502 Pot'!A27 -> Electrogeneradora del Istmo No. 38-11 | B27: =+'GEN-502 Cos_Gen_P'!B27+'GEN-502 Cos_Gen_FP'!B27 -> 3122.712922 | C27: =+'GEN-502 Cos_Gen_P'!C27+'GEN-502 Cos_Gen_FP'!C27 -> 3096.728595 | D27: =+'GEN-502 Cos_Gen_P'!D27+'GEN-502 Cos_Gen_FP'!D27 -> 2998.229773 | E27: =+'GEN-502 Cos_Gen_P'!E27+'GEN-502 Cos_Gen_FP'!E27 -> 2955.212042 | F27: =+'GEN-502 Cos_Gen_P'!F27+'GEN-502 Cos_Gen_FP'!F27 -> 2948.501163 | G27: =+'GEN-502 Cos_Gen_P'!G27+'GEN-502 Cos_Gen_FP'!G27 -> 2860.626633 | H27: 17982.01113
A28: =+'GEN-502 Pot'!A28 -> ESEPSA No. 39-11 | B28: =+'GEN-502 Cos_Gen_P'!B28+'GEN-502 Cos_Gen_FP'!B28 -> 19680.79638 | C28: =+'GEN-502 Cos_Gen_P'!C28+'GEN-502 Cos_Gen_FP'!C28 -> 19517.031 | D28: =+'GEN-502 Cos_Gen_P'!D28+'GEN-502 Cos_Gen_FP'!D28 -> 18896.24539 | E28: =+'GEN-502 Cos_Gen_P'!E28+'GEN-502 Cos_Gen_FP'!E28 -> 18625.12755 | F28: =+'GEN-502 Cos_Gen_P'!F28+'GEN-502 Cos_Gen_FP'!F28 -> 18582.83245 | G28: =+'GEN-502 Cos_Gen_P'!G28+'GEN-502 Cos_Gen_FP'!G28 -> 18029.00609 | H28: 113331.0389
A29: =+'GEN-502 Pot'!A29 -> Pedregalito No. 40-11 | B29: =+'GEN-502 Cos_Gen_P'!B29+'GEN-502 Cos_Gen_FP'!B29 -> 8423.48896 | C29: =+'GEN-502 Cos_Gen_P'!C29+'GEN-502 Cos_Gen_FP'!C29 -> 8353.396479 | D29: =+'GEN-502 Cos_Gen_P'!D29+'GEN-502 Cos_Gen_FP'!D29 -> 8087.696827 | E29: =+'GEN-502 Cos_Gen_P'!E29+'GEN-502 Cos_Gen_FP'!E29 -> 7971.6569 | F29: =+'GEN-502 Cos_Gen_P'!F29+'GEN-502 Cos_Gen_FP'!F29 -> 7953.554367 | G29: =+'GEN-502 Cos_Gen_P'!G29+'GEN-502 Cos_Gen_FP'!G29 -> 7716.513642 | H29: 48506.30717
A30: =+'GEN-502 Pot'!A30 -> Río Chico No. 41-11 | B30: =+'GEN-502 Cos_Gen_P'!B30+'GEN-502 Cos_Gen_FP'!B30 -> 5165.798468 | C30: =+'GEN-502 Cos_Gen_P'!C30+'GEN-502 Cos_Gen_FP'!C30 -> 5122.813474 | D30: =+'GEN-502 Cos_Gen_P'!D30+'GEN-502 Cos_Gen_FP'!D30 -> 4959.870201 | E30: =+'GEN-502 Cos_Gen_P'!E30+'GEN-502 Cos_Gen_FP'!E30 -> 4888.707423 | F30: =+'GEN-502 Cos_Gen_P'!F30+'GEN-502 Cos_Gen_FP'!F30 -> 4877.605843 | G30: =+'GEN-502 Cos_Gen_P'!G30+'GEN-502 Cos_Gen_FP'!G30 -> 4732.237977 | H30: 29747.03339
A31: =+'GEN-502 Pot'!A31 -> Alto Valle No. 42-11 | B31: =+'GEN-502 Cos_Gen_P'!B31+'GEN-502 Cos_Gen_FP'!B31 -> 4915.602186 | C31: =+'GEN-502 Cos_Gen_P'!C31+'GEN-502 Cos_Gen_FP'!C31 -> 4874.699093 | D31: =+'GEN-502 Cos_Gen_P'!D31+'GEN-502 Cos_Gen_FP'!D31 -> 4719.647689 | E31: =+'GEN-502 Cos_Gen_P'!E31+'GEN-502 Cos_Gen_FP'!E31 -> 4651.931554 | F31: =+'GEN-502 Cos_Gen_P'!F31+'GEN-502 Cos_Gen_FP'!F31 -> 4641.367659 | G31: =+'GEN-502 Cos_Gen_P'!G31+'GEN-502 Cos_Gen_FP'!G31 -> 4503.040427 | H31: 28306.28861
A32: =+'GEN-502 Pot'!A32 -> Hidroecológica del Teribe No. 43-11 | B32: =+'GEN-502 Cos_Gen_P'!B32+'GEN-502 Cos_Gen_FP'!B32 -> 40294.34304 | C32: =+'GEN-502 Cos_Gen_P'!C32+'GEN-502 Cos_Gen_FP'!C32 -> 39959.05081 | D32: =+'GEN-502 Cos_Gen_P'!D32+'GEN-502 Cos_Gen_FP'!D32 -> 38688.05811 | E32: =+'GEN-502 Cos_Gen_P'!E32+'GEN-502 Cos_Gen_FP'!E32 -> 38132.97308 | F32: =+'GEN-502 Cos_Gen_P'!F32+'GEN-502 Cos_Gen_FP'!F32 -> 38046.37836 | G32: =+'GEN-502 Cos_Gen_P'!G32+'GEN-502 Cos_Gen_FP'!G32 -> 36912.47763 | H32: 232033.281
A33: =+'GEN-502 Pot'!A33 -> Desarrollos Hidroeléctricos Corp. No. 44-11 | B33: =+'GEN-502 Cos_Gen_P'!B33+'GEN-502 Cos_Gen_FP'!B33 -> 7247.448272 | C33: =+'GEN-502 Cos_Gen_P'!C33+'GEN-502 Cos_Gen_FP'!C33 -> 7187.141715 | D33: =+'GEN-502 Cos_Gen_P'!D33+'GEN-502 Cos_Gen_FP'!D33 -> 6958.53757 | E33: =+'GEN-502 Cos_Gen_P'!E33+'GEN-502 Cos_Gen_FP'!E33 -> 6858.698493 | F33: =+'GEN-502 Cos_Gen_P'!F33+'GEN-502 Cos_Gen_FP'!F33 -> 6843.123334 | G33: =+'GEN-502 Cos_Gen_P'!G33+'GEN-502 Cos_Gen_FP'!G33 -> 6639.176917 | H33: 41734.1263
A34: =+'GEN-502 Pot'!A34 -> Las Perlas Norte No. 45-11 | B34: =+'GEN-502 Cos_Gen_P'!B34+'GEN-502 Cos_Gen_FP'!B34 -> 47339.73591 | C34: =+'GEN-502 Cos_Gen_P'!C34+'GEN-502 Cos_Gen_FP'!C34 -> 46945.81844 | D34: =+'GEN-502 Cos_Gen_P'!D34+'GEN-502 Cos_Gen_FP'!D34 -> 45452.59497 | E34: =+'GEN-502 Cos_Gen_P'!E34+'GEN-502 Cos_Gen_FP'!E34 -> 44800.45433 | F34: =+'GEN-502 Cos_Gen_P'!F34+'GEN-502 Cos_Gen_FP'!F34 -> 44698.71868 | G34: =+'GEN-502 Cos_Gen_P'!G34+'GEN-502 Cos_Gen_FP'!G34 -> 43366.55746 | H34: 272603.8798
A35: =+'GEN-502 Pot'!A35 -> Hidroeléctrica San Lorenzo No. 46-11 | B35: =+'GEN-502 Cos_Gen_P'!B35+'GEN-502 Cos_Gen_FP'!B35 -> 4708.49685 | C35: =+'GEN-502 Cos_Gen_P'!C35+'GEN-502 Cos_Gen_FP'!C35 -> 4669.317096 | D35: =+'GEN-502 Cos_Gen_P'!D35+'GEN-502 Cos_Gen_FP'!D35 -> 4520.798355 | E35: =+'GEN-502 Cos_Gen_P'!E35+'GEN-502 Cos_Gen_FP'!E35 -> 4455.935252 | F35: =+'GEN-502 Cos_Gen_P'!F35+'GEN-502 Cos_Gen_FP'!F35 -> 4445.816438 | G35: =+'GEN-502 Cos_Gen_P'!G35+'GEN-502 Cos_Gen_FP'!G35 -> 4313.317243 | H35: 27113.68123
A36: =+'GEN-502 Pot'!A36 -> Caldera Energy Corp. No. 47-11 | B36: =+'GEN-502 Cos_Gen_P'!B36+'GEN-502 Cos_Gen_FP'!B36 -> 7494.511013 | C36: =+'GEN-502 Cos_Gen_P'!C36+'GEN-502 Cos_Gen_FP'!C36 -> 7432.148627 | D36: =+'GEN-502 Cos_Gen_P'!D36+'GEN-502 Cos_Gen_FP'!D36 -> 7195.751455 | E36: =+'GEN-502 Cos_Gen_P'!E36+'GEN-502 Cos_Gen_FP'!E36 -> 7092.508901 | F36: =+'GEN-502 Cos_Gen_P'!F36+'GEN-502 Cos_Gen_FP'!F36 -> 7076.402792 | G36: =+'GEN-502 Cos_Gen_P'!G36+'GEN-502 Cos_Gen_FP'!G36 -> 6865.503919 | H36: 43156.82671
A37: =+'GEN-502 Pot'!A37 -> Unión Eólica de Panamá (PE Nuevo Chagres) No. 19-12' | B37: =+'GEN-502 Cos_Gen_P'!B37+'GEN-502 Cos_Gen_FP'!B37 -> 99343.30385 | C37: =+'GEN-502 Cos_Gen_P'!C37+'GEN-502 Cos_Gen_FP'!C37 -> 87295.57573 | D37: =+'GEN-502 Cos_Gen_P'!D37+'GEN-502 Cos_Gen_FP'!D37 -> 91.88602979 | E37: =+'GEN-502 Cos_Gen_P'!E37+'GEN-502 Cos_Gen_FP'!E37 -> 85.24016536 | F37: =+'GEN-502 Cos_Gen_P'!F37+'GEN-502 Cos_Gen_FP'!F37 -> 90.362009 | G37: =+'GEN-502 Cos_Gen_P'!G37+'GEN-502 Cos_Gen_FP'!G37 -> 92.82593575 | H37: =+SUM(B37:G37) -> 186999.1937
A38: =+'GEN-502 Pot'!A38 -> Unión Eólica de Panamá (PE Rosa de los Vientos) No. 20-12' | B38: =+'GEN-502 Cos_Gen_P'!B38+'GEN-502 Cos_Gen_FP'!B38 -> 98.72317299 | C38: =+'GEN-502 Cos_Gen_P'!C38+'GEN-502 Cos_Gen_FP'!C38 -> 103.660613 | D38: =+'GEN-502 Cos_Gen_P'!D38+'GEN-502 Cos_Gen_FP'!D38 -> 94.78769388 | E38: =+'GEN-502 Cos_Gen_P'!E38+'GEN-502 Cos_Gen_FP'!E38 -> 87.93196006 | F38: =+'GEN-502 Cos_Gen_P'!F38+'GEN-502 Cos_Gen_FP'!F38 -> 93.21554613 | G38: =+'GEN-502 Cos_Gen_P'!G38+'GEN-502 Cos_Gen_FP'!G38 -> 95.75728109 | H38: 574.0762672
A39: =+'GEN-502 Pot'!A39 -> Unión Eólica de Panamá (PE Portobelo Ballestillas) No. 21-12' | B39: =+'GEN-502 Cos_Gen_P'!B39+'GEN-502 Cos_Gen_FP'!B39 -> 108.7969662 | C39: =+'GEN-502 Cos_Gen_P'!C39+'GEN-502 Cos_Gen_FP'!C39 -> 114.2382266 | D39: =+'GEN-502 Cos_Gen_P'!D39+'GEN-502 Cos_Gen_FP'!D39 -> 104.4599075 | E39: =+'GEN-502 Cos_Gen_P'!E39+'GEN-502 Cos_Gen_FP'!E39 -> 96.90460905 | F39: =+'GEN-502 Cos_Gen_P'!F39+'GEN-502 Cos_Gen_FP'!F39 -> 102.7273365 | G39: =+'GEN-502 Cos_Gen_P'!G39+'GEN-502 Cos_Gen_FP'!G39 -> 105.5284322 | H39: 632.6554781
A40: =+'GEN-502 Pot'!A40 -> Unión Eólica de Panamá (PE Marañon) No. 22-12' | B40: =+'GEN-502 Cos_Gen_P'!B40+'GEN-502 Cos_Gen_FP'!B40 -> 110.8117248 | C40: =+'GEN-502 Cos_Gen_P'!C40+'GEN-502 Cos_Gen_FP'!C40 -> 116.3537493 | D40: =+'GEN-502 Cos_Gen_P'!D40+'GEN-502 Cos_Gen_FP'!D40 -> 106.3943503 | E40: =+'GEN-502 Cos_Gen_P'!E40+'GEN-502 Cos_Gen_FP'!E40 -> 98.69913884 | F40: =+'GEN-502 Cos_Gen_P'!F40+'GEN-502 Cos_Gen_FP'!F40 -> 104.6296946 | G40: =+'GEN-502 Cos_Gen_P'!G40+'GEN-502 Cos_Gen_FP'!G40 -> 107.4826624 | H40: 644.3713203
A41: =+'GEN-502 Pot'!A41 -> AES No. 122-12 | B41: =+'GEN-502 Cos_Gen_P'!B41+'GEN-502 Cos_Gen_FP'!B41 -> 1287756.683 | C41: =+'GEN-502 Cos_Gen_P'!C41+'GEN-502 Cos_Gen_FP'!C41 -> 1277041.164 | D41: =+'GEN-502 Cos_Gen_P'!D41+'GEN-502 Cos_Gen_FP'!D41 -> 1236421.831 | E41: =+'GEN-502 Cos_Gen_P'!E41+'GEN-502 Cos_Gen_FP'!E41 -> 1218682.009 | F41: =+'GEN-502 Cos_Gen_P'!F41+'GEN-502 Cos_Gen_FP'!F41 -> 1215914.55 | G41: =+'GEN-502 Cos_Gen_P'!G41+'GEN-502 Cos_Gen_FP'!G41 -> 1179676.505 | H41: =+SUM(B41:G41) -> 7415492.741
A42: =+'GEN-502 Pot'!A42 -> HIDRO PIEDRA No. 123-12 | B42: =+'GEN-502 Cos_Gen_P'!B42+'GEN-502 Cos_Gen_FP'!B42 -> 7407.200855 | C42: =+'GEN-502 Cos_Gen_P'!C42+'GEN-502 Cos_Gen_FP'!C42 -> 7345.564984 | D42: =+'GEN-502 Cos_Gen_P'!D42+'GEN-502 Cos_Gen_FP'!D42 -> 7111.92181 | E42: =+'GEN-502 Cos_Gen_P'!E42+'GEN-502 Cos_Gen_FP'!E42 -> 7009.88202 | F42: =+'GEN-502 Cos_Gen_P'!F42+'GEN-502 Cos_Gen_FP'!F42 -> 6993.963545 | G42: =+'GEN-502 Cos_Gen_P'!G42+'GEN-502 Cos_Gen_FP'!G42 -> 6785.521619 | H42: 42654.05483
A43: =+'GEN-502 Pot'!A43 -> Corp. Energ. Del Istmo No. 124-12 | B43: =+'GEN-502 Cos_Gen_P'!B43+'GEN-502 Cos_Gen_FP'!B43 -> 36544.16614 | C43: =+'GEN-502 Cos_Gen_P'!C43+'GEN-502 Cos_Gen_FP'!C43 -> 36240.0794 | D43: =+'GEN-502 Cos_Gen_P'!D43+'GEN-502 Cos_Gen_FP'!D43 -> 35087.37744 | E43: =+'GEN-502 Cos_Gen_P'!E43+'GEN-502 Cos_Gen_FP'!E43 -> 34583.95393 | F43: =+'GEN-502 Cos_Gen_P'!F43+'GEN-502 Cos_Gen_FP'!F43 -> 34505.41855 | G43: =+'GEN-502 Cos_Gen_P'!G43+'GEN-502 Cos_Gen_FP'!G43 -> 33477.04946 | H43: 210438.0449
A44: =+'GEN-502 Pot'!A44 -> Saltos del Francolí No. 126-12 | B44: =+'GEN-502 Cos_Gen_P'!B44+'GEN-502 Cos_Gen_FP'!B44 -> 3955.889688 | C44: =+'GEN-502 Cos_Gen_P'!C44+'GEN-502 Cos_Gen_FP'!C44 -> 3922.972435 | D44: =+'GEN-502 Cos_Gen_P'!D44+'GEN-502 Cos_Gen_FP'!D44 -> 3798.192962 | E44: =+'GEN-502 Cos_Gen_P'!E44+'GEN-502 Cos_Gen_FP'!E44 -> 3743.697592 | F44: =+'GEN-502 Cos_Gen_P'!F44+'GEN-502 Cos_Gen_FP'!F44 -> 3735.196171 | G44: =+'GEN-502 Cos_Gen_P'!G44+'GEN-502 Cos_Gen_FP'!G44 -> 3623.875676 | H44: 22779.82452
A45: =+'GEN-502 Pot'!A45 -> PASO ANCHO No. 88-11 | B45: =+'GEN-502 Cos_Gen_P'!B45+'GEN-502 Cos_Gen_FP'!B45 -> 87613.55686 | C45: =+'GEN-502 Cos_Gen_P'!C45+'GEN-502 Cos_Gen_FP'!C45 -> 84536.2877 | D45: =+'GEN-502 Cos_Gen_P'!D45+'GEN-502 Cos_Gen_FP'!D45 -> 81847.40991 | E45: =+'GEN-502 Cos_Gen_P'!E45+'GEN-502 Cos_Gen_FP'!E45 -> 76191.24886 | F45: =+'GEN-502 Cos_Gen_P'!F45+'GEN-502 Cos_Gen_FP'!F45 -> 78254.05931 | G45: =+'GEN-502 Cos_Gen_P'!G45+'GEN-502 Cos_Gen_FP'!G45 -> 78091.03984 | H45: 486533.6025
A46: =+'GEN-502 Pot'!A46 -> Hidroecológica del Teribe No. 89-11 | B46: =+'GEN-502 Cos_Gen_P'!B46+'GEN-502 Cos_Gen_FP'!B46 -> 115107.9013 | C46: =+'GEN-502 Cos_Gen_P'!C46+'GEN-502 Cos_Gen_FP'!C46 -> 117411.5107 | D46: =+'GEN-502 Cos_Gen_P'!D46+'GEN-502 Cos_Gen_FP'!D46 -> 113676.9582 | E46: =+'GEN-502 Cos_Gen_P'!E46+'GEN-502 Cos_Gen_FP'!E46 -> 108933.5666 | F46: =+'GEN-502 Cos_Gen_P'!F46+'GEN-502 Cos_Gen_FP'!F46 -> 111791.5133 | G46: =+'GEN-502 Cos_Gen_P'!G46+'GEN-502 Cos_Gen_FP'!G46 -> 108459.7776 | H46: 675381.2276
A47: =+'GEN-502 Pot'!A47 -> ISTMUS HYDRO POWER CORP. No.10-13 | B47: =+'GEN-502 Cos_Gen_P'!B47+'GEN-502 Cos_Gen_FP'!B47 -> 53744.2791 | C47: =+'GEN-502 Cos_Gen_P'!C47+'GEN-502 Cos_Gen_FP'!C47 -> 53438.10379 | D47: =+'GEN-502 Cos_Gen_P'!D47+'GEN-502 Cos_Gen_FP'!D47 -> 53820.74844 | E47: =+'GEN-502 Cos_Gen_P'!E47+'GEN-502 Cos_Gen_FP'!E47 -> 48519.59939 | F47: =+'GEN-502 Cos_Gen_P'!F47+'GEN-502 Cos_Gen_FP'!F47 -> 46153.44519 | G47: =+'GEN-502 Cos_Gen_P'!G47+'GEN-502 Cos_Gen_FP'!G47 -> 44589.01966 | H47: 300265.1956
A48: =+'GEN-502 Pot'!A48 -> CALDERA ENERGY CORP. No.11-13 | B48: =+'GEN-502 Cos_Gen_P'!B48+'GEN-502 Cos_Gen_FP'!B48 -> 62064.93596 | C48: =+'GEN-502 Cos_Gen_P'!C48+'GEN-502 Cos_Gen_FP'!C48 -> 115178.4589 | D48: =+'GEN-502 Cos_Gen_P'!D48+'GEN-502 Cos_Gen_FP'!D48 -> 132423.9841 | E48: =+'GEN-502 Cos_Gen_P'!E48+'GEN-502 Cos_Gen_FP'!E48 -> 178611.7939 | F48: =+'GEN-502 Cos_Gen_P'!F48+'GEN-502 Cos_Gen_FP'!F48 -> 110693.461 | G48: =+'GEN-502 Cos_Gen_P'!G48+'GEN-502 Cos_Gen_FP'!G48 -> 31586.60314 | H48: 630559.237
A49: =+'GEN-502 Pot'!A49 -> ELECTROGENERADORA DEL ISTMO, S.A. No.12-13 | B49: =+'GEN-502 Cos_Gen_P'!B49+'GEN-502 Cos_Gen_FP'!B49 -> 21110.52244 | C49: =+'GEN-502 Cos_Gen_P'!C49+'GEN-502 Cos_Gen_FP'!C49 -> 36727.82492 | D49: =+'GEN-502 Cos_Gen_P'!D49+'GEN-502 Cos_Gen_FP'!D49 -> 53339.41358 | E49: =+'GEN-502 Cos_Gen_P'!E49+'GEN-502 Cos_Gen_FP'!E49 -> 63088.93818 | F49: =+'GEN-502 Cos_Gen_P'!F49+'GEN-502 Cos_Gen_FP'!F49 -> 43187.72489 | G49: =+'GEN-502 Cos_Gen_P'!G49+'GEN-502 Cos_Gen_FP'!G49 -> 16115.61385 | H49: 233570.0378
A50: =+'GEN-502 Pot'!A50 -> FOUNTAIN INTERTRADE CORP. No.13-13 | B50: =+'GEN-502 Cos_Gen_P'!B50+'GEN-502 Cos_Gen_FP'!B50 -> 281879.3397 | C50: =+'GEN-502 Cos_Gen_P'!C50+'GEN-502 Cos_Gen_FP'!C50 -> 328062.5167 | D50: =+'GEN-502 Cos_Gen_P'!D50+'GEN-502 Cos_Gen_FP'!D50 -> 460216.5568 | E50: =+'GEN-502 Cos_Gen_P'!E50+'GEN-502 Cos_Gen_FP'!E50 -> 614054.9819 | F50: =+'GEN-502 Cos_Gen_P'!F50+'GEN-502 Cos_Gen_FP'!F50 -> 390203.2919 | G50: =+'GEN-502 Cos_Gen_P'!G50+'GEN-502 Cos_Gen_FP'!G50 -> 211726.5303 | H50: 2286143.217
A51: =+'GEN-502 Pot'!A51 -> HIDROIBERICA, S.A. No.14-13 | B51: =+'GEN-502 Cos_Gen_P'!B51+'GEN-502 Cos_Gen_FP'!B51 -> 4154.550815 | C51: =+'GEN-502 Cos_Gen_P'!C51+'GEN-502 Cos_Gen_FP'!C51 -> 6981.22496 | D51: =+'GEN-502 Cos_Gen_P'!D51+'GEN-502 Cos_Gen_FP'!D51 -> 8192.933925 | E51: =+'GEN-502 Cos_Gen_P'!E51+'GEN-502 Cos_Gen_FP'!E51 -> 10195.17241 | F51: =+'GEN-502 Cos_Gen_P'!F51+'GEN-502 Cos_Gen_FP'!F51 -> 8898.000181 | G51: =+'GEN-502 Cos_Gen_P'!G51+'GEN-502 Cos_Gen_FP'!G51 -> 7983.030474 | H51: 46404.91277
A52: =+'GEN-502 Pot'!A52 -> NAVITAS INTERNACIONAL, S.A. No.15-13 | B52: =+'GEN-502 Cos_Gen_P'!B52+'GEN-502 Cos_Gen_FP'!B52 -> 38219.97126 | C52: =+'GEN-502 Cos_Gen_P'!C52+'GEN-502 Cos_Gen_FP'!C52 -> 42257.56624 | D52: =+'GEN-502 Cos_Gen_P'!D52+'GEN-502 Cos_Gen_FP'!D52 -> 49802.22814 | E52: =+'GEN-502 Cos_Gen_P'!E52+'GEN-502 Cos_Gen_FP'!E52 -> 50465.26224 | F52: =+'GEN-502 Cos_Gen_P'!F52+'GEN-502 Cos_Gen_FP'!F52 -> 41709.201 | G52: =+'GEN-502 Cos_Gen_P'!G52+'GEN-502 Cos_Gen_FP'!G52 -> 29941.24985 | H52: 252395.4787
A53: =+'GEN-502 Pot'!A53 -> HIDROECOLÓGICA DEL TERIBE, S.A. No.16-13 | B53: =+'GEN-502 Cos_Gen_P'!B53+'GEN-502 Cos_Gen_FP'!B53 -> 0 | C53: =+'GEN-502 Cos_Gen_P'!C53+'GEN-502 Cos_Gen_FP'!C53 -> 0 | D53: =+'GEN-502 Cos_Gen_P'!D53+'GEN-502 Cos_Gen_FP'!D53 -> 15475.54186 | E53: =+'GEN-502 Cos_Gen_P'!E53+'GEN-502 Cos_Gen_FP'!E53 -> 76267.51638 | F53: =+'GEN-502 Cos_Gen_P'!F53+'GEN-502 Cos_Gen_FP'!F53 -> 28915.84288 | G53: =+'GEN-502 Cos_Gen_P'!G53+'GEN-502 Cos_Gen_FP'!G53 -> 28054.06058 | H53: 148712.9617
A54: =+'GEN-502 Pot'!A54 -> HIDRONORTH CORP. No.17-13 | B54: =+'GEN-502 Cos_Gen_P'!B54+'GEN-502 Cos_Gen_FP'!B54 -> 7566.011241 | C54: =+'GEN-502 Cos_Gen_P'!C54+'GEN-502 Cos_Gen_FP'!C54 -> 9214.276715 | D54: =+'GEN-502 Cos_Gen_P'!D54+'GEN-502 Cos_Gen_FP'!D54 -> 10832.8793 | E54: =+'GEN-502 Cos_Gen_P'!E54+'GEN-502 Cos_Gen_FP'!E54 -> 10677.45229 | F54: =+'GEN-502 Cos_Gen_P'!F54+'GEN-502 Cos_Gen_FP'!F54 -> 9971.713464 | G54: =+'GEN-502 Cos_Gen_P'!G54+'GEN-502 Cos_Gen_FP'!G54 -> 7219.795003 | H54: 55482.12802
A55: =+'GEN-502 Pot'!A55 -> EMPRESA NACIONAL DE ENERGÍA, S.A. No.33-13 | B55: =+'GEN-502 Cos_Gen_P'!B55+'GEN-502 Cos_Gen_FP'!B55 -> 27561.89809 | C55: =+'GEN-502 Cos_Gen_P'!C55+'GEN-502 Cos_Gen_FP'!C55 -> 49000.79489 | D55: =+'GEN-502 Cos_Gen_P'!D55+'GEN-502 Cos_Gen_FP'!D55 -> 47442.20801 | E55: =+'GEN-502 Cos_Gen_P'!E55+'GEN-502 Cos_Gen_FP'!E55 -> 35078.29081 | F55: =+'GEN-502 Cos_Gen_P'!F55+'GEN-502 Cos_Gen_FP'!F55 -> 44322.56542 | G55: =+'GEN-502 Cos_Gen_P'!G55+'GEN-502 Cos_Gen_FP'!G55 -> 28536.23975 | H55: 231941.997
A56: =+'GEN-502 Pot'!A56 -> FUERZA ELÉCTRICA DEL ISTMO, S.A. No.34-13 | B56: =+'GEN-502 Cos_Gen_P'!B56+'GEN-502 Cos_Gen_FP'!B56 -> 10774.81065 | C56: =+'GEN-502 Cos_Gen_P'!C56+'GEN-502 Cos_Gen_FP'!C56 -> 11247.5291 | D56: =+'GEN-502 Cos_Gen_P'!D56+'GEN-502 Cos_Gen_FP'!D56 -> 10889.77468 | E56: =+'GEN-502 Cos_Gen_P'!E56+'GEN-502 Cos_Gen_FP'!E56 -> 8057.304199 | F56: =+'GEN-502 Cos_Gen_P'!F56+'GEN-502 Cos_Gen_FP'!F56 -> 10173.69913 | G56: =+'GEN-502 Cos_Gen_P'!G56+'GEN-502 Cos_Gen_FP'!G56 -> 9870.491168 | H56: 61013.60893
A57: =+'GEN-502 Pot'!A57 -> CAFÉ DE ELETA, S.A. No.35-13 | B57: =+'GEN-502 Cos_Gen_P'!B57+'GEN-502 Cos_Gen_FP'!B57 -> 3315.391993 | C57: =+'GEN-502 Cos_Gen_P'!C57+'GEN-502 Cos_Gen_FP'!C57 -> 3685.710686 | D57: =+'GEN-502 Cos_Gen_P'!D57+'GEN-502 Cos_Gen_FP'!D57 -> 3443.217031 | E57: =+'GEN-502 Cos_Gen_P'!E57+'GEN-502 Cos_Gen_FP'!E57 -> 3479.234371 | F57: =+'GEN-502 Cos_Gen_P'!F57+'GEN-502 Cos_Gen_FP'!F57 -> 4978.180158 | G57: =+'GEN-502 Cos_Gen_P'!G57+'GEN-502 Cos_Gen_FP'!G57 -> 3598.562966 | H57: 22500.2972
A58: =+'GEN-502 Pot'!A58 -> ENERGÍA Y SERVICIOS DE PANAMÁ, S.A. No.36-13 | B58: =+'GEN-502 Cos_Gen_P'!B58+'GEN-502 Cos_Gen_FP'!B58 -> 166153.1149 | C58: =+'GEN-502 Cos_Gen_P'!C58+'GEN-502 Cos_Gen_FP'!C58 -> 207775.0498 | D58: =+'GEN-502 Cos_Gen_P'!D58+'GEN-502 Cos_Gen_FP'!D58 -> 207203.9644 | E58: =+'GEN-502 Cos_Gen_P'!E58+'GEN-502 Cos_Gen_FP'!E58 -> 181792.5138 | F58: =+'GEN-502 Cos_Gen_P'!F58+'GEN-502 Cos_Gen_FP'!F58 -> 227620.5438 | G58: =+'GEN-502 Cos_Gen_P'!G58+'GEN-502 Cos_Gen_FP'!G58 -> 136379.1727 | H58: 1126924.359
A59: =+'GEN-502 Pot'!A59 -> GENERADORA PEDREGALITO, S.A. No.37-13 | B59: =+'GEN-502 Cos_Gen_P'!B59+'GEN-502 Cos_Gen_FP'!B59 -> 68765.58467 | C59: =+'GEN-502 Cos_Gen_P'!C59+'GEN-502 Cos_Gen_FP'!C59 -> 91950.48965 | D59: =+'GEN-502 Cos_Gen_P'!D59+'GEN-502 Cos_Gen_FP'!D59 -> 89040.8059 | E59: =+'GEN-502 Cos_Gen_P'!E59+'GEN-502 Cos_Gen_FP'!E59 -> 104041.2297 | F59: =+'GEN-502 Cos_Gen_P'!F59+'GEN-502 Cos_Gen_FP'!F59 -> 101189.7165 | G59: =+'GEN-502 Cos_Gen_P'!G59+'GEN-502 Cos_Gen_FP'!G59 -> 46098.59737 | H59: 501086.4238
A60: =+'GEN-502 Pot'!A60 -> GENERADORA RIO CHICO, S.A. No.38-13 | B60: =+'GEN-502 Cos_Gen_P'!B60+'GEN-502 Cos_Gen_FP'!B60 -> 42400.73764 | C60: =+'GEN-502 Cos_Gen_P'!C60+'GEN-502 Cos_Gen_FP'!C60 -> 56669.70577 | D60: =+'GEN-502 Cos_Gen_P'!D60+'GEN-502 Cos_Gen_FP'!D60 -> 54851.41953 | E60: =+'GEN-502 Cos_Gen_P'!E60+'GEN-502 Cos_Gen_FP'!E60 -> 64074.00045 | F60: =+'GEN-502 Cos_Gen_P'!F60+'GEN-502 Cos_Gen_FP'!F60 -> 62337.6335 | G60: =+'GEN-502 Cos_Gen_P'!G60+'GEN-502 Cos_Gen_FP'!G60 -> 28450.66075 | H60: 308784.1576
A61: =+'GEN-502 Pot'!A61 -> GENERADORA ALTO VALLE, S.A. No.39-13 | B61: =+'GEN-502 Cos_Gen_P'!B61+'GEN-502 Cos_Gen_FP'!B61 -> 60803.83039 | C61: =+'GEN-502 Cos_Gen_P'!C61+'GEN-502 Cos_Gen_FP'!C61 -> 83134.31317 | D61: =+'GEN-502 Cos_Gen_P'!D61+'GEN-502 Cos_Gen_FP'!D61 -> 80818.71309 | E61: =+'GEN-502 Cos_Gen_P'!E61+'GEN-502 Cos_Gen_FP'!E61 -> 85221.6032 | F61: =+'GEN-502 Cos_Gen_P'!F61+'GEN-502 Cos_Gen_FP'!F61 -> 72978.00905 | G61: =+'GEN-502 Cos_Gen_P'!G61+'GEN-502 Cos_Gen_FP'!G61 -> 35741.73087 | H61: 418698.1998
A62: =+'GEN-502 Pot'!A62 -> HYDRO CAISÁN, S.A. No.40-13 | B62: =+'GEN-502 Cos_Gen_P'!B62+'GEN-502 Cos_Gen_FP'!B62 -> 151103.1049 | C62: =+'GEN-502 Cos_Gen_P'!C62+'GEN-502 Cos_Gen_FP'!C62 -> 272448.0483 | D62: =+'GEN-502 Cos_Gen_P'!D62+'GEN-502 Cos_Gen_FP'!D62 -> 317556.0423 | E62: =+'GEN-502 Cos_Gen_P'!E62+'GEN-502 Cos_Gen_FP'!E62 -> 132775.8998 | F62: =+'GEN-502 Cos_Gen_P'!F62+'GEN-502 Cos_Gen_FP'!F62 -> 276382.0241 | G62: =+'GEN-502 Cos_Gen_P'!G62+'GEN-502 Cos_Gen_FP'!G62 -> 74056.27369 | H62: 1224321.393
A63: =+'GEN-502 Pot'!A63 -> SIGSA, S.A. No. 137-12 | B63: =+'GEN-502 Cos_Gen_P'!B63+'GEN-502 Cos_Gen_FP'!B63 -> 0 | C63: =+'GEN-502 Cos_Gen_P'!C63+'GEN-502 Cos_Gen_FP'!C63 -> 0 | D63: =+'GEN-502 Cos_Gen_P'!D63+'GEN-502 Cos_Gen_FP'!D63 -> 0 | E63: =+'GEN-502 Cos_Gen_P'!E63+'GEN-502 Cos_Gen_FP'!E63 -> 0 | F63: =+'GEN-502 Cos_Gen_P'!F63+'GEN-502 Cos_Gen_FP'!F63 -> 0 | G63: =+'GEN-502 Cos_Gen_P'!G63+'GEN-502 Cos_Gen_FP'!G63 -> 0 | H63: 0
A64: =+'GEN-502 Pot'!A64 -> PARQUE EÓLICO TOABRÉ, S.A. No 09-14 | B64: =+'GEN-502 Cos_Gen_P'!B64+'GEN-502 Cos_Gen_FP'!B64 -> 222927.1169 | C64: =+'GEN-502 Cos_Gen_P'!C64+'GEN-502 Cos_Gen_FP'!C64 -> 223305.1755 | D64: =+'GEN-502 Cos_Gen_P'!D64+'GEN-502 Cos_Gen_FP'!D64 -> 215661.917 | E64: =+'GEN-502 Cos_Gen_P'!E64+'GEN-502 Cos_Gen_FP'!E64 -> 217362.4217 | F64: =+'GEN-502 Cos_Gen_P'!F64+'GEN-502 Cos_Gen_FP'!F64 -> 315735.4903 | G64: =+'GEN-502 Cos_Gen_P'!G64+'GEN-502 Cos_Gen_FP'!G64 -> 533233.4309 | H64: =+SUM(B64:G64) -> 1728225.552
A65: =+'GEN-502 Pot'!A65 -> NAURA ENERGY CORP. No 10-14 | B65: =+'GEN-502 Cos_Gen_P'!B65+'GEN-502 Cos_Gen_FP'!B65 -> 11185.46587 | C65: =+'GEN-502 Cos_Gen_P'!C65+'GEN-502 Cos_Gen_FP'!C65 -> 11459.08137 | D65: =+'GEN-502 Cos_Gen_P'!D65+'GEN-502 Cos_Gen_FP'!D65 -> 10950.36825 | E65: =+'GEN-502 Cos_Gen_P'!E65+'GEN-502 Cos_Gen_FP'!E65 -> 19946.1987 | F65: =+'GEN-502 Cos_Gen_P'!F65+'GEN-502 Cos_Gen_FP'!F65 -> 19682.69197 | G65: =+'GEN-502 Cos_Gen_P'!G65+'GEN-502 Cos_Gen_FP'!G65 -> 53329.31435 | H65: 126553.1205
A66: =+'GEN-502 Pot'!A66 -> Panama Solar2 No. 10-15 | B66: =+'GEN-502 Cos_Gen_P'!B66+'GEN-502 Cos_Gen_FP'!B66 -> 15798.07798 | C66: =+'GEN-502 Cos_Gen_P'!C66+'GEN-502 Cos_Gen_FP'!C66 -> 32343.99174 | D66: =+'GEN-502 Cos_Gen_P'!D66+'GEN-502 Cos_Gen_FP'!D66 -> 31804.51433 | E66: =+'GEN-502 Cos_Gen_P'!E66+'GEN-502 Cos_Gen_FP'!E66 -> 31348.19239 | F66: =+'GEN-502 Cos_Gen_P'!F66+'GEN-502 Cos_Gen_FP'!F66 -> 17322.64891 | G66: =+'GEN-502 Cos_Gen_P'!G66+'GEN-502 Cos_Gen_FP'!G66 -> 20541.13105 | H66: 149158.5564
A67: =+'GEN-502 Pot'!A67 -> Solpac Investment No. 11-15 | B67: =+'GEN-502 Cos_Gen_P'!B67+'GEN-502 Cos_Gen_FP'!B67 -> 3105.098598 | C67: =+'GEN-502 Cos_Gen_P'!C67+'GEN-502 Cos_Gen_FP'!C67 -> 6774.373851 | D67: =+'GEN-502 Cos_Gen_P'!D67+'GEN-502 Cos_Gen_FP'!D67 -> 6558.89877 | E67: =+'GEN-502 Cos_Gen_P'!E67+'GEN-502 Cos_Gen_FP'!E67 -> 6464.793594 | F67: =+'GEN-502 Cos_Gen_P'!F67+'GEN-502 Cos_Gen_FP'!F67 -> 3518.243422 | G67: =+'GEN-502 Cos_Gen_P'!G67+'GEN-502 Cos_Gen_FP'!G67 -> 3982.286928 | H67: 30403.69516
A68: =+'GEN-502 Pot'!A68 -> GAS NATURAL ATLÁNTICO No. 17-15 | B68: =+'GEN-502 Cos_Gen_P'!B68+'GEN-502 Cos_Gen_FP'!B68 -> 437999.0455 | C68: =+'GEN-502 Cos_Gen_P'!C68+'GEN-502 Cos_Gen_FP'!C68 -> 434354.4227 | D68: =+'GEN-502 Cos_Gen_P'!D68+'GEN-502 Cos_Gen_FP'!D68 -> 420538.7467 | E68: =+'GEN-502 Cos_Gen_P'!E68+'GEN-502 Cos_Gen_FP'!E68 -> 414504.9789 | F68: =+'GEN-502 Cos_Gen_P'!F68+'GEN-502 Cos_Gen_FP'!F68 -> 413563.6952 | G68: =+'GEN-502 Cos_Gen_P'!G68+'GEN-502 Cos_Gen_FP'!G68 -> 401238.2073 | H68: 2522199.096
A69: =+'GEN-502 Pot'!A69 -> MARTANO INC No. 19-15 | B69: =+'GEN-502 Cos_Gen_P'!B69+'GEN-502 Cos_Gen_FP'!B69 -> 346775.5152 | C69: =+'GEN-502 Cos_Gen_P'!C69+'GEN-502 Cos_Gen_FP'!C69 -> 343889.9703 | D69: =+'GEN-502 Cos_Gen_P'!D69+'GEN-502 Cos_Gen_FP'!D69 -> 332951.7315 | E69: =+'GEN-502 Cos_Gen_P'!E69+'GEN-502 Cos_Gen_FP'!E69 -> 328174.6367 | F69: =+'GEN-502 Cos_Gen_P'!F69+'GEN-502 Cos_Gen_FP'!F69 -> 327429.3973 | G69: =+'GEN-502 Cos_Gen_P'!G69+'GEN-502 Cos_Gen_FP'!G69 -> 317670.9801 | H69: 1996892.231
A70: =+'GEN-502 Pot'!A70 -> ENEL FORTUNA, S.A. No. 36-21 | B70: =+'GEN-502 Cos_Gen_P'!B70+'GEN-502 Cos_Gen_FP'!B70 -> 343801.8547 | C70: =+'GEN-502 Cos_Gen_P'!C70+'GEN-502 Cos_Gen_FP'!C70 -> 375065.2908 | D70: =+'GEN-502 Cos_Gen_P'!D70+'GEN-502 Cos_Gen_FP'!D70 -> 0 | E70: =+'GEN-502 Cos_Gen_P'!E70+'GEN-502 Cos_Gen_FP'!E70 -> 0 | F70: =+'GEN-502 Cos_Gen_P'!F70+'GEN-502 Cos_Gen_FP'!F70 -> 0 | G70: =+'GEN-502 Cos_Gen_P'!G70+'GEN-502 Cos_Gen_FP'!G70 -> 0 | H70: =+SUM(B70:G70) -> 718867.1456
A71: =+'GEN-502 Pot'!A71 -> HIDRO BOQUERÓN, S.A. No. 40-21 | B71: =+'GEN-502 Cos_Gen_P'!B71+'GEN-502 Cos_Gen_FP'!B71 -> 2011.050291 | C71: =+'GEN-502 Cos_Gen_P'!C71+'GEN-502 Cos_Gen_FP'!C71 -> 1832.971822 | D71: =+'GEN-502 Cos_Gen_P'!D71+'GEN-502 Cos_Gen_FP'!D71 -> 0 | E71: =+'GEN-502 Cos_Gen_P'!E71+'GEN-502 Cos_Gen_FP'!E71 -> 0 | F71: =+'GEN-502 Cos_Gen_P'!F71+'GEN-502 Cos_Gen_FP'!F71 -> 0 | G71: =+'GEN-502 Cos_Gen_P'!G71+'GEN-502 Cos_Gen_FP'!G71 -> 0 | H71: 3844.022114
A72: =+'GEN-502 Pot'!A72 -> AUTORIDAD DEL CANAL DE PANAMÁ No. 57-21 | B72: =+'GEN-502 Cos_Gen_P'!B72+'GEN-502 Cos_Gen_FP'!B72 -> 0 | C72: =+'GEN-502 Cos_Gen_P'!C72+'GEN-502 Cos_Gen_FP'!C72 -> 0 | D72: =+'GEN-502 Cos_Gen_P'!D72+'GEN-502 Cos_Gen_FP'!D72 -> 0 | E72: =+'GEN-502 Cos_Gen_P'!E72+'GEN-502 Cos_Gen_FP'!E72 -> 0 | F72: =+'GEN-502 Cos_Gen_P'!F72+'GEN-502 Cos_Gen_FP'!F72 -> 0 | G72: =+'GEN-502 Cos_Gen_P'!G72+'GEN-502 Cos_Gen_FP'!G72 -> 0 | H72: 0
A73: =+'GEN-502 Pot'!A73 -> GENERADORA DEL ATLÁNTICO, S.A. No. 59-21 | B73: =+'GEN-502 Cos_Gen_P'!B73+'GEN-502 Cos_Gen_FP'!B73 -> 0 | C73: =+'GEN-502 Cos_Gen_P'!C73+'GEN-502 Cos_Gen_FP'!C73 -> 0 | D73: =+'GEN-502 Cos_Gen_P'!D73+'GEN-502 Cos_Gen_FP'!D73 -> 0 | E73: =+'GEN-502 Cos_Gen_P'!E73+'GEN-502 Cos_Gen_FP'!E73 -> 0 | F73: =+'GEN-502 Cos_Gen_P'!F73+'GEN-502 Cos_Gen_FP'!F73 -> 0 | G73: =+'GEN-502 Cos_Gen_P'!G73+'GEN-502 Cos_Gen_FP'!G73 -> 0 | H73: 0
A74: =+'GEN-502 Pot'!A74 -> GENERADORA DEL ATLÁNTICO, S.A. No. 60-21 | B74: =+'GEN-502 Cos_Gen_P'!B74+'GEN-502 Cos_Gen_FP'!B74 -> 0 | C74: =+'GEN-502 Cos_Gen_P'!C74+'GEN-502 Cos_Gen_FP'!C74 -> 0 | D74: =+'GEN-502 Cos_Gen_P'!D74+'GEN-502 Cos_Gen_FP'!D74 -> 0 | E74: =+'GEN-502 Cos_Gen_P'!E74+'GEN-502 Cos_Gen_FP'!E74 -> 0 | F74: =+'GEN-502 Cos_Gen_P'!F74+'GEN-502 Cos_Gen_FP'!F74 -> 0 | G74: =+'GEN-502 Cos_Gen_P'!G74+'GEN-502 Cos_Gen_FP'!G74 -> 0 | H74: 0
A75: =+'GEN-502 Pot'!A75 -> PANAM GENERATING LTD No. 61-21 | B75: =+'GEN-502 Cos_Gen_P'!B75+'GEN-502 Cos_Gen_FP'!B75 -> 0 | C75: =+'GEN-502 Cos_Gen_P'!C75+'GEN-502 Cos_Gen_FP'!C75 -> 0 | D75: =+'GEN-502 Cos_Gen_P'!D75+'GEN-502 Cos_Gen_FP'!D75 -> 0 | E75: =+'GEN-502 Cos_Gen_P'!E75+'GEN-502 Cos_Gen_FP'!E75 -> 0 | F75: =+'GEN-502 Cos_Gen_P'!F75+'GEN-502 Cos_Gen_FP'!F75 -> 0 | G75: =+'GEN-502 Cos_Gen_P'!G75+'GEN-502 Cos_Gen_FP'!G75 -> 0 | H75: 0
A76: =+'GEN-502 Pot'!A76 -> TROPITÉRMICA, S.A. No. 63-21 | B76: =+'GEN-502 Cos_Gen_P'!B76+'GEN-502 Cos_Gen_FP'!B76 -> 0 | C76: =+'GEN-502 Cos_Gen_P'!C76+'GEN-502 Cos_Gen_FP'!C76 -> 0 | D76: =+'GEN-502 Cos_Gen_P'!D76+'GEN-502 Cos_Gen_FP'!D76 -> 0 | E76: =+'GEN-502 Cos_Gen_P'!E76+'GEN-502 Cos_Gen_FP'!E76 -> 0 | F76: =+'GEN-502 Cos_Gen_P'!F76+'GEN-502 Cos_Gen_FP'!F76 -> 0 | G76: =+'GEN-502 Cos_Gen_P'!G76+'GEN-502 Cos_Gen_FP'!G76 -> 0 | H76: 0
A77: =+'GEN-502 Pot'!A77 -> EMPRESA NACIONAL DE ENERGÍA, S.A. No. 23-23 | B77: =+'GEN-502 Cos_Gen_P'!B77+'GEN-502 Cos_Gen_FP'!B77 -> 26987.08745 | C77: =+'GEN-502 Cos_Gen_P'!C77+'GEN-502 Cos_Gen_FP'!C77 -> 0 | D77: =+'GEN-502 Cos_Gen_P'!D77+'GEN-502 Cos_Gen_FP'!D77 -> 12063.37832 | E77: =+'GEN-502 Cos_Gen_P'!E77+'GEN-502 Cos_Gen_FP'!E77 -> 29500.18561 | F77: =+'GEN-502 Cos_Gen_P'!F77+'GEN-502 Cos_Gen_FP'!F77 -> 4558.676629 | G77: =+'GEN-502 Cos_Gen_P'!G77+'GEN-502 Cos_Gen_FP'!G77 -> 0 | H77: 73109.32802
A78: =+'GEN-502 Pot'!A78 -> FOUNTAIN HYDRO POWER CORP No. 24-23 | B78: =+'GEN-502 Cos_Gen_P'!B78+'GEN-502 Cos_Gen_FP'!B78 -> 298708.1149 | C78: =+'GEN-502 Cos_Gen_P'!C78+'GEN-502 Cos_Gen_FP'!C78 -> 0 | D78: =+'GEN-502 Cos_Gen_P'!D78+'GEN-502 Cos_Gen_FP'!D78 -> 0 | E78: =+'GEN-502 Cos_Gen_P'!E78+'GEN-502 Cos_Gen_FP'!E78 -> 0 | F78: =+'GEN-502 Cos_Gen_P'!F78+'GEN-502 Cos_Gen_FP'!F78 -> 0 | G78: =+'GEN-502 Cos_Gen_P'!G78+'GEN-502 Cos_Gen_FP'!G78 -> 0 | H78: 298708.1149
A79: =+'GEN-502 Pot'!A79 -> GENERADORA DEL ISTMO, S.A. No. 25-23 | B79: =+'GEN-502 Cos_Gen_P'!B79+'GEN-502 Cos_Gen_FP'!B79 -> 109558.5449 | C79: =+'GEN-502 Cos_Gen_P'!C79+'GEN-502 Cos_Gen_FP'!C79 -> 0 | D79: =+'GEN-502 Cos_Gen_P'!D79+'GEN-502 Cos_Gen_FP'!D79 -> 0 | E79: =+'GEN-502 Cos_Gen_P'!E79+'GEN-502 Cos_Gen_FP'!E79 -> 0 | F79: =+'GEN-502 Cos_Gen_P'!F79+'GEN-502 Cos_Gen_FP'!F79 -> 0 | G79: =+'GEN-502 Cos_Gen_P'!G79+'GEN-502 Cos_Gen_FP'!G79 -> 0 | H79: 109558.5449
A80: =+'GEN-502 Pot'!A80 -> HIDRO BOQUERÓN, S.A. No. 26-23 | B80: =+'GEN-502 Cos_Gen_P'!B80+'GEN-502 Cos_Gen_FP'!B80 -> 10972.27477 | C80: =+'GEN-502 Cos_Gen_P'!C80+'GEN-502 Cos_Gen_FP'!C80 -> 5516.22548 | D80: =+'GEN-502 Cos_Gen_P'!D80+'GEN-502 Cos_Gen_FP'!D80 -> 19023.30983 | E80: =+'GEN-502 Cos_Gen_P'!E80+'GEN-502 Cos_Gen_FP'!E80 -> 21598.01851 | F80: =+'GEN-502 Cos_Gen_P'!F80+'GEN-502 Cos_Gen_FP'!F80 -> 11878.27912 | G80: =+'GEN-502 Cos_Gen_P'!G80+'GEN-502 Cos_Gen_FP'!G80 -> 0 | H80: 68988.10771
A81: =+'GEN-502 Pot'!A81 -> HIDROIBÉRICA No. 27-23 | B81: =+'GEN-502 Cos_Gen_P'!B81+'GEN-502 Cos_Gen_FP'!B81 -> 6222.99684 | C81: =+'GEN-502 Cos_Gen_P'!C81+'GEN-502 Cos_Gen_FP'!C81 -> 4431.78503 | D81: =+'GEN-502 Cos_Gen_P'!D81+'GEN-502 Cos_Gen_FP'!D81 -> 4558.457403 | E81: =+'GEN-502 Cos_Gen_P'!E81+'GEN-502 Cos_Gen_FP'!E81 -> 3462.096611 | F81: =+'GEN-502 Cos_Gen_P'!F81+'GEN-502 Cos_Gen_FP'!F81 -> 3740.707414 | G81: =+'GEN-502 Cos_Gen_P'!G81+'GEN-502 Cos_Gen_FP'!G81 -> 4330.139908 | H81: 26746.18321
A82: =+'GEN-502 Pot'!A82 -> IDEAL PANAMÁ, S.A. No. 29-23 | B82: =+'GEN-502 Cos_Gen_P'!B82+'GEN-502 Cos_Gen_FP'!B82 -> 181328.2769 | C82: =+'GEN-502 Cos_Gen_P'!C82+'GEN-502 Cos_Gen_FP'!C82 -> 0 | D82: =+'GEN-502 Cos_Gen_P'!D82+'GEN-502 Cos_Gen_FP'!D82 -> 0 | E82: =+'GEN-502 Cos_Gen_P'!E82+'GEN-502 Cos_Gen_FP'!E82 -> 0 | F82: =+'GEN-502 Cos_Gen_P'!F82+'GEN-502 Cos_Gen_FP'!F82 -> 0 | G82: =+'GEN-502 Cos_Gen_P'!G82+'GEN-502 Cos_Gen_FP'!G82 -> 0 | H82: 181328.2769
A83: =+'GEN-502 Pot'!A83 -> SOLAR BOQUERÓN, S.A. No. 33-23 | B83: =+'GEN-502 Cos_Gen_P'!B83+'GEN-502 Cos_Gen_FP'!B83 -> 3843.252829 | C83: =+'GEN-502 Cos_Gen_P'!C83+'GEN-502 Cos_Gen_FP'!C83 -> 2324.959464 | D83: =+'GEN-502 Cos_Gen_P'!D83+'GEN-502 Cos_Gen_FP'!D83 -> 1913.357307 | E83: =+'GEN-502 Cos_Gen_P'!E83+'GEN-502 Cos_Gen_FP'!E83 -> 1870.05707 | F83: =+'GEN-502 Cos_Gen_P'!F83+'GEN-502 Cos_Gen_FP'!F83 -> 1848.241592 | G83: =+'GEN-502 Cos_Gen_P'!G83+'GEN-502 Cos_Gen_FP'!G83 -> 1870.287895 | H83: 13670.15616
A84: =+'GEN-502 Pot'!A84 -> AUTORIDAD DEL CANAL DE PANAMÁ No. 34-23 | B84: =+'GEN-502 Cos_Gen_P'!B84+'GEN-502 Cos_Gen_FP'!B84 -> 0 | C84: =+'GEN-502 Cos_Gen_P'!C84+'GEN-502 Cos_Gen_FP'!C84 -> 0 | D84: =+'GEN-502 Cos_Gen_P'!D84+'GEN-502 Cos_Gen_FP'!D84 -> 0 | E84: =+'GEN-502 Cos_Gen_P'!E84+'GEN-502 Cos_Gen_FP'!E84 -> 0 | F84: =+'GEN-502 Cos_Gen_P'!F84+'GEN-502 Cos_Gen_FP'!F84 -> 0 | G84: =+'GEN-502 Cos_Gen_P'!G84+'GEN-502 Cos_Gen_FP'!G84 -> 0 | H84: =+SUM(B84:G84) -> 0
A85: =+'GEN-502 Pot'!A85 -> CELSIA CENTROAMÉRICA, S.A. No. 35-23 | B85: =+'GEN-502 Cos_Gen_P'!B85+'GEN-502 Cos_Gen_FP'!B85 -> 0 | C85: =+'GEN-502 Cos_Gen_P'!C85+'GEN-502 Cos_Gen_FP'!C85 -> 0 | D85: =+'GEN-502 Cos_Gen_P'!D85+'GEN-502 Cos_Gen_FP'!D85 -> 0 | E85: =+'GEN-502 Cos_Gen_P'!E85+'GEN-502 Cos_Gen_FP'!E85 -> 0 | F85: =+'GEN-502 Cos_Gen_P'!F85+'GEN-502 Cos_Gen_FP'!F85 -> 0 | G85: =+'GEN-502 Cos_Gen_P'!G85+'GEN-502 Cos_Gen_FP'!G85 -> 0 | H85: 0
A86: =+'GEN-502 Pot'!A86 -> GENERADORA DEL ATLÁNTICO, S.A. No. 36-23 | B86: =+'GEN-502 Cos_Gen_P'!B86+'GEN-502 Cos_Gen_FP'!B86 -> 0 | C86: =+'GEN-502 Cos_Gen_P'!C86+'GEN-502 Cos_Gen_FP'!C86 -> 0 | D86: =+'GEN-502 Cos_Gen_P'!D86+'GEN-502 Cos_Gen_FP'!D86 -> 0 | E86: =+'GEN-502 Cos_Gen_P'!E86+'GEN-502 Cos_Gen_FP'!E86 -> 0 | F86: =+'GEN-502 Cos_Gen_P'!F86+'GEN-502 Cos_Gen_FP'!F86 -> 0 | G86: =+'GEN-502 Cos_Gen_P'!G86+'GEN-502 Cos_Gen_FP'!G86 -> 0 | H86: 0
A87: =+'GEN-502 Pot'!A87 -> GENERADORA DEL ATLÁNTICO, S.A. No. 37-23 | B87: =+'GEN-502 Cos_Gen_P'!B87+'GEN-502 Cos_Gen_FP'!B87 -> 0 | C87: =+'GEN-502 Cos_Gen_P'!C87+'GEN-502 Cos_Gen_FP'!C87 -> 0 | D87: =+'GEN-502 Cos_Gen_P'!D87+'GEN-502 Cos_Gen_FP'!D87 -> 0 | E87: =+'GEN-502 Cos_Gen_P'!E87+'GEN-502 Cos_Gen_FP'!E87 -> 0 | F87: =+'GEN-502 Cos_Gen_P'!F87+'GEN-502 Cos_Gen_FP'!F87 -> 0 | G87: =+'GEN-502 Cos_Gen_P'!G87+'GEN-502 Cos_Gen_FP'!G87 -> 0 | H87: 0
A88: =+'GEN-502 Pot'!A88 -> PEDREGAL POWER, S. DE R.L. No. 38-23 | B88: =+'GEN-502 Cos_Gen_P'!B88+'GEN-502 Cos_Gen_FP'!B88 -> 0 | C88: =+'GEN-502 Cos_Gen_P'!C88+'GEN-502 Cos_Gen_FP'!C88 -> 0 | D88: =+'GEN-502 Cos_Gen_P'!D88+'GEN-502 Cos_Gen_FP'!D88 -> 0 | E88: =+'GEN-502 Cos_Gen_P'!E88+'GEN-502 Cos_Gen_FP'!E88 -> 0 | F88: =+'GEN-502 Cos_Gen_P'!F88+'GEN-502 Cos_Gen_FP'!F88 -> 0 | G88: =+'GEN-502 Cos_Gen_P'!G88+'GEN-502 Cos_Gen_FP'!G88 -> 0 | H88: 0
A89: =+'GEN-502 Pot'!A89 -> PANAM GENERATING LTD No. 39-23 | B89: =+'GEN-502 Cos_Gen_P'!B89+'GEN-502 Cos_Gen_FP'!B89 -> 0 | C89: =+'GEN-502 Cos_Gen_P'!C89+'GEN-502 Cos_Gen_FP'!C89 -> 0 | D89: =+'GEN-502 Cos_Gen_P'!D89+'GEN-502 Cos_Gen_FP'!D89 -> 0 | E89: =+'GEN-502 Cos_Gen_P'!E89+'GEN-502 Cos_Gen_FP'!E89 -> 0 | F89: =+'GEN-502 Cos_Gen_P'!F89+'GEN-502 Cos_Gen_FP'!F89 -> 0 | G89: =+'GEN-502 Cos_Gen_P'!G89+'GEN-502 Cos_Gen_FP'!G89 -> 0 | H89: 0
A90: =+'GEN-502 Pot'!A90 -> PANAM GENERATING LTD No. 40-23 | B90: =+'GEN-502 Cos_Gen_P'!B90+'GEN-502 Cos_Gen_FP'!B90 -> 0 | C90: =+'GEN-502 Cos_Gen_P'!C90+'GEN-502 Cos_Gen_FP'!C90 -> 0 | D90: =+'GEN-502 Cos_Gen_P'!D90+'GEN-502 Cos_Gen_FP'!D90 -> 0 | E90: =+'GEN-502 Cos_Gen_P'!E90+'GEN-502 Cos_Gen_FP'!E90 -> 0 | F90: =+'GEN-502 Cos_Gen_P'!F90+'GEN-502 Cos_Gen_FP'!F90 -> 0 | G90: =+'GEN-502 Cos_Gen_P'!G90+'GEN-502 Cos_Gen_FP'!G90 -> 0 | H90: 0
A91: =+'GEN-502 Pot'!A91 -> SPARKLE POWER, S.A. No. 41-23 | B91: =+'GEN-502 Cos_Gen_P'!B91+'GEN-502 Cos_Gen_FP'!B91 -> 0 | C91: =+'GEN-502 Cos_Gen_P'!C91+'GEN-502 Cos_Gen_FP'!C91 -> 0 | D91: =+'GEN-502 Cos_Gen_P'!D91+'GEN-502 Cos_Gen_FP'!D91 -> 0 | E91: =+'GEN-502 Cos_Gen_P'!E91+'GEN-502 Cos_Gen_FP'!E91 -> 0 | F91: =+'GEN-502 Cos_Gen_P'!F91+'GEN-502 Cos_Gen_FP'!F91 -> 0 | G91: =+'GEN-502 Cos_Gen_P'!G91+'GEN-502 Cos_Gen_FP'!G91 -> 0 | H91: 0
A92: =+'GEN-502 Pot'!A92 -> TROPITÉRMICA, S.A. No. 42-23 | B92: =+'GEN-502 Cos_Gen_P'!B92+'GEN-502 Cos_Gen_FP'!B92 -> 0 | C92: =+'GEN-502 Cos_Gen_P'!C92+'GEN-502 Cos_Gen_FP'!C92 -> 0 | D92: =+'GEN-502 Cos_Gen_P'!D92+'GEN-502 Cos_Gen_FP'!D92 -> 0 | E92: =+'GEN-502 Cos_Gen_P'!E92+'GEN-502 Cos_Gen_FP'!E92 -> 0 | F92: =+'GEN-502 Cos_Gen_P'!F92+'GEN-502 Cos_Gen_FP'!F92 -> 0 | G92: =+'GEN-502 Cos_Gen_P'!G92+'GEN-502 Cos_Gen_FP'!G92 -> 0 | H92: 0

Sheet GEN-502 Gen_P
A1: INFORMACION PARA ACTUALIZAR: CARGO POR GENERACION
A2: =+'Compras (p)'!A2 -> EDECHI
A3: Porción de Compra Mensual de Energía en Horas de Punta para atender Clientes Regulados (MWh)
B4: ESTIMACION DE COMPRA DE ENERGIA HORAS DE PUNTA
A5: Detalle | B5: 2023-07-01 | C5: 2023-08-01 | D5: 2023-09-01 | E5: 2023-10-01 | F5: 2023-11-01 | G5: 2023-12-01 | H5: Total
A7: Generación en Punta | B7: 0.2587031378 | C7: 0.2587031378 | D7: 0.2587031378 | E7: 0.2587031378 | F7: 0.2587031378 | G7: 0.2587031378
A8: Total Compra de Energía en Horas de Punta | B8: =+B9+B15 -> 21843.81344 | C8: 22541.78457 | D8: 21884.24626 | E8: 22160.38328 | F8: 21246.59835 | G8: 22539.498 | H8: =+SUM(B8:G8) -> 132216.3239
A9: Generación Propia | B9: 0 | C9: 0 | D9: 0 | E9: 0 | F9: 0 | G9: 0 | H9: 0
A10: 0 | H10: 0
A11: 0 | H11: 0
A12: 0 | H12: 0
A13: 0 | H13: 0
A14: 0 | H14: 0
A15: Sub-Total Mercado Mayorista | B15: =+SUM(B16:B24) -> 21843.81344 | C15: 22541.78457 | D15: 21884.24626 | E15: 22160.38328 | F15: 21246.59835 | G15: 22539.498 | H15: 132216.3239
A16: Mercado Ocasional | B16: =+'Compras (p)'!B7*B7-B24 -> 1814.269696 | C16: =+'Compras (p)'!C7*C7-C24 -> 3384.709939 | D16: =+'Compras (p)'!D7*D7-D24 -> 4547.001797 | E16: =+'Compras (p)'!E7*E7-E24 -> 4793.869256 | F16: =+'Compras (p)'!F7*F7-F24 -> 4185.423428 | G16: =+'Compras (p)'!G7*G7-G24 -> 6700.289841 | H16: 25425.56396
H17: 0
H18: 0
H19: 0
H20: 0
H21: 0
H22: 0
H23: 0
A24: Sub-Total Contratros | B24: =+SUM(B25:B141) -> 20029.54375 | C24: 19157.07463 | D24: 17337.24446 | E24: 17366.51402 | F24: 17061.17492 | G24: 15839.20816 | H24: 106790.7599
A25: =+'GEN-502 Pot'!A25 -> Empresa Nacional de Energía No. 36-11 (Cesión) | B25: =+'Compras (p)'!B$11*'GEN-502 Pot'!B25*B$7/('GEN-502 Pot'!B$6/1.0645) -> 102.098658 | C25: =+'Compras (p)'!C$11*'GEN-502 Pot'!C25*C$7/('GEN-502 Pot'!C$6/1.0645) -> 101.2490875 | D25: =+'Compras (p)'!D$11*'GEN-502 Pot'!D25*D$7/('GEN-502 Pot'!D$6/1.0645) -> 98.0286193 | E25: =+'Compras (p)'!E$11*'GEN-502 Pot'!E25*E$7/('GEN-502 Pot'!E$6/1.0645) -> 96.62213312 | F25: =+'Compras (p)'!F$11*'GEN-502 Pot'!F25*F$7/('GEN-502 Pot'!F$6/1.0645) -> 96.40271759 | G25: =+'Compras (p)'!G$11*'GEN-502 Pot'!G25*G$7/('GEN-502 Pot'!G$6/1.0645) -> 93.52961595 | H25: =+SUM(B25:G25) -> 587.9308314
A26: =+'GEN-502 Pot'!A26 -> Enel Fortuna No. 37-11 | B26: =+'Compras (p)'!B$11*'GEN-502 Pot'!B26*B$7/('GEN-502 Pot'!B$6/1.0645) -> 301.3949318 | C26: =+'Compras (p)'!C$11*'GEN-502 Pot'!C26*C$7/('GEN-502 Pot'!C$6/1.0645) -> 298.8870021 | D26: =+'Compras (p)'!D$11*'GEN-502 Pot'!D26*D$7/('GEN-502 Pot'!D$6/1.0645) -> 289.3801898 | E26: =+'Compras (p)'!E$11*'GEN-502 Pot'!E26*E$7/('GEN-502 Pot'!E$6/1.0645) -> 285.2282468 | F26: =+'Compras (p)'!F$11*'GEN-502 Pot'!F26*F$7/('GEN-502 Pot'!F$6/1.0645) -> 284.5805328 | G26: =+'Compras (p)'!G$11*'GEN-502 Pot'!G26*G$7/('GEN-502 Pot'!G$6/1.0645) -> 276.0991454 | H26: 1735.570049
A27: =+'GEN-502 Pot'!A27 -> Electrogeneradora del Istmo No. 38-11 | B27: =+'Compras (p)'!B$11*'GEN-502 Pot'!B27*B$7/('GEN-502 Pot'!B$6/1.0645) -> 12.76233225 | C27: =+'Compras (p)'!C$11*'GEN-502 Pot'!C27*C$7/('GEN-502 Pot'!C$6/1.0645) -> 12.65613593 | D27: =+'Compras (p)'!D$11*'GEN-502 Pot'!D27*D$7/('GEN-502 Pot'!D$6/1.0645) -> 12.25357741 | E27: =+'Compras (p)'!E$11*'GEN-502 Pot'!E27*E$7/('GEN-502 Pot'!E$6/1.0645) -> 12.07776664 | F27: =+'Compras (p)'!F$11*'GEN-502 Pot'!F27*F$7/('GEN-502 Pot'!F$6/1.0645) -> 12.0503397 | G27: =+'Compras (p)'!G$11*'GEN-502 Pot'!G27*G$7/('GEN-502 Pot'!G$6/1.0645) -> 11.69120199 | H27: 73.49135393
A28: =+'GEN-502 Pot'!A28 -> ESEPSA No. 39-11 | B28: =+'Compras (p)'!B$11*'GEN-502 Pot'!B28*B$7/('GEN-502 Pot'!B$6/1.0645) -> 55.95037119 | C28: =+'Compras (p)'!C$11*'GEN-502 Pot'!C28*C$7/('GEN-502 Pot'!C$6/1.0645) -> 55.48480398 | D28: =+'Compras (p)'!D$11*'GEN-502 Pot'!D28*D$7/('GEN-502 Pot'!D$6/1.0645) -> 53.71997776 | E28: =+'Compras (p)'!E$11*'GEN-502 Pot'!E28*E$7/('GEN-502 Pot'!E$6/1.0645) -> 52.94921911 | F28: =+'Compras (p)'!F$11*'GEN-502 Pot'!F28*F$7/('GEN-502 Pot'!F$6/1.0645) -> 52.82897874 | G28: =+'Compras (p)'!G$11*'GEN-502 Pot'!G28*G$7/('GEN-502 Pot'!G$6/1.0645) -> 51.25451041 | H28: 322.1878612
A29: =+'GEN-502 Pot'!A29 -> Pedregalito No. 40-11 | B29: =+'Compras (p)'!B$11*'GEN-502 Pot'!B29*B$7/('GEN-502 Pot'!B$6/1.0645) -> 40.20632888 | C29: =+'Compras (p)'!C$11*'GEN-502 Pot'!C29*C$7/('GEN-502 Pot'!C$6/1.0645) -> 39.87176902 | D29: =+'Compras (p)'!D$11*'GEN-502 Pot'!D29*D$7/('GEN-502 Pot'!D$6/1.0645) -> 38.60355253 | E29: =+'Compras (p)'!E$11*'GEN-502 Pot'!E29*E$7/('GEN-502 Pot'!E$6/1.0645) -> 38.04967996 | F29: =+'Compras (p)'!F$11*'GEN-502 Pot'!F29*F$7/('GEN-502 Pot'!F$6/1.0645) -> 37.96327439 | G29: =+'Compras (p)'!G$11*'GEN-502 Pot'!G29*G$7/('GEN-502 Pot'!G$6/1.0645) -> 36.83185041 | H29: 231.5264552
A30: =+'GEN-502 Pot'!A30 -> Río Chico No. 41-11 | B30: =+'Compras (p)'!B$11*'GEN-502 Pot'!B30*B$7/('GEN-502 Pot'!B$6/1.0645) -> 24.65697921 | C30: =+'Compras (p)'!C$11*'GEN-502 Pot'!C30*C$7/('GEN-502 Pot'!C$6/1.0645) -> 24.45180665 | D30: =+'Compras (p)'!D$11*'GEN-502 Pot'!D30*D$7/('GEN-502 Pot'!D$6/1.0645) -> 23.67405875 | E30: =+'Compras (p)'!E$11*'GEN-502 Pot'!E30*E$7/('GEN-502 Pot'!E$6/1.0645) -> 23.33439023 | F30: =+'Compras (p)'!F$11*'GEN-502 Pot'!F30*F$7/('GEN-502 Pot'!F$6/1.0645) -> 23.28140105 | G30: =+'Compras (p)'!G$11*'GEN-502 Pot'!G30*G$7/('GEN-502 Pot'!G$6/1.0645) -> 22.58754269 | H30: 141.9861786
A31: =+'GEN-502 Pot'!A31 -> Alto Valle No. 42-11 | B31: =+'Compras (p)'!B$11*'GEN-502 Pot'!B31*B$7/('GEN-502 Pot'!B$6/1.0645) -> 23.46276217 | C31: =+'Compras (p)'!C$11*'GEN-502 Pot'!C31*C$7/('GEN-502 Pot'!C$6/1.0645) -> 23.26752678 | D31: =+'Compras (p)'!D$11*'GEN-502 Pot'!D31*D$7/('GEN-502 Pot'!D$6/1.0645) -> 22.52744772 | E31: =+'Compras (p)'!E$11*'GEN-502 Pot'!E31*E$7/('GEN-502 Pot'!E$6/1.0645) -> 22.20423044 | F31: =+'Compras (p)'!F$11*'GEN-502 Pot'!F31*F$7/('GEN-502 Pot'!F$6/1.0645) -> 22.1538077 | G31: =+'Compras (p)'!G$11*'GEN-502 Pot'!G31*G$7/('GEN-502 Pot'!G$6/1.0645) -> 21.49355514 | H31: 135.10933
A32: =+'GEN-502 Pot'!A32 -> Hidroecológica del Teribe No. 43-11 | B32: =+'Compras (p)'!B$11*'GEN-502 Pot'!B32*B$7/('GEN-502 Pot'!B$6/1.0645) -> 102.098658 | C32: =+'Compras (p)'!C$11*'GEN-502 Pot'!C32*C$7/('GEN-502 Pot'!C$6/1.0645) -> 101.2490875 | D32: =+'Compras (p)'!D$11*'GEN-502 Pot'!D32*D$7/('GEN-502 Pot'!D$6/1.0645) -> 98.0286193 | E32: =+'Compras (p)'!E$11*'GEN-502 Pot'!E32*E$7/('GEN-502 Pot'!E$6/1.0645) -> 96.62213312 | F32: =+'Compras (p)'!F$11*'GEN-502 Pot'!F32*F$7/('GEN-502 Pot'!F$6/1.0645) -> 96.40271759 | G32: =+'Compras (p)'!G$11*'GEN-502 Pot'!G32*G$7/('GEN-502 Pot'!G$6/1.0645) -> 93.52961595 | H32: 587.9308314
A33: =+'GEN-502 Pot'!A33 -> Desarrollos Hidroeléctricos Corp. No. 44-11 | B33: =+'Compras (p)'!B$11*'GEN-502 Pot'!B33*B$7/('GEN-502 Pot'!B$6/1.0645) -> 19.42940528 | C33: =+'Compras (p)'!C$11*'GEN-502 Pot'!C33*C$7/('GEN-502 Pot'!C$6/1.0645) -> 19.26773175 | D33: =+'Compras (p)'!D$11*'GEN-502 Pot'!D33*D$7/('GEN-502 Pot'!D$6/1.0645) -> 18.65487569 | E33: =+'Compras (p)'!E$11*'GEN-502 Pot'!E33*E$7/('GEN-502 Pot'!E$6/1.0645) -> 18.38722095 | F33: =+'Compras (p)'!F$11*'GEN-502 Pot'!F33*F$7/('GEN-502 Pot'!F$6/1.0645) -> 18.34546611 | G33: =+'Compras (p)'!G$11*'GEN-502 Pot'!G33*G$7/('GEN-502 Pot'!G$6/1.0645) -> 17.798714 | H33: 111.8834138
A34: =+'GEN-502 Pot'!A34 -> Las Perlas Norte No. 45-11 | B34: =+'Compras (p)'!B$11*'GEN-502 Pot'!B34*B$7/('GEN-502 Pot'!B$6/1.0645) -> 121.497403 | C34: =+'Compras (p)'!C$11*'GEN-502 Pot'!C34*C$7/('GEN-502 Pot'!C$6/1.0645) -> 120.4864141 | D34: =+'Compras (p)'!D$11*'GEN-502 Pot'!D34*D$7/('GEN-502 Pot'!D$6/1.0645) -> 116.654057 | E34: =+'Compras (p)'!E$11*'GEN-502 Pot'!E34*E$7/('GEN-502 Pot'!E$6/1.0645) -> 114.9803384 | F34: =+'Compras (p)'!F$11*'GEN-502 Pot'!F34*F$7/('GEN-502 Pot'!F$6/1.0645) -> 114.7192339 | G34: =+'Compras (p)'!G$11*'GEN-502 Pot'!G34*G$7/('GEN-502 Pot'!G$6/1.0645) -> 111.300243 | H34: 699.6376894
A35: =+'GEN-502 Pot'!A35 -> Hidroeléctrica San Lorenzo No. 46-11 | B35: =+'Compras (p)'!B$11*'GEN-502 Pot'!B35*B$7/('GEN-502 Pot'!B$6/1.0645) -> 13.61008838 | C35: =+'Compras (p)'!C$11*'GEN-502 Pot'!C35*C$7/('GEN-502 Pot'!C$6/1.0645) -> 13.49683781 | D35: =+'Compras (p)'!D$11*'GEN-502 Pot'!D35*D$7/('GEN-502 Pot'!D$6/1.0645) -> 13.06753877 | E35: =+'Compras (p)'!E$11*'GEN-502 Pot'!E35*E$7/('GEN-502 Pot'!E$6/1.0645) -> 12.88004952 | F35: =+'Compras (p)'!F$11*'GEN-502 Pot'!F35*F$7/('GEN-502 Pot'!F$6/1.0645) -> 12.8508007 | G35: =+'Compras (p)'!G$11*'GEN-502 Pot'!G35*G$7/('GEN-502 Pot'!G$6/1.0645) -> 12.46780676 | H35: 78.37312194
A36: =+'GEN-502 Pot'!A36 -> Caldera Energy Corp. No. 47-11 | B36: =+'Compras (p)'!B$11*'GEN-502 Pot'!B36*B$7/('GEN-502 Pot'!B$6/1.0645) -> 30.6295974 | C36: =+'Compras (p)'!C$11*'GEN-502 Pot'!C36*C$7/('GEN-502 Pot'!C$6/1.0645) -> 30.37472624 | D36: =+'Compras (p)'!D$11*'GEN-502 Pot'!D36*D$7/('GEN-502 Pot'!D$6/1.0645) -> 29.40858579 | E36: =+'Compras (p)'!E$11*'GEN-502 Pot'!E36*E$7/('GEN-502 Pot'!E$6/1.0645) -> 28.98663994 | F36: =+'Compras (p)'!F$11*'GEN-502 Pot'!F36*F$7/('GEN-502 Pot'!F$6/1.0645) -> 28.92081528 | G36: =+'Compras (p)'!G$11*'GEN-502 Pot'!G36*G$7/('GEN-502 Pot'!G$6/1.0645) -> 28.05888478 | H36: 176.3792494
A37: =+'GEN-502 Pot'!A37 -> Unión Eólica de Panamá (PE Nuevo Chagres) No. 19-12' | B37: =+'Compras (p)'!B$11*'GEN-502 Pot'!B37*B$7/('GEN-502 Pot'!B$6/1.0645) -> 270.5307835 | C37: =+'Compras (p)'!C$11*'GEN-502 Pot'!C37*C$7/('GEN-502 Pot'!C$6/1.0645) -> 237.7225196 | D37: =+'Compras (p)'!D$11*'GEN-502 Pot'!D37*D$7/('GEN-502 Pot'!D$6/1.0645) -> 0.2502232024 | E37: =+'Compras (p)'!E$11*'GEN-502 Pot'!E37*E$7/('GEN-502 Pot'!E$6/1.0645) -> 0.2321252447 | F37: =+'Compras (p)'!F$11*'GEN-502 Pot'!F37*F$7/('GEN-502 Pot'!F$6/1.0645) -> 0.2460730029 | G37: =+'Compras (p)'!G$11*'GEN-502 Pot'!G37*G$7/('GEN-502 Pot'!G$6/1.0645) -> 0.2527827458 | H37: =+SUM(B37:G37) -> 509.2345073
A38: =+'GEN-502 Pot'!A38 -> Unión Eólica de Panamá (PE Rosa de los Vientos) No. 20-12' | B38: =+'Compras (p)'!B$11*'GEN-502 Pot'!B38*B$7/('GEN-502 Pot'!B$6/1.0645) -> 0.2606121901 | C38: =+'Compras (p)'!C$11*'GEN-502 Pot'!C38*C$7/('GEN-502 Pot'!C$6/1.0645) -> 0.2736461823 | D38: =+'Compras (p)'!D$11*'GEN-502 Pot'!D38*D$7/('GEN-502 Pot'!D$6/1.0645) -> 0.2502232024 | E38: =+'Compras (p)'!E$11*'GEN-502 Pot'!E38*E$7/('GEN-502 Pot'!E$6/1.0645) -> 0.2321252447 | F38: =+'Compras (p)'!F$11*'GEN-502 Pot'!F38*F$7/('GEN-502 Pot'!F$6/1.0645) -> 0.2460730029 | G38: =+'Compras (p)'!G$11*'GEN-502 Pot'!G38*G$7/('GEN-502 Pot'!G$6/1.0645) -> 0.2527827458 | H38: 1.515462568
A39: =+'GEN-502 Pot'!A39 -> Unión Eólica de Panamá (PE Portobelo Ballestillas) No. 21-12' | B39: =+'Compras (p)'!B$11*'GEN-502 Pot'!B39*B$7/('GEN-502 Pot'!B$6/1.0645) -> 0.2606121901 | C39: =+'Compras (p)'!C$11*'GEN-502 Pot'!C39*C$7/('GEN-502 Pot'!C$6/1.0645) -> 0.2736461823 | D39: =+'Compras (p)'!D$11*'GEN-502 Pot'!D39*D$7/('GEN-502 Pot'!D$6/1.0645) -> 0.2502232024 | E39: =+'Compras (p)'!E$11*'GEN-502 Pot'!E39*E$7/('GEN-502 Pot'!E$6/1.0645) -> 0.2321252447 | F39: =+'Compras (p)'!F$11*'GEN-502 Pot'!F39*F$7/('GEN-502 Pot'!F$6/1.0645) -> 0.2460730029 | G39: =+'Compras (p)'!G$11*'GEN-502 Pot'!G39*G$7/('GEN-502 Pot'!G$6/1.0645) -> 0.2527827458 | H39: 1.515462568
A40: =+'GEN-502 Pot'!A40 -> Unión Eólica de Panamá (PE Marañon) No. 22-12' | B40: =+'Compras (p)'!B$11*'GEN-502 Pot'!B40*B$7/('GEN-502 Pot'!B$6/1.0645) -> 0.2606121901 | C40: =+'Compras (p)'!C$11*'GEN-502 Pot'!C40*C$7/('GEN-502 Pot'!C$6/1.0645) -> 0.2736461823 | D40: =+'Compras (p)'!D$11*'GEN-502 Pot'!D40*D$7/('GEN-502 Pot'!D$6/1.0645) -> 0.2502232024 | E40: =+'Compras (p)'!E$11*'GEN-502 Pot'!E40*E$7/('GEN-502 Pot'!E$6/1.0645) -> 0.2321252447 | F40: =+'Compras (p)'!F$11*'GEN-502 Pot'!F40*F$7/('GEN-502 Pot'!F$6/1.0645) -> 0.2460730029 | G40: =+'Compras (p)'!G$11*'GEN-502 Pot'!G40*G$7/('GEN-502 Pot'!G$6/1.0645) -> 0.2527827458 | H40: 1.515462568
A41: =+'GEN-502 Pot'!A41 -> AES No. 122-12 | B41: =+'Compras (p)'!B$11*'GEN-502 Pot'!B41*B$7/('GEN-502 Pot'!B$6/1.0645) -> 3755.881563 | C41: =+'Compras (p)'!C$11*'GEN-502 Pot'!C41*C$7/('GEN-502 Pot'!C$6/1.0645) -> 3724.628593 | D41: =+'Compras (p)'!D$11*'GEN-502 Pot'!D41*D$7/('GEN-502 Pot'!D$6/1.0645) -> 3606.157917 | E41: =+'Compras (p)'!E$11*'GEN-502 Pot'!E41*E$7/('GEN-502 Pot'!E$6/1.0645) -> 3554.41781 | F41: =+'Compras (p)'!F$11*'GEN-502 Pot'!F41*F$7/('GEN-502 Pot'!F$6/1.0645) -> 3546.346218 | G41: =+'Compras (p)'!G$11*'GEN-502 Pot'!G41*G$7/('GEN-502 Pot'!G$6/1.0645) -> 3440.65404 | H41: =+SUM(B41:G41) -> 21628.08614
A42: =+'GEN-502 Pot'!A42 -> HIDRO PIEDRA No. 123-12 | B42: =+'Compras (p)'!B$11*'GEN-502 Pot'!B42*B$7/('GEN-502 Pot'!B$6/1.0645) -> 19.16266104 | C42: =+'Compras (p)'!C$11*'GEN-502 Pot'!C42*C$7/('GEN-502 Pot'!C$6/1.0645) -> 19.00320711 | D42: =+'Compras (p)'!D$11*'GEN-502 Pot'!D42*D$7/('GEN-502 Pot'!D$6/1.0645) -> 18.39876488 | E42: =+'Compras (p)'!E$11*'GEN-502 Pot'!E42*E$7/('GEN-502 Pot'!E$6/1.0645) -> 18.13478475 | F42: =+'Compras (p)'!F$11*'GEN-502 Pot'!F42*F$7/('GEN-502 Pot'!F$6/1.0645) -> 18.09360315 | G42: =+'Compras (p)'!G$11*'GEN-502 Pot'!G42*G$7/('GEN-502 Pot'!G$6/1.0645) -> 17.55435735 | H42: 110.3473783
A43: =+'GEN-502 Pot'!A43 -> Corp. Energ. Del Istmo No. 124-12 | B43: =+'Compras (p)'!B$11*'GEN-502 Pot'!B43*B$7/('GEN-502 Pot'!B$6/1.0645) -> 94.5409045 | C43: =+'Compras (p)'!C$11*'GEN-502 Pot'!C43*C$7/('GEN-502 Pot'!C$6/1.0645) -> 93.75422257 | D43: =+'Compras (p)'!D$11*'GEN-502 Pot'!D43*D$7/('GEN-502 Pot'!D$6/1.0645) -> 90.77214643 | E43: =+'Compras (p)'!E$11*'GEN-502 Pot'!E43*E$7/('GEN-502 Pot'!E$6/1.0645) -> 89.46977402 | F43: =+'Compras (p)'!F$11*'GEN-502 Pot'!F43*F$7/('GEN-502 Pot'!F$6/1.0645) -> 89.26660051 | G43: =+'Compras (p)'!G$11*'GEN-502 Pot'!G43*G$7/('GEN-502 Pot'!G$6/1.0645) -> 86.60617741 | H43: 544.4098254
A44: =+'GEN-502 Pot'!A44 -> Saltos del Francolí No. 126-12 | B44: =+'Compras (p)'!B$11*'GEN-502 Pot'!B44*B$7/('GEN-502 Pot'!B$6/1.0645) -> 9.887933096 | C44: =+'Compras (p)'!C$11*'GEN-502 Pot'!C44*C$7/('GEN-502 Pot'!C$6/1.0645) -> 9.805654866 | D44: =+'Compras (p)'!D$11*'GEN-502 Pot'!D44*D$7/('GEN-502 Pot'!D$6/1.0645) -> 9.49376268 | E44: =+'Compras (p)'!E$11*'GEN-502 Pot'!E44*E$7/('GEN-502 Pot'!E$6/1.0645) -> 9.357548929 | F44: =+'Compras (p)'!F$11*'GEN-502 Pot'!F44*F$7/('GEN-502 Pot'!F$6/1.0645) -> 9.336299226 | G44: =+'Compras (p)'!G$11*'GEN-502 Pot'!G44*G$7/('GEN-502 Pot'!G$6/1.0645) -> 9.058048391 | H44: 56.93924719
A45: =+'GEN-502 Pot'!A45 -> PASO ANCHO No. 88-11 | B45: =+'Compras (p)'!B$11*'GEN-502 Pot'!B45*B$7/('GEN-502 Pot'!B$6/1.0645) -> 226.8859067 | C45: =+'Compras (p)'!C$11*'GEN-502 Pot'!C45*C$7/('GEN-502 Pot'!C$6/1.0645) -> 218.9169459 | D45: =+'Compras (p)'!D$11*'GEN-502 Pot'!D45*D$7/('GEN-502 Pot'!D$6/1.0645) -> 211.9537715 | E45: =+'Compras (p)'!E$11*'GEN-502 Pot'!E45*E$7/('GEN-502 Pot'!E$6/1.0645) -> 197.306458 | F45: =+'Compras (p)'!F$11*'GEN-502 Pot'!F45*F$7/('GEN-502 Pot'!F$6/1.0645) -> 202.6483553 | G45: =+'Compras (p)'!G$11*'GEN-502 Pot'!G45*G$7/('GEN-502 Pot'!G$6/1.0645) -> 202.2261966 | H45: 1259.937634
A46: =+'GEN-502 Pot'!A46 -> Hidroecológica del Teribe No. 89-11 | B46: =+'Compras (p)'!B$11*'GEN-502 Pot'!B46*B$7/('GEN-502 Pot'!B$6/1.0645) -> 268.2772545 | C46: =+'Compras (p)'!C$11*'GEN-502 Pot'!C46*C$7/('GEN-502 Pot'!C$6/1.0645) -> 273.6461823 | D46: =+'Compras (p)'!D$11*'GEN-502 Pot'!D46*D$7/('GEN-502 Pot'!D$6/1.0645) -> 264.9422143 | E46: =+'Compras (p)'!E$11*'GEN-502 Pot'!E46*E$7/('GEN-502 Pot'!E$6/1.0645) -> 253.8869864 | F46: =+'Compras (p)'!F$11*'GEN-502 Pot'!F46*F$7/('GEN-502 Pot'!F$6/1.0645) -> 260.5478854 | G46: =+'Compras (p)'!G$11*'GEN-502 Pot'!G46*G$7/('GEN-502 Pot'!G$6/1.0645) -> 252.7827458 | H46: 1574.083269
A47: =+'GEN-502 Pot'!A47 -> ISTMUS HYDRO POWER CORP. No.10-13 | B47: =+'Compras (p)'!B$11*'GEN-502 Pot'!B47*B$7/('GEN-502 Pot'!B$6/1.0645) -> 115.8651137 | C47: =+'Compras (p)'!C$11*'GEN-502 Pot'!C47*C$7/('GEN-502 Pot'!C$6/1.0645) -> 115.2050428 | D47: =+'Compras (p)'!D$11*'GEN-502 Pot'!D47*D$7/('GEN-502 Pot'!D$6/1.0645) -> 116.0299709 | E47: =+'Compras (p)'!E$11*'GEN-502 Pot'!E47*E$7/('GEN-502 Pot'!E$6/1.0645) -> 104.6014384 | F47: =+'Compras (p)'!F$11*'GEN-502 Pot'!F47*F$7/('GEN-502 Pot'!F$6/1.0645) -> 99.50034245 | G47: =+'Compras (p)'!G$11*'GEN-502 Pot'!G47*G$7/('GEN-502 Pot'!G$6/1.0645) -> 96.12766084 | H47: 647.329569
A48: =+'GEN-502 Pot'!A48 -> CALDERA ENERGY CORP. No.11-13 | B48: =+'Compras (p)'!B$11*'GEN-502 Pot'!B48*B$7/('GEN-502 Pot'!B$6/1.0645) -> 131.0726015 | C48: =+'Compras (p)'!C$11*'GEN-502 Pot'!C48*C$7/('GEN-502 Pot'!C$6/1.0645) -> 243.2410509 | D48: =+'Compras (p)'!D$11*'GEN-502 Pot'!D48*D$7/('GEN-502 Pot'!D$6/1.0645) -> 279.6612262 | E48: =+'Compras (p)'!E$11*'GEN-502 Pot'!E48*E$7/('GEN-502 Pot'!E$6/1.0645) -> 377.2035227 | F48: =+'Compras (p)'!F$11*'GEN-502 Pot'!F48*F$7/('GEN-502 Pot'!F$6/1.0645) -> 233.7693527 | G48: =+'Compras (p)'!G$11*'GEN-502 Pot'!G48*G$7/('GEN-502 Pot'!G$6/1.0645) -> 66.70655792 | H48: 1331.654312
A49: =+'GEN-502 Pot'!A49 -> ELECTROGENERADORA DEL ISTMO, S.A. No.12-13 | B49: =+'Compras (p)'!B$11*'GEN-502 Pot'!B49*B$7/('GEN-502 Pot'!B$6/1.0645) -> 43.69086717 | C49: =+'Compras (p)'!C$11*'GEN-502 Pot'!C49*C$7/('GEN-502 Pot'!C$6/1.0645) -> 76.01282842 | D49: =+'Compras (p)'!D$11*'GEN-502 Pot'!D49*D$7/('GEN-502 Pot'!D$6/1.0645) -> 110.3925893 | E49: =+'Compras (p)'!E$11*'GEN-502 Pot'!E49*E$7/('GEN-502 Pot'!E$6/1.0645) -> 130.5704502 | F49: =+'Compras (p)'!F$11*'GEN-502 Pot'!F49*F$7/('GEN-502 Pot'!F$6/1.0645) -> 89.38239957 | G49: =+'Compras (p)'!G$11*'GEN-502 Pot'!G49*G$7/('GEN-502 Pot'!G$6/1.0645) -> 33.35327896 | H49: 483.4024136
A50: =+'GEN-502 Pot'!A50 -> FOUNTAIN INTERTRADE CORP. No.13-13 | B50: =+'Compras (p)'!B$11*'GEN-502 Pot'!B50*B$7/('GEN-502 Pot'!B$6/1.0645) -> 551.1947821 | C50: =+'Compras (p)'!C$11*'GEN-502 Pot'!C50*C$7/('GEN-502 Pot'!C$6/1.0645) -> 641.5026642 | D50: =+'Compras (p)'!D$11*'GEN-502 Pot'!D50*D$7/('GEN-502 Pot'!D$6/1.0645) -> 899.920388 | E50: =+'Compras (p)'!E$11*'GEN-502 Pot'!E50*E$7/('GEN-502 Pot'!E$6/1.0645) -> 1200.740368 | F50: =+'Compras (p)'!F$11*'GEN-502 Pot'!F50*F$7/('GEN-502 Pot'!F$6/1.0645) -> 763.0144823 | G50: =+'Compras (p)'!G$11*'GEN-502 Pot'!G50*G$7/('GEN-502 Pot'!G$6/1.0645) -> 414.0160072 | H50: 4470.388691
A51: =+'GEN-502 Pot'!A51 -> HIDROIBERICA, S.A. No.14-13 | B51: =+'Compras (p)'!B$11*'GEN-502 Pot'!B51*B$7/('GEN-502 Pot'!B$6/1.0645) -> 11.94217036 | C51: =+'Compras (p)'!C$11*'GEN-502 Pot'!C51*C$7/('GEN-502 Pot'!C$6/1.0645) -> 20.0673867 | D51: =+'Compras (p)'!D$11*'GEN-502 Pot'!D51*D$7/('GEN-502 Pot'!D$6/1.0645) -> 23.55041905 | E51: =+'Compras (p)'!E$11*'GEN-502 Pot'!E51*E$7/('GEN-502 Pot'!E$6/1.0645) -> 29.30581215 | F51: =+'Compras (p)'!F$11*'GEN-502 Pot'!F51*F$7/('GEN-502 Pot'!F$6/1.0645) -> 25.57711741 | G51: =+'Compras (p)'!G$11*'GEN-502 Pot'!G51*G$7/('GEN-502 Pot'!G$6/1.0645) -> 22.94705593 | H51: 133.3899616
A52: =+'GEN-502 Pot'!A52 -> NAVITAS INTERNACIONAL, S.A. No.15-13 | B52: =+'Compras (p)'!B$11*'GEN-502 Pot'!B52*B$7/('GEN-502 Pot'!B$6/1.0645) -> 116.3250176 | C52: =+'Compras (p)'!C$11*'GEN-502 Pot'!C52*C$7/('GEN-502 Pot'!C$6/1.0645) -> 128.6137057 | D52: =+'Compras (p)'!D$11*'GEN-502 Pot'!D52*D$7/('GEN-502 Pot'!D$6/1.0645) -> 151.5763846 | E52: =+'Compras (p)'!E$11*'GEN-502 Pot'!E52*E$7/('GEN-502 Pot'!E$6/1.0645) -> 153.5943729 | F52: =+'Compras (p)'!F$11*'GEN-502 Pot'!F52*F$7/('GEN-502 Pot'!F$6/1.0645) -> 126.9447197 | G52: =+'Compras (p)'!G$11*'GEN-502 Pot'!G52*G$7/('GEN-502 Pot'!G$6/1.0645) -> 91.12817986 | H52: 768.1823803
A53: =+'GEN-502 Pot'!A53 -> HIDROECOLÓGICA DEL TERIBE, S.A. No.16-13 | B53: =+'Compras (p)'!B$11*'GEN-502 Pot'!B53*B$7/('GEN-502 Pot'!B$6/1.0645) -> 0 | C53: =+'Compras (p)'!C$11*'GEN-502 Pot'!C53*C$7/('GEN-502 Pot'!C$6/1.0645) -> 0 | D53: =+'Compras (p)'!D$11*'GEN-502 Pot'!D53*D$7/('GEN-502 Pot'!D$6/1.0645) -> 29.43802381 | E53: =+'Compras (p)'!E$11*'GEN-502 Pot'!E53*E$7/('GEN-502 Pot'!E$6/1.0645) -> 145.078278 | F53: =+'Compras (p)'!F$11*'GEN-502 Pot'!F53*F$7/('GEN-502 Pot'!F$6/1.0645) -> 55.00455358 | G53: =+'Compras (p)'!G$11*'GEN-502 Pot'!G53*G$7/('GEN-502 Pot'!G$6/1.0645) -> 53.36524634 | H53: 282.8861017
A54: =+'GEN-502 Pot'!A54 -> HIDRONORTH CORP. No.17-13 | B54: =+'Compras (p)'!B$11*'GEN-502 Pot'!B54*B$7/('GEN-502 Pot'!B$6/1.0645) -> 13.98107749 | C54: =+'Compras (p)'!C$11*'GEN-502 Pot'!C54*C$7/('GEN-502 Pot'!C$6/1.0645) -> 17.02687357 | D54: =+'Compras (p)'!D$11*'GEN-502 Pot'!D54*D$7/('GEN-502 Pot'!D$6/1.0645) -> 20.01785619 | E54: =+'Compras (p)'!E$11*'GEN-502 Pot'!E54*E$7/('GEN-502 Pot'!E$6/1.0645) -> 19.7306458 | F54: =+'Compras (p)'!F$11*'GEN-502 Pot'!F54*F$7/('GEN-502 Pot'!F$6/1.0645) -> 18.42652545 | G54: =+'Compras (p)'!G$11*'GEN-502 Pot'!G54*G$7/('GEN-502 Pot'!G$6/1.0645) -> 13.34131158 | H54: 102.5242901
A55: =+'GEN-502 Pot'!A55 -> EMPRESA NACIONAL DE ENERGÍA, S.A. No.33-13 | B55: =+'Compras (p)'!B$11*'GEN-502 Pot'!B55*B$7/('GEN-502 Pot'!B$6/1.0645) -> 55.92430997 | C55: =+'Compras (p)'!C$11*'GEN-502 Pot'!C55*C$7/('GEN-502 Pot'!C$6/1.0645) -> 99.42477957 | D55: =+'Compras (p)'!D$11*'GEN-502 Pot'!D55*D$7/('GEN-502 Pot'!D$6/1.0645) -> 96.26233787 | E55: =+'Compras (p)'!E$11*'GEN-502 Pot'!E55*E$7/('GEN-502 Pot'!E$6/1.0645) -> 71.17540317 | F55: =+'Compras (p)'!F$11*'GEN-502 Pot'!F55*F$7/('GEN-502 Pot'!F$6/1.0645) -> 89.9324451 | G55: =+'Compras (p)'!G$11*'GEN-502 Pot'!G55*G$7/('GEN-502 Pot'!G$6/1.0645) -> 57.90129228 | H55: 470.620568
A56: =+'GEN-502 Pot'!A56 -> FUERZA ELÉCTRICA DEL ISTMO, S.A. No.34-13 | B56: =+'Compras (p)'!B$11*'GEN-502 Pot'!B56*B$7/('GEN-502 Pot'!B$6/1.0645) -> 21.84543358 | C56: =+'Compras (p)'!C$11*'GEN-502 Pot'!C56*C$7/('GEN-502 Pot'!C$6/1.0645) -> 22.80384853 | D56: =+'Compras (p)'!D$11*'GEN-502 Pot'!D56*D$7/('GEN-502 Pot'!D$6/1.0645) -> 22.07851786 | E56: =+'Compras (p)'!E$11*'GEN-502 Pot'!E56*E$7/('GEN-502 Pot'!E$6/1.0645) -> 16.3358141 | F56: =+'Compras (p)'!F$11*'GEN-502 Pot'!F56*F$7/('GEN-502 Pot'!F$6/1.0645) -> 20.62670759 | G56: =+'Compras (p)'!G$11*'GEN-502 Pot'!G56*G$7/('GEN-502 Pot'!G$6/1.0645) -> 20.01196738 | H56: 123.702289
A57: =+'GEN-502 Pot'!A57 -> CAFÉ DE ELETA, S.A. No.35-13 | B57: =+'Compras (p)'!B$11*'GEN-502 Pot'!B57*B$7/('GEN-502 Pot'!B$6/1.0645) -> 6.700799312 | C57: =+'Compras (p)'!C$11*'GEN-502 Pot'!C57*C$7/('GEN-502 Pot'!C$6/1.0645) -> 7.449257185 | D57: =+'Compras (p)'!D$11*'GEN-502 Pot'!D57*D$7/('GEN-502 Pot'!D$6/1.0645) -> 6.95914883 | E57: =+'Compras (p)'!E$11*'GEN-502 Pot'!E57*E$7/('GEN-502 Pot'!E$6/1.0645) -> 7.031944133 | F57: =+'Compras (p)'!F$11*'GEN-502 Pot'!F57*F$7/('GEN-502 Pot'!F$6/1.0645) -> 10.06149084 | G57: =+'Compras (p)'!G$11*'GEN-502 Pot'!G57*G$7/('GEN-502 Pot'!G$6/1.0645) -> 7.273121336 | H57: 45.47576164
A58: =+'GEN-502 Pot'!A58 -> ENERGÍA Y SERVICIOS DE PANAMÁ, S.A. No.36-13 | B58: =+'Compras (p)'!B$11*'GEN-502 Pot'!B58*B$7/('GEN-502 Pot'!B$6/1.0645) -> 324.4100543 | C58: =+'Compras (p)'!C$11*'GEN-502 Pot'!C58*C$7/('GEN-502 Pot'!C$6/1.0645) -> 405.6759045 | D58: =+'Compras (p)'!D$11*'GEN-502 Pot'!D58*D$7/('GEN-502 Pot'!D$6/1.0645) -> 404.5608737 | E58: =+'Compras (p)'!E$11*'GEN-502 Pot'!E58*E$7/('GEN-502 Pot'!E$6/1.0645) -> 354.9456133 | F58: =+'Compras (p)'!F$11*'GEN-502 Pot'!F58*F$7/('GEN-502 Pot'!F$6/1.0645) -> 444.4237655 | G58: =+'Compras (p)'!G$11*'GEN-502 Pot'!G58*G$7/('GEN-502 Pot'!G$6/1.0645) -> 266.2771314 | H58: 2200.293343
A59: =+'GEN-502 Pot'!A59 -> GENERADORA PEDREGALITO, S.A. No.37-13 | B59: =+'Compras (p)'!B$11*'GEN-502 Pot'!B59*B$7/('GEN-502 Pot'!B$6/1.0645) -> 134.7717616 | C59: =+'Compras (p)'!C$11*'GEN-502 Pot'!C59*C$7/('GEN-502 Pot'!C$6/1.0645) -> 180.2112136 | D59: =+'Compras (p)'!D$11*'GEN-502 Pot'!D59*D$7/('GEN-502 Pot'!D$6/1.0645) -> 174.5086052 | E59: =+'Compras (p)'!E$11*'GEN-502 Pot'!E59*E$7/('GEN-502 Pot'!E$6/1.0645) -> 203.9075197 | F59: =+'Compras (p)'!F$11*'GEN-502 Pot'!F59*F$7/('GEN-502 Pot'!F$6/1.0645) -> 198.3189179 | G59: =+'Compras (p)'!G$11*'GEN-502 Pot'!G59*G$7/('GEN-502 Pot'!G$6/1.0645) -> 90.34736205 | H59: 982.06538
A60: =+'GEN-502 Pot'!A60 -> GENERADORA RIO CHICO, S.A. No.38-13 | B60: =+'Compras (p)'!B$11*'GEN-502 Pot'!B60*B$7/('GEN-502 Pot'!B$6/1.0645) -> 83.10002935 | C60: =+'Compras (p)'!C$11*'GEN-502 Pot'!C60*C$7/('GEN-502 Pot'!C$6/1.0645) -> 111.0653841 | D60: =+'Compras (p)'!D$11*'GEN-502 Pot'!D60*D$7/('GEN-502 Pot'!D$6/1.0645) -> 107.5017754 | E60: =+'Compras (p)'!E$11*'GEN-502 Pot'!E60*E$7/('GEN-502 Pot'!E$6/1.0645) -> 125.5768558 | F60: =+'Compras (p)'!F$11*'GEN-502 Pot'!F60*F$7/('GEN-502 Pot'!F$6/1.0645) -> 122.1737984 | G60: =+'Compras (p)'!G$11*'GEN-502 Pot'!G60*G$7/('GEN-502 Pot'!G$6/1.0645) -> 55.75966068 | H60: 605.1775038
A61: =+'GEN-502 Pot'!A61 -> GENERADORA ALTO VALLE, S.A. No.39-13 | B61: =+'Compras (p)'!B$11*'GEN-502 Pot'!B61*B$7/('GEN-502 Pot'!B$6/1.0645) -> 118.7180507 | C61: =+'Compras (p)'!C$11*'GEN-502 Pot'!C61*C$7/('GEN-502 Pot'!C$6/1.0645) -> 162.3177938 | D61: =+'Compras (p)'!D$11*'GEN-502 Pot'!D61*D$7/('GEN-502 Pot'!D$6/1.0645) -> 157.7966391 | E61: =+'Compras (p)'!E$11*'GEN-502 Pot'!E61*E$7/('GEN-502 Pot'!E$6/1.0645) -> 166.3931786 | F61: =+'Compras (p)'!F$11*'GEN-502 Pot'!F61*F$7/('GEN-502 Pot'!F$6/1.0645) -> 142.4878486 | G61: =+'Compras (p)'!G$11*'GEN-502 Pot'!G61*G$7/('GEN-502 Pot'!G$6/1.0645) -> 69.78489003 | H61: 817.4984007
A62: =+'GEN-502 Pot'!A62 -> HYDRO CAISÁN, S.A. No.40-13 | B62: =+'Compras (p)'!B$11*'GEN-502 Pot'!B62*B$7/('GEN-502 Pot'!B$6/1.0645) -> 295.0252633 | C62: =+'Compras (p)'!C$11*'GEN-502 Pot'!C62*C$7/('GEN-502 Pot'!C$6/1.0645) -> 531.9484151 | D62: =+'Compras (p)'!D$11*'GEN-502 Pot'!D62*D$7/('GEN-502 Pot'!D$6/1.0645) -> 620.0207138 | E62: =+'Compras (p)'!E$11*'GEN-502 Pot'!E62*E$7/('GEN-502 Pot'!E$6/1.0645) -> 259.2418257 | F62: =+'Compras (p)'!F$11*'GEN-502 Pot'!F62*F$7/('GEN-502 Pot'!F$6/1.0645) -> 539.6294103 | G62: =+'Compras (p)'!G$11*'GEN-502 Pot'!G62*G$7/('GEN-502 Pot'!G$6/1.0645) -> 144.593135 | H62: 2390.458763
A63: =+'GEN-502 Pot'!A63 -> SIGSA, S.A. No. 137-12 | H63: 0
A64: =+'GEN-502 Pot'!A64 -> PARQUE EÓLICO TOABRÉ, S.A. No 09-14 | B64: =+'Compras (p)'!B$11*'GEN-502 Pot'!B64*B$7/('GEN-502 Pot'!B$6/1.0645) -> 607.0731017 | C64: =+'Compras (p)'!C$11*'GEN-502 Pot'!C64*C$7/('GEN-502 Pot'!C$6/1.0645) -> 608.1026274 | D64: =+'Compras (p)'!D$11*'GEN-502 Pot'!D64*D$7/('GEN-502 Pot'!D$6/1.0645) -> 587.2885751 | E64: =+'Compras (p)'!E$11*'GEN-502 Pot'!E64*E$7/('GEN-502 Pot'!E$6/1.0645) -> 591.9193741 | F64: =+'Compras (p)'!F$11*'GEN-502 Pot'!F64*F$7/('GEN-502 Pot'!F$6/1.0645) -> 859.8080217 | G64: =+'Compras (p)'!G$11*'GEN-502 Pot'!G64*G$7/('GEN-502 Pot'!G$6/1.0645) -> 1452.09644 | H64: =+SUM(B64:G64) -> 4706.28814
A65: =+'GEN-502 Pot'!A65 -> NAURA ENERGY CORP. No 10-14 | B65: =+'Compras (p)'!B$11*'GEN-502 Pot'!B65*B$7/('GEN-502 Pot'!B$6/1.0645) -> 29.67912942 | C65: =+'Compras (p)'!C$11*'GEN-502 Pot'!C65*C$7/('GEN-502 Pot'!C$6/1.0645) -> 30.40513137 | D65: =+'Compras (p)'!D$11*'GEN-502 Pot'!D65*D$7/('GEN-502 Pot'!D$6/1.0645) -> 29.0553295 | E65: =+'Compras (p)'!E$11*'GEN-502 Pot'!E65*E$7/('GEN-502 Pot'!E$6/1.0645) -> 52.9245558 | F65: =+'Compras (p)'!F$11*'GEN-502 Pot'!F65*F$7/('GEN-502 Pot'!F$6/1.0645) -> 52.22537613 | G65: =+'Compras (p)'!G$11*'GEN-502 Pot'!G65*G$7/('GEN-502 Pot'!G$6/1.0645) -> 141.5021637 | H65: 335.7916859
A66: =+'GEN-502 Pot'!A66 -> Panama Solar2 No. 10-15 | B66: =+'Compras (p)'!B$11*'GEN-502 Pot'!B66*B$7/('GEN-502 Pot'!B$6/1.0645) -> 47.52339937 | C66: =+'Compras (p)'!C$11*'GEN-502 Pot'!C66*C$7/('GEN-502 Pot'!C$6/1.0645) -> 97.29642038 | D66: =+'Compras (p)'!D$11*'GEN-502 Pot'!D66*D$7/('GEN-502 Pot'!D$6/1.0645) -> 95.6735774 | E66: =+'Compras (p)'!E$11*'GEN-502 Pot'!E66*E$7/('GEN-502 Pot'!E$6/1.0645) -> 94.30088068 | F66: =+'Compras (p)'!F$11*'GEN-502 Pot'!F66*F$7/('GEN-502 Pot'!F$6/1.0645) -> 52.10957707 | G66: =+'Compras (p)'!G$11*'GEN-502 Pot'!G66*G$7/('GEN-502 Pot'!G$6/1.0645) -> 61.79133786 | H66: 448.6951928
A67: =+'GEN-502 Pot'!A67 -> Solpac Investment No. 11-15 | B67: =+'Compras (p)'!B$11*'GEN-502 Pot'!B67*B$7/('GEN-502 Pot'!B$6/1.0645) -> 7.665064415 | C67: =+'Compras (p)'!C$11*'GEN-502 Pot'!C67*C$7/('GEN-502 Pot'!C$6/1.0645) -> 16.72282225 | D67: =+'Compras (p)'!D$11*'GEN-502 Pot'!D67*D$7/('GEN-502 Pot'!D$6/1.0645) -> 16.1909131 | E67: =+'Compras (p)'!E$11*'GEN-502 Pot'!E67*E$7/('GEN-502 Pot'!E$6/1.0645) -> 15.95861058 | F67: =+'Compras (p)'!F$11*'GEN-502 Pot'!F67*F$7/('GEN-502 Pot'!F$6/1.0645) -> 8.684929512 | G67: =+'Compras (p)'!G$11*'GEN-502 Pot'!G67*G$7/('GEN-502 Pot'!G$6/1.0645) -> 9.830440115 | H67: 75.05277997
A68: =+'GEN-502 Pot'!A68 -> GAS NATURAL ATLÁNTICO No. 17-15 | B68: =+'Compras (p)'!B$11*'GEN-502 Pot'!B68*B$7/('GEN-502 Pot'!B$6/1.0645) -> 4292.436072 | C68: =+'Compras (p)'!C$11*'GEN-502 Pot'!C68*C$7/('GEN-502 Pot'!C$6/1.0645) -> 4256.718392 | D68: =+'Compras (p)'!D$11*'GEN-502 Pot'!D68*D$7/('GEN-502 Pot'!D$6/1.0645) -> 4121.323334 | E68: =+'Compras (p)'!E$11*'GEN-502 Pot'!E68*E$7/('GEN-502 Pot'!E$6/1.0645) -> 4062.191783 | F68: =+'Compras (p)'!F$11*'GEN-502 Pot'!F68*F$7/('GEN-502 Pot'!F$6/1.0645) -> 4052.967106 | G68: =+'Compras (p)'!G$11*'GEN-502 Pot'!G68*G$7/('GEN-502 Pot'!G$6/1.0645) -> 3932.176046 | H68: 24717.81273
A69: =+'GEN-502 Pot'!A69 -> MARTANO INC No. 19-15 | B69: =+'Compras (p)'!B$11*'GEN-502 Pot'!B69*B$7/('GEN-502 Pot'!B$6/1.0645) -> 4292.436072 | C69: =+'Compras (p)'!C$11*'GEN-502 Pot'!C69*C$7/('GEN-502 Pot'!C$6/1.0645) -> 4256.718392 | D69: =+'Compras (p)'!D$11*'GEN-502 Pot'!D69*D$7/('GEN-502 Pot'!D$6/1.0645) -> 4121.323334 | E69: =+'Compras (p)'!E$11*'GEN-502 Pot'!E69*E$7/('GEN-502 Pot'!E$6/1.0645) -> 4062.191783 | F69: =+'Compras (p)'!F$11*'GEN-502 Pot'!F69*F$7/('GEN-502 Pot'!F$6/1.0645) -> 4052.967106 | G69: =+'Compras (p)'!G$11*'GEN-502 Pot'!G69*G$7/('GEN-502 Pot'!G$6/1.0645) -> 3932.176046 | H69: 24717.81273
A70: =+'GEN-502 Pot'!A70 -> ENEL FORTUNA, S.A. No. 36-21 | B70: =+'Compras (p)'!B$11*'GEN-502 Pot'!B70*B$7/('GEN-502 Pot'!B$6/1.0645) -> 1522.990045 | C70: =+'Compras (p)'!C$11*'GEN-502 Pot'!C70*C$7/('GEN-502 Pot'!C$6/1.0645) -> 1661.482323 | H70: =+SUM(B70:G70) -> 3184.472367
A71: =+'GEN-502 Pot'!A71 -> HIDRO BOQUERÓN, S.A. No. 40-21 | B71: =+'Compras (p)'!B$11*'GEN-502 Pot'!B71*B$7/('GEN-502 Pot'!B$6/1.0645) -> 7.540072765 | C71: =+'Compras (p)'!C$11*'GEN-502 Pot'!C71*C$7/('GEN-502 Pot'!C$6/1.0645) -> 6.87239945 | H71: 14.41247221
A72: =+'GEN-502 Pot'!A72 -> AUTORIDAD DEL CANAL DE PANAMÁ No. 57-21 | H72: 0
A73: =+'GEN-502 Pot'!A73 -> GENERADORA DEL ATLÁNTICO, S.A. No. 59-21 | H73: 0
A74: =+'GEN-502 Pot'!A74 -> GENERADORA DEL ATLÁNTICO, S.A. No. 60-21 | H74: 0
A75: =+'GEN-502 Pot'!A75 -> PANAM GENERATING LTD No. 61-21 | H75: 0
A76: =+'GEN-502 Pot'!A76 -> TROPITÉRMICA, S.A. No. 63-21 | H76: 0
A77: =+'GEN-502 Pot'!A77 -> EMPRESA NACIONAL DE ENERGÍA, S.A. No. 23-23 | B77: =+'Compras (p)'!B$11*'GEN-502 Pot'!B77*B$7/('GEN-502 Pot'!B$6/1.0645) -> 63.06815001 | C77: =+'Compras (p)'!C$11*'GEN-502 Pot'!C77*C$7/('GEN-502 Pot'!C$6/1.0645) -> 0 | D77: =+'Compras (p)'!D$11*'GEN-502 Pot'!D77*D$7/('GEN-502 Pot'!D$6/1.0645) -> 42.28772121 | E77: =+'Compras (p)'!E$11*'GEN-502 Pot'!E77*E$7/('GEN-502 Pot'!E$6/1.0645) -> 103.4117965 | F77: =+'Compras (p)'!F$11*'GEN-502 Pot'!F77*F$7/('GEN-502 Pot'!F$6/1.0645) -> 15.9802703 | G77: =+'Compras (p)'!G$11*'GEN-502 Pot'!G77*G$7/('GEN-502 Pot'!G$6/1.0645) -> 0 | H77: 224.7479381
A78: =+'GEN-502 Pot'!A78 -> FOUNTAIN HYDRO POWER CORP No. 24-23 | B78: =+'Compras (p)'!B$11*'GEN-502 Pot'!B78*B$7/('GEN-502 Pot'!B$6/1.0645) -> 735.9688249 | C78: =+'Compras (p)'!C$11*'GEN-502 Pot'!C78*C$7/('GEN-502 Pot'!C$6/1.0645) -> 0 | D78: =+'Compras (p)'!D$11*'GEN-502 Pot'!D78*D$7/('GEN-502 Pot'!D$6/1.0645) -> 0 | E78: =+'Compras (p)'!E$11*'GEN-502 Pot'!E78*E$7/('GEN-502 Pot'!E$6/1.0645) -> 0 | F78: =+'Compras (p)'!F$11*'GEN-502 Pot'!F78*F$7/('GEN-502 Pot'!F$6/1.0645) -> 0 | G78: =+'Compras (p)'!G$11*'GEN-502 Pot'!G78*G$7/('GEN-502 Pot'!G$6/1.0645) -> 0 | H78: 735.9688249
A79: =+'GEN-502 Pot'!A79 -> GENERADORA DEL ISTMO, S.A. No. 25-23 | B79: =+'Compras (p)'!B$11*'GEN-502 Pot'!B79*B$7/('GEN-502 Pot'!B$6/1.0645) -> 312.7346281 | H79: 312.7346281
A80: =+'GEN-502 Pot'!A80 -> HIDRO BOQUERÓN, S.A. No. 26-23 | B80: =+'Compras (p)'!B$11*'GEN-502 Pot'!B80*B$7/('GEN-502 Pot'!B$6/1.0645) -> 38.10150219 | C80: =+'Compras (p)'!C$11*'GEN-502 Pot'!C80*C$7/('GEN-502 Pot'!C$6/1.0645) -> 19.15523276 | D80: =+'Compras (p)'!D$11*'GEN-502 Pot'!D80*D$7/('GEN-502 Pot'!D$6/1.0645) -> 66.05892544 | E80: =+'Compras (p)'!E$11*'GEN-502 Pot'!E80*E$7/('GEN-502 Pot'!E$6/1.0645) -> 74.99966658 | F80: =+'Compras (p)'!F$11*'GEN-502 Pot'!F80*F$7/('GEN-502 Pot'!F$6/1.0645) -> 41.24762523 | G80: =+'Compras (p)'!G$11*'GEN-502 Pot'!G80*G$7/('GEN-502 Pot'!G$6/1.0645) -> 0 | H80: 239.5629522
A81: =+'GEN-502 Pot'!A81 -> HIDROIBÉRICA No. 27-23 | B81: =+'Compras (p)'!B$11*'GEN-502 Pot'!B81*B$7/('GEN-502 Pot'!B$6/1.0645) -> 20.12386012 | C81: =+'Compras (p)'!C$11*'GEN-502 Pot'!C81*C$7/('GEN-502 Pot'!C$6/1.0645) -> 14.33145867 | D81: =+'Compras (p)'!D$11*'GEN-502 Pot'!D81*D$7/('GEN-502 Pot'!D$6/1.0645) -> 14.74109042 | E81: =+'Compras (p)'!E$11*'GEN-502 Pot'!E81*E$7/('GEN-502 Pot'!E$6/1.0645) -> 11.19569071 | F81: =+'Compras (p)'!F$11*'GEN-502 Pot'!F81*F$7/('GEN-502 Pot'!F$6/1.0645) -> 12.09665932 | G81: =+'Compras (p)'!G$11*'GEN-502 Pot'!G81*G$7/('GEN-502 Pot'!G$6/1.0645) -> 14.00275977 | H81: 86.49151901
A82: =+'GEN-502 Pot'!A82 -> IDEAL PANAMÁ, S.A. No. 29-23 | B82: =+'Compras (p)'!B$11*'GEN-502 Pot'!B82*B$7/('GEN-502 Pot'!B$6/1.0645) -> 521.2243802 | C82: =+'Compras (p)'!C$11*'GEN-502 Pot'!C82*C$7/('GEN-502 Pot'!C$6/1.0645) -> 0 | D82: =+'Compras (p)'!D$11*'GEN-502 Pot'!D82*D$7/('GEN-502 Pot'!D$6/1.0645) -> 0 | E82: =+'Compras (p)'!E$11*'GEN-502 Pot'!E82*E$7/('GEN-502 Pot'!E$6/1.0645) -> 0 | F82: =+'Compras (p)'!F$11*'GEN-502 Pot'!F82*F$7/('GEN-502 Pot'!F$6/1.0645) -> 0 | G82: =+'Compras (p)'!G$11*'GEN-502 Pot'!G82*G$7/('GEN-502 Pot'!G$6/1.0645) -> 0 | H82: 521.2243802
A83: =+'GEN-502 Pot'!A83 -> SOLAR BOQUERÓN, S.A. No. 33-23 | B83: =+'Compras (p)'!B$11*'GEN-502 Pot'!B83*B$7/('GEN-502 Pot'!B$6/1.0645) -> 12.66575244 | C83: =+'Compras (p)'!C$11*'GEN-502 Pot'!C83*C$7/('GEN-502 Pot'!C$6/1.0645) -> 7.662093105 | D83: =+'Compras (p)'!D$11*'GEN-502 Pot'!D83*D$7/('GEN-502 Pot'!D$6/1.0645) -> 6.305624701 | E83: =+'Compras (p)'!E$11*'GEN-502 Pot'!E83*E$7/('GEN-502 Pot'!E$6/1.0645) -> 6.162925248 | F83: =+'Compras (p)'!F$11*'GEN-502 Pot'!F83*F$7/('GEN-502 Pot'!F$6/1.0645) -> 6.091030565 | G83: =+'Compras (p)'!G$11*'GEN-502 Pot'!G83*G$7/('GEN-502 Pot'!G$6/1.0645) -> 6.163685952 | H83: 45.05111201
A84: =+'GEN-502 Pot'!A84 -> AUTORIDAD DEL CANAL DE PANAMÁ No. 34-23 | H84: =+SUM(B84:G84) -> 0
A85: =+'GEN-502 Pot'!A85 -> CELSIA CENTROAMÉRICA, S.A. No. 35-23 | H85: 0
A86: =+'GEN-502 Pot'!A86 -> GENERADORA DEL ATLÁNTICO, S.A. No. 36-23 | H86: 0
A87: =+'GEN-502 Pot'!A87 -> GENERADORA DEL ATLÁNTICO, S.A. No. 37-23 | H87: 0
A88: =+'GEN-502 Pot'!A88 -> PEDREGAL POWER, S. DE R.L. No. 38-23 | H88: 0
A89: =+'GEN-502 Pot'!A89 -> PANAM GENERATING LTD No. 39-23 | H89: 0
A90: =+'GEN-502 Pot'!A90 -> PANAM GENERATING LTD No. 40-23 | H90: 0
A91: =+'GEN-502 Pot'!A91 -> SPARKLE POWER, S.A. No. 41-23 | H91: 0
A92: =+'GEN-502 Pot'!A92 -> TROPITÉRMICA, S.A. No. 42-23 | H92: 0

Sheet GEN-502 Gen_FP
A1: INFORMACION PARA ACTUALIZAR: CARGO POR GENERACION
A2: =+'Compras (p)'!A2 -> EDECHI
A3: Porción de Compra Mensual de Energía en Horas Fuera de Punta para atender Clientes Regulados (MWh)
B4: ESTIMACION DE COMPRA DE ENERGIA HORAS FUERA DE PUNTA
A5: Detalle | B5: 2023-07-01 | C5: 2023-08-01 | D5: 2023-09-01 | E5: 2023-10-01 | F5: 2023-11-01 | G5: 2023-12-01 | H5: Total
A7: Generación Fuera de Punta | B7: 0.7412968622 | C7: 0.7412968622 | D7: 0.7412968622 | E7: 0.7412968622 | F7: 0.7412968622 | G7: 0.7412968622
A8: Total Compra de Energía en Horas de F.Punta | B8: =+B9+B15 -> 62592.01375 | C8: 64592.00421 | D8: 62707.87134 | E8: 63499.12383 | F8: 60880.73309 | G8: 64585.4522 | H8: =+SUM(B8:G8) -> 378857.1984
A9: Generación Propia | B9: 0 | C9: 0 | D9: 0 | E9: 0 | F9: 0 | G9: 0 | H9: 0
A10: 0 | H10: 0
A11: 0 | H11: 0
A12: 0 | H12: 0
A13: 0 | H13: 0
A14: 0 | H14: 0
A15: Sub-Total Mercado Mayorista | B15: =+SUM(B16:B24) -> 62592.01375 | C15: 64592.00421 | D15: 62707.87134 | E15: 63499.12383 | F15: 60880.73309 | G15: 64585.4522 | H15: 378857.1984
A16: Mercado Ocasional | B16: =+('Compras (p)'!B7)*B7-B24 -> 5198.67074 | C16: =+('Compras (p)'!C7)*C7-C24 -> 9698.664182 | D16: =+('Compras (p)'!D7)*D7-D24 -> 13029.13522 | E16: =+('Compras (p)'!E7)*E7-E24 -> 13736.51772 | F16: =+('Compras (p)'!F7)*F7-F24 -> 11993.05613 | G16: =+('Compras (p)'!G7)*G7-G24 -> 19199.24078 | H16: 72855.28477
H17: 0
H18: 0
H19: 0
H20: 0
H21: 0
H22: 0
H23: 0
A24: Sub-Total Contratros | B24: =SUM(B25:B141) -> 57393.34301 | C24: 54893.34003 | D24: 49678.73612 | E24: 49762.60612 | F24: 48887.67696 | G24: 45386.21142 | H24: 306001.9137
A25: =+'GEN-502 Pot'!A25 -> Empresa Nacional de Energía No. 36-11 (Cesión) | B25: =+'Compras (p)'!B$11*'GEN-502 Pot'!B25*B$7/('GEN-502 Pot'!B$6/1.0645) -> 292.5570035 | C25: =+'Compras (p)'!C$11*'GEN-502 Pot'!C25*C$7/('GEN-502 Pot'!C$6/1.0645) -> 290.1226149 | D25: =+'Compras (p)'!D$11*'GEN-502 Pot'!D25*D$7/('GEN-502 Pot'!D$6/1.0645) -> 280.8945747 | E25: =+'Compras (p)'!E$11*'GEN-502 Pot'!E25*E$7/('GEN-502 Pot'!E$6/1.0645) -> 276.8643809 | F25: =+'Compras (p)'!F$11*'GEN-502 Pot'!F25*F$7/('GEN-502 Pot'!F$6/1.0645) -> 276.2356601 | G25: =+'Compras (p)'!G$11*'GEN-502 Pot'!G25*G$7/('GEN-502 Pot'!G$6/1.0645) -> 268.0029759 | H25: =+SUM(B25:G25) -> 1684.67721
A26: =+'GEN-502 Pot'!A26 -> Enel Fortuna No. 37-11 | B26: =+'Compras (p)'!B$11*'GEN-502 Pot'!B26*B$7/('GEN-502 Pot'!B$6/1.0645) -> 863.6273959 | C26: =+'Compras (p)'!C$11*'GEN-502 Pot'!C26*C$7/('GEN-502 Pot'!C$6/1.0645) -> 856.4410879 | D26: =+'Compras (p)'!D$11*'GEN-502 Pot'!D26*D$7/('GEN-502 Pot'!D$6/1.0645) -> 829.1999411 | E26: =+'Compras (p)'!E$11*'GEN-502 Pot'!E26*E$7/('GEN-502 Pot'!E$6/1.0645) -> 817.302821 | F26: =+'Compras (p)'!F$11*'GEN-502 Pot'!F26*F$7/('GEN-502 Pot'!F$6/1.0645) -> 815.4468391 | G26: =+'Compras (p)'!G$11*'GEN-502 Pot'!G26*G$7/('GEN-502 Pot'!G$6/1.0645) -> 791.1439801 | H26: 4973.162065
A27: =+'GEN-502 Pot'!A27 -> Electrogeneradora del Istmo No. 38-11 | B27: =+'Compras (p)'!B$11*'GEN-502 Pot'!B27*B$7/('GEN-502 Pot'!B$6/1.0645) -> 36.56962544 | C27: =+'Compras (p)'!C$11*'GEN-502 Pot'!C27*C$7/('GEN-502 Pot'!C$6/1.0645) -> 36.26532686 | D27: =+'Compras (p)'!D$11*'GEN-502 Pot'!D27*D$7/('GEN-502 Pot'!D$6/1.0645) -> 35.11182184 | E27: =+'Compras (p)'!E$11*'GEN-502 Pot'!E27*E$7/('GEN-502 Pot'!E$6/1.0645) -> 34.60804761 | F27: =+'Compras (p)'!F$11*'GEN-502 Pot'!F27*F$7/('GEN-502 Pot'!F$6/1.0645) -> 34.52945751 | G27: =+'Compras (p)'!G$11*'GEN-502 Pot'!G27*G$7/('GEN-502 Pot'!G$6/1.0645) -> 33.50037199 | H27: 210.5846513
A28: =+'GEN-502 Pot'!A28 -> ESEPSA No. 39-11 | B28: =+'Compras (p)'!B$11*'GEN-502 Pot'!B28*B$7/('GEN-502 Pot'!B$6/1.0645) -> 160.3221165 | C28: =+'Compras (p)'!C$11*'GEN-502 Pot'!C28*C$7/('GEN-502 Pot'!C$6/1.0645) -> 158.9880642 | D28: =+'Compras (p)'!D$11*'GEN-502 Pot'!D28*D$7/('GEN-502 Pot'!D$6/1.0645) -> 153.9310705 | E28: =+'Compras (p)'!E$11*'GEN-502 Pot'!E28*E$7/('GEN-502 Pot'!E$6/1.0645) -> 151.7225122 | F28: =+'Compras (p)'!F$11*'GEN-502 Pot'!F28*F$7/('GEN-502 Pot'!F$6/1.0645) -> 151.3779713 | G28: =+'Compras (p)'!G$11*'GEN-502 Pot'!G28*G$7/('GEN-502 Pot'!G$6/1.0645) -> 146.8664356 | H28: 923.2081702
A29: =+'GEN-502 Pot'!A29 -> Pedregalito No. 40-11 | B29: =+'Compras (p)'!B$11*'GEN-502 Pot'!B29*B$7/('GEN-502 Pot'!B$6/1.0645) -> 115.2085966 | C29: =+'Compras (p)'!C$11*'GEN-502 Pot'!C29*C$7/('GEN-502 Pot'!C$6/1.0645) -> 114.2499372 | D29: =+'Compras (p)'!D$11*'GEN-502 Pot'!D29*D$7/('GEN-502 Pot'!D$6/1.0645) -> 110.6159461 | E29: =+'Compras (p)'!E$11*'GEN-502 Pot'!E29*E$7/('GEN-502 Pot'!E$6/1.0645) -> 109.0288606 | F29: =+'Compras (p)'!F$11*'GEN-502 Pot'!F29*F$7/('GEN-502 Pot'!F$6/1.0645) -> 108.7812711 | G29: =+'Compras (p)'!G$11*'GEN-502 Pot'!G29*G$7/('GEN-502 Pot'!G$6/1.0645) -> 105.53925 | H29: 663.4238617
A30: =+'GEN-502 Pot'!A30 -> Río Chico No. 41-11 | B30: =+'Compras (p)'!B$11*'GEN-502 Pot'!B30*B$7/('GEN-502 Pot'!B$6/1.0645) -> 70.65295563 | C30: =+'Compras (p)'!C$11*'GEN-502 Pot'!C30*C$7/('GEN-502 Pot'!C$6/1.0645) -> 70.06504711 | D30: =+'Compras (p)'!D$11*'GEN-502 Pot'!D30*D$7/('GEN-502 Pot'!D$6/1.0645) -> 67.83646156 | E30: =+'Compras (p)'!E$11*'GEN-502 Pot'!E30*E$7/('GEN-502 Pot'!E$6/1.0645) -> 66.8631637 | F30: =+'Compras (p)'!F$11*'GEN-502 Pot'!F30*F$7/('GEN-502 Pot'!F$6/1.0645) -> 66.71132668 | G30: =+'Compras (p)'!G$11*'GEN-502 Pot'!G30*G$7/('GEN-502 Pot'!G$6/1.0645) -> 64.72312109 | H30: 406.8520758
A31: =+'GEN-502 Pot'!A31 -> Alto Valle No. 42-11 | B31: =+'Compras (p)'!B$11*'GEN-502 Pot'!B31*B$7/('GEN-502 Pot'!B$6/1.0645) -> 67.23100509 | C31: =+'Compras (p)'!C$11*'GEN-502 Pot'!C31*C$7/('GEN-502 Pot'!C$6/1.0645) -> 66.67157088 | D31: =+'Compras (p)'!D$11*'GEN-502 Pot'!D31*D$7/('GEN-502 Pot'!D$6/1.0645) -> 64.55092292 | E31: =+'Compras (p)'!E$11*'GEN-502 Pot'!E31*E$7/('GEN-502 Pot'!E$6/1.0645) -> 63.62476501 | F31: =+'Compras (p)'!F$11*'GEN-502 Pot'!F31*F$7/('GEN-502 Pot'!F$6/1.0645) -> 63.48028195 | G31: =+'Compras (p)'!G$11*'GEN-502 Pot'!G31*G$7/('GEN-502 Pot'!G$6/1.0645) -> 61.58837157 | H31: 387.1469174
A32: =+'GEN-502 Pot'!A32 -> Hidroecológica del Teribe No. 43-11 | B32: =+'Compras (p)'!B$11*'GEN-502 Pot'!B32*B$7/('GEN-502 Pot'!B$6/1.0645) -> 292.5570035 | C32: =+'Compras (p)'!C$11*'GEN-502 Pot'!C32*C$7/('GEN-502 Pot'!C$6/1.0645) -> 290.1226149 | D32: =+'Compras (p)'!D$11*'GEN-502 Pot'!D32*D$7/('GEN-502 Pot'!D$6/1.0645) -> 280.8945747 | E32: =+'Compras (p)'!E$11*'GEN-502 Pot'!E32*E$7/('GEN-502 Pot'!E$6/1.0645) -> 276.8643809 | F32: =+'Compras (p)'!F$11*'GEN-502 Pot'!F32*F$7/('GEN-502 Pot'!F$6/1.0645) -> 276.2356601 | G32: =+'Compras (p)'!G$11*'GEN-502 Pot'!G32*G$7/('GEN-502 Pot'!G$6/1.0645) -> 268.0029759 | H32: 1684.67721
A33: =+'GEN-502 Pot'!A33 -> Desarrollos Hidroeléctricos Corp. No. 44-11 | B33: =+'Compras (p)'!B$11*'GEN-502 Pot'!B33*B$7/('GEN-502 Pot'!B$6/1.0645) -> 55.67368563 | C33: =+'Compras (p)'!C$11*'GEN-502 Pot'!C33*C$7/('GEN-502 Pot'!C$6/1.0645) -> 55.21042073 | D33: =+'Compras (p)'!D$11*'GEN-502 Pot'!D33*D$7/('GEN-502 Pot'!D$6/1.0645) -> 53.45432193 | E33: =+'Compras (p)'!E$11*'GEN-502 Pot'!E33*E$7/('GEN-502 Pot'!E$6/1.0645) -> 52.68737483 | F33: =+'Compras (p)'!F$11*'GEN-502 Pot'!F33*F$7/('GEN-502 Pot'!F$6/1.0645) -> 52.56772907 | G33: =+'Compras (p)'!G$11*'GEN-502 Pot'!G33*G$7/('GEN-502 Pot'!G$6/1.0645) -> 51.0010468 | H33: 320.594579
A34: =+'GEN-502 Pot'!A34 -> Las Perlas Norte No. 45-11 | B34: =+'Compras (p)'!B$11*'GEN-502 Pot'!B34*B$7/('GEN-502 Pot'!B$6/1.0645) -> 348.1428342 | C34: =+'Compras (p)'!C$11*'GEN-502 Pot'!C34*C$7/('GEN-502 Pot'!C$6/1.0645) -> 345.2459117 | D34: =+'Compras (p)'!D$11*'GEN-502 Pot'!D34*D$7/('GEN-502 Pot'!D$6/1.0645) -> 334.2645439 | E34: =+'Compras (p)'!E$11*'GEN-502 Pot'!E34*E$7/('GEN-502 Pot'!E$6/1.0645) -> 329.4686133 | F34: =+'Compras (p)'!F$11*'GEN-502 Pot'!F34*F$7/('GEN-502 Pot'!F$6/1.0645) -> 328.7204355 | G34: =+'Compras (p)'!G$11*'GEN-502 Pot'!G34*G$7/('GEN-502 Pot'!G$6/1.0645) -> 318.9235413 | H34: 2004.76588
A35: =+'GEN-502 Pot'!A35 -> Hidroeléctrica San Lorenzo No. 46-11 | B35: =+'Compras (p)'!B$11*'GEN-502 Pot'!B35*B$7/('GEN-502 Pot'!B$6/1.0645) -> 38.99881498 | C35: =+'Compras (p)'!C$11*'GEN-502 Pot'!C35*C$7/('GEN-502 Pot'!C$6/1.0645) -> 38.67430293 | D35: =+'Compras (p)'!D$11*'GEN-502 Pot'!D35*D$7/('GEN-502 Pot'!D$6/1.0645) -> 37.44417469 | E35: =+'Compras (p)'!E$11*'GEN-502 Pot'!E35*E$7/('GEN-502 Pot'!E$6/1.0645) -> 36.90693654 | F35: =+'Compras (p)'!F$11*'GEN-502 Pot'!F35*F$7/('GEN-502 Pot'!F$6/1.0645) -> 36.82312598 | G35: =+'Compras (p)'!G$11*'GEN-502 Pot'!G35*G$7/('GEN-502 Pot'!G$6/1.0645) -> 35.72568198 | H35: 224.5730371
A36: =+'GEN-502 Pot'!A36 -> Caldera Energy Corp. No. 47-11 | B36: =+'Compras (p)'!B$11*'GEN-502 Pot'!B36*B$7/('GEN-502 Pot'!B$6/1.0645) -> 87.76710106 | C36: =+'Compras (p)'!C$11*'GEN-502 Pot'!C36*C$7/('GEN-502 Pot'!C$6/1.0645) -> 87.03678446 | D36: =+'Compras (p)'!D$11*'GEN-502 Pot'!D36*D$7/('GEN-502 Pot'!D$6/1.0645) -> 84.26837242 | E36: =+'Compras (p)'!E$11*'GEN-502 Pot'!E36*E$7/('GEN-502 Pot'!E$6/1.0645) -> 83.05931427 | F36: =+'Compras (p)'!F$11*'GEN-502 Pot'!F36*F$7/('GEN-502 Pot'!F$6/1.0645) -> 82.87069803 | G36: =+'Compras (p)'!G$11*'GEN-502 Pot'!G36*G$7/('GEN-502 Pot'!G$6/1.0645) -> 80.40089277 | H36: 505.403163
A37: =+'GEN-502 Pot'!A37 -> Unión Eólica de Panamá (PE Nuevo Chagres) No. 19-12' | B37: =+'Compras (p)'!B$11*'GEN-502 Pot'!B37*B$7/('GEN-502 Pot'!B$6/1.0645) -> 775.1882044 | C37: =+'Compras (p)'!C$11*'GEN-502 Pot'!C37*C$7/('GEN-502 Pot'!C$6/1.0645) -> 681.1782776 | D37: =+'Compras (p)'!D$11*'GEN-502 Pot'!D37*D$7/('GEN-502 Pot'!D$6/1.0645) -> 0.7169981637 | E37: =+'Compras (p)'!E$11*'GEN-502 Pot'!E37*E$7/('GEN-502 Pot'!E$6/1.0645) -> 0.6651396538 | F37: =+'Compras (p)'!F$11*'GEN-502 Pot'!F37*F$7/('GEN-502 Pot'!F$6/1.0645) -> 0.7051060393 | G37: =+'Compras (p)'!G$11*'GEN-502 Pot'!G37*G$7/('GEN-502 Pot'!G$6/1.0645) -> 0.7243323673 | H37: =+SUM(B37:G37) -> 1459.178058
A38: =+'GEN-502 Pot'!A38 -> Unión Eólica de Panamá (PE Rosa de los Vientos) No. 20-12' | B38: =+'Compras (p)'!B$11*'GEN-502 Pot'!B38*B$7/('GEN-502 Pot'!B$6/1.0645) -> 0.7467671261 | C38: =+'Compras (p)'!C$11*'GEN-502 Pot'!C38*C$7/('GEN-502 Pot'!C$6/1.0645) -> 0.7841151753 | D38: =+'Compras (p)'!D$11*'GEN-502 Pot'!D38*D$7/('GEN-502 Pot'!D$6/1.0645) -> 0.7169981637 | E38: =+'Compras (p)'!E$11*'GEN-502 Pot'!E38*E$7/('GEN-502 Pot'!E$6/1.0645) -> 0.6651396538 | F38: =+'Compras (p)'!F$11*'GEN-502 Pot'!F38*F$7/('GEN-502 Pot'!F$6/1.0645) -> 0.7051060393 | G38: =+'Compras (p)'!G$11*'GEN-502 Pot'!G38*G$7/('GEN-502 Pot'!G$6/1.0645) -> 0.7243323673 | H38: 4.342458526
A39: =+'GEN-502 Pot'!A39 -> Unión Eólica de Panamá (PE Portobelo Ballestillas) No. 21-12' | B39: =+'Compras (p)'!B$11*'GEN-502 Pot'!B39*B$7/('GEN-502 Pot'!B$6/1.0645) -> 0.7467671261 | C39: =+'Compras (p)'!C$11*'GEN-502 Pot'!C39*C$7/('GEN-502 Pot'!C$6/1.0645) -> 0.7841151753 | D39: =+'Compras (p)'!D$11*'GEN-502 Pot'!D39*D$7/('GEN-502 Pot'!D$6/1.0645) -> 0.7169981637 | E39: =+'Compras (p)'!E$11*'GEN-502 Pot'!E39*E$7/('GEN-502 Pot'!E$6/1.0645) -> 0.6651396538 | F39: =+'Compras (p)'!F$11*'GEN-502 Pot'!F39*F$7/('GEN-502 Pot'!F$6/1.0645) -> 0.7051060393 | G39: =+'Compras (p)'!G$11*'GEN-502 Pot'!G39*G$7/('GEN-502 Pot'!G$6/1.0645) -> 0.7243323673 | H39: 4.342458526
A40: =+'GEN-502 Pot'!A40 -> Unión Eólica de Panamá (PE Marañon) No. 22-12' | B40: =+'Compras (p)'!B$11*'GEN-502 Pot'!B40*B$7/('GEN-502 Pot'!B$6/1.0645) -> 0.7467671261 | C40: =+'Compras (p)'!C$11*'GEN-502 Pot'!C40*C$7/('GEN-502 Pot'!C$6/1.0645) -> 0.7841151753 | D40: =+'Compras (p)'!D$11*'GEN-502 Pot'!D40*D$7/('GEN-502 Pot'!D$6/1.0645) -> 0.7169981637 | E40: =+'Compras (p)'!E$11*'GEN-502 Pot'!E40*E$7/('GEN-502 Pot'!E$6/1.0645) -> 0.6651396538 | F40: =+'Compras (p)'!F$11*'GEN-502 Pot'!F40*F$7/('GEN-502 Pot'!F$6/1.0645) -> 0.7051060393 | G40: =+'Compras (p)'!G$11*'GEN-502 Pot'!G40*G$7/('GEN-502 Pot'!G$6/1.0645) -> 0.7243323673 | H40: 4.342458526
A41: =+'GEN-502 Pot'!A41 -> AES No. 122-12 | B41: =+'Compras (p)'!B$11*'GEN-502 Pot'!B41*B$7/('GEN-502 Pot'!B$6/1.0645) -> 10762.23211 | C41: =+'Compras (p)'!C$11*'GEN-502 Pot'!C41*C$7/('GEN-502 Pot'!C$6/1.0645) -> 10672.67878 | D41: =+'Compras (p)'!D$11*'GEN-502 Pot'!D41*D$7/('GEN-502 Pot'!D$6/1.0645) -> 10333.20883 | E41: =+'Compras (p)'!E$11*'GEN-502 Pot'!E41*E$7/('GEN-502 Pot'!E$6/1.0645) -> 10184.95095 | F41: =+'Compras (p)'!F$11*'GEN-502 Pot'!F41*F$7/('GEN-502 Pot'!F$6/1.0645) -> 10161.82233 | G41: =+'Compras (p)'!G$11*'GEN-502 Pot'!G41*G$7/('GEN-502 Pot'!G$6/1.0645) -> 9858.968333 | H41: =+SUM(B41:G41) -> 61973.86133
A42: =+'GEN-502 Pot'!A42 -> HIDRO PIEDRA No. 123-12 | B42: =+'Compras (p)'!B$11*'GEN-502 Pot'!B42*B$7/('GEN-502 Pot'!B$6/1.0645) -> 54.90934751 | C42: =+'Compras (p)'!C$11*'GEN-502 Pot'!C42*C$7/('GEN-502 Pot'!C$6/1.0645) -> 54.45244273 | D42: =+'Compras (p)'!D$11*'GEN-502 Pot'!D42*D$7/('GEN-502 Pot'!D$6/1.0645) -> 52.72045322 | E42: =+'Compras (p)'!E$11*'GEN-502 Pot'!E42*E$7/('GEN-502 Pot'!E$6/1.0645) -> 51.96403546 | F42: =+'Compras (p)'!F$11*'GEN-502 Pot'!F42*F$7/('GEN-502 Pot'!F$6/1.0645) -> 51.8460323 | G42: =+'Compras (p)'!G$11*'GEN-502 Pot'!G42*G$7/('GEN-502 Pot'!G$6/1.0645) -> 50.30085884 | H42: 316.1931701
A43: =+'GEN-502 Pot'!A43 -> Corp. Energ. Del Istmo No. 124-12 | B43: =+'Compras (p)'!B$11*'GEN-502 Pot'!B43*B$7/('GEN-502 Pot'!B$6/1.0645) -> 270.9007569 | C43: =+'Compras (p)'!C$11*'GEN-502 Pot'!C43*C$7/('GEN-502 Pot'!C$6/1.0645) -> 268.6465715 | D43: =+'Compras (p)'!D$11*'GEN-502 Pot'!D43*D$7/('GEN-502 Pot'!D$6/1.0645) -> 260.101628 | E43: =+'Compras (p)'!E$11*'GEN-502 Pot'!E43*E$7/('GEN-502 Pot'!E$6/1.0645) -> 256.3697653 | F43: =+'Compras (p)'!F$11*'GEN-502 Pot'!F43*F$7/('GEN-502 Pot'!F$6/1.0645) -> 255.787585 | G43: =+'Compras (p)'!G$11*'GEN-502 Pot'!G43*G$7/('GEN-502 Pot'!G$6/1.0645) -> 248.1643172 | H43: 1559.970624
A44: =+'GEN-502 Pot'!A44 -> Saltos del Francolí No. 126-12 | B44: =+'Compras (p)'!B$11*'GEN-502 Pot'!B44*B$7/('GEN-502 Pot'!B$6/1.0645) -> 28.33322331 | C44: =+'Compras (p)'!C$11*'GEN-502 Pot'!C44*C$7/('GEN-502 Pot'!C$6/1.0645) -> 28.09746045 | D44: =+'Compras (p)'!D$11*'GEN-502 Pot'!D44*D$7/('GEN-502 Pot'!D$6/1.0645) -> 27.20375386 | E44: =+'Compras (p)'!E$11*'GEN-502 Pot'!E44*E$7/('GEN-502 Pot'!E$6/1.0645) -> 26.8134423 | F44: =+'Compras (p)'!F$11*'GEN-502 Pot'!F44*F$7/('GEN-502 Pot'!F$6/1.0645) -> 26.75255267 | G44: =+'Compras (p)'!G$11*'GEN-502 Pot'!G44*G$7/('GEN-502 Pot'!G$6/1.0645) -> 25.95524316 | H44: 163.1556757
A45: =+'GEN-502 Pot'!A45 -> PASO ANCHO No. 88-11 | B45: =+'Compras (p)'!B$11*'GEN-502 Pot'!B45*B$7/('GEN-502 Pot'!B$6/1.0645) -> 650.1266745 | C45: =+'Compras (p)'!C$11*'GEN-502 Pot'!C45*C$7/('GEN-502 Pot'!C$6/1.0645) -> 627.2921403 | D45: =+'Compras (p)'!D$11*'GEN-502 Pot'!D45*D$7/('GEN-502 Pot'!D$6/1.0645) -> 607.3396211 | E45: =+'Compras (p)'!E$11*'GEN-502 Pot'!E45*E$7/('GEN-502 Pot'!E$6/1.0645) -> 565.3687058 | F45: =+'Compras (p)'!F$11*'GEN-502 Pot'!F45*F$7/('GEN-502 Pot'!F$6/1.0645) -> 580.6755618 | G45: =+'Compras (p)'!G$11*'GEN-502 Pot'!G45*G$7/('GEN-502 Pot'!G$6/1.0645) -> 579.4658939 | H45: 3610.268597
A46: =+'GEN-502 Pot'!A46 -> Hidroecológica del Teribe No. 89-11 | B46: =+'Compras (p)'!B$11*'GEN-502 Pot'!B46*B$7/('GEN-502 Pot'!B$6/1.0645) -> 768.7308651 | C46: =+'Compras (p)'!C$11*'GEN-502 Pot'!C46*C$7/('GEN-502 Pot'!C$6/1.0645) -> 784.1151753 | D46: =+'Compras (p)'!D$11*'GEN-502 Pot'!D46*D$7/('GEN-502 Pot'!D$6/1.0645) -> 759.1745263 | E46: =+'Compras (p)'!E$11*'GEN-502 Pot'!E46*E$7/('GEN-502 Pot'!E$6/1.0645) -> 727.4964964 | F46: =+'Compras (p)'!F$11*'GEN-502 Pot'!F46*F$7/('GEN-502 Pot'!F$6/1.0645) -> 746.5828651 | G46: =+'Compras (p)'!G$11*'GEN-502 Pot'!G46*G$7/('GEN-502 Pot'!G$6/1.0645) -> 724.3323673 | H46: 4510.432296
A47: =+'GEN-502 Pot'!A47 -> ISTMUS HYDRO POWER CORP. No.10-13 | B47: =+'Compras (p)'!B$11*'GEN-502 Pot'!B47*B$7/('GEN-502 Pot'!B$6/1.0645) -> 332.0038788 | C47: =+'Compras (p)'!C$11*'GEN-502 Pot'!C47*C$7/('GEN-502 Pot'!C$6/1.0645) -> 330.1124888 | D47: =+'Compras (p)'!D$11*'GEN-502 Pot'!D47*D$7/('GEN-502 Pot'!D$6/1.0645) -> 332.4762662 | E47: =+'Compras (p)'!E$11*'GEN-502 Pot'!E47*E$7/('GEN-502 Pot'!E$6/1.0645) -> 299.7285565 | F47: =+'Compras (p)'!F$11*'GEN-502 Pot'!F47*F$7/('GEN-502 Pot'!F$6/1.0645) -> 285.1117008 | G47: =+'Compras (p)'!G$11*'GEN-502 Pot'!G47*G$7/('GEN-502 Pot'!G$6/1.0645) -> 275.447503 | H47: 1854.880394
A48: =+'GEN-502 Pot'!A48 -> CALDERA ENERGY CORP. No.11-13 | B48: =+'Compras (p)'!B$11*'GEN-502 Pot'!B48*B$7/('GEN-502 Pot'!B$6/1.0645) -> 375.579937 | C48: =+'Compras (p)'!C$11*'GEN-502 Pot'!C48*C$7/('GEN-502 Pot'!C$6/1.0645) -> 696.991267 | D48: =+'Compras (p)'!D$11*'GEN-502 Pot'!D48*D$7/('GEN-502 Pot'!D$6/1.0645) -> 801.3508889 | E48: =+'Compras (p)'!E$11*'GEN-502 Pot'!E48*E$7/('GEN-502 Pot'!E$6/1.0645) -> 1080.851937 | F48: =+'Compras (p)'!F$11*'GEN-502 Pot'!F48*F$7/('GEN-502 Pot'!F$6/1.0645) -> 669.8507373 | G48: =+'Compras (p)'!G$11*'GEN-502 Pot'!G48*G$7/('GEN-502 Pot'!G$6/1.0645) -> 191.1432636 | H48: 3815.768031
A49: =+'GEN-502 Pot'!A49 -> ELECTROGENERADORA DEL ISTMO, S.A. No.12-13 | B49: =+'Compras (p)'!B$11*'GEN-502 Pot'!B49*B$7/('GEN-502 Pot'!B$6/1.0645) -> 125.1933123 | C49: =+'Compras (p)'!C$11*'GEN-502 Pot'!C49*C$7/('GEN-502 Pot'!C$6/1.0645) -> 217.8097709 | D49: =+'Compras (p)'!D$11*'GEN-502 Pot'!D49*D$7/('GEN-502 Pot'!D$6/1.0645) -> 316.3227193 | E49: =+'Compras (p)'!E$11*'GEN-502 Pot'!E49*E$7/('GEN-502 Pot'!E$6/1.0645) -> 374.1410553 | F49: =+'Compras (p)'!F$11*'GEN-502 Pot'!F49*F$7/('GEN-502 Pot'!F$6/1.0645) -> 256.1193996 | G49: =+'Compras (p)'!G$11*'GEN-502 Pot'!G49*G$7/('GEN-502 Pot'!G$6/1.0645) -> 95.5716318 | H49: 1385.157889
A50: =+'GEN-502 Pot'!A50 -> FOUNTAIN INTERTRADE CORP. No.13-13 | B50: =+'Compras (p)'!B$11*'GEN-502 Pot'!B50*B$7/('GEN-502 Pot'!B$6/1.0645) -> 1579.412472 | C50: =+'Compras (p)'!C$11*'GEN-502 Pot'!C50*C$7/('GEN-502 Pot'!C$6/1.0645) -> 1838.183781 | D50: =+'Compras (p)'!D$11*'GEN-502 Pot'!D50*D$7/('GEN-502 Pot'!D$6/1.0645) -> 2578.662808 | E50: =+'Compras (p)'!E$11*'GEN-502 Pot'!E50*E$7/('GEN-502 Pot'!E$6/1.0645) -> 3440.642716 | F50: =+'Compras (p)'!F$11*'GEN-502 Pot'!F50*F$7/('GEN-502 Pot'!F$6/1.0645) -> 2186.36792 | G50: =+'Compras (p)'!G$11*'GEN-502 Pot'!G50*G$7/('GEN-502 Pot'!G$6/1.0645) -> 1186.335696 | H50: 12809.60539
A51: =+'GEN-502 Pot'!A51 -> HIDROIBERICA, S.A. No.14-13 | B51: =+'Compras (p)'!B$11*'GEN-502 Pot'!B51*B$7/('GEN-502 Pot'!B$6/1.0645) -> 34.21950537 | C51: =+'Compras (p)'!C$11*'GEN-502 Pot'!C51*C$7/('GEN-502 Pot'!C$6/1.0645) -> 57.50177952 | D51: =+'Compras (p)'!D$11*'GEN-502 Pot'!D51*D$7/('GEN-502 Pot'!D$6/1.0645) -> 67.48218012 | E51: =+'Compras (p)'!E$11*'GEN-502 Pot'!E51*E$7/('GEN-502 Pot'!E$6/1.0645) -> 83.9738813 | F51: =+'Compras (p)'!F$11*'GEN-502 Pot'!F51*F$7/('GEN-502 Pot'!F$6/1.0645) -> 73.28955126 | G51: =+'Compras (p)'!G$11*'GEN-502 Pot'!G51*G$7/('GEN-502 Pot'!G$6/1.0645) -> 65.75328268 | H51: 382.2201802
A52: =+'GEN-502 Pot'!A52 -> NAVITAS INTERNACIONAL, S.A. No.15-13 | B52: =+'Compras (p)'!B$11*'GEN-502 Pot'!B52*B$7/('GEN-502 Pot'!B$6/1.0645) -> 333.3217031 | C52: =+'Compras (p)'!C$11*'GEN-502 Pot'!C52*C$7/('GEN-502 Pot'!C$6/1.0645) -> 368.5341324 | D52: =+'Compras (p)'!D$11*'GEN-502 Pot'!D52*D$7/('GEN-502 Pot'!D$6/1.0645) -> 434.3321818 | E52: =+'Compras (p)'!E$11*'GEN-502 Pot'!E52*E$7/('GEN-502 Pot'!E$6/1.0645) -> 440.1145947 | F52: =+'Compras (p)'!F$11*'GEN-502 Pot'!F52*F$7/('GEN-502 Pot'!F$6/1.0645) -> 363.7517626 | G52: =+'Compras (p)'!G$11*'GEN-502 Pot'!G52*G$7/('GEN-502 Pot'!G$6/1.0645) -> 261.1218184 | H52: 2201.176193
A53: =+'GEN-502 Pot'!A53 -> HIDROECOLÓGICA DEL TERIBE, S.A. No.16-13 | B53: =+'Compras (p)'!B$11*'GEN-502 Pot'!B53*B$7/('GEN-502 Pot'!B$6/1.0645) -> 0 | C53: =+'Compras (p)'!C$11*'GEN-502 Pot'!C53*C$7/('GEN-502 Pot'!C$6/1.0645) -> 0 | D53: =+'Compras (p)'!D$11*'GEN-502 Pot'!D53*D$7/('GEN-502 Pot'!D$6/1.0645) -> 84.35272515 | E53: =+'Compras (p)'!E$11*'GEN-502 Pot'!E53*E$7/('GEN-502 Pot'!E$6/1.0645) -> 415.7122836 | F53: =+'Compras (p)'!F$11*'GEN-502 Pot'!F53*F$7/('GEN-502 Pot'!F$6/1.0645) -> 157.6119382 | G53: =+'Compras (p)'!G$11*'GEN-502 Pot'!G53*G$7/('GEN-502 Pot'!G$6/1.0645) -> 152.9146109 | H53: 810.5915579
A54: =+'GEN-502 Pot'!A54 -> HIDRONORTH CORP. No.17-13 | B54: =+'Compras (p)'!B$11*'GEN-502 Pot'!B54*B$7/('GEN-502 Pot'!B$6/1.0645) -> 40.06185994 | C54: =+'Compras (p)'!C$11*'GEN-502 Pot'!C54*C$7/('GEN-502 Pot'!C$6/1.0645) -> 48.78938869 | D54: =+'Compras (p)'!D$11*'GEN-502 Pot'!D54*D$7/('GEN-502 Pot'!D$6/1.0645) -> 57.3598531 | E54: =+'Compras (p)'!E$11*'GEN-502 Pot'!E54*E$7/('GEN-502 Pot'!E$6/1.0645) -> 56.53687058 | F54: =+'Compras (p)'!F$11*'GEN-502 Pot'!F54*F$7/('GEN-502 Pot'!F$6/1.0645) -> 52.79999929 | G54: =+'Compras (p)'!G$11*'GEN-502 Pot'!G54*G$7/('GEN-502 Pot'!G$6/1.0645) -> 38.22865272 | H54: 293.7766243
A55: =+'GEN-502 Pot'!A55 -> EMPRESA NACIONAL DE ENERGÍA, S.A. No.33-13 | B55: =+'Compras (p)'!B$11*'GEN-502 Pot'!B55*B$7/('GEN-502 Pot'!B$6/1.0645) -> 160.2474398 | C55: =+'Compras (p)'!C$11*'GEN-502 Pot'!C55*C$7/('GEN-502 Pot'!C$6/1.0645) -> 284.8951804 | D55: =+'Compras (p)'!D$11*'GEN-502 Pot'!D55*D$7/('GEN-502 Pot'!D$6/1.0645) -> 275.8334112 | E55: =+'Compras (p)'!E$11*'GEN-502 Pot'!E55*E$7/('GEN-502 Pot'!E$6/1.0645) -> 203.9484464 | F55: =+'Compras (p)'!F$11*'GEN-502 Pot'!F55*F$7/('GEN-502 Pot'!F$6/1.0645) -> 257.6955189 | G55: =+'Compras (p)'!G$11*'GEN-502 Pot'!G55*G$7/('GEN-502 Pot'!G$6/1.0645) -> 165.9123528 | H55: 1348.532349
A56: =+'GEN-502 Pot'!A56 -> FUERZA ELÉCTRICA DEL ISTMO, S.A. No.34-13 | B56: =+'Compras (p)'!B$11*'GEN-502 Pot'!B56*B$7/('GEN-502 Pot'!B$6/1.0645) -> 62.59665616 | C56: =+'Compras (p)'!C$11*'GEN-502 Pot'!C56*C$7/('GEN-502 Pot'!C$6/1.0645) -> 65.34293128 | D56: =+'Compras (p)'!D$11*'GEN-502 Pot'!D56*D$7/('GEN-502 Pot'!D$6/1.0645) -> 63.26454386 | E56: =+'Compras (p)'!E$11*'GEN-502 Pot'!E56*E$7/('GEN-502 Pot'!E$6/1.0645) -> 46.80920314 | F56: =+'Compras (p)'!F$11*'GEN-502 Pot'!F56*F$7/('GEN-502 Pot'!F$6/1.0645) -> 59.10447682 | G56: =+'Compras (p)'!G$11*'GEN-502 Pot'!G56*G$7/('GEN-502 Pot'!G$6/1.0645) -> 57.34297908 | H56: 354.4607903
A57: =+'GEN-502 Pot'!A57 -> CAFÉ DE ELETA, S.A. No.35-13 | B57: =+'Compras (p)'!B$11*'GEN-502 Pot'!B57*B$7/('GEN-502 Pot'!B$6/1.0645) -> 19.20070064 | C57: =+'Compras (p)'!C$11*'GEN-502 Pot'!C57*C$7/('GEN-502 Pot'!C$6/1.0645) -> 21.34535755 | D57: =+'Compras (p)'!D$11*'GEN-502 Pot'!D57*D$7/('GEN-502 Pot'!D$6/1.0645) -> 19.94098422 | E57: =+'Compras (p)'!E$11*'GEN-502 Pot'!E57*E$7/('GEN-502 Pot'!E$6/1.0645) -> 20.14957439 | F57: =+'Compras (p)'!F$11*'GEN-502 Pot'!F57*F$7/('GEN-502 Pot'!F$6/1.0645) -> 28.83054164 | G57: =+'Compras (p)'!G$11*'GEN-502 Pot'!G57*G$7/('GEN-502 Pot'!G$6/1.0645) -> 20.84065184 | H57: 130.3078103
A58: =+'GEN-502 Pot'!A58 -> ENERGÍA Y SERVICIOS DE PANAMÁ, S.A. No.36-13 | B58: =+'Compras (p)'!B$11*'GEN-502 Pot'!B58*B$7/('GEN-502 Pot'!B$6/1.0645) -> 929.5757186 | C58: =+'Compras (p)'!C$11*'GEN-502 Pot'!C58*C$7/('GEN-502 Pot'!C$6/1.0645) -> 1162.437679 | D58: =+'Compras (p)'!D$11*'GEN-502 Pot'!D58*D$7/('GEN-502 Pot'!D$6/1.0645) -> 1159.242631 | E58: =+'Compras (p)'!E$11*'GEN-502 Pot'!E58*E$7/('GEN-502 Pot'!E$6/1.0645) -> 1017.073359 | F58: =+'Compras (p)'!F$11*'GEN-502 Pot'!F58*F$7/('GEN-502 Pot'!F$6/1.0645) -> 1273.467131 | G58: =+'Compras (p)'!G$11*'GEN-502 Pot'!G58*G$7/('GEN-502 Pot'!G$6/1.0645) -> 762.9996435 | H58: 6304.796162
A59: =+'GEN-502 Pot'!A59 -> GENERADORA PEDREGALITO, S.A. No.37-13 | B59: =+'Compras (p)'!B$11*'GEN-502 Pot'!B59*B$7/('GEN-502 Pot'!B$6/1.0645) -> 386.1796374 | C59: =+'Compras (p)'!C$11*'GEN-502 Pot'!C59*C$7/('GEN-502 Pot'!C$6/1.0645) -> 516.3834049 | D59: =+'Compras (p)'!D$11*'GEN-502 Pot'!D59*D$7/('GEN-502 Pot'!D$6/1.0645) -> 500.0429547 | E59: =+'Compras (p)'!E$11*'GEN-502 Pot'!E59*E$7/('GEN-502 Pot'!E$6/1.0645) -> 584.2836147 | F59: =+'Compras (p)'!F$11*'GEN-502 Pot'!F59*F$7/('GEN-502 Pot'!F$6/1.0645) -> 568.2698431 | G59: =+'Compras (p)'!G$11*'GEN-502 Pot'!G59*G$7/('GEN-502 Pot'!G$6/1.0645) -> 258.8844362 | H59: 2814.043891
A60: =+'GEN-502 Pot'!A60 -> GENERADORA RIO CHICO, S.A. No.38-13 | B60: =+'Compras (p)'!B$11*'GEN-502 Pot'!B60*B$7/('GEN-502 Pot'!B$6/1.0645) -> 238.11768 | C60: =+'Compras (p)'!C$11*'GEN-502 Pot'!C60*C$7/('GEN-502 Pot'!C$6/1.0645) -> 318.2505687 | D60: =+'Compras (p)'!D$11*'GEN-502 Pot'!D60*D$7/('GEN-502 Pot'!D$6/1.0645) -> 308.0392817 | E60: =+'Compras (p)'!E$11*'GEN-502 Pot'!E60*E$7/('GEN-502 Pot'!E$6/1.0645) -> 359.8322385 | F60: =+'Compras (p)'!F$11*'GEN-502 Pot'!F60*F$7/('GEN-502 Pot'!F$6/1.0645) -> 350.0810008 | G60: =+'Compras (p)'!G$11*'GEN-502 Pot'!G60*G$7/('GEN-502 Pot'!G$6/1.0645) -> 159.775648 | H60: 1734.096418
A61: =+'GEN-502 Pot'!A61 -> GENERADORA ALTO VALLE, S.A. No.39-13 | B61: =+'Compras (p)'!B$11*'GEN-502 Pot'!B61*B$7/('GEN-502 Pot'!B$6/1.0645) -> 340.1787824 | C61: =+'Compras (p)'!C$11*'GEN-502 Pot'!C61*C$7/('GEN-502 Pot'!C$6/1.0645) -> 465.1109848 | D61: =+'Compras (p)'!D$11*'GEN-502 Pot'!D61*D$7/('GEN-502 Pot'!D$6/1.0645) -> 452.1559126 | E61: =+'Compras (p)'!E$11*'GEN-502 Pot'!E61*E$7/('GEN-502 Pot'!E$6/1.0645) -> 476.7887324 | F61: =+'Compras (p)'!F$11*'GEN-502 Pot'!F61*F$7/('GEN-502 Pot'!F$6/1.0645) -> 408.2895782 | G61: =+'Compras (p)'!G$11*'GEN-502 Pot'!G61*G$7/('GEN-502 Pot'!G$6/1.0645) -> 199.9640222 | H61: 2342.488013
A62: =+'GEN-502 Pot'!A62 -> HYDRO CAISÁN, S.A. No.40-13 | B62: =+'Compras (p)'!B$11*'GEN-502 Pot'!B62*B$7/('GEN-502 Pot'!B$6/1.0645) -> 845.3755288 | C62: =+'Compras (p)'!C$11*'GEN-502 Pot'!C62*C$7/('GEN-502 Pot'!C$6/1.0645) -> 1524.26327 | D62: =+'Compras (p)'!D$11*'GEN-502 Pot'!D62*D$7/('GEN-502 Pot'!D$6/1.0645) -> 1776.628662 | E62: =+'Compras (p)'!E$11*'GEN-502 Pot'!E62*E$7/('GEN-502 Pot'!E$6/1.0645) -> 742.8404368 | F62: =+'Compras (p)'!F$11*'GEN-502 Pot'!F62*F$7/('GEN-502 Pot'!F$6/1.0645) -> 1546.272658 | G62: =+'Compras (p)'!G$11*'GEN-502 Pot'!G62*G$7/('GEN-502 Pot'!G$6/1.0645) -> 414.3221382 | H62: 6849.702694
A63: =+'GEN-502 Pot'!A63 -> SIGSA, S.A. No. 137-12 | H63: 0
A64: =+'GEN-502 Pot'!A64 -> PARQUE EÓLICO TOABRÉ, S.A. No 09-14 | B64: =+'Compras (p)'!B$11*'GEN-502 Pot'!B64*B$7/('GEN-502 Pot'!B$6/1.0645) -> 1739.528129 | C64: =+'Compras (p)'!C$11*'GEN-502 Pot'!C64*C$7/('GEN-502 Pot'!C$6/1.0645) -> 1742.478167 | D64: =+'Compras (p)'!D$11*'GEN-502 Pot'!D64*D$7/('GEN-502 Pot'!D$6/1.0645) -> 1682.836867 | E64: =+'Compras (p)'!E$11*'GEN-502 Pot'!E64*E$7/('GEN-502 Pot'!E$6/1.0645) -> 1696.106117 | F64: =+'Compras (p)'!F$11*'GEN-502 Pot'!F64*F$7/('GEN-502 Pot'!F$6/1.0645) -> 2463.723455 | G64: =+'Compras (p)'!G$11*'GEN-502 Pot'!G64*G$7/('GEN-502 Pot'!G$6/1.0645) -> 4160.887043 | H64: =+SUM(B64:G64) -> 13485.55978
A65: =+'GEN-502 Pot'!A65 -> NAURA ENERGY CORP. No 10-14 | B65: =+'Compras (p)'!B$11*'GEN-502 Pot'!B65*B$7/('GEN-502 Pot'!B$6/1.0645) -> 85.04359742 | C65: =+'Compras (p)'!C$11*'GEN-502 Pot'!C65*C$7/('GEN-502 Pot'!C$6/1.0645) -> 87.12390837 | D65: =+'Compras (p)'!D$11*'GEN-502 Pot'!D65*D$7/('GEN-502 Pot'!D$6/1.0645) -> 83.25613972 | E65: =+'Compras (p)'!E$11*'GEN-502 Pot'!E65*E$7/('GEN-502 Pot'!E$6/1.0645) -> 151.6518411 | F65: =+'Compras (p)'!F$11*'GEN-502 Pot'!F65*F$7/('GEN-502 Pot'!F$6/1.0645) -> 149.6483876 | G65: =+'Compras (p)'!G$11*'GEN-502 Pot'!G65*G$7/('GEN-502 Pot'!G$6/1.0645) -> 405.465163 | H65: 962.1890372
A66: =+'GEN-502 Pot'!A66 -> Panama Solar2 No. 10-15 | B66: =+'Compras (p)'!B$11*'GEN-502 Pot'!B66*B$7/('GEN-502 Pot'!B$6/1.0645) -> 136.1751818 | C66: =+'Compras (p)'!C$11*'GEN-502 Pot'!C66*C$7/('GEN-502 Pot'!C$6/1.0645) -> 278.7965068 | D66: =+'Compras (p)'!D$11*'GEN-502 Pot'!D66*D$7/('GEN-502 Pot'!D$6/1.0645) -> 274.1463567 | E66: =+'Compras (p)'!E$11*'GEN-502 Pot'!E66*E$7/('GEN-502 Pot'!E$6/1.0645) -> 270.2129844 | F66: =+'Compras (p)'!F$11*'GEN-502 Pot'!F66*F$7/('GEN-502 Pot'!F$6/1.0645) -> 149.316573 | G66: =+'Compras (p)'!G$11*'GEN-502 Pot'!G66*G$7/('GEN-502 Pot'!G$6/1.0645) -> 177.0590231 | H66: 1285.706626
A67: =+'GEN-502 Pot'!A67 -> Solpac Investment No. 11-15 | B67: =+'Compras (p)'!B$11*'GEN-502 Pot'!B67*B$7/('GEN-502 Pot'!B$6/1.0645) -> 21.963739 | C67: =+'Compras (p)'!C$11*'GEN-502 Pot'!C67*C$7/('GEN-502 Pot'!C$6/1.0645) -> 47.9181496 | D67: =+'Compras (p)'!D$11*'GEN-502 Pot'!D67*D$7/('GEN-502 Pot'!D$6/1.0645) -> 46.39399883 | E67: =+'Compras (p)'!E$11*'GEN-502 Pot'!E67*E$7/('GEN-502 Pot'!E$6/1.0645) -> 45.7283512 | F67: =+'Compras (p)'!F$11*'GEN-502 Pot'!F67*F$7/('GEN-502 Pot'!F$6/1.0645) -> 24.8860955 | G67: =+'Compras (p)'!G$11*'GEN-502 Pot'!G67*G$7/('GEN-502 Pot'!G$6/1.0645) -> 28.16848095 | H67: 215.0588151
A68: =+'GEN-502 Pot'!A68 -> GAS NATURAL ATLÁNTICO No. 17-15 | B68: =+'Compras (p)'!B$11*'GEN-502 Pot'!B68*B$7/('GEN-502 Pot'!B$6/1.0645) -> 12299.69384 | C68: =+'Compras (p)'!C$11*'GEN-502 Pot'!C68*C$7/('GEN-502 Pot'!C$6/1.0645) -> 12197.34717 | D68: =+'Compras (p)'!D$11*'GEN-502 Pot'!D68*D$7/('GEN-502 Pot'!D$6/1.0645) -> 11809.38152 | E68: =+'Compras (p)'!E$11*'GEN-502 Pot'!E68*E$7/('GEN-502 Pot'!E$6/1.0645) -> 11639.94394 | F68: =+'Compras (p)'!F$11*'GEN-502 Pot'!F68*F$7/('GEN-502 Pot'!F$6/1.0645) -> 11613.51124 | G68: =+'Compras (p)'!G$11*'GEN-502 Pot'!G68*G$7/('GEN-502 Pot'!G$6/1.0645) -> 11267.39238 | H68: 70827.27009
A69: =+'GEN-502 Pot'!A69 -> MARTANO INC No. 19-15 | B69: =+'Compras (p)'!B$11*'GEN-502 Pot'!B69*B$7/('GEN-502 Pot'!B$6/1.0645) -> 12299.69384 | C69: =+'Compras (p)'!C$11*'GEN-502 Pot'!C69*C$7/('GEN-502 Pot'!C$6/1.0645) -> 12197.34717 | D69: =+'Compras (p)'!D$11*'GEN-502 Pot'!D69*D$7/('GEN-502 Pot'!D$6/1.0645) -> 11809.38152 | E69: =+'Compras (p)'!E$11*'GEN-502 Pot'!E69*E$7/('GEN-502 Pot'!E$6/1.0645) -> 11639.94394 | F69: =+'Compras (p)'!F$11*'GEN-502 Pot'!F69*F$7/('GEN-502 Pot'!F$6/1.0645) -> 11613.51124 | G69: =+'Compras (p)'!G$11*'GEN-502 Pot'!G69*G$7/('GEN-502 Pot'!G$6/1.0645) -> 11267.39238 | H69: 70827.27009
A70: =+'GEN-502 Pot'!A70 -> ENEL FORTUNA, S.A. No. 36-21 | B70: =+'Compras (p)'!B$11*'GEN-502 Pot'!B70*B$7/('GEN-502 Pot'!B$6/1.0645) -> 4364.028016 | C70: =+'Compras (p)'!C$11*'GEN-502 Pot'!C70*C$7/('GEN-502 Pot'!C$6/1.0645) -> 4760.868548 | H70: =+SUM(B70:G70) -> 9124.896564
A71: =+'GEN-502 Pot'!A71 -> HIDRO BOQUERÓN, S.A. No. 40-21 | B71: =+'Compras (p)'!B$11*'GEN-502 Pot'!B71*B$7/('GEN-502 Pot'!B$6/1.0645) -> 21.60558363 | C71: =+'Compras (p)'!C$11*'GEN-502 Pot'!C71*C$7/('GEN-502 Pot'!C$6/1.0645) -> 19.69240957 | H71: 41.2979932
A72: =+'GEN-502 Pot'!A72 -> AUTORIDAD DEL CANAL DE PANAMÁ No. 57-21 | H72: 0
A73: =+'GEN-502 Pot'!A73 -> GENERADORA DEL ATLÁNTICO, S.A. No. 59-21 | H73: 0
A74: =+'GEN-502 Pot'!A74 -> GENERADORA DEL ATLÁNTICO, S.A. No. 60-21 | H74: 0
A75: =+'GEN-502 Pot'!A75 -> PANAM GENERATING LTD No. 61-21 | H75: 0
A76: =+'GEN-502 Pot'!A76 -> TROPITÉRMICA, S.A. No. 63-21 | H76: 0
A77: =+'GEN-502 Pot'!A77 -> EMPRESA NACIONAL DE ENERGÍA, S.A. No. 23-23 | B77: =+'Compras (p)'!B$11*'GEN-502 Pot'!B77*B$7/('GEN-502 Pot'!B$6/1.0645) -> 180.7176445 | C77: =+'Compras (p)'!C$11*'GEN-502 Pot'!C77*C$7/('GEN-502 Pot'!C$6/1.0645) -> 0 | D77: =+'Compras (p)'!D$11*'GEN-502 Pot'!D77*D$7/('GEN-502 Pot'!D$6/1.0645) -> 121.1726897 | E77: =+'Compras (p)'!E$11*'GEN-502 Pot'!E77*E$7/('GEN-502 Pot'!E$6/1.0645) -> 296.3197158 | F77: =+'Compras (p)'!F$11*'GEN-502 Pot'!F77*F$7/('GEN-502 Pot'!F$6/1.0645) -> 45.79041573 | G77: =+'Compras (p)'!G$11*'GEN-502 Pot'!G77*G$7/('GEN-502 Pot'!G$6/1.0645) -> 0 | H77: 644.0004657
A78: =+'GEN-502 Pot'!A78 -> FOUNTAIN HYDRO POWER CORP No. 24-23 | B78: =+'Compras (p)'!B$11*'GEN-502 Pot'!B78*B$7/('GEN-502 Pot'!B$6/1.0645) -> 2108.870364 | C78: =+'Compras (p)'!C$11*'GEN-502 Pot'!C78*C$7/('GEN-502 Pot'!C$6/1.0645) -> 0 | D78: =+'Compras (p)'!D$11*'GEN-502 Pot'!D78*D$7/('GEN-502 Pot'!D$6/1.0645) -> 0 | E78: =+'Compras (p)'!E$11*'GEN-502 Pot'!E78*E$7/('GEN-502 Pot'!E$6/1.0645) -> 0 | F78: =+'Compras (p)'!F$11*'GEN-502 Pot'!F78*F$7/('GEN-502 Pot'!F$6/1.0645) -> 0 | G78: =+'Compras (p)'!G$11*'GEN-502 Pot'!G78*G$7/('GEN-502 Pot'!G$6/1.0645) -> 0 | H78: 2108.870364
A79: =+'GEN-502 Pot'!A79 -> GENERADORA DEL ISTMO, S.A. No. 25-23 | B79: =+'Compras (p)'!B$11*'GEN-502 Pot'!B79*B$7/('GEN-502 Pot'!B$6/1.0645) -> 896.1205514 | H79: 896.1205514
A80: =+'GEN-502 Pot'!A80 -> HIDRO BOQUERÓN, S.A. No. 26-23 | B80: =+'Compras (p)'!B$11*'GEN-502 Pot'!B80*B$7/('GEN-502 Pot'!B$6/1.0645) -> 109.1773538 | C80: =+'Compras (p)'!C$11*'GEN-502 Pot'!C80*C$7/('GEN-502 Pot'!C$6/1.0645) -> 54.88806227 | D80: =+'Compras (p)'!D$11*'GEN-502 Pot'!D80*D$7/('GEN-502 Pot'!D$6/1.0645) -> 189.2875152 | E80: =+'Compras (p)'!E$11*'GEN-502 Pot'!E80*E$7/('GEN-502 Pot'!E$6/1.0645) -> 214.9066222 | F80: =+'Compras (p)'!F$11*'GEN-502 Pot'!F80*F$7/('GEN-502 Pot'!F$6/1.0645) -> 118.1923629 | G80: =+'Compras (p)'!G$11*'GEN-502 Pot'!G80*G$7/('GEN-502 Pot'!G$6/1.0645) -> 0 | H80: 686.4519164
A81: =+'GEN-502 Pot'!A81 -> HIDROIBÉRICA No. 27-23 | B81: =+'Compras (p)'!B$11*'GEN-502 Pot'!B81*B$7/('GEN-502 Pot'!B$6/1.0645) -> 57.66360038 | C81: =+'Compras (p)'!C$11*'GEN-502 Pot'!C81*C$7/('GEN-502 Pot'!C$6/1.0645) -> 41.06585421 | D81: =+'Compras (p)'!D$11*'GEN-502 Pot'!D81*D$7/('GEN-502 Pot'!D$6/1.0645) -> 42.23962712 | E81: =+'Compras (p)'!E$11*'GEN-502 Pot'!E81*E$7/('GEN-502 Pot'!E$6/1.0645) -> 32.08051693 | F81: =+'Compras (p)'!F$11*'GEN-502 Pot'!F81*F$7/('GEN-502 Pot'!F$6/1.0645) -> 34.66218335 | G81: =+'Compras (p)'!G$11*'GEN-502 Pot'!G81*G$7/('GEN-502 Pot'!G$6/1.0645) -> 40.12398908 | H81: 247.8357711
A82: =+'GEN-502 Pot'!A82 -> IDEAL PANAMÁ, S.A. No. 29-23 | B82: =+'Compras (p)'!B$11*'GEN-502 Pot'!B82*B$7/('GEN-502 Pot'!B$6/1.0645) -> 1493.534252 | C82: =+'Compras (p)'!C$11*'GEN-502 Pot'!C82*C$7/('GEN-502 Pot'!C$6/1.0645) -> 0 | D82: =+'Compras (p)'!D$11*'GEN-502 Pot'!D82*D$7/('GEN-502 Pot'!D$6/1.0645) -> 0 | E82: =+'Compras (p)'!E$11*'GEN-502 Pot'!E82*E$7/('GEN-502 Pot'!E$6/1.0645) -> 0 | F82: =+'Compras (p)'!F$11*'GEN-502 Pot'!F82*F$7/('GEN-502 Pot'!F$6/1.0645) -> 0 | G82: =+'Compras (p)'!G$11*'GEN-502 Pot'!G82*G$7/('GEN-502 Pot'!G$6/1.0645) -> 0 | H82: 1493.534252
A83: =+'GEN-502 Pot'!A83 -> SOLAR BOQUERÓN, S.A. No. 33-23 | B83: =+'Compras (p)'!B$11*'GEN-502 Pot'!B83*B$7/('GEN-502 Pot'!B$6/1.0645) -> 36.29288233 | C83: =+'Compras (p)'!C$11*'GEN-502 Pot'!C83*C$7/('GEN-502 Pot'!C$6/1.0645) -> 21.95522491 | D83: =+'Compras (p)'!D$11*'GEN-502 Pot'!D83*D$7/('GEN-502 Pot'!D$6/1.0645) -> 18.06835373 | E83: =+'Compras (p)'!E$11*'GEN-502 Pot'!E83*E$7/('GEN-502 Pot'!E$6/1.0645) -> 17.65945781 | F83: =+'Compras (p)'!F$11*'GEN-502 Pot'!F83*F$7/('GEN-502 Pot'!F$6/1.0645) -> 17.45344831 | G83: =+'Compras (p)'!G$11*'GEN-502 Pot'!G83*G$7/('GEN-502 Pot'!G$6/1.0645) -> 17.66163756 | H83: 129.0910046
A84: =+'GEN-502 Pot'!A84 -> AUTORIDAD DEL CANAL DE PANAMÁ No. 34-23 | H84: =+SUM(B84:G84) -> 0
A85: =+'GEN-502 Pot'!A85 -> CELSIA CENTROAMÉRICA, S.A. No. 35-23 | H85: 0
A86: =+'GEN-502 Pot'!A86 -> GENERADORA DEL ATLÁNTICO, S.A. No. 36-23 | H86: 0
A87: =+'GEN-502 Pot'!A87 -> GENERADORA DEL ATLÁNTICO, S.A. No. 37-23 | H87: 0
A88: =+'GEN-502 Pot'!A88 -> PEDREGAL POWER, S. DE R.L. No. 38-23 | H88: 0
A89: =+'GEN-502 Pot'!A89 -> PANAM GENERATING LTD No. 39-23 | H89: 0
A90: =+'GEN-502 Pot'!A90 -> PANAM GENERATING LTD No. 40-23 | H90: 0
A91: =+'GEN-502 Pot'!A91 -> SPARKLE POWER, S.A. No. 41-23 | H91: 0
A92: =+'GEN-502 Pot'!A92 -> TROPITÉRMICA, S.A. No. 42-23 | H92: 0

Sheet GEN-502 Pre_Gen_P
A1: INFORMACION PARA ACTUALIZAR: CARGO POR GENERACION
A2: =+'Compras (p)'!A2 -> EDECHI
A3: Precio Mensual de la Energía en Horas de Punta (B/./KWh)
B4: PRECIO ESTIMADO DE ENERGIA EN HORAS DE PUNTA
A5: Detalle | B5: 2023-07-01 | C5: 2023-08-01 | D5: 2023-09-01 | E5: 2023-10-01 | F5: 2023-11-01 | G5: 2023-12-01 | H5: Promedio
A8: TOTAL | B8: =+IF('GEN-502 Gen_P'!B8=0,"",'GEN-502 Cos_Gen_P'!B8/'GEN-502 Gen_P'!B8) -> 72.78210625 | C8: =+IF('GEN-502 Gen_P'!C8=0,"",'GEN-502 Cos_Gen_P'!C8/'GEN-502 Gen_P'!C8) -> 74.76254568 | D8: =+IF('GEN-502 Gen_P'!D8=0,"",'GEN-502 Cos_Gen_P'!D8/'GEN-502 Gen_P'!D8) -> 78.74192168 | E8: =+IF('GEN-502 Gen_P'!E8=0,"",'GEN-502 Cos_Gen_P'!E8/'GEN-502 Gen_P'!E8) -> 79.53332062 | F8: =+IF('GEN-502 Gen_P'!F8=0,"",'GEN-502 Cos_Gen_P'!F8/'GEN-502 Gen_P'!F8) -> 78.38317753 | G8: =+IF('GEN-502 Gen_P'!G8=0,"",'GEN-502 Cos_Gen_P'!G8/'GEN-502 Gen_P'!G8) -> 78.47791705 | H8: =+IF('GEN-502 Gen_P'!H8>0,'GEN-502 Cos_Gen_P'!H8/'GEN-502 Gen_P'!H8,0) -> 77.10882338
A9: Generación Propia | H9: =+IF('GEN-502 Gen_P'!H9>0,'GEN-502 Cos_Gen_P'!H9/'GEN-502 Gen_P'!H9,0) -> 0
A10: 0 | H10: =+IF('GEN-502 Gen_P'!H10>0,'GEN-502 Cos_Gen_P'!H10/'GEN-502 Gen_P'!H10,0) -> 0
A11: 0 | H11: =+IF('GEN-502 Gen_P'!H11>0,'GEN-502 Cos_Gen_P'!H11/'GEN-502 Gen_P'!H11,0) -> 0
A12: 0 | H12: =+IF('GEN-502 Gen_P'!H12>0,'GEN-502 Cos_Gen_P'!H12/'GEN-502 Gen_P'!H12,0) -> 0
A13: 0 | H13: =+IF('GEN-502 Gen_P'!H13>0,'GEN-502 Cos_Gen_P'!H13/'GEN-502 Gen_P'!H13,0) -> 0
A14: 0 | H14: =+IF('GEN-502 Gen_P'!H14>0,'GEN-502 Cos_Gen_P'!H14/'GEN-502 Gen_P'!H14,0) -> 0
A15: Sub-Total Mercado Mayorista | B15: =+IF('GEN-502 Gen_P'!B15=0,"",'GEN-502 Cos_Gen_P'!B15/'GEN-502 Gen_P'!B15) -> 72.78210625 | C15: =+IF('GEN-502 Gen_P'!C15=0,"",'GEN-502 Cos_Gen_P'!C15/'GEN-502 Gen_P'!C15) -> 74.76254568 | D15: =+IF('GEN-502 Gen_P'!D15=0,"",'GEN-502 Cos_Gen_P'!D15/'GEN-502 Gen_P'!D15) -> 78.74192168 | E15: =+IF('GEN-502 Gen_P'!E15=0,"",'GEN-502 Cos_Gen_P'!E15/'GEN-502 Gen_P'!E15) -> 79.53332062 | F15: =+IF('GEN-502 Gen_P'!F15=0,"",'GEN-502 Cos_Gen_P'!F15/'GEN-502 Gen_P'!F15) -> 78.38317753 | G15: =+IF('GEN-502 Gen_P'!G15=0,"",'GEN-502 Cos_Gen_P'!G15/'GEN-502 Gen_P'!G15) -> 78.47791705 | H15: =+IF('GEN-502 Gen_P'!H15>0,'GEN-502 Cos_Gen_P'!H15/'GEN-502 Gen_P'!H15,0) -> 77.10882338
A16: Mercado Ocasional | B16: 100 | C16: 100 | D16: 100 | E16: 100 | F16: 100 | G16: 100 | H16: =+IF('GEN-502 Gen_P'!H16>0,'GEN-502 Cos_Gen_P'!H16/'GEN-502 Gen_P'!H16,0) -> 100
H17: =+IF('GEN-502 Gen_P'!H17>0,'GEN-502 Cos_Gen_P'!H17/'GEN-502 Gen_P'!H17,0) -> 0
H18: =+IF('GEN-502 Gen_P'!H18>0,'GEN-502 Cos_Gen_P'!H18/'GEN-502 Gen_P'!H18,0) -> 0
H19: =+IF('GEN-502 Gen_P'!H19>0,'GEN-502 Cos_Gen_P'!H19/'GEN-502 Gen_P'!H19,0) -> 0
H20: =+IF('GEN-502 Gen_P'!H20>0,'GEN-502 Cos_Gen_P'!H20/'GEN-502 Gen_P'!H20,0) -> 0
H21: =+IF('GEN-502 Gen_P'!H21>0,'GEN-502 Cos_Gen_P'!H21/'GEN-502 Gen_P'!H21,0) -> 0
H22: =+IF('GEN-502 Gen_P'!H22>0,'GEN-502 Cos_Gen_P'!H22/'GEN-502 Gen_P'!H22,0) -> 0
H23: =+IF('GEN-502 Gen_P'!H23>0,'GEN-502 Cos_Gen_P'!H23/'GEN-502 Gen_P'!H23,0) -> 0
A24: Sub-Total Contratos | B24: =+IF('GEN-502 Gen_P'!B24=0,"",'GEN-502 Cos_Gen_P'!B24/'GEN-502 Gen_P'!B24) -> 63.93903957 | C24: =+IF('GEN-502 Gen_P'!C24=0,"",'GEN-502 Cos_Gen_P'!C24/'GEN-502 Gen_P'!C24) -> 63.63540557 | D24: =+IF('GEN-502 Gen_P'!D24=0,"",'GEN-502 Cos_Gen_P'!D24/'GEN-502 Gen_P'!D24) -> 65.79854351 | E24: =+IF('GEN-502 Gen_P'!E24=0,"",'GEN-502 Cos_Gen_P'!E24/'GEN-502 Gen_P'!E24) -> 66.52802919 | F24: =+IF('GEN-502 Gen_P'!F24=0,"",'GEN-502 Cos_Gen_P'!F24/'GEN-502 Gen_P'!F24) -> 65.59287749 | G24: =+IF('GEN-502 Gen_P'!G24=0,"",'GEN-502 Cos_Gen_P'!G24/'GEN-502 Gen_P'!G24) -> 61.30873902 | H24: =+IF('GEN-502 Gen_P'!H24>0,'GEN-502 Cos_Gen_P'!H24/'GEN-502 Gen_P'!H24,0) -> 64.48157902
A25: Empresa Nacional de Energía No. 36-11 (Cesión) | B25: 79.7 | C25: 79.7 | D25: 79.7 | E25: 79.7 | F25: 79.7 | G25: 79.7 | H25: =+IF('GEN-502 Gen_P'!H25>0,'GEN-502 Cos_Gen_P'!H25/'GEN-502 Gen_P'!H25,0) -> 79.7
A26: Enel Fortuna No. 37-11 | B26: 95.8 | C26: 95.8 | D26: 95.8 | E26: 95.8 | F26: 95.8 | G26: 95.8 | H26: =+IF('GEN-502 Gen_P'!H26>0,'GEN-502 Cos_Gen_P'!H26/'GEN-502 Gen_P'!H26,0) -> 95.8
A27: Electrogeneradora del Istmo No. 38-11 | B27: 63.3 | C27: 63.3 | D27: 63.3 | E27: 63.3 | F27: 63.3 | G27: 63.3 | H27: =+IF('GEN-502 Gen_P'!H27>0,'GEN-502 Cos_Gen_P'!H27/'GEN-502 Gen_P'!H27,0) -> 63.3
A28: ESEPSA No. 39-11 | B28: 91 | C28: 91 | D28: 91 | E28: 91 | F28: 91 | G28: 91 | H28: =+IF('GEN-502 Gen_P'!H28>0,'GEN-502 Cos_Gen_P'!H28/'GEN-502 Gen_P'!H28,0) -> 91
A29: Pedregalito No. 40-11 | B29: 54.2 | C29: 54.2 | D29: 54.2 | E29: 54.2 | F29: 54.2 | G29: 54.2 | H29: =+IF('GEN-502 Gen_P'!H29>0,'GEN-502 Cos_Gen_P'!H29/'GEN-502 Gen_P'!H29,0) -> 54.2
A30: Río Chico No. 41-11 | B30: 54.2 | C30: 54.2 | D30: 54.2 | E30: 54.2 | F30: 54.2 | G30: 54.2 | H30: =+IF('GEN-502 Gen_P'!H30>0,'GEN-502 Cos_Gen_P'!H30/'GEN-502 Gen_P'!H30,0) -> 54.2
A31: Alto Valle No. 42-11 | B31: 54.2 | C31: 54.2 | D31: 54.2 | E31: 54.2 | F31: 54.2 | G31: 54.2 | H31: =+IF('GEN-502 Gen_P'!H31>0,'GEN-502 Cos_Gen_P'!H31/'GEN-502 Gen_P'!H31,0) -> 54.2
A32: Hidroecológica del Teribe No. 43-11 | B32: 102.1 | C32: 102.1 | D32: 102.1 | E32: 102.1 | F32: 102.1 | G32: 102.1 | H32: =+IF('GEN-502 Gen_P'!H32>0,'GEN-502 Cos_Gen_P'!H32/'GEN-502 Gen_P'!H32,0) -> 102.1
A33: Desarrollos Hidroeléctricos Corp. No. 44-11 | B33: 96.5 | C33: 96.5 | D33: 96.5 | E33: 96.5 | F33: 96.5 | G33: 96.5 | H33: =+IF('GEN-502 Gen_P'!H33>0,'GEN-502 Cos_Gen_P'!H33/'GEN-502 Gen_P'!H33,0) -> 96.5
A34: Las Perlas Norte No. 45-11 | B34: 100.8 | C34: 100.8 | D34: 100.8 | E34: 100.8 | F34: 100.8 | G34: 100.8 | H34: =+IF('GEN-502 Gen_P'!H34>0,'GEN-502 Cos_Gen_P'!H34/'GEN-502 Gen_P'!H34,0) -> 100.8
A35: Hidroeléctrica San Lorenzo No. 46-11 | B35: 89.5 | C35: 89.5 | D35: 89.5 | E35: 89.5 | F35: 89.5 | G35: 89.5 | H35: =+IF('GEN-502 Gen_P'!H35>0,'GEN-502 Cos_Gen_P'!H35/'GEN-502 Gen_P'!H35,0) -> 89.5
A36: Caldera Energy Corp. No. 47-11 | B36: 63.3 | C36: 63.3 | D36: 63.3 | E36: 63.3 | F36: 63.3 | G36: 63.3 | H36: =+IF('GEN-502 Gen_P'!H36>0,'GEN-502 Cos_Gen_P'!H36/'GEN-502 Gen_P'!H36,0) -> 63.3
A37: Unión Eólica de Panamá (PE Nuevo Chagres) No. 19-12' | B37: 95 | C37: 95 | D37: 95 | E37: 95 | F37: 95 | G37: 95 | H37: =+IF('GEN-502 Gen_P'!H37>0,'GEN-502 Cos_Gen_P'!H37/'GEN-502 Gen_P'!H37,0) -> 95
A38: Unión Eólica de Panamá (PE Rosa de los Vientos) No. 20-12' | B38: 98 | C38: 98 | D38: 98 | E38: 98 | F38: 98 | G38: 98 | H38: =+IF('GEN-502 Gen_P'!H38>0,'GEN-502 Cos_Gen_P'!H38/'GEN-502 Gen_P'!H38,0) -> 98
A39: Unión Eólica de Panamá (PE Portobelo Ballestillas) No. 21-12' | B39: 108 | C39: 108 | D39: 108 | E39: 108 | F39: 108 | G39: 108 | H39: =+IF('GEN-502 Gen_P'!H39>0,'GEN-502 Cos_Gen_P'!H39/'GEN-502 Gen_P'!H39,0) -> 108
A40: Unión Eólica de Panamá (PE Marañon) No. 22-12' | B40: 110 | C40: 110 | D40: 110 | E40: 110 | F40: 110 | G40: 110 | H40: =+IF('GEN-502 Gen_P'!H40>0,'GEN-502 Cos_Gen_P'!H40/'GEN-502 Gen_P'!H40,0) -> 110
A41: AES No. 122-12 | B41: 88.7 | C41: 88.7 | D41: 88.7 | E41: 88.7 | F41: 88.7 | G41: 88.7 | H41: =+IF('GEN-502 Gen_P'!H41>0,'GEN-502 Cos_Gen_P'!H41/'GEN-502 Gen_P'!H41,0) -> 88.7
A42: HIDRO PIEDRA No. 123-12 | B42: 100 | C42: 100 | D42: 100 | E42: 100 | F42: 100 | G42: 100 | H42: =+IF('GEN-502 Gen_P'!H42>0,'GEN-502 Cos_Gen_P'!H42/'GEN-502 Gen_P'!H42,0) -> 100
A43: Corp. Energ. Del Istmo No. 124-12 | B43: 100 | C43: 100 | D43: 100 | E43: 100 | F43: 100 | G43: 100 | H43: =+IF('GEN-502 Gen_P'!H43>0,'GEN-502 Cos_Gen_P'!H43/'GEN-502 Gen_P'!H43,0) -> 100
A44: Saltos del Francolí No. 126-12 | B44: 103.5 | C44: 103.5 | D44: 103.5 | E44: 103.5 | F44: 103.5 | G44: 103.5 | H44: =+IF('GEN-502 Gen_P'!H44>0,'GEN-502 Cos_Gen_P'!H44/'GEN-502 Gen_P'!H44,0) -> 103.5
A45: PASO ANCHO No. 88-11 | B45: 99.9 | C45: 99.9 | D45: 99.9 | E45: 99.9 | F45: 99.9 | G45: 99.9 | H45: =+IF('GEN-502 Gen_P'!H45>0,'GEN-502 Cos_Gen_P'!H45/'GEN-502 Gen_P'!H45,0) -> 99.9
A46: Hidroecológica del Teribe No. 89-11 | B46: 111 | C46: 111 | D46: 111 | E46: 111 | F46: 111 | G46: 111 | H46: =+IF('GEN-502 Gen_P'!H46>0,'GEN-502 Cos_Gen_P'!H46/'GEN-502 Gen_P'!H46,0) -> 111
A47: ISTMUS HYDRO POWER CORP. No.10-13 | B47: 120 | C47: 120 | D47: 120 | E47: 120 | F47: 120 | G47: 120 | H47: =+IF('GEN-502 Gen_P'!H47>0,'GEN-502 Cos_Gen_P'!H47/'GEN-502 Gen_P'!H47,0) -> 120
A48: CALDERA ENERGY CORP. No.11-13 | B48: 122.5 | C48: 122.5 | D48: 122.5 | E48: 122.5 | F48: 122.5 | G48: 122.5 | H48: =+IF('GEN-502 Gen_P'!H48>0,'GEN-502 Cos_Gen_P'!H48/'GEN-502 Gen_P'!H48,0) -> 122.5
A49: ELECTROGENERADORA DEL ISTMO, S.A. No.12-13 | B49: 125 | C49: 125 | D49: 125 | E49: 125 | F49: 125 | G49: 125 | H49: =+IF('GEN-502 Gen_P'!H49>0,'GEN-502 Cos_Gen_P'!H49/'GEN-502 Gen_P'!H49,0) -> 125
A50: FOUNTAIN INTERTRADE CORP. No.13-13 | B50: 132.3 | C50: 132.3 | D50: 132.3 | E50: 132.3 | F50: 132.3 | G50: 132.3 | H50: =+IF('GEN-502 Gen_P'!H50>0,'GEN-502 Cos_Gen_P'!H50/'GEN-502 Gen_P'!H50,0) -> 132.3
A51: HIDROIBERICA, S.A. No.14-13 | B51: 90 | C51: 90 | D51: 90 | E51: 90 | F51: 90 | G51: 90 | H51: =+IF('GEN-502 Gen_P'!H51>0,'GEN-502 Cos_Gen_P'!H51/'GEN-502 Gen_P'!H51,0) -> 90
A52: NAVITAS INTERNACIONAL, S.A. No.15-13 | B52: 85 | C52: 85 | D52: 85 | E52: 85 | F52: 85 | G52: 85 | H52: =+IF('GEN-502 Gen_P'!H52>0,'GEN-502 Cos_Gen_P'!H52/'GEN-502 Gen_P'!H52,0) -> 85
A53: HIDROECOLÓGICA DEL TERIBE, S.A. No.16-13 | B53: 0 | C53: 0 | D53: 136 | E53: 136 | F53: 136 | G53: 136 | H53: =+IF('GEN-502 Gen_P'!H53>0,'GEN-502 Cos_Gen_P'!H53/'GEN-502 Gen_P'!H53,0) -> 136
A54: HIDRONORTH CORP. No.17-13 | B54: 140 | C54: 140 | D54: 140 | E54: 140 | F54: 140 | G54: 140 | H54: =+IF('GEN-502 Gen_P'!H54>0,'GEN-502 Cos_Gen_P'!H54/'GEN-502 Gen_P'!H54,0) -> 140
A55: EMPRESA NACIONAL DE ENERGÍA, S.A. No.33-13 | B55: 127.5 | C55: 127.5 | D55: 127.5 | E55: 127.5 | F55: 127.5 | G55: 127.5 | H55: =+IF('GEN-502 Gen_P'!H55>0,'GEN-502 Cos_Gen_P'!H55/'GEN-502 Gen_P'!H55,0) -> 127.5
A56: FUERZA ELÉCTRICA DEL ISTMO, S.A. No.34-13 | B56: 127.6 | C56: 127.6 | D56: 127.6 | E56: 127.6 | F56: 127.6 | G56: 127.6 | H56: =+IF('GEN-502 Gen_P'!H56>0,'GEN-502 Cos_Gen_P'!H56/'GEN-502 Gen_P'!H56,0) -> 127.6
A57: CAFÉ DE ELETA, S.A. No.35-13 | B57: 128 | C57: 128 | D57: 128 | E57: 128 | F57: 128 | G57: 128 | H57: =+IF('GEN-502 Gen_P'!H57>0,'GEN-502 Cos_Gen_P'!H57/'GEN-502 Gen_P'!H57,0) -> 128
A58: ENERGÍA Y SERVICIOS DE PANAMÁ, S.A. No.36-13 | B58: 132.5 | C58: 132.5 | D58: 132.5 | E58: 132.5 | F58: 132.5 | G58: 132.5 | H58: =+IF('GEN-502 Gen_P'!H58>0,'GEN-502 Cos_Gen_P'!H58/'GEN-502 Gen_P'!H58,0) -> 132.5
A59: GENERADORA PEDREGALITO, S.A. No.37-13 | B59: 132 | C59: 132 | D59: 132 | E59: 132 | F59: 132 | G59: 132 | H59: =+IF('GEN-502 Gen_P'!H59>0,'GEN-502 Cos_Gen_P'!H59/'GEN-502 Gen_P'!H59,0) -> 132
A60: GENERADORA RIO CHICO, S.A. No.38-13 | B60: 132 | C60: 132 | D60: 132 | E60: 132 | F60: 132 | G60: 132 | H60: =+IF('GEN-502 Gen_P'!H60>0,'GEN-502 Cos_Gen_P'!H60/'GEN-502 Gen_P'!H60,0) -> 132
A61: GENERADORA ALTO VALLE, S.A. No.39-13 | B61: 132.5 | C61: 132.5 | D61: 132.5 | E61: 132.5 | F61: 132.5 | G61: 132.5 | H61: =+IF('GEN-502 Gen_P'!H61>0,'GEN-502 Cos_Gen_P'!H61/'GEN-502 Gen_P'!H61,0) -> 132.5
A62: HYDRO CAISÁN, S.A. No.40-13 | B62: 132.5 | C62: 132.5 | D62: 132.5 | E62: 132.5 | F62: 132.5 | G62: 132.5 | H62: =+IF('GEN-502 Gen_P'!H62>0,'GEN-502 Cos_Gen_P'!H62/'GEN-502 Gen_P'!H62,0) -> 132.5
A63: SIGSA, S.A. No. 137-12 | B63: =51.11+257.9*('Compras (p)'!B$22/133.2838) -> 283.3062609 | C63: =51.11+257.9*('Compras (p)'!C$22/133.2838) -> 283.3062609 | D63: =51.11+257.9*('Compras (p)'!D$22/133.2838) -> 283.3062609 | E63: =51.11+257.9*('Compras (p)'!E$22/133.2838) -> 283.3062609 | F63: =51.11+257.9*('Compras (p)'!F$22/133.2838) -> 283.3062609 | G63: =51.11+257.9*('Compras (p)'!G$22/133.2838) -> 283.3062609 | H63: =+IF('GEN-502 Gen_P'!H63>0,'GEN-502 Cos_Gen_P'!H63/'GEN-502 Gen_P'!H63,0) -> 0
A64: PARQUE EÓLICO TOABRÉ, S.A. No 09-14 | B64: 95 | C64: 95 | D64: 95 | E64: 95 | F64: 95 | G64: 95 | H64: =+IF('GEN-502 Gen_P'!H64>0,'GEN-502 Cos_Gen_P'!H64/'GEN-502 Gen_P'!H64,0) -> 95
A65: NAURA ENERGY CORP. No 10-14 | B65: 97.5 | C65: 97.5 | D65: 97.5 | E65: 97.5 | F65: 97.5 | G65: 97.5 | H65: =+IF('GEN-502 Gen_P'!H65>0,'GEN-502 Cos_Gen_P'!H65/'GEN-502 Gen_P'!H65,0) -> 97.5
A66: Panama Solar2 No. 10-15 | B66: 86 | C66: 86 | D66: 86 | E66: 86 | F66: 86 | G66: 86 | H66: =+IF('GEN-502 Gen_P'!H66>0,'GEN-502 Cos_Gen_P'!H66/'GEN-502 Gen_P'!H66,0) -> 86
A67: Solpac Investment No. 11-15 | B67: 104.8 | C67: 104.8 | D67: 104.8 | E67: 104.8 | F67: 104.8 | G67: 104.8 | H67: =+IF('GEN-502 Gen_P'!H67>0,'GEN-502 Cos_Gen_P'!H67/'GEN-502 Gen_P'!H67,0) -> 104.8
A68: GAS NATURAL ATLÁNTICO No. 17-15 | B68: =26.8*(1+0.84*('Compras (p)'!B$21/2.8-1)) -> 26.398 | C68: =26.8*(1+0.84*('Compras (p)'!C$21/2.8-1)) -> 26.398 | D68: =26.8*(1+0.84*('Compras (p)'!D$21/2.8-1)) -> 26.398 | E68: =26.8*(1+0.84*('Compras (p)'!E$21/2.8-1)) -> 26.398 | F68: =26.8*(1+0.84*('Compras (p)'!F$21/2.8-1)) -> 26.398 | G68: =26.8*(1+0.84*('Compras (p)'!G$21/2.8-1)) -> 26.398 | H68: =+IF('GEN-502 Gen_P'!H68>0,'GEN-502 Cos_Gen_P'!H68/'GEN-502 Gen_P'!H68,0) -> 26.398
A69: MARTANO INC No. 19-15 | B69: 20.9 | C69: 20.9 | D69: 20.9 | E69: 20.9 | F69: 20.9 | G69: 20.9 | H69: =+IF('GEN-502 Gen_P'!H69>0,'GEN-502 Cos_Gen_P'!H69/'GEN-502 Gen_P'!H69,0) -> 20.9
A70: ENEL FORTUNA, S.A. No. 36-21 | B70: 58.4 | C70: 58.4 | H70: =+IF('GEN-502 Gen_P'!H70>0,'GEN-502 Cos_Gen_P'!H70/'GEN-502 Gen_P'!H70,0) -> 58.4
A71: HIDRO BOQUERÓN, S.A. No. 40-21 | B71: 69 | C71: 69 | H71: =+IF('GEN-502 Gen_P'!H71>0,'GEN-502 Cos_Gen_P'!H71/'GEN-502 Gen_P'!H71,0) -> 69
A72: AUTORIDAD DEL CANAL DE PANAMÁ No. 57-21 | H72: =+IF('GEN-502 Gen_P'!H72>0,'GEN-502 Cos_Gen_P'!H72/'GEN-502 Gen_P'!H72,0) -> 0
A73: GENERADORA DEL ATLÁNTICO, S.A. No. 59-21 | H73: =+IF('GEN-502 Gen_P'!H73>0,'GEN-502 Cos_Gen_P'!H73/'GEN-502 Gen_P'!H73,0) -> 0
A74: GENERADORA DEL ATLÁNTICO, S.A. No. 60-21 | H74: =+IF('GEN-502 Gen_P'!H74>0,'GEN-502 Cos_Gen_P'!H74/'GEN-502 Gen_P'!H74,0) -> 0
A75: PANAM GENERATING LTD No. 61-21 | H75: =+IF('GEN-502 Gen_P'!H75>0,'GEN-502 Cos_Gen_P'!H75/'GEN-502 Gen_P'!H75,0) -> 0
A76: TROPITÉRMICA, S.A. No. 63-21 | H76: =+IF('GEN-502 Gen_P'!H76>0,'GEN-502 Cos_Gen_P'!H76/'GEN-502 Gen_P'!H76,0) -> 0
A77: EMPRESA NACIONAL DE ENERGÍA, S.A. No. 23-23 | B77: 110.7 | C77: 0 | D77: 73.8 | E77: 73.8 | F77: 73.8 | G77: 0 | H77: =+IF('GEN-502 Gen_P'!H77>0,'GEN-502 Cos_Gen_P'!H77/'GEN-502 Gen_P'!H77,0) -> 84.1547768
A78: FOUNTAIN HYDRO POWER CORP No. 24-23 | B78: 105 | C78: 0 | D78: 0 | E78: 0 | F78: 0 | G78: 0 | H78: =+IF('GEN-502 Gen_P'!H78>0,'GEN-502 Cos_Gen_P'!H78/'GEN-502 Gen_P'!H78,0) -> 105
A79: GENERADORA DEL ISTMO, S.A. No. 25-23 | B79: 90.63 | H79: =+IF('GEN-502 Gen_P'!H79>0,'GEN-502 Cos_Gen_P'!H79/'GEN-502 Gen_P'!H79,0) -> 90.63
A80: HIDRO BOQUERÓN, S.A. No. 26-23 | B80: 74.5 | C80: 74.5 | D80: 74.5 | E80: 74.5 | F80: 74.5 | G80: 0 | H80: =+IF('GEN-502 Gen_P'!H80>0,'GEN-502 Cos_Gen_P'!H80/'GEN-502 Gen_P'!H80,0) -> 74.5
A81: HIDROIBÉRICA No. 27-23 | B81: 80 | C81: 80 | D81: 80 | E81: 80 | F81: 80 | G81: 80 | H81: =+IF('GEN-502 Gen_P'!H81>0,'GEN-502 Cos_Gen_P'!H81/'GEN-502 Gen_P'!H81,0) -> 80
A82: IDEAL PANAMÁ, S.A. No. 29-23 | B82: 90 | C82: 0 | D82: 0 | E82: 0 | F82: 0 | G82: 0 | H82: =+IF('GEN-502 Gen_P'!H82>0,'GEN-502 Cos_Gen_P'!H82/'GEN-502 Gen_P'!H82,0) -> 90
A83: SOLAR BOQUERÓN, S.A. No. 33-23 | B83: 78.5 | C83: 78.5 | D83: 78.5 | E83: 78.5 | F83: 78.5 | G83: 78.5 | H83: =+IF('GEN-502 Gen_P'!H83>0,'GEN-502 Cos_Gen_P'!H83/'GEN-502 Gen_P'!H83,0) -> 78.5
A84: AUTORIDAD DEL CANAL DE PANAMÁ No. 34-23 | H84: =+IF('GEN-502 Gen_P'!H84>0,'GEN-502 Cos_Gen_P'!H84/'GEN-502 Gen_P'!H84,0) -> 0
A85: CELSIA CENTROAMÉRICA, S.A. No. 35-23 | H85: =+IF('GEN-502 Gen_P'!H85>0,'GEN-502 Cos_Gen_P'!H85/'GEN-502 Gen_P'!H85,0) -> 0
A86: GENERADORA DEL ATLÁNTICO, S.A. No. 36-23 | H86: =+IF('GEN-502 Gen_P'!H86>0,'GEN-502 Cos_Gen_P'!H86/'GEN-502 Gen_P'!H86,0) -> 0
A87: GENERADORA DEL ATLÁNTICO, S.A. No. 37-23 | H87: =+IF('GEN-502 Gen_P'!H87>0,'GEN-502 Cos_Gen_P'!H87/'GEN-502 Gen_P'!H87,0) -> 0
A88: PEDREGAL POWER, S. DE R.L. No. 38-23 | H88: =+IF('GEN-502 Gen_P'!H88>0,'GEN-502 Cos_Gen_P'!H88/'GEN-502 Gen_P'!H88,0) -> 0
A89: PANAM GENERATING LTD No. 39-23 | H89: =+IF('GEN-502 Gen_P'!H89>0,'GEN-502 Cos_Gen_P'!H89/'GEN-502 Gen_P'!H89,0) -> 0
A90: PANAM GENERATING LTD No. 40-23 | H90: =+IF('GEN-502 Gen_P'!H90>0,'GEN-502 Cos_Gen_P'!H90/'GEN-502 Gen_P'!H90,0) -> 0
A91: SPARKLE POWER, S.A. No. 41-23 | H91: =+IF('GEN-502 Gen_P'!H91>0,'GEN-502 Cos_Gen_P'!H91/'GEN-502 Gen_P'!H91,0) -> 0
A92: TROPITÉRMICA, S.A. No. 42-23 | H92: =+IF('GEN-502 Gen_P'!H92>0,'GEN-502 Cos_Gen_P'!H92/'GEN-502 Gen_P'!H92,0) -> 0

Sheet GEN-502 Pre_Gen_FP
A1: INFORMACION PARA ACTUALIZAR: CARGO POR GENERACION
A2: =+'Compras (p)'!A2 -> EDECHI
A3: Precio Mensual de la Energía en Horas Fuera de Punta (B/./KWh)
B4: PRECIO ESTIMADO DE ENERGIA EN HORAS FUERA DE PUNTA
A5: Detalle | B5: 2023-07-01 | C5: 2023-08-01 | D5: 2023-09-01 | E5: 2023-10-01 | F5: 2023-11-01 | G5: 2023-12-01 | H5: Promedio
A8: TOTAL | B8: =+IF('GEN-502 Gen_FP'!B8=0,"",'GEN-502 Cos_Gen_FP'!B8/'GEN-502 Gen_FP'!B8) -> 66.93413509 | C8: =+IF('GEN-502 Gen_FP'!C8=0,"",'GEN-502 Cos_Gen_FP'!C8/'GEN-502 Gen_FP'!C8) -> 69.09564781 | D8: =+IF('GEN-502 Gen_FP'!D8=0,"",'GEN-502 Cos_Gen_FP'!D8/'GEN-502 Gen_FP'!D8) -> 72.90475509 | E8: =+IF('GEN-502 Gen_FP'!E8=0,"",'GEN-502 Cos_Gen_FP'!E8/'GEN-502 Gen_FP'!E8) -> 73.76889004 | F8: =+IF('GEN-502 Gen_FP'!F8=0,"",'GEN-502 Cos_Gen_FP'!F8/'GEN-502 Gen_FP'!F8) -> 72.37082727 | G8: =+IF('GEN-502 Gen_FP'!G8=0,"",'GEN-502 Cos_Gen_FP'!G8/'GEN-502 Gen_FP'!G8) -> 72.81044429 | H8: =+IF('GEN-502 Gen_FP'!H8>0,'GEN-502 Cos_Gen_FP'!H8/'GEN-502 Gen_FP'!H8,0) -> 71.31186939
A9: Generación Propia | H9: =+IF('GEN-502 Gen_FP'!H9>0,'GEN-502 Cos_Gen_FP'!H9/'GEN-502 Gen_FP'!H9,0) -> 0
A10: 0 | H10: =+IF('GEN-502 Gen_FP'!H10>0,'GEN-502 Cos_Gen_FP'!H10/'GEN-502 Gen_FP'!H10,0) -> 0
A11: 0 | H11: =+IF('GEN-502 Gen_FP'!H11>0,'GEN-502 Cos_Gen_FP'!H11/'GEN-502 Gen_FP'!H11,0) -> 0
A12: 0 | H12: =+IF('GEN-502 Gen_FP'!H12>0,'GEN-502 Cos_Gen_FP'!H12/'GEN-502 Gen_FP'!H12,0) -> 0
A13: 0 | H13: =+IF('GEN-502 Gen_FP'!H13>0,'GEN-502 Cos_Gen_FP'!H13/'GEN-502 Gen_FP'!H13,0) -> 0
A14: 0 | H14: =+IF('GEN-502 Gen_FP'!H14>0,'GEN-502 Cos_Gen_FP'!H14/'GEN-502 Gen_FP'!H14,0) -> 0
A15: Sub-Total Mercado Mayorista | B15: =+IF('GEN-502 Gen_FP'!B15=0,"",'GEN-502 Cos_Gen_FP'!B15/'GEN-502 Gen_FP'!B15) -> 66.93413509 | C15: =+IF('GEN-502 Gen_FP'!C15=0,"",'GEN-502 Cos_Gen_FP'!C15/'GEN-502 Gen_FP'!C15) -> 69.09564781 | D15: =+IF('GEN-502 Gen_FP'!D15=0,"",'GEN-502 Cos_Gen_FP'!D15/'GEN-502 Gen_FP'!D15) -> 72.90475509 | E15: =+IF('GEN-502 Gen_FP'!E15=0,"",'GEN-502 Cos_Gen_FP'!E15/'GEN-502 Gen_FP'!E15) -> 73.76889004 | F15: =+IF('GEN-502 Gen_FP'!F15=0,"",'GEN-502 Cos_Gen_FP'!F15/'GEN-502 Gen_FP'!F15) -> 72.37082727 | G15: =+IF('GEN-502 Gen_FP'!G15=0,"",'GEN-502 Cos_Gen_FP'!G15/'GEN-502 Gen_FP'!G15) -> 72.81044429 | H15: =+IF('GEN-502 Gen_FP'!H15>0,'GEN-502 Cos_Gen_FP'!H15/'GEN-502 Gen_FP'!H15,0) -> 71.31186939
A16: Mercado Ocasional | B16: 100 | C16: 100 | D16: 100 | E16: 100 | F16: 100 | G16: 100 | H16: =+IF('GEN-502 Gen_FP'!H16>0,'GEN-502 Cos_Gen_FP'!H16/'GEN-502 Gen_FP'!H16,0) -> 100
H17: =+IF('GEN-502 Gen_FP'!H17>0,'GEN-502 Cos_Gen_FP'!H17/'GEN-502 Gen_FP'!H17,0) -> 0
H18: =+IF('GEN-502 Gen_FP'!H18>0,'GEN-502 Cos_Gen_FP'!H18/'GEN-502 Gen_FP'!H18,0) -> 0
H19: =+IF('GEN-502 Gen_FP'!H19>0,'GEN-502 Cos_Gen_FP'!H19/'GEN-502 Gen_FP'!H19,0) -> 0
H20: =+IF('GEN-502 Gen_FP'!H20>0,'GEN-502 Cos_Gen_FP'!H20/'GEN-502 Gen_FP'!H20,0) -> 0
H21: =+IF('GEN-502 Gen_FP'!H21>0,'GEN-502 Cos_Gen_FP'!H21/'GEN-502 Gen_FP'!H21,0) -> 0
H22: =+IF('GEN-502 Gen_FP'!H22>0,'GEN-502 Cos_Gen_FP'!H22/'GEN-502 Gen_FP'!H22,0) -> 0
H23: =+IF('GEN-502 Gen_FP'!H23>0,'GEN-502 Cos_Gen_FP'!H23/'GEN-502 Gen_FP'!H23,0) -> 0
A24: Sub-Total Contratos | B24: =+IF('GEN-502 Gen_FP'!B24=0,"",'GEN-502 Cos_Gen_FP'!B24/'GEN-502 Gen_FP'!B24) -> 63.93903957 | C24: =+IF('GEN-502 Gen_FP'!C24=0,"",'GEN-502 Cos_Gen_FP'!C24/'GEN-502 Gen_FP'!C24) -> 63.63540557 | D24: =+IF('GEN-502 Gen_FP'!D24=0,"",'GEN-502 Cos_Gen_FP'!D24/'GEN-502 Gen_FP'!D24) -> 65.79854351 | E24: =+IF('GEN-502 Gen_FP'!E24=0,"",'GEN-502 Cos_Gen_FP'!E24/'GEN-502 Gen_FP'!E24) -> 66.52802919 | F24: =+IF('GEN-502 Gen_FP'!F24=0,"",'GEN-502 Cos_Gen_FP'!F24/'GEN-502 Gen_FP'!F24) -> 65.59287749 | G24: =+IF('GEN-502 Gen_FP'!G24=0,"",'GEN-502 Cos_Gen_FP'!G24/'GEN-502 Gen_FP'!G24) -> 61.30873902 | H24: =+IF('GEN-502 Gen_FP'!H24>0,'GEN-502 Cos_Gen_FP'!H24/'GEN-502 Gen_FP'!H24,0) -> 64.48157902
A25: Empresa Nacional de Energía No. 36-11 (Cesión) | B25: 79.7 | C25: 79.7 | D25: 79.7 | E25: 79.7 | F25: 79.7 | G25: 79.7 | H25: =+IF('GEN-502 Gen_FP'!H25>0,'GEN-502 Cos_Gen_FP'!H25/'GEN-502 Gen_FP'!H25,0) -> 79.7
A26: Enel Fortuna No. 37-11 | B26: 95.8 | C26: 95.8 | D26: 95.8 | E26: 95.8 | F26: 95.8 | G26: 95.8 | H26: =+IF('GEN-502 Gen_FP'!H26>0,'GEN-502 Cos_Gen_FP'!H26/'GEN-502 Gen_FP'!H26,0) -> 95.8
A27: Electrogeneradora del Istmo No. 38-11 | B27: 63.3 | C27: 63.3 | D27: 63.3 | E27: 63.3 | F27: 63.3 | G27: 63.3 | H27: =+IF('GEN-502 Gen_FP'!H27>0,'GEN-502 Cos_Gen_FP'!H27/'GEN-502 Gen_FP'!H27,0) -> 63.3
A28: ESEPSA No. 39-11 | B28: 91 | C28: 91 | D28: 91 | E28: 91 | F28: 91 | G28: 91 | H28: =+IF('GEN-502 Gen_FP'!H28>0,'GEN-502 Cos_Gen_FP'!H28/'GEN-502 Gen_FP'!H28,0) -> 91
A29: Pedregalito No. 40-11 | B29: 54.2 | C29: 54.2 | D29: 54.2 | E29: 54.2 | F29: 54.2 | G29: 54.2 | H29: =+IF('GEN-502 Gen_FP'!H29>0,'GEN-502 Cos_Gen_FP'!H29/'GEN-502 Gen_FP'!H29,0) -> 54.2
A30: Río Chico No. 41-11 | B30: 54.2 | C30: 54.2 | D30: 54.2 | E30: 54.2 | F30: 54.2 | G30: 54.2 | H30: =+IF('GEN-502 Gen_FP'!H30>0,'GEN-502 Cos_Gen_FP'!H30/'GEN-502 Gen_FP'!H30,0) -> 54.2
A31: Alto Valle No. 42-11 | B31: 54.2 | C31: 54.2 | D31: 54.2 | E31: 54.2 | F31: 54.2 | G31: 54.2 | H31: =+IF('GEN-502 Gen_FP'!H31>0,'GEN-502 Cos_Gen_FP'!H31/'GEN-502 Gen_FP'!H31,0) -> 54.2
A32: Hidroecológica del Teribe No. 43-11 | B32: 102.1 | C32: 102.1 | D32: 102.1 | E32: 102.1 | F32: 102.1 | G32: 102.1 | H32: =+IF('GEN-502 Gen_FP'!H32>0,'GEN-502 Cos_Gen_FP'!H32/'GEN-502 Gen_FP'!H32,0) -> 102.1
A33: Desarrollos Hidroeléctricos Corp. No. 44-11 | B33: 96.5 | C33: 96.5 | D33: 96.5 | E33: 96.5 | F33: 96.5 | G33: 96.5 | H33: =+IF('GEN-502 Gen_FP'!H33>0,'GEN-502 Cos_Gen_FP'!H33/'GEN-502 Gen_FP'!H33,0) -> 96.5
A34: Las Perlas Norte No. 45-11 | B34: 100.8 | C34: 100.8 | D34: 100.8 | E34: 100.8 | F34: 100.8 | G34: 100.8 | H34: =+IF('GEN-502 Gen_FP'!H34>0,'GEN-502 Cos_Gen_FP'!H34/'GEN-502 Gen_FP'!H34,0) -> 100.8
A35: Hidroeléctrica San Lorenzo No. 46-11 | B35: 89.5 | C35: 89.5 | D35: 89.5 | E35: 89.5 | F35: 89.5 | G35: 89.5 | H35: =+IF('GEN-502 Gen_FP'!H35>0,'GEN-502 Cos_Gen_FP'!H35/'GEN-502 Gen_FP'!H35,0) -> 89.5
A36: Caldera Energy Corp. No. 47-11 | B36: 63.3 | C36: 63.3 | D36: 63.3 | E36: 63.3 | F36: 63.3 | G36: 63.3 | H36: =+IF('GEN-502 Gen_FP'!H36>0,'GEN-502 Cos_Gen_FP'!H36/'GEN-502 Gen_FP'!H36,0) -> 63.3
A37: Unión Eólica de Panamá (PE Nuevo Chagres) No. 19-12' | B37: 95 | C37: 95 | D37: 95 | E37: 95 | F37: 95 | G37: 95 | H37: =+IF('GEN-502 Gen_FP'!H37>0,'GEN-502 Cos_Gen_FP'!H37/'GEN-502 Gen_FP'!H37,0) -> 95
A38: Unión Eólica de Panamá (PE Rosa de los Vientos) No. 20-12' | B38: 98 | C38: 98 | D38: 98 | E38: 98 | F38: 98 | G38: 98 | H38: =+IF('GEN-502 Gen_FP'!H38>0,'GEN-502 Cos_Gen_FP'!H38/'GEN-502 Gen_FP'!H38,0) -> 98
A39: Unión Eólica de Panamá (PE Portobelo Ballestillas) No. 21-12' | B39: 108 | C39: 108 | D39: 108 | E39: 108 | F39: 108 | G39: 108 | H39: =+IF('GEN-502 Gen_FP'!H39>0,'GEN-502 Cos_Gen_FP'!H39/'GEN-502 Gen_FP'!H39,0) -> 108
A40: Unión Eólica de Panamá (PE Marañon) No. 22-12' | B40: 110 | C40: 110 | D40: 110 | E40: 110 | F40: 110 | G40: 110 | H40: =+IF('GEN-502 Gen_FP'!H40>0,'GEN-502 Cos_Gen_FP'!H40/'GEN-502 Gen_FP'!H40,0) -> 110
A41: AES No. 122-12 | B41: 88.7 | C41: 88.7 | D41: 88.7 | E41: 88.7 | F41: 88.7 | G41: 88.7 | H41: =+IF('GEN-502 Gen_FP'!H41>0,'GEN-502 Cos_Gen_FP'!H41/'GEN-502 Gen_FP'!H41,0) -> 88.7
A42: HIDRO PIEDRA No. 123-12 | B42: 100 | C42: 100 | D42: 100 | E42: 100 | F42: 100 | G42: 100 | H42: =+IF('GEN-502 Gen_FP'!H42>0,'GEN-502 Cos_Gen_FP'!H42/'GEN-502 Gen_FP'!H42,0) -> 100
A43: Corp. Energ. Del Istmo No. 124-12 | B43: 100 | C43: 100 | D43: 100 | E43: 100 | F43: 100 | G43: 100 | H43: =+IF('GEN-502 Gen_FP'!H43>0,'GEN-502 Cos_Gen_FP'!H43/'GEN-502 Gen_FP'!H43,0) -> 100
A44: Saltos del Francolí No. 126-12 | B44: 103.5 | C44: 103.5 | D44: 103.5 | E44: 103.5 | F44: 103.5 | G44: 103.5 | H44: =+IF('GEN-502 Gen_FP'!H44>0,'GEN-502 Cos_Gen_FP'!H44/'GEN-502 Gen_FP'!H44,0) -> 103.5
A45: PASO ANCHO No. 88-11 | B45: 99.9 | C45: 99.9 | D45: 99.9 | E45: 99.9 | F45: 99.9 | G45: 99.9 | H45: =+IF('GEN-502 Gen_FP'!H45>0,'GEN-502 Cos_Gen_FP'!H45/'GEN-502 Gen_FP'!H45,0) -> 99.9
A46: Hidroecológica del Teribe No. 89-11 | B46: 111 | C46: 111 | D46: 111 | E46: 111 | F46: 111 | G46: 111 | H46: =+IF('GEN-502 Gen_FP'!H46>0,'GEN-502 Cos_Gen_FP'!H46/'GEN-502 Gen_FP'!H46,0) -> 111
A47: ISTMUS HYDRO POWER CORP. No.10-13 | B47: 120 | C47: 120 | D47: 120 | E47: 120 | F47: 120 | G47: 120 | H47: =+IF('GEN-502 Gen_FP'!H47>0,'GEN-502 Cos_Gen_FP'!H47/'GEN-502 Gen_FP'!H47,0) -> 120
A48: CALDERA ENERGY CORP. No.11-13 | B48: 122.5 | C48: 122.5 | D48: 122.5 | E48: 122.5 | F48: 122.5 | G48: 122.5 | H48: =+IF('GEN-502 Gen_FP'!H48>0,'GEN-502 Cos_Gen_FP'!H48/'GEN-502 Gen_FP'!H48,0) -> 122.5
A49: ELECTROGENERADORA DEL ISTMO, S.A. No.12-13 | B49: 125 | C49: 125 | D49: 125 | E49: 125 | F49: 125 | G49: 125 | H49: =+IF('GEN-502 Gen_FP'!H49>0,'GEN-502 Cos_Gen_FP'!H49/'GEN-502 Gen_FP'!H49,0) -> 125
A50: FOUNTAIN INTERTRADE CORP. No.13-13 | B50: 132.3 | C50: 132.3 | D50: 132.3 | E50: 132.3 | F50: 132.3 | G50: 132.3 | H50: =+IF('GEN-502 Gen_FP'!H50>0,'GEN-502 Cos_Gen_FP'!H50/'GEN-502 Gen_FP'!H50,0) -> 132.3
A51: HIDROIBERICA, S.A. No.14-13 | B51: 90 | C51: 90 | D51: 90 | E51: 90 | F51: 90 | G51: 90 | H51: =+IF('GEN-502 Gen_FP'!H51>0,'GEN-502 Cos_Gen_FP'!H51/'GEN-502 Gen_FP'!H51,0) -> 90
A52: NAVITAS INTERNACIONAL, S.A. No.15-13 | B52: 85 | C52: 85 | D52: 85 | E52: 85 | F52: 85 | G52: 85 | H52: =+IF('GEN-502 Gen_FP'!H52>0,'GEN-502 Cos_Gen_FP'!H52/'GEN-502 Gen_FP'!H52,0) -> 85
A53: HIDROECOLÓGICA DEL TERIBE, S.A. No.16-13 | B53: 0 | C53: 0 | D53: 136 | E53: 136 | F53: 136 | G53: 136 | H53: =+IF('GEN-502 Gen_FP'!H53>0,'GEN-502 Cos_Gen_FP'!H53/'GEN-502 Gen_FP'!H53,0) -> 136
A54: HIDRONORTH CORP. No.17-13 | B54: 140 | C54: 140 | D54: 140 | E54: 140 | F54: 140 | G54: 140 | H54: =+IF('GEN-502 Gen_FP'!H54>0,'GEN-502 Cos_Gen_FP'!H54/'GEN-502 Gen_FP'!H54,0) -> 140
A55: EMPRESA NACIONAL DE ENERGÍA, S.A. No.33-13 | B55: 127.5 | C55: 127.5 | D55: 127.5 | E55: 127.5 | F55: 127.5 | G55: 127.5 | H55: =+IF('GEN-502 Gen_FP'!H55>0,'GEN-502 Cos_Gen_FP'!H55/'GEN-502 Gen_FP'!H55,0) -> 127.5
A56: FUERZA ELÉCTRICA DEL ISTMO, S.A. No.34-13 | B56: 127.6 | C56: 127.6 | D56: 127.6 | E56: 127.6 | F56: 127.6 | G56: 127.6 | H56: =+IF('GEN-502 Gen_FP'!H56>0,'GEN-502 Cos_Gen_FP'!H56/'GEN-502 Gen_FP'!H56,0) -> 127.6
A57: CAFÉ DE ELETA, S.A. No.35-13 | B57: 128 | C57: 128 | D57: 128 | E57: 128 | F57: 128 | G57: 128 | H57: =+IF('GEN-502 Gen_FP'!H57>0,'GEN-502 Cos_Gen_FP'!H57/'GEN-502 Gen_FP'!H57,0) -> 128
A58: ENERGÍA Y SERVICIOS DE PANAMÁ, S.A. No.36-13 | B58: 132.5 | C58: 132.5 | D58: 132.5 | E58: 132.5 | F58: 132.5 | G58: 132.5 | H58: =+IF('GEN-502 Gen_FP'!H58>0,'GEN-502 Cos_Gen_FP'!H58/'GEN-502 Gen_FP'!H58,0) -> 132.5
A59: GENERADORA PEDREGALITO, S.A. No.37-13 | B59: 132 | C59: 132 | D59: 132 | E59: 132 | F59: 132 | G59: 132 | H59: =+IF('GEN-502 Gen_FP'!H59>0,'GEN-502 Cos_Gen_FP'!H59/'GEN-502 Gen_FP'!H59,0) -> 132
A60: GENERADORA RIO CHICO, S.A. No.38-13 | B60: 132 | C60: 132 | D60: 132 | E60: 132 | F60: 132 | G60: 132 | H60: =+IF('GEN-502 Gen_FP'!H60>0,'GEN-502 Cos_Gen_FP'!H60/'GEN-502 Gen_FP'!H60,0) -> 132
A61: GENERADORA ALTO VALLE, S.A. No.39-13 | B61: 132.5 | C61: 132.5 | D61: 132.5 | E61: 132.5 | F61: 132.5 | G61: 132.5 | H61: =+IF('GEN-502 Gen_FP'!H61>0,'GEN-502 Cos_Gen_FP'!H61/'GEN-502 Gen_FP'!H61,0) -> 132.5
A62: HYDRO CAISÁN, S.A. No.40-13 | B62: 132.5 | C62: 132.5 | D62: 132.5 | E62: 132.5 | F62: 132.5 | G62: 132.5 | H62: =+IF('GEN-502 Gen_FP'!H62>0,'GEN-502 Cos_Gen_FP'!H62/'GEN-502 Gen_FP'!H62,0) -> 132.5
A63: SIGSA, S.A. No. 137-12 | B63: =51.11+257.9*('Compras (p)'!B$22/133.2838) -> 283.3062609 | C63: =51.11+257.9*('Compras (p)'!C$22/133.2838) -> 283.3062609 | D63: =51.11+257.9*('Compras (p)'!D$22/133.2838) -> 283.3062609 | E63: =51.11+257.9*('Compras (p)'!E$22/133.2838) -> 283.3062609 | F63: =51.11+257.9*('Compras (p)'!F$22/133.2838) -> 283.3062609 | G63: =51.11+257.9*('Compras (p)'!G$22/133.2838) -> 283.3062609 | H63: =+IF('GEN-502 Gen_FP'!H63>0,'GEN-502 Cos_Gen_FP'!H63/'GEN-502 Gen_FP'!H63,0) -> 0
A64: PARQUE EÓLICO TOABRÉ, S.A. No 09-14 | B64: 95 | C64: 95 | D64: 95 | E64: 95 | F64: 95 | G64: 95 | H64: =+IF('GEN-502 Gen_FP'!H64>0,'GEN-502 Cos_Gen_FP'!H64/'GEN-502 Gen_FP'!H64,0) -> 95
A65: NAURA ENERGY CORP. No 10-14 | B65: 97.5 | C65: 97.5 | D65: 97.5 | E65: 97.5 | F65: 97.5 | G65: 97.5 | H65: =+IF('GEN-502 Gen_FP'!H65>0,'GEN-502 Cos_Gen_FP'!H65/'GEN-502 Gen_FP'!H65,0) -> 97.5
A66: Panama Solar2 No. 10-15 | B66: 86 | C66: 86 | D66: 86 | E66: 86 | F66: 86 | G66: 86 | H66: =+IF('GEN-502 Gen_FP'!H66>0,'GEN-502 Cos_Gen_FP'!H66/'GEN-502 Gen_FP'!H66,0) -> 86
A67: Solpac Investment No. 11-15 | B67: 104.8 | C67: 104.8 | D67: 104.8 | E67: 104.8 | F67: 104.8 | G67: 104.8 | H67: =+IF('GEN-502 Gen_FP'!H67>0,'GEN-502 Cos_Gen_FP'!H67/'GEN-502 Gen_FP'!H67,0) -> 104.8
A68: GAS NATURAL ATLÁNTICO No. 17-15 | B68: =26.8*(1+0.84*('Compras (p)'!B$21/2.8-1)) -> 26.398 | C68: =26.8*(1+0.84*('Compras (p)'!C$21/2.8-1)) -> 26.398 | D68: =26.8*(1+0.84*('Compras (p)'!D$21/2.8-1)) -> 26.398 | E68: =26.8*(1+0.84*('Compras (p)'!E$21/2.8-1)) -> 26.398 | F68: =26.8*(1+0.84*('Compras (p)'!F$21/2.8-1)) -> 26.398 | G68: =26.8*(1+0.84*('Compras (p)'!G$21/2.8-1)) -> 26.398 | H68: =+IF('GEN-502 Gen_FP'!H68>0,'GEN-502 Cos_Gen_FP'!H68/'GEN-502 Gen_FP'!H68,0) -> 26.398
A69: MARTANO INC No. 19-15 | B69: 20.9 | C69: 20.9 | D69: 20.9 | E69: 20.9 | F69: 20.9 | G69: 20.9 | H69: =+IF('GEN-502 Gen_FP'!H69>0,'GEN-502 Cos_Gen_FP'!H69/'GEN-502 Gen_FP'!H69,0) -> 20.9
A70: ENEL FORTUNA, S.A. No. 36-21 | B70: 58.4 | C70: 58.4 | H70: =+IF('GEN-502 Gen_FP'!H70>0,'GEN-502 Cos_Gen_FP'!H70/'GEN-502 Gen_FP'!H70,0) -> 58.4
A71: HIDRO BOQUERÓN, S.A. No. 40-21 | B71: 69 | C71: 69 | H71: =+IF('GEN-502 Gen_FP'!H71>0,'GEN-502 Cos_Gen_FP'!H71/'GEN-502 Gen_FP'!H71,0) -> 69
A72: AUTORIDAD DEL CANAL DE PANAMÁ No. 57-21 | H72: =+IF('GEN-502 Gen_FP'!H72>0,'GEN-502 Cos_Gen_FP'!H72/'GEN-502 Gen_FP'!H72,0) -> 0
A73: GENERADORA DEL ATLÁNTICO, S.A. No. 59-21 | H73: =+IF('GEN-502 Gen_FP'!H73>0,'GEN-502 Cos_Gen_FP'!H73/'GEN-502 Gen_FP'!H73,0) -> 0
A74: GENERADORA DEL ATLÁNTICO, S.A. No. 60-21 | H74: =+IF('GEN-502 Gen_FP'!H74>0,'GEN-502 Cos_Gen_FP'!H74/'GEN-502 Gen_FP'!H74,0) -> 0
A75: PANAM GENERATING LTD No. 61-21 | H75: =+IF('GEN-502 Gen_FP'!H75>0,'GEN-502 Cos_Gen_FP'!H75/'GEN-502 Gen_FP'!H75,0) -> 0
A76: TROPITÉRMICA, S.A. No. 63-21 | H76: =+IF('GEN-502 Gen_FP'!H76>0,'GEN-502 Cos_Gen_FP'!H76/'GEN-502 Gen_FP'!H76,0) -> 0
A77: EMPRESA NACIONAL DE ENERGÍA, S.A. No. 23-23 | B77: 110.7 | C77: 0 | D77: 73.8 | E77: 73.8 | F77: 73.8 | G77: 0 | H77: =+IF('GEN-502 Gen_FP'!H77>0,'GEN-502 Cos_Gen_FP'!H77/'GEN-502 Gen_FP'!H77,0) -> 84.1547768
A78: FOUNTAIN HYDRO POWER CORP No. 24-23 | B78: 105 | C78: 0 | D78: 0 | E78: 0 | F78: 0 | G78: 0 | H78: =+IF('GEN-502 Gen_FP'!H78>0,'GEN-502 Cos_Gen_FP'!H78/'GEN-502 Gen_FP'!H78,0) -> 105
A79: GENERADORA DEL ISTMO, S.A. No. 25-23 | B79: 90.63 | H79: =+IF('GEN-502 Gen_FP'!H79>0,'GEN-502 Cos_Gen_FP'!H79/'GEN-502 Gen_FP'!H79,0) -> 90.63
A80: HIDRO BOQUERÓN, S.A. No. 26-23 | B80: 74.5 | C80: 74.5 | D80: 74.5 | E80: 74.5 | F80: 74.5 | G80: 0 | H80: =+IF('GEN-502 Gen_FP'!H80>0,'GEN-502 Cos_Gen_FP'!H80/'GEN-502 Gen_FP'!H80,0) -> 74.5
A81: HIDROIBÉRICA No. 27-23 | B81: 80 | C81: 80 | D81: 80 | E81: 80 | F81: 80 | G81: 80 | H81: =+IF('GEN-502 Gen_FP'!H81>0,'GEN-502 Cos_Gen_FP'!H81/'GEN-502 Gen_FP'!H81,0) -> 80
A82: IDEAL PANAMÁ, S.A. No. 29-23 | B82: 90 | C82: 0 | D82: 0 | E82: 0 | F82: 0 | G82: 0 | H82: =+IF('GEN-502 Gen_FP'!H82>0,'GEN-502 Cos_Gen_FP'!H82/'GEN-502 Gen_FP'!H82,0) -> 90
A83: SOLAR BOQUERÓN, S.A. No. 33-23 | B83: 78.5 | C83: 78.5 | D83: 78.5 | E83: 78.5 | F83: 78.5 | G83: 78.5 | H83: =+IF('GEN-502 Gen_FP'!H83>0,'GEN-502 Cos_Gen_FP'!H83/'GEN-502 Gen_FP'!H83,0) -> 78.5
A84: AUTORIDAD DEL CANAL DE PANAMÁ No. 34-23 | H84: =+IF('GEN-502 Gen_FP'!H84>0,'GEN-502 Cos_Gen_FP'!H84/'GEN-502 Gen_FP'!H84,0) -> 0
A85: CELSIA CENTROAMÉRICA, S.A. No. 35-23 | H85: =+IF('GEN-502 Gen_FP'!H85>0,'GEN-502 Cos_Gen_FP'!H85/'GEN-502 Gen_FP'!H85,0) -> 0
A86: GENERADORA DEL ATLÁNTICO, S.A. No. 36-23 | H86: =+IF('GEN-502 Gen_FP'!H86>0,'GEN-502 Cos_Gen_FP'!H86/'GEN-502 Gen_FP'!H86,0) -> 0
A87: GENERADORA DEL ATLÁNTICO, S.A. No. 37-23 | H87: =+IF('GEN-502 Gen_FP'!H87>0,'GEN-502 Cos_Gen_FP'!H87/'GEN-502 Gen_FP'!H87,0) -> 0
A88: PEDREGAL POWER, S. DE R.L. No. 38-23 | H88: =+IF('GEN-502 Gen_FP'!H88>0,'GEN-502 Cos_Gen_FP'!H88/'GEN-502 Gen_FP'!H88,0) -> 0
A89: PANAM GENERATING LTD No. 39-23 | H89: =+IF('GEN-502 Gen_FP'!H89>0,'GEN-502 Cos_Gen_FP'!H89/'GEN-502 Gen_FP'!H89,0) -> 0
A90: PANAM GENERATING LTD No. 40-23 | H90: =+IF('GEN-502 Gen_FP'!H90>0,'GEN-502 Cos_Gen_FP'!H90/'GEN-502 Gen_FP'!H90,0) -> 0
A91: SPARKLE POWER, S.A. No. 41-23 | H91: =+IF('GEN-502 Gen_FP'!H91>0,'GEN-502 Cos_Gen_FP'!H91/'GEN-502 Gen_FP'!H91,0) -> 0
A92: TROPITÉRMICA, S.A. No. 42-23 | H92: =+IF('GEN-502 Gen_FP'!H92>0,'GEN-502 Cos_Gen_FP'!H92/'GEN-502 Gen_FP'!H92,0) -> 0

Sheet GEN-502 Cos_Gen_P
A1: INFORMACION PARA ACTUALIZAR: CARGO POR GENERACION
A2: =+'Compras (p)'!A2 -> EDECHI
A3: Estimación de Facturación Mensual de Energía en Horas de Punta para suministrar Clientes Regulados (B/.)
B4: ESTIMACION DEL COSTO DE ENERGIA EN HORAS DE PUNTA
A5: Detalle | B5: 2023-07-01 | C5: 2023-08-01 | D5: 2023-09-01 | E5: 2023-10-01 | F5: 2023-11-01 | G5: 2023-12-01 | H5: Total
A8: TOTAL COSTO DE ENERGIA EN PUNTA | B8: =+B9+B15 -> 1589838.751 | C8: 1685281.199 | D8: 1723207.605 | E8: 1762488.868 | F8: 1665375.89 | G8: 1768852.855 | H8: =+SUM(B8:G8) -> 10195045.17
A9: Generación Propia | B9: 0 | C9: 0 | D9: 0 | E9: 0 | F9: 0 | G9: 0 | H9: 0
A10: 0 | B10: 0 | C10: 0 | D10: 0 | E10: 0 | F10: 0 | G10: 0 | H10: 0
A11: 0 | B11: 0 | C11: 0 | D11: 0 | E11: 0 | F11: 0 | G11: 0 | H11: 0
A12: 0 | B12: 0 | C12: 0 | D12: 0 | E12: 0 | F12: 0 | G12: 0 | H12: 0
A13: 0 | H13: 0
A14: 0 | H14: 0
A15: Sub-Total Mercado Mayorista | B15: =+SUM(B16:B22,-B23,B24) -> 1589838.751 | C15: 1685281.199 | D15: 1723207.605 | E15: 1762488.868 | F15: 1665375.89 | G15: 1768852.855 | H15: 10195045.17
A16: Mercado Ocasional | B16: =+'GEN-502 Pre_Gen_P'!B16*'GEN-502 Gen_P'!B16 -> 181426.9696 | C16: =+'GEN-502 Pre_Gen_P'!C16*'GEN-502 Gen_P'!C16 -> 338470.9939 | D16: =+'GEN-502 Pre_Gen_P'!D16*'GEN-502 Gen_P'!D16 -> 454700.1797 | E16: =+'GEN-502 Pre_Gen_P'!E16*'GEN-502 Gen_P'!E16 -> 479386.9256 | F16: =+'GEN-502 Pre_Gen_P'!F16*'GEN-502 Gen_P'!F16 -> 418542.3428 | G16: =+'GEN-502 Pre_Gen_P'!G16*'GEN-502 Gen_P'!G16 -> 670028.9841 | H16: 2542556.396
A17: Servicios Auxiliares de Corto Plazo | B17: 57285.62333 | C17: 57285.62333 | D17: 57285.62333 | E17: 57285.62333 | F17: 57285.62333 | G17: 57285.62333 | H17: 343713.74
A18: Generación Obligada | B18: 24396.04249 | C18: 24396.04249 | D18: 24396.04249 | E18: 24396.04249 | F18: 24396.04249 | G18: 24396.04249 | H18: 146376.255
A19: Costos relacionados con el Mercado Regional | B19: 0 | C19: 0 | D19: 0 | E19: 0 | F19: 0 | G19: 0 | H19: 0
A20: Otros Ajustes | B20: 48851.879 | C20: 48851.879 | D20: 48851.879 | E20: 48851.879 | F20: 48851.879 | G20: 48851.879 | H20: 293111.274
A21: Costos de Fianzas | H21: 0
A22: Costos de Autoabastecimiento autorizados por ASEP | H22: 0
A23: Menos - Transacciones Esporádicas (CUSPT) | B23: 2791.55375 | C23: 2791.55375 | D23: 2791.55375 | E23: 2791.55375 | F23: 2791.55375 | G23: 2791.55375 | H23: 16749.3225
A24: Sub-Total Contratos | B24: =SUM(B25:B141) -> 1280669.79 | C24: =SUM(C25:C141) -> 1219068.214 | D24: 1140765.434 | E24: 1155359.952 | F24: 1119091.556 | G24: 971081.8795 | H24: 6886036.825
A25: =+'GEN-502 Pot'!A25 -> Empresa Nacional de Energía No. 36-11 (Cesión) | B25: =+'GEN-502 Pre_Gen_P'!B25*'GEN-502 Gen_P'!B25 -> 8137.263043 | C25: =+'GEN-502 Pre_Gen_P'!C25*'GEN-502 Gen_P'!C25 -> 8069.55227 | D25: =+'GEN-502 Pre_Gen_P'!D25*'GEN-502 Gen_P'!D25 -> 7812.880958 | E25: =+'GEN-502 Pre_Gen_P'!E25*'GEN-502 Gen_P'!E25 -> 7700.78401 | F25: =+'GEN-502 Pre_Gen_P'!F25*'GEN-502 Gen_P'!F25 -> 7683.296592 | G25: =+'GEN-502 Pre_Gen_P'!G25*'GEN-502 Gen_P'!G25 -> 7454.310391 | H25: =+SUM(B25:G25) -> 46858.08726
A26: =+'GEN-502 Pot'!A26 -> Enel Fortuna No. 37-11 | B26: =+'GEN-502 Pre_Gen_P'!B26*'GEN-502 Gen_P'!B26 -> 28873.63447 | C26: =+'GEN-502 Pre_Gen_P'!C26*'GEN-502 Gen_P'!C26 -> 28633.3748 | D26: =+'GEN-502 Pre_Gen_P'!D26*'GEN-502 Gen_P'!D26 -> 27722.62218 | E26: =+'GEN-502 Pre_Gen_P'!E26*'GEN-502 Gen_P'!E26 -> 27324.86605 | F26: =+'GEN-502 Pre_Gen_P'!F26*'GEN-502 Gen_P'!F26 -> 27262.81504 | G26: =+'GEN-502 Pre_Gen_P'!G26*'GEN-502 Gen_P'!G26 -> 26450.29813 | H26: 166267.6107
A27: =+'GEN-502 Pot'!A27 -> Electrogeneradora del Istmo No. 38-11 | B27: =+'GEN-502 Pre_Gen_P'!B27*'GEN-502 Gen_P'!B27 -> 807.8556315 | C27: =+'GEN-502 Pre_Gen_P'!C27*'GEN-502 Gen_P'!C27 -> 801.1334045 | D27: =+'GEN-502 Pre_Gen_P'!D27*'GEN-502 Gen_P'!D27 -> 775.6514502 | E27: =+'GEN-502 Pre_Gen_P'!E27*'GEN-502 Gen_P'!E27 -> 764.5226283 | F27: =+'GEN-502 Pre_Gen_P'!F27*'GEN-502 Gen_P'!F27 -> 762.7865029 | G27: =+'GEN-502 Pre_Gen_P'!G27*'GEN-502 Gen_P'!G27 -> 740.0530862 | H27: 4652.002704
A28: =+'GEN-502 Pot'!A28 -> ESEPSA No. 39-11 | B28: =+'GEN-502 Pre_Gen_P'!B28*'GEN-502 Gen_P'!B28 -> 5091.483778 | C28: =+'GEN-502 Pre_Gen_P'!C28*'GEN-502 Gen_P'!C28 -> 5049.117162 | D28: =+'GEN-502 Pre_Gen_P'!D28*'GEN-502 Gen_P'!D28 -> 4888.517976 | E28: =+'GEN-502 Pre_Gen_P'!E28*'GEN-502 Gen_P'!E28 -> 4818.378939 | F28: =+'GEN-502 Pre_Gen_P'!F28*'GEN-502 Gen_P'!F28 -> 4807.437065 | G28: =+'GEN-502 Pre_Gen_P'!G28*'GEN-502 Gen_P'!G28 -> 4664.160447 | H28: 29319.09537
A29: =+'GEN-502 Pot'!A29 -> Pedregalito No. 40-11 | B29: =+'GEN-502 Pre_Gen_P'!B29*'GEN-502 Gen_P'!B29 -> 2179.183025 | C29: =+'GEN-502 Pre_Gen_P'!C29*'GEN-502 Gen_P'!C29 -> 2161.049881 | D29: =+'GEN-502 Pre_Gen_P'!D29*'GEN-502 Gen_P'!D29 -> 2092.312547 | E29: =+'GEN-502 Pre_Gen_P'!E29*'GEN-502 Gen_P'!E29 -> 2062.292654 | F29: =+'GEN-502 Pre_Gen_P'!F29*'GEN-502 Gen_P'!F29 -> 2057.609472 | G29: =+'GEN-502 Pre_Gen_P'!G29*'GEN-502 Gen_P'!G29 -> 1996.286292 | H29: 12548.73387
A30: =+'GEN-502 Pot'!A30 -> Río Chico No. 41-11 | B30: =+'GEN-502 Pre_Gen_P'!B30*'GEN-502 Gen_P'!B30 -> 1336.408273 | C30: =+'GEN-502 Pre_Gen_P'!C30*'GEN-502 Gen_P'!C30 -> 1325.28792 | D30: =+'GEN-502 Pre_Gen_P'!D30*'GEN-502 Gen_P'!D30 -> 1283.133984 | E30: =+'GEN-502 Pre_Gen_P'!E30*'GEN-502 Gen_P'!E30 -> 1264.72395 | F30: =+'GEN-502 Pre_Gen_P'!F30*'GEN-502 Gen_P'!F30 -> 1261.851937 | G30: =+'GEN-502 Pre_Gen_P'!G30*'GEN-502 Gen_P'!G30 -> 1224.244814 | H30: 7695.650878
A31: =+'GEN-502 Pot'!A31 -> Alto Valle No. 42-11 | B31: =+'GEN-502 Pre_Gen_P'!B31*'GEN-502 Gen_P'!B31 -> 1271.68171 | C31: =+'GEN-502 Pre_Gen_P'!C31*'GEN-502 Gen_P'!C31 -> 1261.099951 | D31: =+'GEN-502 Pre_Gen_P'!D31*'GEN-502 Gen_P'!D31 -> 1220.987667 | E31: =+'GEN-502 Pre_Gen_P'!E31*'GEN-502 Gen_P'!E31 -> 1203.46929 | F31: =+'GEN-502 Pre_Gen_P'!F31*'GEN-502 Gen_P'!F31 -> 1200.736377 | G31: =+'GEN-502 Pre_Gen_P'!G31*'GEN-502 Gen_P'!G31 -> 1164.950688 | H31: 7322.925684
A32: =+'GEN-502 Pot'!A32 -> Hidroecológica del Teribe No. 43-11 | B32: =+'GEN-502 Pre_Gen_P'!B32*'GEN-502 Gen_P'!B32 -> 10424.27298 | C32: =+'GEN-502 Pre_Gen_P'!C32*'GEN-502 Gen_P'!C32 -> 10337.53183 | D32: =+'GEN-502 Pre_Gen_P'!D32*'GEN-502 Gen_P'!D32 -> 10008.72203 | E32: =+'GEN-502 Pre_Gen_P'!E32*'GEN-502 Gen_P'!E32 -> 9865.119792 | F32: =+'GEN-502 Pre_Gen_P'!F32*'GEN-502 Gen_P'!F32 -> 9842.717466 | G32: =+'GEN-502 Pre_Gen_P'!G32*'GEN-502 Gen_P'!G32 -> 9549.373788 | H32: 60027.73789
A33: =+'GEN-502 Pot'!A33 -> Desarrollos Hidroeléctricos Corp. No. 44-11 | B33: =+'GEN-502 Pre_Gen_P'!B33*'GEN-502 Gen_P'!B33 -> 1874.937609 | C33: =+'GEN-502 Pre_Gen_P'!C33*'GEN-502 Gen_P'!C33 -> 1859.336114 | D33: =+'GEN-502 Pre_Gen_P'!D33*'GEN-502 Gen_P'!D33 -> 1800.195504 | E33: =+'GEN-502 Pre_Gen_P'!E33*'GEN-502 Gen_P'!E33 -> 1774.366822 | F33: =+'GEN-502 Pre_Gen_P'!F33*'GEN-502 Gen_P'!F33 -> 1770.337479 | G33: =+'GEN-502 Pre_Gen_P'!G33*'GEN-502 Gen_P'!G33 -> 1717.575901 | H33: 10796.74943
A34: =+'GEN-502 Pot'!A34 -> Las Perlas Norte No. 45-11 | B34: =+'GEN-502 Pre_Gen_P'!B34*'GEN-502 Gen_P'!B34 -> 12246.93823 | C34: =+'GEN-502 Pre_Gen_P'!C34*'GEN-502 Gen_P'!C34 -> 12145.03054 | D34: =+'GEN-502 Pre_Gen_P'!D34*'GEN-502 Gen_P'!D34 -> 11758.72894 | E34: =+'GEN-502 Pre_Gen_P'!E34*'GEN-502 Gen_P'!E34 -> 11590.01811 | F34: =+'GEN-502 Pre_Gen_P'!F34*'GEN-502 Gen_P'!F34 -> 11563.69878 | G34: =+'GEN-502 Pre_Gen_P'!G34*'GEN-502 Gen_P'!G34 -> 11219.06449 | H34: 70523.47909
A35: =+'GEN-502 Pot'!A35 -> Hidroeléctrica San Lorenzo No. 46-11 | B35: =+'GEN-502 Pre_Gen_P'!B35*'GEN-502 Gen_P'!B35 -> 1218.10291 | C35: =+'GEN-502 Pre_Gen_P'!C35*'GEN-502 Gen_P'!C35 -> 1207.966984 | D35: =+'GEN-502 Pre_Gen_P'!D35*'GEN-502 Gen_P'!D35 -> 1169.54472 | E35: =+'GEN-502 Pre_Gen_P'!E35*'GEN-502 Gen_P'!E35 -> 1152.764432 | F35: =+'GEN-502 Pre_Gen_P'!F35*'GEN-502 Gen_P'!F35 -> 1150.146663 | G35: =+'GEN-502 Pre_Gen_P'!G35*'GEN-502 Gen_P'!G35 -> 1115.868705 | H35: 7014.394414
A36: =+'GEN-502 Pot'!A36 -> Caldera Energy Corp. No. 47-11 | B36: =+'GEN-502 Pre_Gen_P'!B36*'GEN-502 Gen_P'!B36 -> 1938.853516 | C36: =+'GEN-502 Pre_Gen_P'!C36*'GEN-502 Gen_P'!C36 -> 1922.720171 | D36: =+'GEN-502 Pre_Gen_P'!D36*'GEN-502 Gen_P'!D36 -> 1861.563481 | E36: =+'GEN-502 Pre_Gen_P'!E36*'GEN-502 Gen_P'!E36 -> 1834.854308 | F36: =+'GEN-502 Pre_Gen_P'!F36*'GEN-502 Gen_P'!F36 -> 1830.687607 | G36: =+'GEN-502 Pre_Gen_P'!G36*'GEN-502 Gen_P'!G36 -> 1776.127407 | H36: 11164.80649
A37: =+'GEN-502 Pot'!A37 -> Unión Eólica de Panamá (PE Nuevo Chagres) No. 19-12' | B37: =+'GEN-502 Pre_Gen_P'!B37*'GEN-502 Gen_P'!B37 -> 25700.42443 | C37: =+'GEN-502 Pre_Gen_P'!C37*'GEN-502 Gen_P'!C37 -> 22583.63936 | D37: =+'GEN-502 Pre_Gen_P'!D37*'GEN-502 Gen_P'!D37 -> 23.77120423 | E37: =+'GEN-502 Pre_Gen_P'!E37*'GEN-502 Gen_P'!E37 -> 22.05189825 | F37: =+'GEN-502 Pre_Gen_P'!F37*'GEN-502 Gen_P'!F37 -> 23.37693527 | G37: =+'GEN-502 Pre_Gen_P'!G37*'GEN-502 Gen_P'!G37 -> 24.01436085 | H37: =+SUM(B37:G37) -> 48377.27819
A38: =+'GEN-502 Pot'!A38 -> Unión Eólica de Panamá (PE Rosa de los Vientos) No. 20-12' | B38: =+'GEN-502 Pre_Gen_P'!B38*'GEN-502 Gen_P'!B38 -> 25.53999463 | C38: =+'GEN-502 Pre_Gen_P'!C38*'GEN-502 Gen_P'!C38 -> 26.81732587 | D38: =+'GEN-502 Pre_Gen_P'!D38*'GEN-502 Gen_P'!D38 -> 24.52187384 | E38: =+'GEN-502 Pre_Gen_P'!E38*'GEN-502 Gen_P'!E38 -> 22.74827398 | F38: =+'GEN-502 Pre_Gen_P'!F38*'GEN-502 Gen_P'!F38 -> 24.11515428 | G38: =+'GEN-502 Pre_Gen_P'!G38*'GEN-502 Gen_P'!G38 -> 24.77270909 | H38: 148.5153317
A39: =+'GEN-502 Pot'!A39 -> Unión Eólica de Panamá (PE Portobelo Ballestillas) No. 21-12' | B39: =+'GEN-502 Pre_Gen_P'!B39*'GEN-502 Gen_P'!B39 -> 28.14611653 | C39: =+'GEN-502 Pre_Gen_P'!C39*'GEN-502 Gen_P'!C39 -> 29.55378769 | D39: =+'GEN-502 Pre_Gen_P'!D39*'GEN-502 Gen_P'!D39 -> 27.02410586 | E39: =+'GEN-502 Pre_Gen_P'!E39*'GEN-502 Gen_P'!E39 -> 25.06952643 | F39: =+'GEN-502 Pre_Gen_P'!F39*'GEN-502 Gen_P'!F39 -> 26.57588431 | G39: =+'GEN-502 Pre_Gen_P'!G39*'GEN-502 Gen_P'!G39 -> 27.30053655 | H39: 163.6699574
A40: =+'GEN-502 Pot'!A40 -> Unión Eólica de Panamá (PE Marañon) No. 22-12' | B40: =+'GEN-502 Pre_Gen_P'!B40*'GEN-502 Gen_P'!B40 -> 28.66734091 | C40: =+'GEN-502 Pre_Gen_P'!C40*'GEN-502 Gen_P'!C40 -> 30.10108005 | D40: =+'GEN-502 Pre_Gen_P'!D40*'GEN-502 Gen_P'!D40 -> 27.52455227 | E40: =+'GEN-502 Pre_Gen_P'!E40*'GEN-502 Gen_P'!E40 -> 25.53377692 | F40: =+'GEN-502 Pre_Gen_P'!F40*'GEN-502 Gen_P'!F40 -> 27.06803031 | G40: =+'GEN-502 Pre_Gen_P'!G40*'GEN-502 Gen_P'!G40 -> 27.80610204 | H40: 166.7008825
A41: =+'GEN-502 Pot'!A41 -> AES No. 122-12 | B41: =+'GEN-502 Pre_Gen_P'!B41*'GEN-502 Gen_P'!B41 -> 333146.6947 | C41: =+'GEN-502 Pre_Gen_P'!C41*'GEN-502 Gen_P'!C41 -> 330374.5562 | D41: =+'GEN-502 Pre_Gen_P'!D41*'GEN-502 Gen_P'!D41 -> 319866.2073 | E41: =+'GEN-502 Pre_Gen_P'!E41*'GEN-502 Gen_P'!E41 -> 315276.8598 | F41: =+'GEN-502 Pre_Gen_P'!F41*'GEN-502 Gen_P'!F41 -> 314560.9095 | G41: =+'GEN-502 Pre_Gen_P'!G41*'GEN-502 Gen_P'!G41 -> 305186.0134 | H41: =+SUM(B41:G41) -> 1918411.241
A42: =+'GEN-502 Pot'!A42 -> HIDRO PIEDRA No. 123-12 | B42: =+'GEN-502 Pre_Gen_P'!B42*'GEN-502 Gen_P'!B42 -> 1916.266104 | C42: =+'GEN-502 Pre_Gen_P'!C42*'GEN-502 Gen_P'!C42 -> 1900.320711 | D42: =+'GEN-502 Pre_Gen_P'!D42*'GEN-502 Gen_P'!D42 -> 1839.876488 | E42: =+'GEN-502 Pre_Gen_P'!E42*'GEN-502 Gen_P'!E42 -> 1813.478475 | F42: =+'GEN-502 Pre_Gen_P'!F42*'GEN-502 Gen_P'!F42 -> 1809.360315 | G42: =+'GEN-502 Pre_Gen_P'!G42*'GEN-502 Gen_P'!G42 -> 1755.435735 | H42: 11034.73783
A43: =+'GEN-502 Pot'!A43 -> Corp. Energ. Del Istmo No. 124-12 | B43: =+'GEN-502 Pre_Gen_P'!B43*'GEN-502 Gen_P'!B43 -> 9454.09045 | C43: =+'GEN-502 Pre_Gen_P'!C43*'GEN-502 Gen_P'!C43 -> 9375.422257 | D43: =+'GEN-502 Pre_Gen_P'!D43*'GEN-502 Gen_P'!D43 -> 9077.214643 | E43: =+'GEN-502 Pre_Gen_P'!E43*'GEN-502 Gen_P'!E43 -> 8946.977402 | F43: =+'GEN-502 Pre_Gen_P'!F43*'GEN-502 Gen_P'!F43 -> 8926.660051 | G43: =+'GEN-502 Pre_Gen_P'!G43*'GEN-502 Gen_P'!G43 -> 8660.617741 | H43: 54440.98254
A44: =+'GEN-502 Pot'!A44 -> Saltos del Francolí No. 126-12 | B44: =+'GEN-502 Pre_Gen_P'!B44*'GEN-502 Gen_P'!B44 -> 1023.401075 | C44: =+'GEN-502 Pre_Gen_P'!C44*'GEN-502 Gen_P'!C44 -> 1014.885279 | D44: =+'GEN-502 Pre_Gen_P'!D44*'GEN-502 Gen_P'!D44 -> 982.6044374 | E44: =+'GEN-502 Pre_Gen_P'!E44*'GEN-502 Gen_P'!E44 -> 968.5063141 | F44: =+'GEN-502 Pre_Gen_P'!F44*'GEN-502 Gen_P'!F44 -> 966.3069699 | G44: =+'GEN-502 Pre_Gen_P'!G44*'GEN-502 Gen_P'!G44 -> 937.5080085 | H44: 5893.212084
A45: =+'GEN-502 Pot'!A45 -> PASO ANCHO No. 88-11 | B45: =+'GEN-502 Pre_Gen_P'!B45*'GEN-502 Gen_P'!B45 -> 22665.90208 | C45: =+'GEN-502 Pre_Gen_P'!C45*'GEN-502 Gen_P'!C45 -> 21869.80289 | D45: =+'GEN-502 Pre_Gen_P'!D45*'GEN-502 Gen_P'!D45 -> 21174.18177 | E45: =+'GEN-502 Pre_Gen_P'!E45*'GEN-502 Gen_P'!E45 -> 19710.91516 | F45: =+'GEN-502 Pre_Gen_P'!F45*'GEN-502 Gen_P'!F45 -> 20244.57069 | G45: =+'GEN-502 Pre_Gen_P'!G45*'GEN-502 Gen_P'!G45 -> 20202.39704 | H45: 125867.7696
A46: =+'GEN-502 Pot'!A46 -> Hidroecológica del Teribe No. 89-11 | B46: =+'GEN-502 Pre_Gen_P'!B46*'GEN-502 Gen_P'!B46 -> 29778.77525 | C46: =+'GEN-502 Pre_Gen_P'!C46*'GEN-502 Gen_P'!C46 -> 30374.72624 | D46: =+'GEN-502 Pre_Gen_P'!D46*'GEN-502 Gen_P'!D46 -> 29408.58579 | E46: =+'GEN-502 Pre_Gen_P'!E46*'GEN-502 Gen_P'!E46 -> 28181.45549 | F46: =+'GEN-502 Pre_Gen_P'!F46*'GEN-502 Gen_P'!F46 -> 28920.81528 | G46: =+'GEN-502 Pre_Gen_P'!G46*'GEN-502 Gen_P'!G46 -> 28058.88478 | H46: 174723.2428
A47: =+'GEN-502 Pot'!A47 -> ISTMUS HYDRO POWER CORP. No.10-13 | B47: =+'GEN-502 Pre_Gen_P'!B47*'GEN-502 Gen_P'!B47 -> 13903.81364 | C47: =+'GEN-502 Pre_Gen_P'!C47*'GEN-502 Gen_P'!C47 -> 13824.60513 | D47: =+'GEN-502 Pre_Gen_P'!D47*'GEN-502 Gen_P'!D47 -> 13923.5965 | E47: =+'GEN-502 Pre_Gen_P'!E47*'GEN-502 Gen_P'!E47 -> 12552.17261 | F47: =+'GEN-502 Pre_Gen_P'!F47*'GEN-502 Gen_P'!F47 -> 11940.04109 | G47: =+'GEN-502 Pre_Gen_P'!G47*'GEN-502 Gen_P'!G47 -> 11535.3193 | H47: 77679.54828
A48: =+'GEN-502 Pot'!A48 -> CALDERA ENERGY CORP. No.11-13 | B48: =+'GEN-502 Pre_Gen_P'!B48*'GEN-502 Gen_P'!B48 -> 16056.39368 | C48: =+'GEN-502 Pre_Gen_P'!C48*'GEN-502 Gen_P'!C48 -> 29797.02874 | D48: =+'GEN-502 Pre_Gen_P'!D48*'GEN-502 Gen_P'!D48 -> 34258.50021 | E48: =+'GEN-502 Pre_Gen_P'!E48*'GEN-502 Gen_P'!E48 -> 46207.43153 | F48: =+'GEN-502 Pre_Gen_P'!F48*'GEN-502 Gen_P'!F48 -> 28636.74571 | G48: =+'GEN-502 Pre_Gen_P'!G48*'GEN-502 Gen_P'!G48 -> 8171.553345 | H48: 163127.6532
A49: =+'GEN-502 Pot'!A49 -> ELECTROGENERADORA DEL ISTMO, S.A. No.12-13 | B49: =+'GEN-502 Pre_Gen_P'!B49*'GEN-502 Gen_P'!B49 -> 5461.358396 | C49: =+'GEN-502 Pre_Gen_P'!C49*'GEN-502 Gen_P'!C49 -> 9501.603553 | D49: =+'GEN-502 Pre_Gen_P'!D49*'GEN-502 Gen_P'!D49 -> 13799.07366 | E49: =+'GEN-502 Pre_Gen_P'!E49*'GEN-502 Gen_P'!E49 -> 16321.30627 | F49: =+'GEN-502 Pre_Gen_P'!F49*'GEN-502 Gen_P'!F49 -> 11172.79995 | G49: =+'GEN-502 Pre_Gen_P'!G49*'GEN-502 Gen_P'!G49 -> 4169.15987 | H49: 60425.3017
A50: =+'GEN-502 Pot'!A50 -> FOUNTAIN INTERTRADE CORP. No.13-13 | B50: =+'GEN-502 Pre_Gen_P'!B50*'GEN-502 Gen_P'!B50 -> 72923.06967 | C50: =+'GEN-502 Pre_Gen_P'!C50*'GEN-502 Gen_P'!C50 -> 84870.80247 | D50: =+'GEN-502 Pre_Gen_P'!D50*'GEN-502 Gen_P'!D50 -> 119059.4673 | E50: =+'GEN-502 Pre_Gen_P'!E50*'GEN-502 Gen_P'!E50 -> 158857.9506 | F50: =+'GEN-502 Pre_Gen_P'!F50*'GEN-502 Gen_P'!F50 -> 100946.816 | G50: =+'GEN-502 Pre_Gen_P'!G50*'GEN-502 Gen_P'!G50 -> 54774.31775 | H50: 591432.4239
A51: =+'GEN-502 Pot'!A51 -> HIDROIBERICA, S.A. No.14-13 | B51: =+'GEN-502 Pre_Gen_P'!B51*'GEN-502 Gen_P'!B51 -> 1074.795332 | C51: =+'GEN-502 Pre_Gen_P'!C51*'GEN-502 Gen_P'!C51 -> 1806.064803 | D51: =+'GEN-502 Pre_Gen_P'!D51*'GEN-502 Gen_P'!D51 -> 2119.537715 | E51: =+'GEN-502 Pre_Gen_P'!E51*'GEN-502 Gen_P'!E51 -> 2637.523093 | F51: =+'GEN-502 Pre_Gen_P'!F51*'GEN-502 Gen_P'!F51 -> 2301.940567 | G51: =+'GEN-502 Pre_Gen_P'!G51*'GEN-502 Gen_P'!G51 -> 2065.235033 | H51: 12005.09654
A52: =+'GEN-502 Pot'!A52 -> NAVITAS INTERNACIONAL, S.A. No.15-13 | B52: =+'GEN-502 Pre_Gen_P'!B52*'GEN-502 Gen_P'!B52 -> 9887.626493 | C52: =+'GEN-502 Pre_Gen_P'!C52*'GEN-502 Gen_P'!C52 -> 10932.16498 | D52: =+'GEN-502 Pre_Gen_P'!D52*'GEN-502 Gen_P'!D52 -> 12883.99269 | E52: =+'GEN-502 Pre_Gen_P'!E52*'GEN-502 Gen_P'!E52 -> 13055.52169 | F52: =+'GEN-502 Pre_Gen_P'!F52*'GEN-502 Gen_P'!F52 -> 10790.30118 | G52: =+'GEN-502 Pre_Gen_P'!G52*'GEN-502 Gen_P'!G52 -> 7745.895288 | H52: 65295.50233
A53: =+'GEN-502 Pot'!A53 -> HIDROECOLÓGICA DEL TERIBE, S.A. No.16-13 | B53: =+'GEN-502 Pre_Gen_P'!B53*'GEN-502 Gen_P'!B53 -> 0 | C53: =+'GEN-502 Pre_Gen_P'!C53*'GEN-502 Gen_P'!C53 -> 0 | D53: =+'GEN-502 Pre_Gen_P'!D53*'GEN-502 Gen_P'!D53 -> 4003.571239 | E53: =+'GEN-502 Pre_Gen_P'!E53*'GEN-502 Gen_P'!E53 -> 19730.6458 | F53: =+'GEN-502 Pre_Gen_P'!F53*'GEN-502 Gen_P'!F53 -> 7480.619287 | G53: =+'GEN-502 Pre_Gen_P'!G53*'GEN-502 Gen_P'!G53 -> 7257.673502 | H53: 38472.50983
A54: =+'GEN-502 Pot'!A54 -> HIDRONORTH CORP. No.17-13 | B54: =+'GEN-502 Pre_Gen_P'!B54*'GEN-502 Gen_P'!B54 -> 1957.350849 | C54: =+'GEN-502 Pre_Gen_P'!C54*'GEN-502 Gen_P'!C54 -> 2383.762299 | D54: =+'GEN-502 Pre_Gen_P'!D54*'GEN-502 Gen_P'!D54 -> 2802.499867 | E54: =+'GEN-502 Pre_Gen_P'!E54*'GEN-502 Gen_P'!E54 -> 2762.290412 | F54: =+'GEN-502 Pre_Gen_P'!F54*'GEN-502 Gen_P'!F54 -> 2579.713563 | G54: =+'GEN-502 Pre_Gen_P'!G54*'GEN-502 Gen_P'!G54 -> 1867.783622 | H54: 14353.40061
A55: =+'GEN-502 Pot'!A55 -> EMPRESA NACIONAL DE ENERGÍA, S.A. No.33-13 | B55: =+'GEN-502 Pre_Gen_P'!B55*'GEN-502 Gen_P'!B55 -> 7130.349522 | C55: =+'GEN-502 Pre_Gen_P'!C55*'GEN-502 Gen_P'!C55 -> 12676.6594 | D55: =+'GEN-502 Pre_Gen_P'!D55*'GEN-502 Gen_P'!D55 -> 12273.44808 | E55: =+'GEN-502 Pre_Gen_P'!E55*'GEN-502 Gen_P'!E55 -> 9074.863904 | F55: =+'GEN-502 Pre_Gen_P'!F55*'GEN-502 Gen_P'!F55 -> 11466.38675 | G55: =+'GEN-502 Pre_Gen_P'!G55*'GEN-502 Gen_P'!G55 -> 7382.414765 | H55: 60004.12242
A56: =+'GEN-502 Pot'!A56 -> FUERZA ELÉCTRICA DEL ISTMO, S.A. No.34-13 | B56: =+'GEN-502 Pre_Gen_P'!B56*'GEN-502 Gen_P'!B56 -> 2787.477325 | C56: =+'GEN-502 Pre_Gen_P'!C56*'GEN-502 Gen_P'!C56 -> 2909.771072 | D56: =+'GEN-502 Pre_Gen_P'!D56*'GEN-502 Gen_P'!D56 -> 2817.218879 | E56: =+'GEN-502 Pre_Gen_P'!E56*'GEN-502 Gen_P'!E56 -> 2084.449879 | F56: =+'GEN-502 Pre_Gen_P'!F56*'GEN-502 Gen_P'!F56 -> 2631.967889 | G56: =+'GEN-502 Pre_Gen_P'!G56*'GEN-502 Gen_P'!G56 -> 2553.527037 | H56: 15784.41208
A57: =+'GEN-502 Pot'!A57 -> CAFÉ DE ELETA, S.A. No.35-13 | B57: =+'GEN-502 Pre_Gen_P'!B57*'GEN-502 Gen_P'!B57 -> 857.7023119 | C57: =+'GEN-502 Pre_Gen_P'!C57*'GEN-502 Gen_P'!C57 -> 953.5049197 | D57: =+'GEN-502 Pre_Gen_P'!D57*'GEN-502 Gen_P'!D57 -> 890.7710502 | E57: =+'GEN-502 Pre_Gen_P'!E57*'GEN-502 Gen_P'!E57 -> 900.088849 | F57: =+'GEN-502 Pre_Gen_P'!F57*'GEN-502 Gen_P'!F57 -> 1287.870828 | G57: =+'GEN-502 Pre_Gen_P'!G57*'GEN-502 Gen_P'!G57 -> 930.959531 | H57: 5820.897489
A58: =+'GEN-502 Pot'!A58 -> ENERGÍA Y SERVICIOS DE PANAMÁ, S.A. No.36-13 | B58: =+'GEN-502 Pre_Gen_P'!B58*'GEN-502 Gen_P'!B58 -> 42984.33219 | C58: =+'GEN-502 Pre_Gen_P'!C58*'GEN-502 Gen_P'!C58 -> 53752.05735 | D58: =+'GEN-502 Pre_Gen_P'!D58*'GEN-502 Gen_P'!D58 -> 53604.31576 | E58: =+'GEN-502 Pre_Gen_P'!E58*'GEN-502 Gen_P'!E58 -> 47030.29376 | F58: =+'GEN-502 Pre_Gen_P'!F58*'GEN-502 Gen_P'!F58 -> 58886.14893 | G58: =+'GEN-502 Pre_Gen_P'!G58*'GEN-502 Gen_P'!G58 -> 35281.71991 | H58: 291538.8679
A59: =+'GEN-502 Pot'!A59 -> GENERADORA PEDREGALITO, S.A. No.37-13 | B59: =+'GEN-502 Pre_Gen_P'!B59*'GEN-502 Gen_P'!B59 -> 17789.87253 | C59: =+'GEN-502 Pre_Gen_P'!C59*'GEN-502 Gen_P'!C59 -> 23787.8802 | D59: =+'GEN-502 Pre_Gen_P'!D59*'GEN-502 Gen_P'!D59 -> 23035.13588 | E59: =+'GEN-502 Pre_Gen_P'!E59*'GEN-502 Gen_P'!E59 -> 26915.7926 | F59: =+'GEN-502 Pre_Gen_P'!F59*'GEN-502 Gen_P'!F59 -> 26178.09717 | G59: =+'GEN-502 Pre_Gen_P'!G59*'GEN-502 Gen_P'!G59 -> 11925.85179 | H59: 129632.6302
A60: =+'GEN-502 Pot'!A60 -> GENERADORA RIO CHICO, S.A. No.38-13 | B60: =+'GEN-502 Pre_Gen_P'!B60*'GEN-502 Gen_P'!B60 -> 10969.20387 | C60: =+'GEN-502 Pre_Gen_P'!C60*'GEN-502 Gen_P'!C60 -> 14660.6307 | D60: =+'GEN-502 Pre_Gen_P'!D60*'GEN-502 Gen_P'!D60 -> 14190.23435 | E60: =+'GEN-502 Pre_Gen_P'!E60*'GEN-502 Gen_P'!E60 -> 16576.14497 | F60: =+'GEN-502 Pre_Gen_P'!F60*'GEN-502 Gen_P'!F60 -> 16126.94139 | G60: =+'GEN-502 Pre_Gen_P'!G60*'GEN-502 Gen_P'!G60 -> 7360.27521 | H60: 79883.4305
A61: =+'GEN-502 Pot'!A61 -> GENERADORA ALTO VALLE, S.A. No.39-13 | B61: =+'GEN-502 Pre_Gen_P'!B61*'GEN-502 Gen_P'!B61 -> 15730.14171 | C61: =+'GEN-502 Pre_Gen_P'!C61*'GEN-502 Gen_P'!C61 -> 21507.10768 | D61: =+'GEN-502 Pre_Gen_P'!D61*'GEN-502 Gen_P'!D61 -> 20908.05467 | E61: =+'GEN-502 Pre_Gen_P'!E61*'GEN-502 Gen_P'!E61 -> 22047.09616 | F61: =+'GEN-502 Pre_Gen_P'!F61*'GEN-502 Gen_P'!F61 -> 18879.63993 | G61: =+'GEN-502 Pre_Gen_P'!G61*'GEN-502 Gen_P'!G61 -> 9246.497928 | H61: 108318.5381
A62: =+'GEN-502 Pot'!A62 -> HYDRO CAISÁN, S.A. No.40-13 | B62: =+'GEN-502 Pre_Gen_P'!B62*'GEN-502 Gen_P'!B62 -> 39090.84739 | C62: =+'GEN-502 Pre_Gen_P'!C62*'GEN-502 Gen_P'!C62 -> 70483.165 | D62: =+'GEN-502 Pre_Gen_P'!D62*'GEN-502 Gen_P'!D62 -> 82152.74457 | E62: =+'GEN-502 Pre_Gen_P'!E62*'GEN-502 Gen_P'!E62 -> 34349.5419 | F62: =+'GEN-502 Pre_Gen_P'!F62*'GEN-502 Gen_P'!F62 -> 71500.89687 | G62: =+'GEN-502 Pre_Gen_P'!G62*'GEN-502 Gen_P'!G62 -> 19158.59038 | H62: 316735.7861
A63: =+'GEN-502 Pot'!A63 -> SIGSA, S.A. No. 137-12 | B63: =+'GEN-502 Pre_Gen_P'!B63*'GEN-502 Gen_P'!B63 -> 0 | C63: =+'GEN-502 Pre_Gen_P'!C63*'GEN-502 Gen_P'!C63 -> 0 | D63: =+'GEN-502 Pre_Gen_P'!D63*'GEN-502 Gen_P'!D63 -> 0 | E63: =+'GEN-502 Pre_Gen_P'!E63*'GEN-502 Gen_P'!E63 -> 0 | F63: =+'GEN-502 Pre_Gen_P'!F63*'GEN-502 Gen_P'!F63 -> 0 | G63: =+'GEN-502 Pre_Gen_P'!G63*'GEN-502 Gen_P'!G63 -> 0 | H63: 0
A64: =+'GEN-502 Pot'!A64 -> PARQUE EÓLICO TOABRÉ, S.A. No 09-14 | B64: =+'GEN-502 Pre_Gen_P'!B64*'GEN-502 Gen_P'!B64 -> 57671.94466 | C64: =+'GEN-502 Pre_Gen_P'!C64*'GEN-502 Gen_P'!C64 -> 57769.7496 | D64: =+'GEN-502 Pre_Gen_P'!D64*'GEN-502 Gen_P'!D64 -> 55792.41463 | E64: =+'GEN-502 Pre_Gen_P'!E64*'GEN-502 Gen_P'!E64 -> 56232.34054 | F64: =+'GEN-502 Pre_Gen_P'!F64*'GEN-502 Gen_P'!F64 -> 81681.76206 | G64: =+'GEN-502 Pre_Gen_P'!G64*'GEN-502 Gen_P'!G64 -> 137949.1618 | H64: =+SUM(B64:G64) -> 447097.3733
A65: =+'GEN-502 Pot'!A65 -> NAURA ENERGY CORP. No 10-14 | B65: =+'GEN-502 Pre_Gen_P'!B65*'GEN-502 Gen_P'!B65 -> 2893.715118 | C65: =+'GEN-502 Pre_Gen_P'!C65*'GEN-502 Gen_P'!C65 -> 2964.500308 | D65: =+'GEN-502 Pre_Gen_P'!D65*'GEN-502 Gen_P'!D65 -> 2832.894627 | E65: =+'GEN-502 Pre_Gen_P'!E65*'GEN-502 Gen_P'!E65 -> 5160.144191 | F65: =+'GEN-502 Pre_Gen_P'!F65*'GEN-502 Gen_P'!F65 -> 5091.974173 | G65: =+'GEN-502 Pre_Gen_P'!G65*'GEN-502 Gen_P'!G65 -> 13796.46096 | H65: 32739.68938
A66: =+'GEN-502 Pot'!A66 -> Panama Solar2 No. 10-15 | B66: =+'GEN-502 Pre_Gen_P'!B66*'GEN-502 Gen_P'!B66 -> 4087.012346 | C66: =+'GEN-502 Pre_Gen_P'!C66*'GEN-502 Gen_P'!C66 -> 8367.492153 | D66: =+'GEN-502 Pre_Gen_P'!D66*'GEN-502 Gen_P'!D66 -> 8227.927656 | E66: =+'GEN-502 Pre_Gen_P'!E66*'GEN-502 Gen_P'!E66 -> 8109.875738 | F66: =+'GEN-502 Pre_Gen_P'!F66*'GEN-502 Gen_P'!F66 -> 4481.423628 | G66: =+'GEN-502 Pre_Gen_P'!G66*'GEN-502 Gen_P'!G66 -> 5314.055056 | H66: 38587.78658
A67: =+'GEN-502 Pot'!A67 -> Solpac Investment No. 11-15 | B67: =+'GEN-502 Pre_Gen_P'!B67*'GEN-502 Gen_P'!B67 -> 803.2987507 | C67: =+'GEN-502 Pre_Gen_P'!C67*'GEN-502 Gen_P'!C67 -> 1752.551772 | D67: =+'GEN-502 Pre_Gen_P'!D67*'GEN-502 Gen_P'!D67 -> 1696.807693 | E67: =+'GEN-502 Pre_Gen_P'!E67*'GEN-502 Gen_P'!E67 -> 1672.462388 | F67: =+'GEN-502 Pre_Gen_P'!F67*'GEN-502 Gen_P'!F67 -> 910.1806129 | G67: =+'GEN-502 Pre_Gen_P'!G67*'GEN-502 Gen_P'!G67 -> 1030.230124 | H67: 7865.531341
A68: =+'GEN-502 Pot'!A68 -> GAS NATURAL ATLÁNTICO No. 17-15 | B68: =+'GEN-502 Pre_Gen_P'!B68*'GEN-502 Gen_P'!B68 -> 113311.7274 | C68: =+'GEN-502 Pre_Gen_P'!C68*'GEN-502 Gen_P'!C68 -> 112368.8521 | D68: =+'GEN-502 Pre_Gen_P'!D68*'GEN-502 Gen_P'!D68 -> 108794.6934 | E68: =+'GEN-502 Pre_Gen_P'!E68*'GEN-502 Gen_P'!E68 -> 107233.7387 | F68: =+'GEN-502 Pre_Gen_P'!F68*'GEN-502 Gen_P'!F68 -> 106990.2257 | G68: =+'GEN-502 Pre_Gen_P'!G68*'GEN-502 Gen_P'!G68 -> 103801.5833 | H68: 652500.8205
A69: =+'GEN-502 Pot'!A69 -> MARTANO INC No. 19-15 | B69: =+'GEN-502 Pre_Gen_P'!B69*'GEN-502 Gen_P'!B69 -> 89711.91391 | C69: =+'GEN-502 Pre_Gen_P'!C69*'GEN-502 Gen_P'!C69 -> 88965.41438 | D69: =+'GEN-502 Pre_Gen_P'!D69*'GEN-502 Gen_P'!D69 -> 86135.65768 | E69: =+'GEN-502 Pre_Gen_P'!E69*'GEN-502 Gen_P'!E69 -> 84899.80826 | F69: =+'GEN-502 Pre_Gen_P'!F69*'GEN-502 Gen_P'!F69 -> 84707.01251 | G69: =+'GEN-502 Pre_Gen_P'!G69*'GEN-502 Gen_P'!G69 -> 82182.47936 | H69: 516602.2861
A70: =+'GEN-502 Pot'!A70 -> ENEL FORTUNA, S.A. No. 36-21 | B70: =+'GEN-502 Pre_Gen_P'!B70*'GEN-502 Gen_P'!B70 -> 88942.61862 | C70: =+'GEN-502 Pre_Gen_P'!C70*'GEN-502 Gen_P'!C70 -> 97030.56764 | H70: =+SUM(B70:G70) -> 185973.1863
A71: =+'GEN-502 Pot'!A71 -> HIDRO BOQUERÓN, S.A. No. 40-21 | B71: =+'GEN-502 Pre_Gen_P'!B71*'GEN-502 Gen_P'!B71 -> 520.2650208 | C71: =+'GEN-502 Pre_Gen_P'!C71*'GEN-502 Gen_P'!C71 -> 474.1955621 | H71: 994.4605828
A72: =+'GEN-502 Pot'!A72 -> AUTORIDAD DEL CANAL DE PANAMÁ No. 57-21 | H72: 0
A73: =+'GEN-502 Pot'!A73 -> GENERADORA DEL ATLÁNTICO, S.A. No. 59-21 | H73: 0
A74: =+'GEN-502 Pot'!A74 -> GENERADORA DEL ATLÁNTICO, S.A. No. 60-21 | H74: 0
A75: =+'GEN-502 Pot'!A75 -> PANAM GENERATING LTD No. 61-21 | H75: 0
A76: =+'GEN-502 Pot'!A76 -> TROPITÉRMICA, S.A. No. 63-21 | H76: 0
A77: =+'GEN-502 Pot'!A77 -> EMPRESA NACIONAL DE ENERGÍA, S.A. No. 23-23 | B77: =+'GEN-502 Pre_Gen_P'!B77*'GEN-502 Gen_P'!B77 -> 6981.644206 | C77: =+'GEN-502 Pre_Gen_P'!C77*'GEN-502 Gen_P'!C77 -> 0 | D77: =+'GEN-502 Pre_Gen_P'!D77*'GEN-502 Gen_P'!D77 -> 3120.833825 | E77: =+'GEN-502 Pre_Gen_P'!E77*'GEN-502 Gen_P'!E77 -> 7631.790584 | F77: =+'GEN-502 Pre_Gen_P'!F77*'GEN-502 Gen_P'!F77 -> 1179.343948 | G77: =+'GEN-502 Pre_Gen_P'!G77*'GEN-502 Gen_P'!G77 -> 0 | H77: 18913.61256
A78: =+'GEN-502 Pot'!A78 -> FOUNTAIN HYDRO POWER CORP No. 24-23 | B78: =+'GEN-502 Pre_Gen_P'!B78*'GEN-502 Gen_P'!B78 -> 77276.72661 | C78: =+'GEN-502 Pre_Gen_P'!C78*'GEN-502 Gen_P'!C78 -> 0 | D78: =+'GEN-502 Pre_Gen_P'!D78*'GEN-502 Gen_P'!D78 -> 0 | E78: =+'GEN-502 Pre_Gen_P'!E78*'GEN-502 Gen_P'!E78 -> 0 | F78: =+'GEN-502 Pre_Gen_P'!F78*'GEN-502 Gen_P'!F78 -> 0 | G78: =+'GEN-502 Pre_Gen_P'!G78*'GEN-502 Gen_P'!G78 -> 0 | H78: 77276.72661
A79: =+'GEN-502 Pot'!A79 -> GENERADORA DEL ISTMO, S.A. No. 25-23 | B79: =+'GEN-502 Pre_Gen_P'!B79*'GEN-502 Gen_P'!B79 -> 28343.13935 | H79: 28343.13935
A80: =+'GEN-502 Pot'!A80 -> HIDRO BOQUERÓN, S.A. No. 26-23 | B80: =+'GEN-502 Pre_Gen_P'!B80*'GEN-502 Gen_P'!B80 -> 2838.561914 | C80: =+'GEN-502 Pre_Gen_P'!C80*'GEN-502 Gen_P'!C80 -> 1427.064841 | D80: =+'GEN-502 Pre_Gen_P'!D80*'GEN-502 Gen_P'!D80 -> 4921.389945 | E80: =+'GEN-502 Pre_Gen_P'!E80*'GEN-502 Gen_P'!E80 -> 5587.47516 | F80: =+'GEN-502 Pre_Gen_P'!F80*'GEN-502 Gen_P'!F80 -> 3072.94808 | G80: =+'GEN-502 Pre_Gen_P'!G80*'GEN-502 Gen_P'!G80 -> 0 | H80: 17847.43994
A81: =+'GEN-502 Pot'!A81 -> HIDROIBÉRICA No. 27-23 | B81: =+'GEN-502 Pre_Gen_P'!B81*'GEN-502 Gen_P'!B81 -> 1609.908809 | C81: =+'GEN-502 Pre_Gen_P'!C81*'GEN-502 Gen_P'!C81 -> 1146.516694 | D81: =+'GEN-502 Pre_Gen_P'!D81*'GEN-502 Gen_P'!D81 -> 1179.287234 | E81: =+'GEN-502 Pre_Gen_P'!E81*'GEN-502 Gen_P'!E81 -> 895.6552568 | F81: =+'GEN-502 Pre_Gen_P'!F81*'GEN-502 Gen_P'!F81 -> 967.7327458 | G81: =+'GEN-502 Pre_Gen_P'!G81*'GEN-502 Gen_P'!G81 -> 1120.220782 | H81: 6919.321521
A82: =+'GEN-502 Pot'!A82 -> IDEAL PANAMÁ, S.A. No. 29-23 | B82: =+'GEN-502 Pre_Gen_P'!B82*'GEN-502 Gen_P'!B82 -> 46910.19422 | C82: =+'GEN-502 Pre_Gen_P'!C82*'GEN-502 Gen_P'!C82 -> 0 | D82: =+'GEN-502 Pre_Gen_P'!D82*'GEN-502 Gen_P'!D82 -> 0 | E82: =+'GEN-502 Pre_Gen_P'!E82*'GEN-502 Gen_P'!E82 -> 0 | F82: =+'GEN-502 Pre_Gen_P'!F82*'GEN-502 Gen_P'!F82 -> 0 | G82: =+'GEN-502 Pre_Gen_P'!G82*'GEN-502 Gen_P'!G82 -> 0 | H82: 46910.19422
A83: =+'GEN-502 Pot'!A83 -> SOLAR BOQUERÓN, S.A. No. 33-23 | B83: =+'GEN-502 Pre_Gen_P'!B83*'GEN-502 Gen_P'!B83 -> 994.2615665 | C83: =+'GEN-502 Pre_Gen_P'!C83*'GEN-502 Gen_P'!C83 -> 601.4743087 | D83: =+'GEN-502 Pre_Gen_P'!D83*'GEN-502 Gen_P'!D83 -> 494.991539 | E83: =+'GEN-502 Pre_Gen_P'!E83*'GEN-502 Gen_P'!E83 -> 483.789632 | F83: =+'GEN-502 Pre_Gen_P'!F83*'GEN-502 Gen_P'!F83 -> 478.1458993 | G83: =+'GEN-502 Pre_Gen_P'!G83*'GEN-502 Gen_P'!G83 -> 483.8493472 | H83: 3536.512293
A84: =+'GEN-502 Pot'!A84 -> AUTORIDAD DEL CANAL DE PANAMÁ No. 34-23 | H84: =+SUM(B84:G84) -> 0
A85: =+'GEN-502 Pot'!A85 -> CELSIA CENTROAMÉRICA, S.A. No. 35-23 | H85: 0
A86: =+'GEN-502 Pot'!A86 -> GENERADORA DEL ATLÁNTICO, S.A. No. 36-23 | H86: 0
A87: =+'GEN-502 Pot'!A87 -> GENERADORA DEL ATLÁNTICO, S.A. No. 37-23 | H87: 0
A88: =+'GEN-502 Pot'!A88 -> PEDREGAL POWER, S. DE R.L. No. 38-23 | H88: 0
A89: =+'GEN-502 Pot'!A89 -> PANAM GENERATING LTD No. 39-23 | H89: 0
A90: =+'GEN-502 Pot'!A90 -> PANAM GENERATING LTD No. 40-23 | H90: 0
A91: =+'GEN-502 Pot'!A91 -> SPARKLE POWER, S.A. No. 41-23 | H91: 0
A92: =+'GEN-502 Pot'!A92 -> TROPITÉRMICA, S.A. No. 42-23 | H92: 0

Sheet GEN-502 Cos_Gen_FP
A1: INFORMACION PARA ACTUALIZAR: CARGO POR GENERACION
A2: =+'Compras (p)'!A2 -> EDECHI
A3: Estimación de Facturación Mensual de Energía en Fuera de Punta para suministrar Clientes Regulados (B/.)
B4: ESTIMACION DEL COSTO DE ENERGIA EN HORAS FUERA DE PUNTA
A5: Detalle | B5: 2023-07-01 | C5: 2023-08-01 | D5: 2023-09-01 | E5: 2023-10-01 | F5: 2023-11-01 | G5: 2023-12-01 | H5: Total
A8: TOTAL COSTO DE ENERGIA F DE PUNTA | B8: =+B9+B15 -> 4189542.304 | C8: 4463026.374 | D8: 4571702.002 | E8: 4684259.884 | F8: 4405989.019 | G8: 4702495.469 | H8: =+SUM(B8:G8) -> 27017015.05
A9: Generación Propia | B9: 0 | C9: 0 | D9: 0 | E9: 0 | F9: 0 | G9: 0 | H9: 0
A10: 0 | H10: 0
A11: 0 | H11: 0
A12: 0 | H12: 0
A13: 0 | H13: 0
A14: 0 | H14: 0
A15: Sub-Total Mercado Mayorista | B15: =+SUM(B16:B24) -> 4189542.304 | C15: 4463026.374 | D15: 4571702.002 | E15: 4684259.884 | F15: 4405989.019 | G15: 4702495.469 | H15: 27017015.05
A16: Mercado Ocasional | B16: =+'GEN-502 Pre_Gen_FP'!B16*'GEN-502 Gen_FP'!B16 -> 519867.074 | C16: =+'GEN-502 Pre_Gen_FP'!C16*'GEN-502 Gen_FP'!C16 -> 969866.4182 | D16: =+'GEN-502 Pre_Gen_FP'!D16*'GEN-502 Gen_FP'!D16 -> 1302913.522 | E16: =+'GEN-502 Pre_Gen_FP'!E16*'GEN-502 Gen_FP'!E16 -> 1373651.772 | F16: =+'GEN-502 Pre_Gen_FP'!F16*'GEN-502 Gen_FP'!F16 -> 1199305.613 | G16: =+'GEN-502 Pre_Gen_FP'!G16*'GEN-502 Gen_FP'!G16 -> 1919924.078 | H16: 7285528.477
H17: 0
H18: 0
H19: 0
H20: 0
H21: 0
H22: 0
H23: 0
A24: Sub-Total Contratos | B24: =SUM(B25:B141) -> 3669675.23 | C24: 3493159.956 | D24: 3268788.48 | E24: 3310608.112 | F24: 3206683.406 | G24: 2782571.391 | H24: 19731486.58
A25: =+'GEN-502 Pot'!A25 -> Empresa Nacional de Energía No. 36-11 (Cesión) | B25: =+'GEN-502 Pre_Gen_FP'!B25*'GEN-502 Gen_FP'!B25 -> 23316.79318 | C25: =+'GEN-502 Pre_Gen_FP'!C25*'GEN-502 Gen_FP'!C25 -> 23122.77241 | D25: =+'GEN-502 Pre_Gen_FP'!D25*'GEN-502 Gen_FP'!D25 -> 22387.29761 | E25: =+'GEN-502 Pre_Gen_FP'!E25*'GEN-502 Gen_FP'!E25 -> 22066.09116 | F25: =+'GEN-502 Pre_Gen_FP'!F25*'GEN-502 Gen_FP'!F25 -> 22015.98211 | G25: =+'GEN-502 Pre_Gen_FP'!G25*'GEN-502 Gen_FP'!G25 -> 21359.83718 | H25: =+SUM(B25:G25) -> 134268.7736
A26: =+'GEN-502 Pot'!A26 -> Enel Fortuna No. 37-11 | B26: =+'GEN-502 Pre_Gen_FP'!B26*'GEN-502 Gen_FP'!B26 -> 82735.50452 | C26: =+'GEN-502 Pre_Gen_FP'!C26*'GEN-502 Gen_FP'!C26 -> 82047.05622 | D26: =+'GEN-502 Pre_Gen_FP'!D26*'GEN-502 Gen_FP'!D26 -> 79437.35436 | E26: =+'GEN-502 Pre_Gen_FP'!E26*'GEN-502 Gen_FP'!E26 -> 78297.61025 | F26: =+'GEN-502 Pre_Gen_FP'!F26*'GEN-502 Gen_FP'!F26 -> 78119.80718 | G26: =+'GEN-502 Pre_Gen_FP'!G26*'GEN-502 Gen_FP'!G26 -> 75791.59329 | H26: 476428.9258
A27: =+'GEN-502 Pot'!A27 -> Electrogeneradora del Istmo No. 38-11 | B27: =+'GEN-502 Pre_Gen_FP'!B27*'GEN-502 Gen_FP'!B27 -> 2314.85729 | C27: =+'GEN-502 Pre_Gen_FP'!C27*'GEN-502 Gen_FP'!C27 -> 2295.59519 | D27: =+'GEN-502 Pre_Gen_FP'!D27*'GEN-502 Gen_FP'!D27 -> 2222.578323 | E27: =+'GEN-502 Pre_Gen_FP'!E27*'GEN-502 Gen_FP'!E27 -> 2190.689414 | F27: =+'GEN-502 Pre_Gen_FP'!F27*'GEN-502 Gen_FP'!F27 -> 2185.71466 | G27: =+'GEN-502 Pre_Gen_FP'!G27*'GEN-502 Gen_FP'!G27 -> 2120.573547 | H27: 13330.00842
A28: =+'GEN-502 Pot'!A28 -> ESEPSA No. 39-11 | B28: =+'GEN-502 Pre_Gen_FP'!B28*'GEN-502 Gen_FP'!B28 -> 14589.3126 | C28: =+'GEN-502 Pre_Gen_FP'!C28*'GEN-502 Gen_FP'!C28 -> 14467.91384 | D28: =+'GEN-502 Pre_Gen_FP'!D28*'GEN-502 Gen_FP'!D28 -> 14007.72741 | E28: =+'GEN-502 Pre_Gen_FP'!E28*'GEN-502 Gen_FP'!E28 -> 13806.74861 | F28: =+'GEN-502 Pre_Gen_FP'!F28*'GEN-502 Gen_FP'!F28 -> 13775.39539 | G28: =+'GEN-502 Pre_Gen_FP'!G28*'GEN-502 Gen_FP'!G28 -> 13364.84564 | H28: 84011.94349
A29: =+'GEN-502 Pot'!A29 -> Pedregalito No. 40-11 | B29: =+'GEN-502 Pre_Gen_FP'!B29*'GEN-502 Gen_FP'!B29 -> 6244.305934 | C29: =+'GEN-502 Pre_Gen_FP'!C29*'GEN-502 Gen_FP'!C29 -> 6192.346598 | D29: =+'GEN-502 Pre_Gen_FP'!D29*'GEN-502 Gen_FP'!D29 -> 5995.38428 | E29: =+'GEN-502 Pre_Gen_FP'!E29*'GEN-502 Gen_FP'!E29 -> 5909.364246 | F29: =+'GEN-502 Pre_Gen_FP'!F29*'GEN-502 Gen_FP'!F29 -> 5895.944895 | G29: =+'GEN-502 Pre_Gen_FP'!G29*'GEN-502 Gen_FP'!G29 -> 5720.227349 | H29: 35957.5733
A30: =+'GEN-502 Pot'!A30 -> Río Chico No. 41-11 | B30: =+'GEN-502 Pre_Gen_FP'!B30*'GEN-502 Gen_FP'!B30 -> 3829.390195 | C30: =+'GEN-502 Pre_Gen_FP'!C30*'GEN-502 Gen_FP'!C30 -> 3797.525553 | D30: =+'GEN-502 Pre_Gen_FP'!D30*'GEN-502 Gen_FP'!D30 -> 3676.736217 | E30: =+'GEN-502 Pre_Gen_FP'!E30*'GEN-502 Gen_FP'!E30 -> 3623.983473 | F30: =+'GEN-502 Pre_Gen_FP'!F30*'GEN-502 Gen_FP'!F30 -> 3615.753906 | G30: =+'GEN-502 Pre_Gen_FP'!G30*'GEN-502 Gen_FP'!G30 -> 3507.993163 | H30: 22051.38251
A31: =+'GEN-502 Pot'!A31 -> Alto Valle No. 42-11 | B31: =+'GEN-502 Pre_Gen_FP'!B31*'GEN-502 Gen_FP'!B31 -> 3643.920476 | C31: =+'GEN-502 Pre_Gen_FP'!C31*'GEN-502 Gen_FP'!C31 -> 3613.599142 | D31: =+'GEN-502 Pre_Gen_FP'!D31*'GEN-502 Gen_FP'!D31 -> 3498.660022 | E31: =+'GEN-502 Pre_Gen_FP'!E31*'GEN-502 Gen_FP'!E31 -> 3448.462264 | F31: =+'GEN-502 Pre_Gen_FP'!F31*'GEN-502 Gen_FP'!F31 -> 3440.631282 | G31: =+'GEN-502 Pre_Gen_FP'!G31*'GEN-502 Gen_FP'!G31 -> 3338.089739 | H31: 20983.36292
A32: =+'GEN-502 Pot'!A32 -> Hidroecológica del Teribe No. 43-11 | B32: =+'GEN-502 Pre_Gen_FP'!B32*'GEN-502 Gen_FP'!B32 -> 29870.07006 | C32: =+'GEN-502 Pre_Gen_FP'!C32*'GEN-502 Gen_FP'!C32 -> 29621.51898 | D32: =+'GEN-502 Pre_Gen_FP'!D32*'GEN-502 Gen_FP'!D32 -> 28679.33608 | E32: =+'GEN-502 Pre_Gen_FP'!E32*'GEN-502 Gen_FP'!E32 -> 28267.85329 | F32: =+'GEN-502 Pre_Gen_FP'!F32*'GEN-502 Gen_FP'!F32 -> 28203.6609 | G32: =+'GEN-502 Pre_Gen_FP'!G32*'GEN-502 Gen_FP'!G32 -> 27363.10384 | H32: 172005.5431
A33: =+'GEN-502 Pot'!A33 -> Desarrollos Hidroeléctricos Corp. No. 44-11 | B33: =+'GEN-502 Pre_Gen_FP'!B33*'GEN-502 Gen_FP'!B33 -> 5372.510663 | C33: =+'GEN-502 Pre_Gen_FP'!C33*'GEN-502 Gen_FP'!C33 -> 5327.805601 | D33: =+'GEN-502 Pre_Gen_FP'!D33*'GEN-502 Gen_FP'!D33 -> 5158.342066 | E33: =+'GEN-502 Pre_Gen_FP'!E33*'GEN-502 Gen_FP'!E33 -> 5084.331671 | F33: =+'GEN-502 Pre_Gen_FP'!F33*'GEN-502 Gen_FP'!F33 -> 5072.785855 | G33: =+'GEN-502 Pre_Gen_FP'!G33*'GEN-502 Gen_FP'!G33 -> 4921.601016 | H33: 30937.37687
A34: =+'GEN-502 Pot'!A34 -> Las Perlas Norte No. 45-11 | B34: =+'GEN-502 Pre_Gen_FP'!B34*'GEN-502 Gen_FP'!B34 -> 35092.79769 | C34: =+'GEN-502 Pre_Gen_FP'!C34*'GEN-502 Gen_FP'!C34 -> 34800.7879 | D34: =+'GEN-502 Pre_Gen_FP'!D34*'GEN-502 Gen_FP'!D34 -> 33693.86603 | E34: =+'GEN-502 Pre_Gen_FP'!E34*'GEN-502 Gen_FP'!E34 -> 33210.43622 | F34: =+'GEN-502 Pre_Gen_FP'!F34*'GEN-502 Gen_FP'!F34 -> 33135.0199 | G34: =+'GEN-502 Pre_Gen_FP'!G34*'GEN-502 Gen_FP'!G34 -> 32147.49297 | H34: 202080.4007
A35: =+'GEN-502 Pot'!A35 -> Hidroeléctrica San Lorenzo No. 46-11 | B35: =+'GEN-502 Pre_Gen_FP'!B35*'GEN-502 Gen_FP'!B35 -> 3490.39394 | C35: =+'GEN-502 Pre_Gen_FP'!C35*'GEN-502 Gen_FP'!C35 -> 3461.350112 | D35: =+'GEN-502 Pre_Gen_FP'!D35*'GEN-502 Gen_FP'!D35 -> 3351.253635 | E35: =+'GEN-502 Pre_Gen_FP'!E35*'GEN-502 Gen_FP'!E35 -> 3303.170821 | F35: =+'GEN-502 Pre_Gen_FP'!F35*'GEN-502 Gen_FP'!F35 -> 3295.669775 | G35: =+'GEN-502 Pre_Gen_FP'!G35*'GEN-502 Gen_FP'!G35 -> 3197.448538 | H35: 20099.28682
